Workbook

Sheet Control Panel
A1: GO TO
A2: Utah | B2: Wyoming | D2: FILING INFORMATION | N2: Model Checks
A3: 1.1 | B3: 1.1 | N3: (Must Be 0)
A4: 1.2 | B4: 1.2 | F4: UTAH | J4: WYOMING | N4: ='Model Checks'!D7 -> 
A5: 1.3 pg 1 | B5: 1.3 pg 1 | E5: Current Case No. | F5: 11-057-02 | J5: 30010-xxx-GP-11 | N5: (If this is not 0, or very close, go to
A6: 1.3 pg 2 | B6: 1.3 pg 2 | E6: Filing Date | F6: 2011-04-28 | J6: 2011-04-29 | N6: the "Model Checks"
B7: 1.3 pg 3 | E7: Test Year Ending | F7: 2012-05-31 | J7: 2012-05-31 | N7: Tab and find the
A8: 1.4 pg 1 | B8: 1.4 pg 1 | E8: Proposed Effective Date | F8: 2011-06-01 | J8: 2011-06-01 | N8: problem.)
A9: 1.4 pg 2 | B9: 1.4 pg 2 | E9: Prior Case No. | F9: 10-057-17 | J9: 30010-104-GP-10
A10: 1.4 pg 3 | N10: Go To
A11: 1.5 | B11: 1.5 | D11: Total Increase (Decrease) | F11: ='Utah Summary-by class'!Q28 -> -13283837 | H11: =F11-G11 -> -13283837 | J11: ='Wy 1.7 p2'!F49 -> -1375382.3 | L11: =J11-K11 -> -1375382.3 | N11: Model Checks'
A12: 1.6 pg 1 | B12: 1.6 pg 1
A13: 1.6 pg 2 | B13: 1.6 pg 2
A14: 1.6 pg 3 | B14: 1.6 pg 3 | D14: Typical Customer's Bill
A15: 1.7 pg 1 | B15: 1.7 pg 1
A16: 1.7 pg 2 | B16: 1.7 pg 2 | E16: Previous | F16: ='Ut 1.7'!F30 -> 700.17 | J16: ='Wy 1.7 p1'!F33 -> 793.6
A17: 1.8 | B17: 1.8 | E17: Proposed | F17: ='Ut 1.7'!H30 -> 689.84 | J17: ='Wy 1.7 p1'!G33 -> 758.69
A18: 1.9 | B18: 1.9 | E18: Difference | F18: ='Ut 1.7'!J30 -> -10.33 | H18: =F18-G18 -> -10.33 | J18: ='Wy 1.7 p1'!H33 -> -34.91 | L18: =J18-K18 -> -34.91
A19: Monthly Inputs | E19: % Difference | F19: ='Ut 1.7'!J32 -> -1.48 | H19: =F19-G19 -> -1.48 | J19: ='Wy 1.7 p1'!H37 -> -4.4 | L19: =J19-K19 -> -4.4
A20: Other Inputs
A21: Expenses
A22: Rate Base
N28: 37777609
D29: Exhibit Headings | N29: 8603966
N30: =SUM(N28:N29) -> 46381575
D31: UTAH
F32: Questar Gas Company
F33: ="Docket No. "&F5 -> Docket No. 11-057-02
D35: WYOMING
F36: =F32 -> Questar Gas Company
F37: ="PSCW Docket No. "&J5 -> PSCW Docket No. 30010-xxx-GP-11
D39: Test Year (enter as text)
E40: from | F40: Jun-11
E41: to | F41: May-12

Sheet Application
A1: Application Information
B3: Utah | F3: Wyoming
A4: Utah Gas Costs | B4: ='Ut 1.5'!G41 -> 546195980.9 | E4: Wyoming Gas Costs | F4: ='Wy 1.5'!F43 -> 18900924.42
A5: Increase (Decrease) to Commodity | B5: ='Utah Summary-by class'!G31 -> -14200000 | E5: Increase (Decrease) to Commodity | F5: ='Wy 1.7 p2'!F49 -> -1375382.3
A6: Increase (Decrease) to SNG | B6: ='Utah Summary-by class'!N31 -> 917000
A7: Total Increase (Decrease) | B7: ='Utah Summary-by class'!Q31 -> -13284000
A8: Typical Increase in $ | B8: ='Ut 1.7'!J30 -> -10.33 | E8: Typical Increase in $ | F8: ='Wy 1.7 p1'!H33 -> -34.91
A9: Typical Monthly Increase | B9: =B8/12 -> -0.8608333333 | E9: Typical Monthly Increase | F9: =F8/12 -> -2.909166667
A10: Typical Increase in % | B10: ='Ut 1.7'!J32/100 -> -0.0148 | E10: Typical Increase in % | F10: ='Wy 1.7 p1'!H37/100 -> -0.044
A11: Proposed Rate Effective Date | B11: ='Control Panel'!F8 -> 2011-06-01 | E11: Proposed Rate Effective Date | F11: ='Control Panel'!J8 -> 2011-06-01
A12: Test Year Ending | B12: ='Control Panel'!F7 -> 2012-05-31 | E12: Test Year Ending | F12: ='Control Panel'!J7 -> 2012-05-31
A13: System-Wide Production Costs | B13: ='Ut 1.1'!H1288 -> 300883313 | E13: System-Wide Production Costs | F13: ='Wy 1.1'!H1289 -> 300883313
A14: System-Wide Royalty Payments | B14: ='Ut 1.1'!H1283 -> 43264869.03 | E14: System-Wide Royalty Payments | F14: ='Wy 1.1'!H1284 -> 43264869.03
A15: Wexpro Operators Service Fee | B15: ='Ut 1.1'!H1285 -> 257618444 | E15: Wexpro Operators Service Fee | F15: ='Wy 1.1'!H1286 -> 257618444
A16: Purchased Gas Costs | B16: ='Ut 1.2'!G24 -> 187598794 | E16: Purchased Gas Costs | F16: ='Wy 1.2'!G25 -> 187598794
A17: Purchased Gas Costs per Dth | B17: ='Ut 1.2'!F24 -> 4.193063051 | E17: Purchased Gas Costs per Dth | F17: ='Wy 1.2'!F25 -> 4.193063052
A18: Contracted Dth | B18: ='Ut 1.2'!E17 -> 23580000 | C18: Dth | E18: Contracted Dth | F18: ='Wy 1.2'!E18 -> 23580000 | G18: Dth
A19: Contracted Dth Costs | B19: ='Ut 1.2'!G17 -> 103577330 | E19: Contracted Dth Costs | F19: ='Wy 1.2'!G18 -> 103577329.7
A20: Stabailization Costs | B20: ='Ut 1.2'!G16 -> 1999999.98 | E20: Stabailization Costs | F20: ='Wy 1.2'!G17 -> 1999999.98
A21: Spot Market Dth | B21: ='Ut 1.2'!E19 -> 17964497 | C21: Dth | E21: Spot Market Dth | F21: ='Wy 1.2'!E20 -> 17964497 | G21: Dth
A22: Spot Market Costs | B22: ='Ut 1.2'!G19 -> 71505799 | E22: Spot Market Costs | F22: ='Wy 1.2'!G20 -> 71505799.36
A23: Purchased Gas Dth | B23: ='Ut 1.2'!E24 -> 44740275 | C23: Dth | E23: Purchased Gas Dth | F23: ='Wy 1.2'!E25 -> 44740275 | G23: Dth
A24: Future Contract Dth | B24: ='Ut 1.2'!E21 -> 3195778 | C24: Dth | E24: Future Contract Dth | F24: ='Wy 1.2'!E22 -> 3195778 | G24: Dth
A25: Future Contract Costs | B25: ='Ut 1.2'!G21 -> 12515665 | E25: Future Contract Costs | F25: ='Wy 1.2'!G22 -> 12515665
A26: Transportation & Gathering Costs | B26: ='Ut 1.3 p1'!M59 -> 92148373 | E26: Transportation & Gathering Costs | F26: ='Wy 1.3 p1'!M57 -> 92095504.05
A27: Transportation Costs | B27: ='Ut 1.3 p1'!M28 -> 63315921 | E27: Kern River Transportation Costs | F27: ='Wy 1.3 p1'!M28 -> 63263053
A28: Capacity Release Credits | B28: =-'Ut 1.3 p1'!L19 -> 475816 | E28: Capacity Release Credits | F28: =-'Wy 1.3 p1'!L19 -> 528683.92
A29: Transportation Commodity Costs | B29: ='Ut 1.3 p1'!M43 -> 596779 | E29: Transportation Commodity Costs | F29: ='Wy 1.3 p1'!M43 -> 596778.7003
E30: QGM Gathering Costs | F30: ='Wy 1.3 p1'!M49 -> 22996745.76
A31: Other Trans. & Gathering Costs | B31: ='Ut 1.3 p1'!L52 -> 3012176 | E31: Other Trans. & Gathering Costs | F31: ='Wy 1.3 p1'!M54 -> 5238926.586
A32: CO2 Processing Costs
A33: Storage & Working Gas Costs | B33: ='Ut 1.3 p1'!L53 -> 2226751 | E33: Storage & Working Gas Costs | F33: ='Wy 1.3 p2'!K54 -> 18397870.68
A34: Total Other Costs | B34: ='Ut 1.3 p1'!M54 -> 5238927
A35: Storage Costs | B35: ='Ut 1.3 p2'!K54 -> 18339472.59 | E35: Storage Costs | F35: ='Wy 1.3 p2'!K29 -> 14514398
A36: Storage Demand | B36: ='Ut 1.3 p2'!J20 -> 14025058
A37: Storage Commodity | B37: ='Ut 1.3 p2'!J27 -> 489340
A38: Working Storage Gas Return | B38: ='Ut 1.3 p2'!K51 -> 3825074.592 | E38: Working Storage Gas Return | F38: ='Wy 1.3 p2'!K51 -> 3883472.677
A39: Total Other Revenues | B39: ='Ut 1.4 p3'!H32 -> 33809808
E40: Production Depreciation & Amort. | F40: ='Wy 1.3 p3'!J20 -> 863507.54
E41: Return on Production Plant | F41: ='Wy 1.3 p3'!J47 -> 543066.8978
E42: Total Production Return & Exp. | F42: ='Wy 1.3 p3'!J50 -> 1406574.438
A43: Utah Gas Costs | B43: ='Ut 1.5'!G41 -> 546195980.9 | E43: Wyoming Gas Costs | F43: ='Wy 1.5'!$F$43 -> 18900924.42
A44: Utah Gas Costs | B44: =B43 -> 546195980.9 | E44: Core Customer Gas Costs | F44: ='Wy 1.6 p1'!J17 -> 18149077.94
A45: Utah Net Gas Costs | B45: ='Ut 1.6 p1'!J16 -> 536480530.5 | E45: Core Customer Unit Cost of Gas | F45: ='Wy 1.6 p1'!F31 -> 5.11754
A46: Commodity Portion of Gas Costs | B46: ='Ut 1.6 p1'!J28 -> 433845841.4
A47: Firm Gas Cost | B47: ='Ut 1.6 p1'!F34 -> 4.21339
A48: Current Amortization | B48: ='Ut 1.6 p1'!H35 -> 0.34133 | E48: Current Amortization | F48: ='Wy 1.6 p1'!H32 -> 0.21529
A49: Previous Case No. | B49: ='Ut 1.6 p1'!H32 -> 10-057-17
A50: Forecasted 191 Account Balance | B50: ='Ut 1.6 p1'!D55 -> 14484430 | E50: Forecasted 191 Account Balance | F50: ='Wy 1.6 p1'!F53 -> -527353
A51: Proposed Amortization | B51: ='Ut 1.6 p1'!F35 -> 0.1406686564 | E51: Proposed Amortization | F51: ='Wy 1.6 p1'!F32 -> -0.1486990493
A52: Total Unit Cost in Rates | B52: ='Ut 1.6 p1'!F36 -> 4.354058656 | E52: Total Unit Cost in Rates | F52: ='Wy 1.6 p1'!F33 -> 4.968840951
A53: Increase in Unit Cost In Rates | B53: ='Ut 1.6 p1'!J36 -> -0.1379113436
A54: Test Year SNG Costs | B54: ='Ut 1.6 p2'!F14 -> 102634689.1
A55: Forested 191 SNG Balance | B55: ='Ut 1.6 p2'!F15 -> 0
A56: Total SNG | B56: ='Ut 1.6 p2'!F16 -> 102634689.1
A57: Forecasted Current SNG Revenues | B57: ='Ut 1.6 p2'!F19 -> 104001133.7
A58: % Change in SNG Rates | B58: =-ROUND('Ut 1.6 p2'!F35,2)/100 -> 0.0132
A59: Average Monthly Increase | B59: ='Ut 1.7'!J30/12 -> -0.8608333333 | E59: Typical Increase in $ | F59: ='Wy 1.7 p1'!H33 -> -34.91
A60: Typical Increase in % | B60: ='Ut 1.7'!J32/100 -> -0.0148 | E60: Typical Increase in % | F60: ='Wy 1.7 p1'!H37/100 -> -0.044
A61: Company Owned Gas % | E61: Company Owned Gas % | F61: =Calculations!P174 -> 0.609872507
A62: Utah Gas Costs | B62: ='Ut 1.5'!G41 -> 546195980.9 | E62: Wyoming Gas Costs | F62: ='Wy 1.5'!$F$43 -> 18900924.42

Sheet Monthly Inputs
A1: MONTHLY INPUTS | E1: Col. E-F, copy from col. J-K (or appropriate columns), rows 3 through 76, before updating test year
G2: TEST YEAR COLUMNS | S2: 12-Month
E3: Apr11 | F3: May11 | G3: Jun11 | H3: Jul11 | I3: Aug11 | J3: Sep11 | K3: Oct11 | L3: Nov11 | M3: Dec11 | N3: Jan12 | O3: Feb12 | P3: Mar12 | Q3: Apr12 | R3: May12 | S3: Total
E4: =MONTH(E3) -> 4 | F4: 5 | G4: =MONTH(G3) -> 6 | H4: 7 | I4: 8 | J4: 9 | K4: 10 | L4: 11 | M4: 12 | N4: 1 | O4: 2 | P4: 3 | Q4: 4 | R4: 5
A5: QGC Company Produced Gas In MDth | G5: Scott Nelsen | I5: Updated: | J5: 2011-04-19
B7: Prior Company | E7: 959.278 | F7: 955.312 | G7: 807.583 | H7: 713.569 | I7: 656.903 | J7: 697.681 | K7: 739.041 | L7: 870.296 | M7: 901.178 | N7: 930.558 | O7: 958.1 | P7: 1007.361 | Q7: 988.767 | R7: 912.215 | S7: =SUM(G7:R7) -> 10183.252
B8: D24 & D21 | E8: 4568.458 | F8: 4728.314 | G8: 4548.782 | H8: 4713.505 | I8: 4561.059 | J8: 4705.294 | K8: 5171.661 | L8: 5328.065 | M8: 5110.176 | N8: 5085.539 | O8: 5224.876 | P8: 5098.383 | Q8: 5038.343 | R8: 5055.925 | S8: =SUM(G8:R8) -> 59641.608
B9: Total Prior Company & D24 | E9: =SUM(E7:E8) -> 5527.736 | F9: 5683.626 | G9: =SUM(G7:G8) -> 5356.365 | H9: =SUM(H7:H8) -> 5427.074 | I9: 5217.962 | J9: 5402.975 | K9: 5910.702 | L9: 6198.361 | M9: 6011.354 | N9: 6016.097 | O9: 6182.976 | P9: 6105.744 | Q9: 6027.11 | R9: 5968.14 | S9: =SUM(G9:R9) -> 69824.86
B11: Brady | E11: 8.461 | F11: 6.806 | G11: 11.113 | H11: 11.385 | I11: 10.245 | J11: 10.202 | K11: 9.917 | L11: 8.654 | M11: 10.281 | N11: 9.783 | O11: 8.19 | P11: 9.492 | Q11: 9.119 | R11: 7.136 | S11: =SUM(G11:R11) -> 115.517
B12: Total Company Produced Gas (MDth) | E12: =SUM(E9:E11) -> 5536.197 | F12: 5690.432 | G12: =SUM(G9:G11) -> 5367.478 | H12: =SUM(H9:H11) -> 5438.459 | I12: 5228.207 | J12: 5413.177 | K12: 5920.619 | L12: 6207.015 | M12: 6021.635 | N12: 6025.88 | O12: 6191.166 | P12: 6115.236 | Q12: 6036.229 | R12: =SUM(R9:R11) -> 5975.276 | S12: =SUM(G12:R12) -> 69940.377 | T12: =SUM(S9+S11) -> 69940.377 | U12: ck
B16: Company Production In Dth | E16: 5536238 | F16: 5690473 | G16: 5367519 | H16: 5438488 | I16: 5228235 | J16: 5413227 | K16: 5920619 | L16: 6207015 | M16: 6021781 | N16: 6025923 | O16: 6191207 | P16: 6115283 | Q16: 6036273 | R16: 5975319 | S16: =SUM(G16:R16) -> 69940889
B17: Birch Cr Gathering | E17: =E16/$S$16*$S$17 -> 251396.2532 | F17: 258399.9443 | G17: =G16/$S$16*$S$17 -> 243734.8549 | H17: =H16/$S$16*$S$17 -> 246957.5018 | I17: =I16/$S$16*$S$17 -> 237410.077 | J17: 245810.4195 | K17: 268850.6948 | L17: 281855.714 | M17: 273444.3824 | N17: 273632.4674 | O17: 281137.885 | P17: 277690.2354 | Q17: 274102.4528 | R17: =R16/$S$16*$S$17 -> 271334.5792 | S17: ='Other Inputs'!$D$156 -> 3175961.264
B18: QGM Gathering | E18: =E16/$S$16*$S$18 -> 3916232.113 | F18: 4025335.092 | G18: =G16/$S$16*$S$18 -> 3796883.421 | H18: =H16/$S$16*$S$18 -> 3847085.575 | I18: 3698356.502 | J18: 3829216.412 | K18: 4188136.106 | L18: 4390727.326 | M18: 4259696.229 | N18: 4262626.203 | O18: 4379545.04 | P18: 4325837.81 | Q18: 4269947.601 | R18: =R16/$S$16*$S$18 -> 4226829.871 | S18: ='Other Inputs'!$D$170 -> 49474888.09
G33: 1000
B34: Injections in Dth
C35: Chalk Creek | E35: 0 | F35: 0 | G35: 0 | H35: 0 | I35: 0 | J35: 0 | K35: 149591 | L35: 161319 | M35: 0 | N35: 0 | O35: 0 | P35: 0 | Q35: 0 | R35: 0 | S35: =SUM(G35:R35) -> 310910
C36: Clay Basin | E36: 1977750 | F36: =317570+272819 -> 590389 | G36: 2332490 | H36: 2344420 | I36: 2155790 | J36: 1876210 | K36: 1831380 | L36: 1378700 | M36: 0 | N36: 0 | O36: 0 | P36: 0 | Q36: 500530 | R36: 1379930 | S36: =SUM(G36:R36) -> 13799450
C37: Coalville | E37: 0 | F37: 0 | G37: 0 | H37: 0 | I37: 0 | J37: 130578 | K37: 259016 | L37: 3438 | M37: 0 | N37: 0 | O37: 0 | P37: 0 | Q37: 0 | R37: 0 | S37: =SUM(G37:R37) -> 393032
C38: Leroy | E38: 0 | F38: 0 | G38: 0 | H38: 0 | I38: 0 | J38: 0 | K38: 454976 | L38: 0 | M38: 0 | N38: 0 | O38: 0 | P38: 0 | Q38: 0 | R38: 0 | S38: =SUM(G38:R38) -> 454976
C39: Total Injections | E39: =SUM(E35:E38) -> 1977750 | F39: 590389 | G39: =SUM(G35:G38) -> 2332490 | H39: 2344420 | I39: 2155790 | J39: 2006788 | K39: 2694963 | L39: 1543457 | M39: 0 | N39: 0 | O39: 0 | P39: 0 | Q39: 500530 | R39: 1379930 | S39: =SUM(G39:R39) -> 14958368
B41: Withdrawls In Dth
C42: Chalk Creek | E42: 0 | F42: 0 | G42: 0 | H42: 0 | I42: 0 | J42: 0 | K42: 0 | L42: 0 | M42: 0 | N42: 321000 | O42: 0 | P42: 0 | Q42: 0 | R42: 0 | S42: =SUM(G42:R42) -> 321000
C43: Clay Basin | E43: 1330 | F43: 0 | G43: 0 | H43: 0 | I43: 0 | J43: 0 | K43: 0 | L43: 0 | M43: 6477380 | N43: 4884890 | O43: 2056730 | P43: 0 | Q43: 0 | R43: 0 | S43: =SUM(G43:R43) -> 13419000
C44: Coalville | E44: 0 | F44: 0 | G44: 0 | H44: 0 | I44: 0 | J44: 0 | K44: 0 | L44: 0 | M44: 0 | N44: 360186 | O44: 0 | P44: 0 | Q44: 0 | R44: 0 | S44: =SUM(G44:R44) -> 360186
C45: Leroy | E45: 0 | F45: 0 | G45: 0 | H45: 0 | I45: 0 | J45: 0 | K45: 0 | L45: 0 | M45: 0 | N45: 886966 | O45: 0 | P45: 0 | Q45: 0 | R45: 0 | S45: =SUM(G45:R45) -> 886966
C46: Total Withdrawls | E46: =SUM(E42:E45) -> 1330 | F46: 0 | G46: =SUM(G42:G45) -> 0 | H46: 0 | I46: 0 | J46: 0 | K46: 0 | L46: 0 | M46: 6477380 | N46: 6453042 | O46: 2056730 | P46: 0 | Q46: 0 | R46: 0 | S46: =SUM(G46:R46) -> 14987152
B48: Lost & Unaccounted for on QPC
A51: Injection and Withdrawl Used, Lost and Unaccounted For
D52: Gas Use
D53: %
B54: Injections in Dth
C55: Chalk Creek | D55: ='Other Inputs'!E135 -> 0.0141 | E55: =E35*-$D55 -> 0 | F55: 0 | G55: =G35*-$D55 -> 0 | H55: =H35*-$D55 -> 0 | I55: =I35*-$D55 -> 0 | J55: 0 | K55: -2109.2331 | L55: -2274.5979 | M55: 0 | N55: 0 | O55: 0 | P55: 0 | Q55: 0 | R55: 0 | S55: =SUM(G55:R55) -> -4383.831
C56: Clay Basin | D56: ='Other Inputs'!E141 -> 0.0173 | E56: =E36*-$D56 -> -34215.075 | F56: =F36*-$D56 -> -10213.7297 | G56: =G36*-$D56 -> -40352.077 | H56: =H36*-$D56 -> -40558.466 | I56: -37295.167 | J56: =J36*-$D56 -> -32458.433 | K56: -31682.874 | L56: -23851.51 | M56: 0 | N56: 0 | O56: 0 | P56: 0 | Q56: -8659.169 | R56: -23872.789 | S56: =SUM(G56:R56) -> -238730.485
C57: Coalville | D57: ='Other Inputs'!E144 -> 0.0327 | E57: =E37*-$D57 -> 0 | F57: 0 | G57: =G37*-$D57 -> 0 | H57: 0 | I57: 0 | J57: -4269.9006 | K57: -8469.8232 | L57: -112.4226 | M57: 0 | N57: 0 | O57: 0 | P57: 0 | Q57: 0 | R57: 0 | S57: =SUM(G57:R57) -> -12852.1464
C58: Leroy | D58: ='Other Inputs'!E138 -> 0.0109 | E58: =E38*-$D58 -> 0 | F58: 0 | G58: =G38*-$D58 -> 0 | H58: 0 | I58: 0 | J58: 0 | K58: -4959.2384 | L58: 0 | M58: 0 | N58: 0 | O58: 0 | P58: 0 | Q58: 0 | R58: 0 | S58: =SUM(G58:R58) -> -4959.2384
C59: Total Injections | E59: =SUM(E55:E58) -> -34215.075 | F59: -10213.7297 | G59: =SUM(G55:G58) -> -40352.077 | H59: -40558.466 | I59: -37295.167 | J59: -36728.3336 | K59: -47221.1687 | L59: -26238.5305 | M59: 0 | N59: 0 | O59: 0 | P59: 0 | Q59: -8659.169 | R59: -23872.789 | S59: =SUM(S55:S58) -> -260925.7008
B61: Withdrawls In Dth
C62: Chalk Creek | D62: ='Other Inputs'!E136 -> 0.0168 | E62: =E42*-$D62 -> 0 | F62: 0 | G62: =G42*-$D62 -> 0 | H62: 0 | I62: 0 | J62: 0 | K62: 0 | L62: 0 | M62: 0 | N62: -5392.8 | O62: 0 | P62: 0 | Q62: 0 | R62: 0 | S62: =SUM(G62:R62) -> -5392.8
C63: Clay Basin | D63: ='Other Inputs'!E142 -> 0.0105 | E63: =E43*-$D63 -> -13.965 | F63: 0 | G63: =G43*-$D63 -> 0 | H63: 0 | I63: 0 | J63: 0 | K63: 0 | L63: 0 | M63: -68012.49 | N63: -51291.345 | O63: -21595.665 | P63: 0 | Q63: 0 | R63: 0 | S63: =SUM(G63:R63) -> -140899.5
C64: Coalville | D64: ='Other Inputs'!E145 -> 0.0291 | E64: =E44*-$D64 -> 0 | F64: =F44*-$D64 -> 0 | G64: =G44*-$D64 -> 0 | H64: 0 | I64: 0 | J64: 0 | K64: =K44*-$D64 -> 0 | L64: 0 | M64: 0 | N64: -10481.4126 | O64: 0 | P64: 0 | Q64: 0 | R64: 0 | S64: =SUM(G64:R64) -> -10481.4126
C65: Leroy | D65: ='Other Inputs'!E139 -> 0.0203 | E65: =E45*-$D65 -> 0 | F65: 0 | G65: =G45*-$D65 -> 0 | H65: 0 | I65: 0 | J65: 0 | K65: 0 | L65: 0 | M65: 0 | N65: -18005.4098 | O65: 0 | P65: 0 | Q65: 0 | R65: 0 | S65: =SUM(G65:R65) -> -18005.4098
C66: Total Withdrawls | E66: =SUM(E62:E65) -> -13.965 | F66: =SUM(F62:F65) -> 0 | G66: =SUM(G62:G65) -> 0 | H66: 0 | I66: 0 | J66: 0 | K66: =SUM(K62:K65) -> 0 | L66: 0 | M66: -68012.49 | N66: -85170.9674 | O66: -21595.665 | P66: 0 | Q66: 0 | R66: 0 | S66: =SUM(S62:S65) -> -174779.1224
B68: QPC Transportation Loss
C69: Chalk Creek | D69: ='Other Inputs'!$E$257 -> 0.0126 | E69: =E42*-$D69 -> 0 | F69: 0 | G69: =G42*-$D69 -> 0 | H69: 0 | I69: 0 | J69: 0 | K69: 0 | L69: 0 | M69: 0 | N69: -4044.6 | O69: 0 | P69: 0 | Q69: 0 | R69: 0 | S69: =SUM(G69:R69) -> -4044.6
C70: Clay Basin | D70: ='Other Inputs'!$E$257 -> 0.0126 | E70: =E43*-$D70 -> -16.758 | F70: 0 | G70: =G43*-$D70 -> 0 | H70: 0 | I70: 0 | J70: 0 | K70: 0 | L70: 0 | M70: -81614.988 | N70: -61549.614 | O70: -25914.798 | P70: 0 | Q70: 0 | R70: 0 | S70: =SUM(G70:R70) -> -169079.4
C71: Coalville | D71: ='Other Inputs'!$E$257 -> 0.0126 | E71: =E44*-$D71 -> 0 | F71: 0 | G71: =G44*-$D71 -> 0 | H71: 0 | I71: 0 | J71: 0 | K71: 0 | L71: 0 | M71: 0 | N71: -4538.3436 | O71: 0 | P71: 0 | Q71: 0 | R71: 0 | S71: =SUM(G71:R71) -> -4538.3436
C72: Leroy | D72: ='Other Inputs'!$E$257 -> 0.0126 | E72: =E45*-$D72 -> 0 | F72: 0 | G72: 0 | H72: 0 | I72: 0 | J72: 0 | K72: 0 | L72: 0 | M72: 0 | N72: -11175.7716 | O72: 0 | P72: 0 | Q72: 0 | R72: 0 | S72: =SUM(G72:R72) -> -11175.7716
C73: Total Withdrawls | E73: =SUM(E69:E72) -> -16.758 | F73: 0 | G73: =SUM(G69:G72) -> 0 | H73: 0 | I73: 0 | J73: 0 | K73: 0 | L73: 0 | M73: -81614.988 | N73: -81308.3292 | O73: -25914.798 | P73: 0 | Q73: 0 | R73: 0 | S73: -188838.1152
B76: Total Injections & Withdrawls | E76: =E59+E66 -> -34229.04 | F76: =F59+F66 -> -10213.7297 | G76: =G59+G66 -> -40352.077 | H76: =H59+H66 -> -40558.466 | I76: =I59+I66 -> -37295.167 | J76: -36728.3336 | K76: =K59+K66 -> -47221.1687 | L76: -26238.5305 | M76: -68012.49 | N76: -85170.9674 | O76: -21595.665 | P76: 0 | Q76: -8659.169 | R76: -23872.789 | S76: =S59+S66 -> -435704.8232
R78: Fuel Factor | S78: =-S76/(S46+S39) -> 0.01454991676
S80: 12-Month
E81: =E3 -> Apr11 | F81: =F3 -> May11 | G81: =G3 -> Jun11 | H81: Jul11 | I81: Aug11 | J81: Sep11 | K81: Oct11 | L81: Nov11 | M81: Dec11 | N81: Jan12 | O81: Feb12 | P81: Mar12 | Q81: Apr12 | R81: May12 | S81: Total
I83: Updated: | J83: 2011-04-18 | K83: EXH 1.2
A84: Natural Gas Spot Price Forecast - Average of GI, Cera & Pira | E84: (Forecast --->) | G84: (Forecast --->)
B85: Kern River Opal, Wyoming | E85: 3.98 | F85: ='Graph (Ex 1.10) Inputs'!G2 -> 3.91 | G85: ='Graph (Ex 1.10) Inputs'!G3 -> 3.85 | H85: ='Graph (Ex 1.10) Inputs'!G4 -> 3.89 | I85: ='Graph (Ex 1.10) Inputs'!G5 -> 3.86 | J85: ='Graph (Ex 1.10) Inputs'!G6 -> 3.88 | K85: ='Graph (Ex 1.10) Inputs'!G7 -> 4.01 | L85: ='Graph (Ex 1.10) Inputs'!G8 -> 4.07 | M85: ='Graph (Ex 1.10) Inputs'!G9 -> 4.19 | N85: ='Graph (Ex 1.10) Inputs'!G10 -> 4.19 | O85: ='Graph (Ex 1.10) Inputs'!G11 -> 4.09 | P85: ='Graph (Ex 1.10) Inputs'!G12 -> 3.84 | Q85: ='Graph (Ex 1.10) Inputs'!G13 -> 3.88 | R85: ='Graph (Ex 1.10) Inputs'!G14 -> 3.94
D86: Used in WY | E86: <------ change formula if UT and WY have different test years | G86: <------ change formula if UT and WY have different test years
D87: Used In UT | E87: <------ change formula if UT and WY have different test years | G87: <------ change formula if UT and WY have different test years
B88: Spot Purchases from IRP | E88: 5693.468 | F88: 670.784 | G88: 0 | H88: 0 | I88: 0 | J88: 178.392 | K88: 3944.163 | L88: =4949.661-2179.197 -> 2770.464 | M88: =2874.586-2694.639 -> 179.947 | N88: =5410.494-4165.504 -> 1244.99 | O88: =6283.676-4025.962 -> 2257.714 | P88: =4370.904-585.185 -> 3785.719 | Q88: 3603.108 | R88: 0 | S88: =SUM(G88:R88) -> 17964.497
C89: In DTH | E89: =E88*1000 -> 5693468 | F89: =F88*1000 -> 670784 | G89: =G88*1000 -> 0 | H89: =H88*1000 -> 0 | I89: 0 | J89: 178392 | K89: 3944163 | L89: 2770464 | M89: 179947 | N89: 1244990 | O89: 2257714 | P89: 3785719 | Q89: 3603108 | R89: 0 | S89: =SUM(G89:R89) -> 17964497
C90: In $ | E90: =E89*E85 -> 22660002.64 | F90: 2622765.44 | G90: 0 | H90: 0 | I90: 0 | J90: 692160.96 | K90: =K89*K85 -> 15816093.63 | L90: 11275788.48 | M90: 753977.93 | N90: 5216508.1 | O90: 9234050.26 | P90: 14537160.96 | Q90: 13980059.04 | R90: 0 | S90: =SUM(G90:R90) -> 71505799.36
A93: CONTRACT PURCHASES | I93: Updated: | J93: 2011-04-28
B94: RESET FORMULAS TO Brent's WORKSHEET
B95: Peaking Purchases (DTH) | G95: ='[1]Peaking Purchases'!$L$19 -> 0 | H95: ='[1]Peaking Purchases'!$N$19 -> 0 | I95: ='[1]Peaking Purchases'!$P$19 -> 0 | J95: ='[1]Peaking Purchases'!$R$19 -> 0 | K95: ='[1]Peaking Purchases'!$T$19 -> 0 | L95: ='[1]Peaking Purchases'!$V$19 -> 3000000 | M95: ='[1]Peaking Purchases'!$X$19 -> 3500000 | N95: ='[1]Peaking Purchases'!$Z$19 -> 5000000 | O95: ='[1]Peaking Purchases'!$AB$19 -> 4000000 | P95: ='[1]Peaking Purchases'!$AD$19 -> 1400000 | Q95: ='[1]Peaking Purchases'!$AF$19 -> 0 | R95: ='[1]Peaking Purchases'!$AH$19 -> 0 | S95: =SUM(G95:R95) -> 16900000 | T95: =S96/S95 -> 4.33984226
B96: Peaking Purchases ($) | G96: ='[1]Peaking Purchases'!$M$19 -> 0 | H96: ='[1]Peaking Purchases'!$O$19 -> 0 | I96: ='[1]Peaking Purchases'!$Q$19 -> 0 | J96: ='[1]Peaking Purchases'!$S$19 -> 0 | K96: ='[1]Peaking Purchases'!$U$19 -> 0 | L96: ='[1]Peaking Purchases'!$W$19 -> 12840935.9 | M96: ='[1]Peaking Purchases'!$Y$19 -> 15497868.68 | N96: ='[1]Peaking Purchases'!$AA$19 -> 22102818.83 | O96: ='[1]Peaking Purchases'!$AC$19 -> 17258057.73 | P96: ='[1]Peaking Purchases'!$AE$19 -> 5643653.04 | Q96: ='[1]Peaking Purchases'!$AG$19 -> 0 | R96: ='[1]Peaking Purchases'!$AI$19 -> 0 | S96: =SUM(G96:R96) -> 73343334.19
B98: Term Purchases (DTH) | G98: ='[1]Term Purchases'!$K$11 -> 0 | H98: ='[1]Term Purchases'!$M$11 -> 0 | I98: ='[1]Term Purchases'!$O$11 -> 0 | J98: ='[1]Term Purchases'!$Q$11 -> 0 | K98: ='[1]Term Purchases'!$S$11 -> 0 | L98: ='[1]Term Purchases'!$U$11 -> 1200000 | M98: ='[1]Term Purchases'!$W$11 -> 1550000 | N98: ='[1]Term Purchases'!$Y$11 -> 1550000 | O98: ='[1]Term Purchases'!$AA$11 -> 1450000 | P98: ='[1]Term Purchases'!$AC$11 -> 930000 | Q98: ='[1]Term Purchases'!$AE$11 -> 0 | R98: ='[1]Term Purchases'!$AG$11 -> 0 | S98: =SUM(G98:R98) -> 6680000
B99: Term Purchases ($) | G99: ='[1]Term Purchases'!$L$11 -> 0 | H99: ='[1]Term Purchases'!$N$11 -> 0 | I99: ='[1]Term Purchases'!$P$11 -> 0 | J99: ='[1]Term Purchases'!$R$11 -> 0 | K99: ='[1]Term Purchases'!$T$11 -> 0 | L99: ='[1]Term Purchases'!$V$11 -> 5049495 | M99: ='[1]Term Purchases'!$X$11 -> 6673649 | N99: ='[1]Term Purchases'!$Z$11 -> 6673649 | O99: ='[1]Term Purchases'!$AB$11 -> 6098091 | P99: ='[1]Term Purchases'!$AD$11 -> 3739111.5 | Q99: ='[1]Term Purchases'!$AF$11 -> 0 | R99: ='[1]Term Purchases'!$AH$11 -> 0 | S99: =SUM(G99:R99) -> 28233995.5 | T99: =S99/S98 -> 4.226646033
B100: Stabalization Costs (Winter Months - Oct to Mar) | G100: 0 | H100: 0 | I100: 0 | J100: 0 | K100: 333333.33 | L100: 333333.33 | M100: 333333.33 | N100: 333333.33 | O100: 333333.33 | P100: 333333.33 | Q100: 0 | R100: 0 | S100: =SUM(G100:R100) -> 1999999.98
B103: Total Purchases (DTH) | E103: =E95+E98 -> 0 | F103: 0 | G103: 0 | H103: =H95+H98 -> 0 | I103: 0 | J103: 0 | K103: 0 | L103: =L95+L98 -> 4200000 | M103: 5050000 | N103: 6550000 | O103: 5450000 | P103: 2330000 | Q103: 0 | R103: 0 | S103: =SUM(G103:R103) -> 23580000
B104: Total Purchases ($) | E104: 0 | F104: 0 | G104: 0 | H104: 0 | I104: 0 | J104: 0 | K104: 0 | L104: =L96+L99 -> 17890430.9 | M104: 22171517.68 | N104: 28776467.83 | O104: 23356148.73 | P104: 9382764.54 | Q104: 0 | R104: 0 | S104: =SUM(G104:R104) -> 101577329.7
A107: Typical Customer Monthly Usage in Dth
B108: Utah | G108: =VLOOKUP(MONTH(G3),$F$117:$G$128,2,FALSE) -> 3.1 | H108: =VLOOKUP(MONTH(H3),$F$117:$G$128,2,FALSE) -> 2 | I108: 1.8 | J108: 2 | K108: 3.1 | L108: 6.3 | M108: 11.5 | N108: 14.9 | O108: 12.5 | P108: 10.1 | Q108: 8.3 | R108: 4.4 | S108: =SUM(G108:R108) -> 80
B109: Wyoming | G109: =VLOOKUP(MONTH(G3),$F$117:$H$128,3,FALSE) -> 3.7 | H109: =VLOOKUP(MONTH(H3),$F$117:$H$128,3,FALSE) -> 2.3 | I109: 1.7 | J109: 2.1 | K109: 4.1 | L109: 8 | M109: 12.3 | N109: 14.7 | O109: 14.1 | P109: 11.8 | Q109: 9.4 | R109: 5.8 | S109: =SUM(G109:R109) -> 90
A111: INPUTS FROM WEXPRO | G111: =G3 -> Jun11 | H111: =H3 -> Jul11 | I111: Aug11 | J111: Sep11 | K111: Oct11 | L111: Nov11 | M111: Dec11 | N111: Jan12 | O111: Feb12 | P111: Mar12 | Q111: Apr12 | R111: May12 | S111: 12-Month
G112: =G3 -> Jun11 | H112: =H3 -> Jul11 | I112: Aug11 | J112: Sep11 | K112: Oct11 | L112: Nov11 | M112: Dec11 | N112: Jan12 | O112: Feb12 | P112: Mar12 | Q112: Apr12 | R112: May12 | S112: Total
A113: Wexpro Operator Fee (Wexpro forecast) | D113: Updated from Brady Rasmussen 4/28/11 | G113: 20622562 | H113: 20299905 | I113: 20469541 | J113: 20701444 | K113: 21635859 | L113: 21369957 | M113: 22033182 | N113: 21940853 | O113: 21819144 | P113: 21650566 | Q113: 22916441 | R113: 22158990 | S113: =SUM(G113:R113) -> 257618444
C115: Need to update for August figures
F116: Typical UPC | G116: UT | H116: WY
F117: 1 | G117: 14.9 | H117: 14.7
F118: 2 | G118: 12.5 | H118: 14.1
F119: 3 | G119: 10.1 | H119: 11.8
F120: 4 | G120: 8.3 | H120: 9.4
F121: 5 | G121: 4.4 | H121: 5.8
F122: 6 | G122: 3.1 | H122: 3.7
F123: 7 | G123: 2 | H123: 2.3
F124: 8 | G124: 1.8 | H124: 1.7
F125: 9 | G125: 2 | H125: 2.1
F126: 10 | G126: 3.1 | H126: 4.1
F127: 11 | G127: 6.3 | H127: 8
F128: 12 | G128: 11.5 | H128: 12.3
F129: Total | G129: =SUM(G117:G128) -> 80 | H129: =SUM(H117:H128) -> 90

Sheet Graph (Ex 1.10) Inputs
C1: ACTUAL | D1: G.I. | E1: CERA | F1: PIRA | G1: AVG
B2: 2011-05-01 | E2: 3.59 | F2: 4.22 | G2: =ROUND(AVERAGE(D2:F2),2) -> 3.91
B3: 2011-06-01 | E3: 3.55 | F3: 4.14 | G3: 3.85
B4: 2011-07-01 | E4: 3.71 | F4: 4.06 | G4: 3.89
B5: 2011-08-01 | E5: 3.73 | F5: 3.99 | G5: 3.86
B6: 2011-09-01 | E6: 3.79 | F6: 3.97 | G6: 3.88
B7: 2011-10-01 | E7: 3.97 | F7: 4.04 | G7: 4.01
B8: 2011-11-01 | E8: 4.11 | F8: 4.03 | G8: 4.07
B9: 2011-12-01 | E9: 4.13 | F9: 4.24 | G9: 4.19
B10: 2012-01-01 | E10: 4.02 | F10: 4.35 | G10: 4.19
B11: 2012-02-01 | E11: 4.04 | F11: 4.14 | G11: 4.09
B12: 2012-03-01 | E12: 3.57 | F12: 4.11 | G12: 3.84
B13: 2012-04-01 | E13: 3.75 | F13: 4.01 | G13: 3.88
B14: 2012-05-01 | E14: 3.85 | F14: 4.02 | G14: 3.94
E17: Price Forecasts

Sheet Other Inputs
H1: Used In
A2: INPUT SECTION | H2: Ut | I2: Wy | J2: Source
A3: INPUTS FROM QUESTAR PIPELINE TARIFF AND CONTRACTS
B5: QPC Storage Commodity Rates | E5: Rate | F5: Effective
B6: Peaking Injections | E6: 0.03872 | F6: 2011-01-01 | H6: 1.3.2 | I6: 1.3p2 | J6: QPC Tariff Statement of Rates
B7: Peaking Withdrawals | E7: 0.03872 | F7: =$F$6 -> 2011-01-01 | H7: 1.3.2 | I7: 1.3p2 | J7: =J6 -> QPC Tariff Statement of Rates
B8: Clay Basin Injections | E8: 0.01049 | F8: =$F$6 -> 2011-01-01 | H8: 1.3.2 | I8: 1.3p2 | J8: =J7 -> QPC Tariff Statement of Rates
B9: Clay Basin Withdrawals | E9: 0.01781 | F9: =$F$6 -> 2011-01-01 | H9: 1.3.2 | I9: 1.3p2 | J9: =J8 -> QPC Tariff Statement of Rates
B11: QPC Storage Field Reservation Charges
B12: Peaking Storage Fields Demand (Leroy, Chalk Creek, Coalville) | E12: 2.87375 | F12: =$F$6 -> 2011-01-01 | H12: 1.3.2 | I12: 1.3p2 | J12: =$J$6 -> QPC Tariff Statement of Rates
B13: Clay Basin Demand | E13: 2.85338 | F13: =$F$6 -> 2011-01-01 | H13: 1.3.2 | I13: 1.3p2 | J13: =$J$6 -> QPC Tariff Statement of Rates
B14: Clay Basin Capacity | E14: 0.02378 | F14: =$F$6 -> 2011-01-01 | H14: 1.3.2 | I14: 1.3p2 | J14: =$J$6 -> QPC Tariff Statement of Rates
B16: Volumes verified with Glen Watkins on 02/04/2009
G17: 1/1/2011 | J17: used in Exhibit 1.3
B18: FIRM TRANSPORTATION | D18: Contract Dth | E18: Months | F18: Maximum Rate | G18: Effective
B19: T-1 Transportation - Yearly (MT241) | D19: =798902 -> 798902 | E19: 12 | F19: 5.28804 | G19: 2011-01-01 | H19: 1.3p1 | J19: =$J$6 -> QPC Tariff Statement of Rates | N19: 4000000
B20: T-1 Transportation - Yearly (Mainline 104) | D20: 50000 | F20: 5.28804 | G20: =$G$19 -> 2011-01-01 | H20: Jan | J20: =$J$6 -> QPC Tariff Statement of Rates | N20: 28100
B21: T-1 Transportation - Yearly (Tieline 112) | D21: 52000 | F21: 5.28804 | G21: =$G$19 -> 2011-01-01 | H21: 1.3p1 | J21: =$J$6 -> QPC Tariff Statement of Rates | N21: =N19/N20 -> 142.3487544
B22: Total Yearly T-1 Transportation | D22: =SUM(D19:D21) -> 900902 | E22: 12 | J22: as long as total is same as previous, don't worry about ind. Contracts
B24: T-1 Transportation - Seasonal(BASE TARIFF RATE LOW LOAD) Mainline 104 | D24: 0 | E24: 0 | F24: 0 | J24: not using currently - ck with Glen
B26: No-Notice Transportation (BASE TARIFF RATE) | D26: 203542 | E26: 12 | F26: 0.86753 | G26: =$G$19 -> 2011-01-01 | H26: 1.3p1 | J26: =$J$6 -> QPC Tariff Statement of Rates
B27: GRI - Yearly (SURCHARGE LOW LOAD CUSTOMERS MAXIMUM) | D27: =D22 -> 900902 | E27: 12 | F27: 0 | G27: =$G$19 -> 2011-01-01 | H27: 1.3p1 | J27: =$J$6 -> QPC Tariff Statement of Rates
B28: GRI - Seasonal (No GRI currently) | D28: 50000 | E28: 3 | F28: =+F27 -> 0 | G28: =$G$19 -> 2011-01-01 | H28: 1.3p1 | J28: =$J$6 -> QPC Tariff Statement of Rates
B29: GRI | D29: 52000 | E29: 12 | F29: =+F27 -> 0 | G29: =$G$19 -> 2011-01-01 | H29: 1.3p1 | J29: =$J$6 -> QPC Tariff Statement of Rates
B31: TRANSPORTATION COMMODITY
B32: PIPELINE USAGE CHARGE TO VOLUMETRIC RELEASES
B33: QPC Commodity
B34: QPC Firm Transportation Usage Charge (Max & Min) (BASE TARIFF RATE) | F34: 0.00267 | G34: 2011-01-01 | H34: 1.3p1 | J34: =$J$6 -> QPC Tariff Statement of Rates
B35: QPC (ANNUAL CHARGE ADJUSTMENT) | F35: =+F40 -> 0.0019 | G35: =G34 -> 2011-01-01 | H35: 1.3p1 | J35: =$J$6 -> QPC Tariff Statement of Rates
B36: QPC GRI SURCHARGE | F36: 0 | G36: =G34 -> 2011-01-01 | H36: 1.3p1 | J36: =$J$6 -> QPC Tariff Statement of Rates
E37: Current | F37: Proposed
B38: INTER TRANS (T-2 PIPELINE BASE TARIFF) MAX | D38: Base Tariff | E38: 0.17652 | F38: 0.17652 | G38: 2011-01-01 | J38: =$J$6 -> QPC Tariff Statement of Rates
D39: GRI Surcharge | E39: 0 | F39: 0 | G39: =G38 -> 2011-01-01 | J39: =$J$6 -> QPC Tariff Statement of Rates
D40: Annual Charge | E40: 0.0019 | F40: 0.0019 | G40: =G38 -> 2011-01-01 | J40: =$J$6 -> QPC Tariff Statement of Rates
D41: Total | E41: =SUM(E38:E40) -> 0.17842 | F41: =SUM(F38:F40) -> 0.17842
B44: Utah | E44: =ROUND((E41)/(1-$E254),5) -> 0.17919 | F44: =ROUND((F41)/(1-E254),5) -> 0.17919 | H44: 1.6.3 | J44: Before Adjustment for Bad Debt (Transport grossed up for QGC fuel)
B45: Wyoming | F45: =ROUND((F41)/(1-E255),5) -> 0.18114
A47: INPUTS FROM KERN RIVER PIPELINE TARIFF AND CONTRACTS
B48: Kern River 2003 Expansion | D48: Contract Dth | E48: Months | F48: Maximum Rate | G48: Effective
F49: 0.4717 | J49: KR Tariff 5-A
B50: Jan - Dec | D50: 3000 | E50: 12 | F50: =F49*E53/E50 -> 14.34754167 | G50: 2011-04-01 | H50: 1.3.1
B51: November - March | D51: 50000 | E51: 5 | F51: =F50 -> 14.34754167 | G51: =G50 -> 2011-04-01 | H51: Jan
B52: Jan - Dec | D52: 1885 | E52: 12 | F52: =F53*E53/E52 -> 17.74204167 | G52: =G51 -> 2011-04-01
B53: Days in Tariff Rate | E53: 365 | F53: 0.5833 | J53: e.g., if rates effective Jan 1 in a leap year, then use 366
B55: Kern River 2003 Expansion | E55: Days in TEST PERIOD
B56: Jan - Dec | C56: 1.650656 | D56: =D50+D52 -> 4885 | E56: 365 | F56: 0.0044 | G56: =G50 -> 2011-04-01 | H56: 1.3p1 | J56: KR Tariff 5-A
B57: November - March | C57: =C56 -> 1.650656 | D57: =D51 -> 50000 | E57: 151 | F57: 0.0044 | G57: =G50 -> 2011-04-01 | H57: 1.3p1 | J57: KR Tariff 5-A
A59: INPUTS FROM QUESTAR GAS TARIFF
B61: I-Sales Commodity Rates | E61: I-2 -eliminated | F61: IS
B62: Effective Date | E62: 11/1/2005 | F62: 7/31/2009
B63: Commodity Rate | E63: 0 | F63: =ROUND((7353080/1941997),5) -> 3.78635 | G63: Should this just be utah
B64: CO2 Refund | E64: 0 | F64: 0
B65: Net Commodity Rate | E65: =SUM(E63:E64) -> 0 | F65: =SUM(F63:F64) -> 3.78635
A67: Current SNG Rates
B68: UTAH | E68: Current SNG Base | F68: Current SNG Amort. | G68: Current SNG Total | J68: Effective
B69: GS | D69: Winter | E69: 1.176 | F69: 0.02651 | G69: =E69+F69 -> 1.20251 | J69: 2011-01-01
D70: Summer | E70: 0.55216 | F70: 0.01244 | G70: =E70+F70 -> 0.5646 | J70: =J69 -> 2011-01-01
B72: FS | D72: Winter | E72: 1.14538 | F72: 0.02582 | G72: =E72+F72 -> 1.1712 | J72: 2011-01-01
D73: Summer | E73: 0.55212 | F73: 0.01245 | G73: =E73+F73 -> 0.56457 | J73: =J72 -> 2011-01-01
B75: F-4 | E75: 0 | F75: 0 | G75: =E75+F75 -> 0 | J75: 2010-08-01
B77: NGV | E77: 0.84863 | F77: 0.01913 | G77: =E77+F77 -> 0.86776 | J77: 2011-01-01
B79: (This includes bad debt adjustment) IS | E79: 0.18045 | F79: 0 | G79: =E79+F79 -> 0.18045 | J79: 2011-01-01
B82: ES | E82: 6.09578 | F82: 0.13742 | G82: =E82+F82 -> 6.2332 | J82: 2011-01-01
A84: Current Rates
B85: Utah GS | J85: Effective
B86: Block 1 | D86: Summer | G86: 7.31877 | J86: 2011-05-01
B87: Block 2 | D87: Summer | G87: 6.14186 | J87: =$J$86 -> 2011-05-01
B88: Block 1 | D88: Winter | G88: 8.30729 | J88: =$J$86 -> 2011-05-01
B89: Block 2 | D89: Winter | G89: 7.00758 | J89: =$J$86 -> 2011-05-01
B90: #1 BSF | G90: 5 | J90: =J86 -> 2011-05-01
B92: Wyoming GS
B93: Block 1 | G93: 7.48438 | J93: 2010-11-01
B94: Block 2 | G94: 6.72895 | J94: =J93 -> 2010-11-01
B95: BSF | G95: 10 | J95: =J93 -> 2010-11-01
A97: INPUTS FROM PREVIOUS PASSTHROUGH CASE
B98: PRIOR PERIOD COMPANY PRODUCTION AVERAGE GAS COST
E99: PROPOSED | F99: PRIOR CASE | G99: Most Recent
B100: VOLUMES DTH | E100: ='Monthly Inputs'!S16 -> 69940889 | F100: 68029210 | G100: EXH 1.1 | J100: LAST CASE IN WHICH RATES CHANGED
B101: AMOUNT | E101: =+D178 -> 300883313 | F101: 293339223 | G101: EXH 1.1
B102: AVG COST | E102: =+E101/E100 -> 4.301965808 | F102: =+F101/F100 -> 4.311959863
B104: Utah Cost of Gas by Component
B105: Unit Cost Of Gas (Line 11) | F105: 4.15064 | J105: Exhibit 1.6 pg 1 (Prior case column)
B106: 191 Account Amortization (Line 12) | F106: 0.34133 | J106: Exhibit 1.6 pg 1 (Prior case column)
B107: Total Unit Cost In Rates (Line 13) | F107: =SUM(F105:F106) -> 4.49197
B109: I-2 Commodity Cost (excluding bad debt) | E109: 0
B111: Wyoming Cost of Gas by Component
B112: Unit Cost Of Gas (Line 10) | F112: 5.14137 | J112: (WY) Exhibit 1.6 pg 1
B113: 191 Account Amortization (Line 11) | F113: 0.21529 | J113: (WY) Exhibit 1.6 pg 1
B114: Total Unit Cost In Rates (Line 13) | F114: =F112+F113 -> 5.35666 | J114: (WY) Exhibit 1.6 pg 1
J117: Exhibit 1.6 pg 1
J118: (WY) Exhibit 1.6 pg 1
A119: INPUTS FROM 191 ACCOUNT YEAR END BALANCE ACTUAL OR FORECAST | E119: Utah | F119: Wyoming
E120: 2011 | F120: 2011-03-01
H121: 1.6.2
D122: current yr /mo(text)
B123: March 2011 191 account | D123: 2011 | E123: -29137996 | F123: -527353 | H123: 1.6.1 | J123: 191 Account Forecast
B124: Supplier Non-Gas Cost Under (Over) Collected through October 2010 (fcst) | D124: March | E124: -43622426 | H124: 1.6.2 | J124: 191 Account Year-End (sometimes through current period)
B125: Commodity Cost Under (Over) Collected during YEAR (Fcst)
A127: INPUTS FROM IRP
B128: #1 Peak Day Demand Forecast | E128: 2012 | F128: Source
B129: Utah | E129: =E131-E130 -> 1241463 | F129: 2011 IRP
B130: Wyoming | E130: 39307
B131: System Total Peak Day Demand Forecast | E131: 1280770 | H131: 1.5 | I131: 1.5
A134: STORAGE FIELD INPUTS | E134: Storage
B135: Chalk Creek Injections Factor | E135: 0.0141 | H135: Scott Nelson Monthly IRP
B136: Chalk Creek Withdrawls Factor | E136: 0.0168 | H136: Scott Nelson Monthly IRP
H137: Scott Nelson Monthly IRP
B138: Leroy Injections Factor | E138: 0.0109 | H138: Scott Nelson Monthly IRP
B139: Leroy Withdrawls Factor | E139: 0.0203 | H139: Scott Nelson Monthly IRP
H140: Scott Nelson Monthly IRP
B141: Clay Basin Injections Factor | E141: 0.0173 | H141: Scott Nelson Monthly IRP
B142: Clay Basin Withdrawls Factor | E142: 0.0105 | H142: Scott Nelson Monthly IRP
H143: Scott Nelson Monthly IRP
B144: Coalville Injections Factor | E144: 0.0327 | H144: Scott Nelson Monthly IRP
B145: Coalville Withdrawls Factor | E145: 0.0291 | H145: Scott Nelson Monthly IRP
B147: QPC Storage Field Reservation Charges | E147: Monthly Dth
B148: Peaking Storage Fields Demand (Leroy, Chalk Creek, Coalville) | E148: 184625 | F148: didn’t change this time | H148: From Glen Watkins (Contract Amounts) (See Ex 1.3 pg 2 if not changed)
B149: Clay Basin Demand | E149: 111827 | F149: didn’t change this time | H149: From Glen Watkins (Contract Amounts) (See Ex 1.3 pg 2 if not changed)
B150: Clay Basin Capacity | E150: 13419000 | F150: didn’t change this time | H150: From Glen Watkins (Contract Amounts) (See Ex 1.3 pg 2 if not changed)
A152: OTHER INPUTS FROM GLEN, TOM, TINA & Al | D152: Volume (Dth) | E152: Revenue
B153: OTHER GATHERING
B154: Actual Birch Creek Volumes | D154: ='Ex 1.1 Data'!B2 -> 2745698 | J154: Exhibit 1.1 Birch Creek Dth
B155: Factor to convert from Historical to Forecasted Volumes | D155: =1+'Ex 1.1 Data'!D1 -> 1.156704512 | J155: Exhibit 1.1 Actual / Total IRP
B156: Forecasted Birch Creek Volumes | D156: =D154*D155 -> 3175961.264
B157: Birch Creek Gathering Rate (CONFIDENTIAL) | D157: 0.14751 | J157: From Glen Watkins
B158: Total Forecasted Birch Creek | D158: =+D156*D157 -> 468486.0461
B160: Other gathering | D160: 2543689.63 | E160: Updated 4/18/11 | H160: JanB | J160: Chuck Howisey's Query
B161: Total Gathering | D161: =SUM(D158:D160) -> 3012175.676 | H161: 1.3.1 | I161: 1.3P1
B163: Other Transportation | D163: 2226750.91 | E163: Updated 4/18/11 | H163: 1.3.1 | J163: Chuck Howisey's Query
B165: Forecast Future Contracts Premium over spot price | E165: 0.02 | F165: Verified with Tina 08/2009
D167: Commodity | E167: Mo. Demand
D168: Charge | E168: Charge | F168: Effective
B169: QEP Gathering Rates | D169: 0.20764 | E169: 1060315 | F169: 6/1/2011 - 5/31/2012 | I169: 1.3p1 | J169: QEP Rates (Changes every Sep 1)
B170: QGC Gathering Throughput Dth From Exhibit 1.1 Backup | D170: ='Ex 1.1 Data'!E1 -> 49474888.09 | E170: 12 | I170: 1.3p1 | J170: Ex. 1.1 updated on 11-17-2010
A173: OTHER INPUTS FROM JIM LIVSEY | D173: Volume (Dth) | E173: Revenue
B175: Questar Gas Production 1/ | D175: Current
B176: Test Year Royalties | D176: ='Ut 1.1'!H1283 -> 43264869.03 | H176: 1.4.1 | I176: 1.4P1 | J176: Exhibit 1.1
B177: Operator Service Fee | D177: ='Monthly Inputs'!S113 -> 257618444 | H177: 1.4.1 | I177: 1.4P1 | J177: Jim Livsey (Updated on 11-10-2010
B178: Total Questar Gas Production Costs | D178: =SUM(D176:D177) -> 300883313
B180: Total Questar Gas Production Dth | D180: ='Ut 1.1'!E1288 -> 69940889 | J180: this formula changes each time
F181: Hot | G181: Hot
B182: Other Revenue Credits | D182: 1 | E182: 2 | F182: 2 | G182: 2 | I182: 1
D183: Historical | E183: Forecast | F183: =HLOOKUP(F$182,$D$182:$E$190,$I183) -> Forecast | G183: =HLOOKUP(G$182,$D$182:$E$190,$I183) -> Forecast | I183: 2
D184: 12 Mo Ending | E184: 12 Mo Ending | F184: Utah | G184: Wyoming | I184: 3
B185: 483 Sales for Resale | E185: 4565734 | F185: =HLOOKUP(F$182,$D$182:$E$190,$I185) -> 4565734 | G185: =HLOOKUP(G$182,$D$182:$E$190,$I185) -> 4565734 | I185: 4 | J185: Wexpro (Jim Livsey)
B186: 490 Incidental Plant Prod Sales | E186: 5546394 | F186: =HLOOKUP(F$182,$D$182:$E$190,$I186) -> 5546394 | G186: 5546394 | I186: 5 | J186: Wexpro (Jim Livsey)
B187: 492 Incidental Gasoline_Oil Sales | E187: 1659134 | F187: 1659134 | G187: 1659134 | I187: 6 | J187: Wexpro (Jim Livsey)
B188: 4951 Overriding Royalty Revenue from Celsius | E188: 16577145 | F188: 16577145 | G188: 16577145 | I188: 7 | J188: Wexpro (Jim Livsey)
B189: 4952 Oil Revenue Received from Wexpro | E189: 5698000 | F189: 5698000 | G189: 5698000 | I189: 8 | J189: Wexpro (Jim Livsey)
B190: 758001 Gas Well Royalities - Other | E190: -236599 | F190: -236599 | G190: -236599 | I190: 9 | J190: Wexpro (Jim Livsey)
B193: Total Other Revenue Credits | D193: =SUM(D185:D190) -> 0 | E193: =SUM(E185:E190) -> 33809808 | F193: =SUM(F185:F190) -> 33809808 | G193: =SUM(G185:G190) -> 33809808
A196: SUMMARY INPUTS FROM REVRUN, RATE BASE, EXPENSES, ETC.
B198: Supplier Non-Gas Costs Recovered at Current Rates 3/ | E198: ='RevRun Fcst'!T$198 -> 104005456 | H198: 1.6.2 | J198: Dave's Revrun
B199: MT Supplier Non-Gas | E199: ='RevRun Fcst'!T142 -> 1730 | J199: Dave's Revrun
B200: Net Supplier Non-Gas | E200: =E198-E199 -> 104003726
B201: UT Current Int Sales SNG Rate - not including Bad Debt adj. | E201: ='RevRun Fcst'!T93+'RevRun Fcst'!T111 -> 2400234 | F201: 0.17937 | J201: Revrun (D210); SNG from last case in which rates changed (see Exh. 1.6, p. 2, line 6c col. C)
E203: ='Rate Base'!$U$8 -> 2011-03-31 | F203: update to most current
B204: Account 164-1 - Gas Stored Underground | D204: Dth | E204: Ending Balance | F204: $ per Dth
D205: ='Rate Base'!T287 -> -2537857 | E205: ='Rate Base'!T208 -> 10598542.29 | F205: =+E205/D205 -> -4.176177889 | H205: 1.4.2
A208: UT CET and DSM AMORTIZATION FILING INPUTS
E209: Base DNG | F209: Current DNG
B210: GS Rates (Base rates are before CET, DSM, & EA Amortizations) | D210: Summer Blk 1 | E210: 1.87767 | F210: 2.2622
D211: Summer Blk 2 | E211: 0.69704 | F211: 1.08529
D212: Winter Blk 1 | E212: 2.22938 | F212: 2.61281
D213: Winter Blk 2 | E213: 0.92557 | F213: 1.3131 | J213: Base DNG Rate from latest general rate case Docket 09-057-16
J214: Current Rates Effective 8/1/10
D215: Energy Assistance | E215: 0.01519 | F215: Current Rate 8/1/2010 GS Rate
E216: 0.01029 | F216: Current Rate 8/1/2010 FS Rate
E217: 0.00796 | F217: Current Rate 8/1/2010 IS Rate
E218: 0.01829 | F218: Current Rate 8/1/2010 NGV Rate
E219: Ending Balance | F219: Date
B220: CET Balance (Account 191.9) | E220: -5724936.562 | F220: 2011-03-31 | J220: Accounting
B221: DSM Expense Deferral Balance (Account 182.4) | E221: 42000000 | F221: 2011-03-31 | J221: Accounting
B223: GS Block Usage in Dth | D223: Winter Blk 1 | E223: 57393205 | J223: Block out from Dave's REVRUN
D224: Winter Blk 2 | E224: 16076588 | J224: (used Gary's "Rate Design Model - Bill Factor Input.xls" &
D225: Summer Blk 1 | E225: 18170765 | J225: Dave's "PT0802.bk" files) Updated March 31, 2010
D226: Summer Blk 2 | E226: 3588710
A228: WY CET and DSM AMORTIZATION FILING INPUTS
E229: Base DNG | F229: Current DNG
B230: GS Rates (Base rates are before CET and DSM Amortizations) | D230: Blk 1 | E230: 2.00841 | F230: 2.00841
D231: Blk 2 | E231: 1.26955 | F231: 1.26955
J233: Base DNG Rate from latest general rate case Docket 30010-94-GR-08
J234: Current Rates Effective7/1/09
E236: Ending Balance | F236: Date
B237: CET Balance (Account 191.9) | E237: 120896.6494 | F237: 2011-03-31 | J237: Accounting
B238: DSM Expense Deferral Balance (Account 182.4) | E238: 224137.04 | F238: 2011-03-31 | J238: Accounting
B240: GS Block Usage in Dth | D240: Blk 1 | E240: 2599062 | J240: Block out from Dave's REVRUN
D241: Blk 2 | E241: 701107 | J241: (used Gary's "Rate Design Model - Bill Factor Input.xls" &
J242: Dave's "PT0802.bk" files) Updated March 31, 2011
A246: MISCELLANEOUS INPUTS
B247: Test Year | D247: ='Control Panel'!F40 -> Jun-11 | E247: ='Control Panel'!F41 -> May-12 | J247: entered as text, beginning and end month
B249: Wexpro Red. @ 6.3% | E249: -0.063 | I249: 1.3p3 | J249: Wexpro Stip.
B251: Pre-Tax Rate of Return % | D251: WYO | E251: 0.1197 | F251: Effective July 2009 | I251: 1.3p2 | J251: Changes with General Rate Case
B252: Pre-Tax Rate of Return % | D252: UTAH | E252: 0.1179 | F252: Effect Aug 1 2010 | J252: Changes with General Rate Case
B254: QGC Lost & Unaccounted For % (Utah | E254: 0.0043107 | H254: Q | I254: Q | J254: Judd's Report
B255: QGC Lost & Unaccounted For % (Wyoming) | E255: 0.015
B256: QEP Gathering Lost & Unaccounted For | E256: 0.0444 | F256: 2010-04-23 | H256: Q | I256: Q | J256: from Gas Supply (Scott N.) - IRP based on this
B257: QPC Lost & Unaccounted For % | E257: 0.0126 | F257: 2010-04-23 | H257: Q | I257: Q | J257: from Gas Supply (Scott N.) - IRP based on this
B258: TOTAL | E258: =SUM(E256:E257) -> 0.057
B260: Capacity Release Credits | E260: 528683.92 | I260: 1.3p1 | J260: From Chuck Howisey
... 17 more rows

Sheet CET & DSM WY
A1: Rate Caclulation for the CET and DSM Amortizations WY
L3: Solver Cells
A4: CET Amortization % Calculation | L4: % Change | M4: Difference
B5: Balance | C5: Date | D5: GS Dth | F5: Amortization per Dth | L5: 0.02243250544 | M5: =G20-B11 -> 16167.5853 | O5: -> Difference should be at 0 (Use Goal Seek to Get Difference to Equal 0.
A6: DSM Balance | B6: ='Other Inputs'!$E$238 -> 224137.04 | C6: ='Other Inputs'!$F$238 -> 2011-03-31 | D6: =B20 -> 3300169 | F6: =B6/D6 -> 0.06791683699
O8: Typical Bill Rates
A9: CET Amortization Calculation
B10: Balance | C10: Date | D10: DNG Rev | F10: New DNG | I10: % Change | O10: Current | P10: Proposed
A11: CET Balance | B11: ='Other Inputs'!$E$237 -> 120896.6494 | C11: ='Other Inputs'!$F$237 -> 2011-03-31 | D11: =D20 -> 6110072.503 | F11: =D11+B11 -> 6230969.153 | I11: =L5 -> 0.02243250544 | O11: Effective | R11: SNG & | S11: CET, DSM
O12: ='Other Inputs'!$J$93 -> 2010-11-01 | P12: CET Only | Q12: DSM Only | R12: Commodity | S12: Commodity
O13: BSF | P13: BSF | Q13: BSF | R13: BSF | S13: BSF
B14: Revenue Calculation | F14: CET Amortization | I14: Total DNG | L14: REVRUN Calculation | O14: ='Other Inputs'!$G$95 -> 10 | P14: ='Other Inputs'!$G$95 -> 10 | Q14: ='Other Inputs'!$G$95 -> 10 | R14: ='Other Inputs'!$G$95 -> 10 | S14: ='Wy 1.8'!C10 -> 10
A15: WY GS | B15: Dth | C15: Base DNG | D15: DNG Revenue | F15: CET Rate | G15: Revenue | I15: DNG Rate | J15: Revenue | L15: CET Rate | M15: CET Amort
A16: Block 1 | B16: ='Other Inputs'!E240 -> 2599062 | C16: ='Other Inputs'!E230 -> 2.00841 | D16: =B16*C16 -> 5219982.111 | F16: =ROUND((G16/B16),5) -> 0.04505 | G16: =D16*$L$5 -> 117097.2771 | I16: =C16+F16 -> 2.05346 | J16: =I16*B16 -> 5337069.855 | L16: =ROUND(F16,5) -> 0.04505 | M16: =B16*L16 -> 117087.7431 | O16: ='Other Inputs'!$G$86 -> 7.31877 | P16: =J24 -> 7.45862 | Q16: =J31 -> 7.47804 | R16: =J36 -> 7.070800951 | S16: =J41 -> 7.090217788
A17: Block 2 | B17: ='Other Inputs'!E241 -> 701107 | C17: ='Other Inputs'!E231 -> 1.26955 | D17: =B17*C17 -> 890090.3919 | F17: =ROUND((G17/B17),5) -> 0.02848 | G17: =D17*$L$5 -> 19966.95756 | I17: =C17+F17 -> 1.29803 | J17: =I17*B17 -> 910057.9192 | L17: =ROUND(F17,5) -> 0.02848 | M17: =B17*L17 -> 19967.52736
O18: ='Other Inputs'!$G$93 -> 7.48438 | P18: =J24 -> 7.45862 | Q18: =J31 -> 7.47804 | R18: =J36 -> 7.070800951 | S18: =J41 -> 7.090217788
A20: GS-1 Block Rev | B20: =SUM(B16:B19) -> 3300169 | D20: =SUM(D16:D19) -> 6110072.503 | G20: =SUM(G16:G19) -> 137064.2347 | J20: =SUM(J16:J19) -> 6247127.774 | M20: =SUM(M16:M19) -> 137055.2705
A22: Total Rate Calculation With CET Amortization Only | J22: ='Control Panel'!J8 -> 2011-06-01 | L22: ='Other Inputs'!$J$93 -> 2010-11-01
A23: WY GS | B23: Total DNG | C23: CET | D23: DSM | F23: Total DNG | G23: Core Commodity Cost | J23: Total Rate | L23: Total Rate
A24: Block 1 | B24: =$C$16 -> 2.00841 | C24: =$F$16 -> 0.04505 | D24: 0.0485 | F24: =SUM(B24:D24) -> 2.10196 | G24: 5.35666 | J24: =SUM(F24:G24) -> 7.45862 | L24: ='Other Inputs'!G93 -> 7.48438 | M24: =J24-L24 -> -0.02576
A25: Block 2 | B25: =$C$17 -> 1.26955 | C25: =$F$17 -> 0.02848 | D25: =$D$24 -> 0.0485 | F25: =SUM(B25:D25) -> 1.34653 | G25: =G24 -> 5.35666 | J25: =SUM(F25:G25) -> 6.70319 | L25: ='Other Inputs'!$G$94 -> 6.72895 | M25: =J25-L25 -> -0.02576
A29: Total Rate Calculation With DSM Amortization Only | J29: =J22 -> 2011-06-01 | L29: ='Other Inputs'!$J$93 -> 2010-11-01
A30: WY GS | B30: Base DNG | C30: CET | D30: DSM | F30: Total DNG | G30: Core Commodity Cost | J30: Total Rate | L30: Total Rate
A31: Block 1 | B31: =$C$16 -> 2.00841 | C31: 0.04505 | D31: =$F$6 -> 0.06791683699 | F31: =ROUND(SUM(B31:D31),5) -> 2.12138 | G31: =G24 -> 5.35666 | J31: =SUM(F31:I31) -> 7.47804 | L31: ='Other Inputs'!$G$86 -> 7.31877 | M31: =J31-L31 -> 0.15927
A32: Block 2 | B32: =$C$17 -> 1.26955 | C32: 0.02848 | D32: =$F$6 -> 0.06791683699 | F32: =ROUND(SUM(B32:D32),5) -> 1.36595 | G32: =G25 -> 5.35666 | J32: =SUM(F32:I32) -> 6.72261 | L32: ='Other Inputs'!$G$94 -> 6.72895 | M32: =J32-L32 -> -0.00634
A34: Total Rate Calculation With Core Commodity Cost Changes Only | J34: =J22 -> 2011-06-01 | L34: ='Other Inputs'!$J$93 -> 2010-11-01
A35: WY GS | B35: Base DNG | C35: CET | D35: DSM | F35: Total DNG | G35: Core Commodity Cost | J35: Total Rate | L35: Total Rate
A36: Block 1 | B36: =$C$16 -> 2.00841 | C36: =C31 -> 0.04505 | D36: =D24 -> 0.0485 | F36: =SUM(B36:D36) -> 2.10196 | G36: ='Wy 1.6 p1'!$F$33 -> 4.968840951 | J36: =SUM(F36:I36) -> 7.070800951 | L36: ='Other Inputs'!$G$86 -> 7.31877 | M36: =J36-L36 -> -0.2479690493
A37: Block 2 | B37: =$C$17 -> 1.26955 | C37: =C32 -> 0.02848 | D37: =D25 -> 0.0485 | F37: =SUM(B37:D37) -> 1.34653 | G37: ='Wy 1.6 p1'!$F$33 -> 4.968840951 | J37: =SUM(F37:I37) -> 6.315370951 | L37: ='Other Inputs'!$G$94 -> 6.72895 | M37: =J37-L37 -> -0.4135790493
A39: Total Rate Calculation | J39: =J29 -> 2011-06-01 | L39: ='Other Inputs'!$J$93 -> 2010-11-01
A40: WY GS | B40: Base DNG | C40: CET | D40: DSM | F40: Total DNG | G40: Core Commodity Cost | J40: Total Rate | L40: Total Rate
A41: Block 1 | B41: =$C$16 -> 2.00841 | C41: =$F$16 -> 0.04505 | D41: =$F$6 -> 0.06791683699 | F41: =SUM(B41:D41) -> 2.121376837 | G41: ='Wy 1.6 p1'!$F$33 -> 4.968840951 | J41: =SUM(F41:I41) -> 7.090217788 | L41: ='Other Inputs'!$G$86 -> 7.31877 | M41: =J41-L41 -> -0.2285522123
A42: Block 2 | B42: =$C$17 -> 1.26955 | C42: =$F$17 -> 0.02848 | D42: =$F$6 -> 0.06791683699 | F42: =SUM(B42:D42) -> 1.365946837 | G42: ='Wy 1.6 p1'!$F$33 -> 4.968840951 | J42: =SUM(F42:I42) -> 6.334787788 | L42: ='Other Inputs'!$G$94 -> 6.72895 | M42: =J42-L42 -> -0.3941622123
A44: Typical Customer Difference - CET Amortization Only
B45: Typical
A46: GS | B46: Dth | C46: =O12 -> 2010-11-01 | D46: =J39 -> 2011-06-01 | F46: Change | G46: % Change
A47: January | B47: 14.7 | C47: =ROUND($O$14+(B47*$O$18),2) -> 120.02 | D47: =ROUND($P$14+(B47*$P$18),2) -> 119.64 | F47: =D47-C47 -> -0.38
A48: February | B48: 14.1 | C48: =ROUND($O$14+(B48*$O$18),2) -> 115.53 | D48: =ROUND($P$14+(B48*$P$18),2) -> 115.17 | F48: =D48-C48 -> -0.36
A49: March | B49: 11.8 | C49: =ROUND($O$14+(B49*$O$18),2) -> 98.32 | D49: =ROUND($P$14+(B49*$P$18),2) -> 98.01 | F49: -0.31
A50: April | B50: 9.4 | C50: =ROUND($O$14+(B50*$O$16),2) -> 78.8 | D50: =ROUND($P$14+(B50*$P$16),2) -> 80.11 | F50: 1.31
A51: May | B51: 5.8 | C51: 52.45 | D51: =ROUND($P$14+(B51*$P$16),2) -> 53.26 | F51: 0.81
A52: June | B52: 3.7 | C52: 37.08 | D52: 37.6 | F52: 0.52
A53: July | B53: 2.3 | C53: 26.83 | D53: 27.15 | F53: 0.32
A54: August | B54: 1.7 | C54: 22.44 | D54: 22.68 | F54: 0.24
A55: September | B55: 2.1 | C55: 25.37 | D55: 25.66 | F55: 0.29
A56: October | B56: 4.1 | C56: 40.01 | D56: 40.58 | F56: 0.57
A57: November | B57: 8 | C57: =ROUND($O$14+(B57*$O$18),2) -> 69.88 | D57: =ROUND($P$14+(B57*$P$18),2) -> 69.67 | F57: -0.21
A58: December | B58: 12.3 | C58: =ROUND($O$14+(B58*$O$18),2) -> 102.06 | D58: =ROUND($P$14+(B58*$P$18),2) -> 101.74 | F58: -0.32
B59: =SUM(B47:B58) -> 90 | C59: =SUM(C47:C58) -> 788.79 | D59: =SUM(D47:D58) -> 791.27 | F59: =SUM(F47:F58) -> 2.48 | G59: =F59/C59 -> 0.003144056086
A62: Typical Customer Difference - DSM Amortization Only
B63: Typical
A64: GS | B64: Dth | C64: =C46 -> 2010-11-01 | D64: =D46 -> 2011-06-01 | F64: Change | G64: % Change
A65: January | B65: 14.7 | C65: =ROUND($O$14+(B65*$O$18),2) -> 120.02 | D65: =ROUND($Q$14+(B65*$Q$18),2) -> 119.93 | F65: =D65-C65 -> -0.09
A66: February | B66: 14.1 | C66: =ROUND($O$14+(B66*$O$18),2) -> 115.53 | D66: =ROUND($Q$14+(B66*$Q$18),2) -> 115.44 | F66: =D66-C66 -> -0.09
A67: March | B67: 11.8 | C67: =ROUND($O$14+(B67*$O$18),2) -> 98.32 | D67: =ROUND($Q$14+(B67*$Q$18),2) -> 98.24 | F67: -0.08
A68: April | B68: 9.4 | C68: =ROUND($O$14+(B68*$O$16),2) -> 78.8 | D68: =ROUND($Q$14+(B68*$Q$16),2) -> 80.29 | F68: 1.49
A69: May | B69: 5.8 | C69: 52.45 | D69: 53.37 | F69: 0.92
A70: June | B70: 3.7 | C70: 37.08 | D70: 37.67 | F70: 0.59
A71: July | B71: 2.3 | C71: 26.83 | D71: 27.2 | F71: 0.37
A72: August | B72: 1.7 | C72: 22.44 | D72: 22.71 | F72: 0.27
A73: September | B73: 2.1 | C73: 25.37 | D73: 25.7 | F73: 0.33
A74: October | B74: 4.1 | C74: 40.01 | D74: 40.66 | F74: 0.65
A75: November | B75: 8 | C75: =ROUND($O$14+(B75*$O$18),2) -> 69.88 | D75: =ROUND($Q$14+(B75*$Q$18),2) -> 69.82 | F75: -0.06
A76: December | B76: 12.3 | C76: =ROUND($O$14+(B76*$O$18),2) -> 102.06 | D76: =ROUND($Q$14+(B76*$Q$18),2) -> 101.98 | F76: -0.08
B77: =SUM(B65:B76) -> 90 | C77: =SUM(C65:C76) -> 788.79 | D77: =SUM(D65:D76) -> 793.01 | F77: =SUM(F65:F76) -> 4.22 | G77: =F77/C77 -> 0.005349966404
A80: Typical Customer Difference - SNG and Commodity Changes Only
B81: Typical
A82: GS | B82: Dth | C82: =C64 -> 2010-11-01 | D82: =D64 -> 2011-06-01 | F82: Change | G82: % Change
A83: January | B83: 14.7 | C83: =ROUND($O$14+(B83*$O$18),2) -> 120.02 | D83: =ROUND($R$14+(B83*$R$18),2) -> 113.94 | F83: =D83-C83 -> -6.08
A84: February | B84: 14.1 | C84: =ROUND($O$14+(B84*$O$18),2) -> 115.53 | D84: =ROUND($R$14+(B84*$R$18),2) -> 109.7 | F84: =D84-C84 -> -5.83
A85: March | B85: 11.8 | C85: =ROUND($O$14+(B85*$O$18),2) -> 98.32 | D85: =ROUND($R$14+(B85*$R$18),2) -> 93.44 | F85: -4.88
A86: April | B86: 9.4 | C86: =ROUND($O$14+(B86*$O$16),2) -> 78.8 | D86: =ROUND($R$14+(B86*$R$16),2) -> 76.47 | F86: -2.33
A87: May | B87: 5.8 | C87: 52.45 | D87: 51.01 | F87: -1.44
A88: June | B88: 3.7 | C88: 37.08 | D88: 36.16 | F88: -0.92
A89: July | B89: 2.3 | C89: 26.83 | D89: 26.26 | F89: -0.57
A90: August | B90: 1.7 | C90: 22.44 | D90: 22.02 | F90: -0.42
A91: September | B91: 2.1 | C91: 25.37 | D91: 24.85 | F91: -0.52
A92: October | B92: 4.1 | C92: 40.01 | D92: 38.99 | F92: -1.02
A93: November | B93: 8 | C93: =ROUND($O$14+(B93*$O$18),2) -> 69.88 | D93: =ROUND($R$14+(B93*$R$18),2) -> 66.57 | F93: -3.31
A94: December | B94: 12.3 | C94: =ROUND($O$14+(B94*$O$18),2) -> 102.06 | D94: =ROUND($R$14+(B94*$R$18),2) -> 96.97 | F94: -5.09
B95: =SUM(B83:B94) -> 90 | C95: =SUM(C83:C94) -> 788.79 | D95: =SUM(D83:D94) -> 756.38 | F95: =SUM(F83:F94) -> -32.41 | G95: =F95/C95 -> -0.04108824909
A98: Typical Customer Difference - CET & DSM Amort, SNG and Commodity Changes
B99: Typical
A100: GS | B100: Dth | C100: =C46 -> 2010-11-01 | D100: =D46 -> 2011-06-01 | F100: Change | G100: % Change
A101: January | B101: 14.7 | C101: =ROUND($O$14+(B101*$O$18),2) -> 120.02 | D101: =ROUND($S$14+(B101*$S$18),2) -> 114.23 | F101: =D101-C101 -> -5.79
A102: February | B102: 14.1 | C102: =ROUND($O$14+(B102*$O$18),2) -> 115.53 | D102: =ROUND($S$14+(B102*$S$18),2) -> 109.97 | F102: =D102-C102 -> -5.56
A103: March | B103: 11.8 | C103: =ROUND($O$14+(B103*$O$18),2) -> 98.32 | D103: =ROUND($S$14+(B103*$S$18),2) -> 93.66 | F103: -4.66
A104: April | B104: 9.4 | C104: =ROUND($O$14+(B104*$O$16),2) -> 78.8 | D104: =ROUND($S$14+(B104*$S$16),2) -> 76.65 | F104: -2.15
A105: May | B105: 5.8 | C105: 52.45 | D105: 51.12 | F105: -1.33
A106: June | B106: 3.7 | C106: 37.08 | D106: 36.23 | F106: -0.85
A107: July | B107: 2.3 | C107: 26.83 | D107: 26.31 | F107: -0.52
A108: August | B108: 1.7 | C108: 22.44 | D108: 22.05 | F108: -0.39
A109: September | B109: 2.1 | C109: 25.37 | D109: 24.89 | F109: -0.48
A110: October | B110: 4.1 | C110: 40.01 | D110: 39.07 | F110: -0.94
A111: November | B111: 8 | C111: =ROUND($O$14+(B111*$O$18),2) -> 69.88 | D111: =ROUND($S$14+(B111*$S$18),2) -> 66.72 | F111: -3.16
A112: December | B112: 12.3 | C112: =ROUND($O$14+(B112*$O$18),2) -> 102.06 | D112: =ROUND($S$14+(B112*$S$18),2) -> 97.21 | F112: -4.85
B113: =SUM(B101:B112) -> 90 | C113: =SUM(C101:C112) -> 788.79 | D113: =SUM(D101:D112) -> 758.11 | F113: =SUM(F101:F112) -> -30.68 | G113: =F113/C113 -> -0.03889501642

Sheet WY Tariff Sheets
T2: Rates Per Dth Used Each Month
B3: 2.02 General Service Rate Schedule (GS) | K3: 2.02 General Service Rate Schedule (GS) | Q3: 2.03 Firm Sales Service Rate Schedule (FS) | T3: Dth = decatherm = 10 therms = 1,000,000 BTU | Z3: 4.02 INTERRUPTIBLE SALES RATE SERVICE SCHEDULE (IS) | BF3: 2.04 NATURAL GAS VEHICLE RATE (NGV)
L4: Rates Per Dth Used Each Month | R4: Summer Rates: Apr. 1 - Oct. 31
C5: Rates Per Dth Used Each Month | L5: Dth = decatherm = 10 therms = 1,000,000 BTU | R5: First | T5: Next | V5: All Over | Z5: IS VOLUMETRIC RATES | AA5: Rates Per Dth Used Each Month | BF5: NGV Volumetric Rate
C6: Dth = decatherm = 10 therms = 1,000,000 BTU | L6: First 45 Dth | M6: All Over 45 Dth | R6: 80 | T6: 730 | V6: 810 | AA6: Dth = decatherm = 10 therms = 1,000,000 BTU | BJ6: Rates Per Dth Used Each Month
C7: First 45 Dth | D7: All Over 45 Dth | K7: Non-Gas Cost | L7: ='CET & DSM WY'!B31 -> 2.00841 | M7: ='CET & DSM WY'!B32 -> 1.26955 | Q7: Non Gas Cost | R7: ='Wy 1.8'!C14 -> 0.67969 | T7: ='Wy 1.8'!D14 -> 0.60383 | V7: ='Wy 1.8'!E14 -> 0.52778 | AA7: First | AB7: Next | AC7: All Over | BJ7: Dth = decatherm = 10 therms = 1,000,000 BTU
B8: Non-Gas Cost | C8: ='CET & DSM WY'!B24 -> 2.00841 | D8: ='CET & DSM WY'!B25 -> 1.26955 | K8: CET Amortization | L8: =ROUND('CET & DSM WY'!C31,5) -> 0.04505 | M8: ='CET & DSM WY'!C32 -> 0.02848 | Q8: Core Service Commodity Cost | R8: ='Wy 1.8'!C15 -> 4.96884 | T8: ='Wy 1.8'!D15 -> 4.96884 | V8: ='Wy 1.8'!E15 -> 4.96884 | AA8: 48600 | AB8: 72900 | AC8: 121500
B9: CET Amortization | C9: ='CET & DSM WY'!C24 -> 0.04505 | D9: ='CET & DSM WY'!C25 -> 0.02848 | K9: DSM Amortization | L9: ='CET & DSM WY'!D31 -> 0.06791683699 | M9: ='CET & DSM WY'!D32 -> 0.06791683699 | Z9: Distribution Non-Gas Rate | AA9: ='Wy 1.8'!C32 -> 0.13102 | AB9: ='Wy 1.8'!D32 -> 0.1148 | AC9: ='Wy 1.8'!E32 -> 0.0986 | BF9: Non-Gas Cost | BG9: ='Wy 1.8'!C26 -> 4.78284
B10: Energy Efficiency Services | C10: ='CET & DSM WY'!D24 -> 0.0485 | D10: ='CET & DSM WY'!D25 -> 0.0485 | K10: Core Service Commodity Cost | L10: ='CET & DSM WY'!G31 -> 5.35666 | M10: =ROUND('CET & DSM WY'!G32,5) -> 5.35666 | Q10: Total Rate | R10: =SUM(R7:R8) -> 5.64853 | T10: =SUM(T7:T8) -> 5.57267 | V10: =SUM(V7:V8) -> 5.49662 | Z10: Upstream Pipeline Cost | AA10: ='Wy 1.8'!C33 -> 0.18114 | AB10: ='Wy 1.8'!D33 -> 0.18114 | AC10: ='Wy 1.8'!E33 -> 0.18114 | BF10: Core Commodity Cost | BG10: ='Wy 1.8'!C27 -> 4.96884
B11: Core Service Commodity Cost | C11: ='CET & DSM WY'!G24 -> 5.35666 | D11: ='CET & DSM WY'!G25 -> 5.35666 | Z11: Commodity Rate | BF11: Total Rate | BG11: =SUM(BG9:BJ10) -> 9.75168
K12: Total Rate | L12: =SUM(L7:L10) -> 7.478036837 | M12: =SUM(M7:M10) -> 6.722606837 | Q12: Minimum Monthly Distribution Non-Gas Charge | W12: ='Wy 1.8'!C18 -> 112
B13: Total Rate | C13: =SUM(C8:C11) -> 7.45862 | D13: =SUM(D8:D11) -> 6.70319
M15: BSF Category 1 | N15: =E16 -> 10
D16: BSF Category 1 | E16: ='CET & DSM WY'!O14 -> 10 | M16: BSF Category 2 | N16: =E17 -> 44 | U16: BSF Category 1 | W16: ='Other Inputs'!G95 -> 10
D17: BSF Category 2 | E17: 44 | M17: BSF Category 3 | N17: =E18 -> 86 | U17: BSF Category 2 | W17: ='Wy 1.8'!C20 -> 44
D18: BSF Category 3 | E18: 86 | M18: BSF Category 4 | N18: =E19 -> 555 | U18: BSF Category 3 | W18: ='Wy 1.8'!C21 -> 86 | Z18: Total Rate | AA18: $ | AB18: $ | AC18: $
D19: BSF Category 4 | E19: 555 | U19: BSF Category 4 | W19: ='Wy 1.8'!C22 -> 555
Z20: Minimum Monthly Distribution Non-Gas Charge
BF23: =B38 -> Issued by R. W. Jibson, President | BI23: Advice No | BJ23: Section Revision No.
AB24: BSF Category 1 | AC24: ='Other Inputs'!G95 -> 10
AB25: BSF Category 2 | AC25: ='Wy 1.8'!C37 -> 44
AB26: BSF Category 3 | AC26: ='Wy 1.8'!C38 -> 86
AB27: BSF Category 4 | AC27: ='Wy 1.8'!C39 -> 555
K37: Issued by R. W. Jibson, President | M37: Section Revision No. | N37: Effective Date
B38: Issued by R. W. Jibson, President | D38: Section Revision No. | E38: Effective Date | Q38: =B38 -> Issued by R. W. Jibson, President | T38: Advice No | U38: Section Revision No. | W38: Effective Date
B42: New CET ONLY | K42: New DSM ONLY | Q42: New Pass Through Values
Z47: =B38 -> Issued by R. W. Jibson, President | AC47: Advice No
Z50: New Pass Through Values

Sheet Calculations
A1: GAS BALANCE FOR 12 MONTHS ENDING: _________________
D3: SALES VOLUMES IN DECATHERMS (12 Months of Forecast)
D4: Forecast | E4: Forecast | F4: Forecast | G4: Forecast | H4: Forecast | I4: Forecast | J4: Forecast | K4: Forecast | L4: Forecast | M4: Forecast | N4: Forecast | O4: Forecast | P4: 12-Month
A5: RATE CLASS | D5: ='Monthly Inputs'!G3 -> Jun11 | E5: ='Monthly Inputs'!H3 -> Jul11 | F5: ='Monthly Inputs'!I3 -> Aug11 | G5: ='Monthly Inputs'!J3 -> Sep11 | H5: ='Monthly Inputs'!K3 -> Oct11 | I5: ='Monthly Inputs'!L3 -> Nov11 | J5: ='Monthly Inputs'!M3 -> Dec11 | K5: ='Monthly Inputs'!N3 -> Jan12 | L5: ='Monthly Inputs'!O3 -> Feb12 | M5: ='Monthly Inputs'!P3 -> Mar12 | N5: ='Monthly Inputs'!Q3 -> Apr12 | O5: ='Monthly Inputs'!R3 -> May12 | P5: Total
A6: UTAH | D6: =MONTH(D5) -> 6 | E6: =MONTH(E5) -> 7 | F6: 8 | G6: 9 | H6: 10 | I6: 11 | J6: 12 | K6: 1 | L6: 2 | M6: 3 | N6: 4 | O6: 5
B7: GSR | D7: ='RevRun Fcst'!H21 -> 2485602 | E7: ='RevRun Fcst'!I21 -> 2290312 | F7: ='RevRun Fcst'!J21 -> 2217985 | G7: ='RevRun Fcst'!K21 -> 3123865 | H7: ='RevRun Fcst'!L21 -> 5958901 | I7: ='RevRun Fcst'!M21 -> 9791659 | J7: ='RevRun Fcst'!N21 -> 15448448 | K7: ='RevRun Fcst'!O21 -> 17853027 | L7: ='RevRun Fcst'!P21 -> 13975636 | M7: ='RevRun Fcst'!Q21 -> 10442122 | N7: ='RevRun Fcst'!R21 -> 7744816 | O7: ='RevRun Fcst'!S21 -> 3896895 | P7: =SUM(D7:O7) -> 95229268
B8: GSC | D8: ='RevRun Fcst'!H30 -> 0 | E8: ='RevRun Fcst'!I30 -> 0 | F8: ='RevRun Fcst'!J30 -> 0 | G8: ='RevRun Fcst'!K30 -> 0 | H8: ='RevRun Fcst'!L30 -> 0 | I8: ='RevRun Fcst'!M30 -> 0 | J8: ='RevRun Fcst'!N30 -> 0 | K8: ='RevRun Fcst'!O30 -> 0 | L8: ='RevRun Fcst'!P30 -> 0 | M8: ='RevRun Fcst'!Q30 -> 0 | N8: ='RevRun Fcst'!R30 -> 0 | O8: ='RevRun Fcst'!S30 -> 0 | P8: 0
B9: GSS | D9: ='RevRun Fcst'!H39 -> 0 | E9: ='RevRun Fcst'!I39 -> 0 | F9: ='RevRun Fcst'!J39 -> 0 | G9: ='RevRun Fcst'!K39 -> 0 | H9: ='RevRun Fcst'!L39 -> 0 | I9: ='RevRun Fcst'!M39 -> 0 | J9: ='RevRun Fcst'!N39 -> 0 | K9: ='RevRun Fcst'!O39 -> 0 | L9: ='RevRun Fcst'!P39 -> 0 | M9: ='RevRun Fcst'!Q39 -> 0 | N9: ='RevRun Fcst'!R39 -> 0 | O9: ='RevRun Fcst'!S39 -> 0 | P9: 0
B10: F-1 | D10: ='RevRun Fcst'!H48 -> 511189 | E10: ='RevRun Fcst'!I48 -> 460844 | F10: ='RevRun Fcst'!J48 -> 428913 | G10: ='RevRun Fcst'!K48 -> 495248 | H10: ='RevRun Fcst'!L48 -> 576280 | I10: ='RevRun Fcst'!M48 -> 667892 | J10: ='RevRun Fcst'!N48 -> 794543 | K10: ='RevRun Fcst'!O48 -> 847850 | L10: ='RevRun Fcst'!P48 -> 691002 | M10: ='RevRun Fcst'!Q48 -> 675968 | N10: ='RevRun Fcst'!R48 -> 631344 | O10: ='RevRun Fcst'!S48 -> 502084 | P10: 7283157
B11: F-4 | D11: ='RevRun Fcst'!H75 -> 0 | E11: ='RevRun Fcst'!I75 -> 0 | F11: ='RevRun Fcst'!J75 -> 0 | G11: ='RevRun Fcst'!K75 -> 0 | H11: ='RevRun Fcst'!L75 -> 0 | I11: ='RevRun Fcst'!M75 -> 0 | J11: ='RevRun Fcst'!N75 -> 0 | K11: ='RevRun Fcst'!O75 -> 0 | L11: ='RevRun Fcst'!P75 -> 0 | M11: ='RevRun Fcst'!Q75 -> 0 | N11: ='RevRun Fcst'!R75 -> 0 | O11: ='RevRun Fcst'!S75 -> 0 | P11: 0
B12: NGV | D12: ='RevRun Fcst'!H66 -> 38000 | E12: ='RevRun Fcst'!I66 -> 38000 | F12: ='RevRun Fcst'!J66 -> 38000 | G12: ='RevRun Fcst'!K66 -> 38000 | H12: ='RevRun Fcst'!L66 -> 38000 | I12: ='RevRun Fcst'!M66 -> 38000 | J12: ='RevRun Fcst'!N66 -> 38000 | K12: ='RevRun Fcst'!O66 -> 38000 | L12: ='RevRun Fcst'!P66 -> 38000 | M12: ='RevRun Fcst'!Q66 -> 38000 | N12: ='RevRun Fcst'!R66 -> 38000 | O12: ='RevRun Fcst'!S66 -> 38000 | P12: 456000
A13: Total Firm Sales | D13: =SUM(D7:D12) -> 3034791 | E13: 2789156 | F13: =SUM(F7:F12) -> 2684898 | G13: 3657113 | H13: 6573181 | I13: 10497551 | J13: 16280991 | K13: 18738877 | L13: 14704638 | M13: 11156090 | N13: 8414160 | O13: 4436979 | P13: 102968425
B15: I-4 | D15: ='RevRun Fcst'!H93 -> 188057 | E15: ='RevRun Fcst'!I93 -> 201411 | F15: ='RevRun Fcst'!J93 -> 202249 | G15: ='RevRun Fcst'!K93 -> 192285 | H15: ='RevRun Fcst'!L93 -> 185973 | I15: ='RevRun Fcst'!M93 -> 225683 | J15: ='RevRun Fcst'!N93 -> 239132 | K15: ='RevRun Fcst'!O93 -> 210722 | L15: ='RevRun Fcst'!P93 -> 172192 | M15: ='RevRun Fcst'!Q93 -> 188747 | N15: ='RevRun Fcst'!R93 -> 205013 | O15: ='RevRun Fcst'!S93 -> 188770 | P15: =SUM(D15:O15) -> 2400234
B16: IS-4 | D16: ='RevRun Fcst'!H111 -> 0 | E16: ='RevRun Fcst'!I111 -> 0 | F16: ='RevRun Fcst'!J111 -> 0 | G16: ='RevRun Fcst'!K111 -> 0 | H16: ='RevRun Fcst'!L111 -> 0 | I16: ='RevRun Fcst'!M111 -> 0 | J16: ='RevRun Fcst'!N111 -> 0 | K16: ='RevRun Fcst'!O111 -> 0 | L16: ='RevRun Fcst'!P111 -> 0 | M16: ='RevRun Fcst'!Q111 -> 0 | N16: ='RevRun Fcst'!R111 -> 0 | O16: ='RevRun Fcst'!S111 -> 0 | P16: =SUM(D16:O16) -> 0
A17: Total Interruptible Sales | D17: =SUM(D15:D16) -> 188057 | E17: 201411 | F17: 202249 | G17: 192285 | H17: 185973 | I17: 225683 | J17: 239132 | K17: 210722 | L17: 172192 | M17: 188747 | N17: 205013 | O17: 188770 | P17: 2400234
A20: Total Utah Sales | D20: =+D13+D17 -> 3222848 | E20: =+E13+E17 -> 2990567 | F20: =+F13+F17 -> 2887147 | G20: 3849398 | H20: 6759154 | I20: 10723234 | J20: 16520123 | K20: 18949599 | L20: 14876830 | M20: 11344837 | N20: 8619173 | O20: 4625749 | P20: 105368659
A22: Total Utah Transportation | D22: ='RevRun Fcst'!H203 -> 3915320 | E22: ='RevRun Fcst'!I203 -> 5233376 | F22: ='RevRun Fcst'!J203 -> 5482105 | G22: ='RevRun Fcst'!K203 -> 4697356 | H22: ='RevRun Fcst'!L203 -> 4784790 | I22: ='RevRun Fcst'!M203 -> 5553630 | J22: ='RevRun Fcst'!N203 -> 4946742 | K22: ='RevRun Fcst'!O203 -> 6132504 | L22: ='RevRun Fcst'!P203 -> 5320014 | M22: ='RevRun Fcst'!Q203 -> 5614851 | N22: ='RevRun Fcst'!R203 -> 5055197 | O22: ='RevRun Fcst'!S203 -> 4524553 | P22: =SUM(D22:O22) -> 61260438
A25: Total Utah Sales & Trans | D25: =+D20+D22 -> 7138168 | E25: 8223943 | F25: 8369252 | G25: 8546754 | H25: 11543944 | I25: 16276864 | J25: 21466865 | K25: 25082103 | L25: 20196844 | M25: 16959688 | N25: 13674370 | O25: 9150302 | P25: 166629097
A27: WYOMING
A28: GS-1 | D28: ='RevRun Fcst'!H243 -> 87791 | E28: ='RevRun Fcst'!I243 -> 57332 | F28: ='RevRun Fcst'!J243 -> 66729 | G28: ='RevRun Fcst'!K243 -> 128024 | H28: ='RevRun Fcst'!L243 -> 206176 | I28: ='RevRun Fcst'!M243 -> 359241 | J28: ='RevRun Fcst'!N243 -> 528875 | K28: ='RevRun Fcst'!O243 -> 580612 | L28: ='RevRun Fcst'!P243 -> 473613 | M28: ='RevRun Fcst'!Q243 -> 370145 | N28: ='RevRun Fcst'!R243 -> 288179 | O28: ='RevRun Fcst'!S243 -> 153452 | P28: =SUM(D28:O28) -> 3300169
A29: GS-W | D29: ='RevRun Fcst'!H270 -> 0 | E29: ='RevRun Fcst'!I270 -> 0 | F29: ='RevRun Fcst'!J270 -> 0 | G29: ='RevRun Fcst'!K270 -> 0 | H29: ='RevRun Fcst'!L270 -> 0 | I29: ='RevRun Fcst'!M270 -> 0 | J29: ='RevRun Fcst'!N270 -> 0 | K29: ='RevRun Fcst'!O270 -> 0 | L29: ='RevRun Fcst'!P270 -> 0 | M29: ='RevRun Fcst'!Q270 -> 0 | N29: ='RevRun Fcst'!R270 -> 0 | O29: ='RevRun Fcst'!S270 -> 0 | P29: =SUM(D29:O29) -> 0
A30: F-1 | D30: ='RevRun Fcst'!H252 -> 13272 | E30: ='RevRun Fcst'!I252 -> 10601 | F30: ='RevRun Fcst'!J252 -> 10684 | G30: ='RevRun Fcst'!K252 -> 14270 | H30: ='RevRun Fcst'!L252 -> 17813 | I30: ='RevRun Fcst'!M252 -> 22786 | J30: ='RevRun Fcst'!N252 -> 30322 | K30: ='RevRun Fcst'!O252 -> 31420 | L30: ='RevRun Fcst'!P252 -> 25372 | M30: ='RevRun Fcst'!Q252 -> 23411 | N30: ='RevRun Fcst'!R252 -> 21079 | O30: ='RevRun Fcst'!S252 -> 14626 | P30: =SUM(D30:O30) -> 235656
A31: NGV | D31: ='RevRun Fcst'!H261 -> 885 | E31: ='RevRun Fcst'!I261 -> 885 | F31: ='RevRun Fcst'!J261 -> 885 | G31: ='RevRun Fcst'!K261 -> 885 | H31: ='RevRun Fcst'!L261 -> 885 | I31: ='RevRun Fcst'!M261 -> 885 | J31: ='RevRun Fcst'!N261 -> 885 | K31: ='RevRun Fcst'!O261 -> 885 | L31: ='RevRun Fcst'!P261 -> 885 | M31: ='RevRun Fcst'!Q261 -> 885 | N31: ='RevRun Fcst'!R261 -> 885 | O31: ='RevRun Fcst'!S261 -> 885 | P31: =SUM(D31:O31) -> 10620
A32: Total Firm Sales | D32: =SUM(D28:D31) -> 101948 | E32: 68818 | F32: 78298 | G32: 143179 | H32: 224874 | I32: 382912 | J32: 560082 | K32: 612917 | L32: 499870 | M32: 394441 | N32: 310143 | O32: 168963 | P32: 3546445
A34: I-2 | D34: ='RevRun Fcst'!H279 -> 11461 | E34: ='RevRun Fcst'!I279 -> 9007 | F34: ='RevRun Fcst'!J279 -> 8299 | G34: ='RevRun Fcst'!K279 -> 8093 | H34: ='RevRun Fcst'!L279 -> 7486 | I34: ='RevRun Fcst'!M279 -> 11876 | J34: ='RevRun Fcst'!N279 -> 16120 | K34: ='RevRun Fcst'!O279 -> 18492 | L34: ='RevRun Fcst'!P279 -> 14789 | M34: ='RevRun Fcst'!Q279 -> 15206 | N34: ='RevRun Fcst'!R279 -> 16294 | O34: ='RevRun Fcst'!S279 -> 10647 | P34: =SUM(D34:O34) -> 147770
A35: I-4 | D35: ='RevRun Fcst'!H288 -> 0 | E35: ='RevRun Fcst'!I288 -> 0 | F35: ='RevRun Fcst'!J288 -> 0 | G35: ='RevRun Fcst'!K288 -> 0 | H35: ='RevRun Fcst'!L288 -> 0 | I35: ='RevRun Fcst'!M288 -> 0 | J35: ='RevRun Fcst'!N288 -> 0 | K35: ='RevRun Fcst'!O288 -> 0 | L35: ='RevRun Fcst'!P288 -> 0 | M35: ='RevRun Fcst'!Q288 -> 0 | N35: ='RevRun Fcst'!R288 -> 0 | O35: ='RevRun Fcst'!S288 -> 0 | P35: =SUM(D35:O35) -> 0
A36: Total Interruptible Sales | D36: =SUM(D34:D35) -> 11461 | E36: 9007 | F36: 8299 | G36: 8093 | H36: 7486 | I36: 11876 | J36: 16120 | K36: 18492 | L36: 14789 | M36: 15206 | N36: 16294 | O36: 10647 | P36: 147770
A39: Total Wyoming Sales | D39: =+D32+D36 -> 113409 | E39: 77825 | F39: 86597 | G39: 151272 | H39: 232360 | I39: 394788 | J39: 576202 | K39: 631409 | L39: 514659 | M39: 409647 | N39: 326437 | O39: 179610 | P39: 3694215
A41: Total Wyoming Transportation | D41: ='RevRun Fcst'!H325 -> 24215 | E41: ='RevRun Fcst'!I325 -> 13463 | F41: ='RevRun Fcst'!J325 -> 17555 | G41: ='RevRun Fcst'!K325 -> 14664 | H41: ='RevRun Fcst'!L325 -> 19917 | I41: ='RevRun Fcst'!M325 -> 51237 | J41: ='RevRun Fcst'!N325 -> 44078 | K41: ='RevRun Fcst'!O325 -> 41864 | L41: ='RevRun Fcst'!P325 -> 53726 | M41: ='RevRun Fcst'!Q325 -> 51989 | N41: ='RevRun Fcst'!R325 -> 39677 | O41: ='RevRun Fcst'!S325 -> 62981 | P41: =SUM(D41:O41) -> 435366
A44: Total Wyoming Sales & Trans | D44: =+D39+D41 -> 137624 | E44: 91288 | F44: 104152 | G44: 165936 | H44: 252277 | I44: 446025 | J44: 620280 | K44: 673273 | L44: 568385 | M44: 461636 | N44: 366114 | O44: 242591 | P44: 4129581
A47: Total System Sales and Trans | D47: =+D25+D44 -> 7275792 | E47: 8315231 | F47: 8473404 | G47: 8712690 | H47: 11796221 | I47: 16722889 | J47: 22087145 | K47: 25755376 | L47: 20765229 | M47: 17421324 | N47: 14040484 | O47: =+O25+O44 -> 9392893 | P47: 170758678
A49: Usage by Season
C50: Month | D50: =MONTH(D5) -> 6 | E50: 7 | F50: 8 | G50: 9 | H50: 10 | I50: 11 | J50: 12 | K50: 1 | L50: 2 | M50: 3 | N50: 4 | O50: 5
A51: GS-1 | C51: Season (0=Winter, 1=Summer) | D51: =IF(D$50<4,0,IF(D$50>10,0,1)) -> 1 | E51: =IF(E$50<4,0,IF(E$50>10,0,1)) -> 1 | F51: 1 | G51: 1 | H51: 1 | I51: 0 | J51: 0 | K51: 0 | L51: 0 | M51: 0 | N51: 1 | O51: 1 | P51: Total
B52: Winter | D52: =IF(D51=0,D7+D8,0) -> 0 | E52: =IF(E51=0,E7+E8,0) -> 0 | F52: 0 | G52: 0 | H52: 0 | I52: 9791659 | J52: 15448448 | K52: 17853027 | L52: 13975636 | M52: 10442122 | N52: 0 | O52: 0 | P52: =SUM(D52:O52) -> 67510892
B53: Summer | D53: =IF(D51=1,D7+D8,0) -> 2485602 | E53: 2290312 | F53: 2217985 | G53: 3123865 | H53: 5958901 | I53: 0 | J53: 0 | K53: 0 | L53: 0 | M53: 0 | N53: 7744816 | O53: 3896895 | P53: =SUM(D53:O53) -> 27718376
A54: GSS
B55: Winter | D55: =IF(D51=0,D9,0) -> 0 | E55: 0 | F55: 0 | G55: 0 | H55: 0 | I55: 0 | J55: 0 | K55: 0 | L55: 0 | M55: 0 | N55: 0 | O55: 0 | P55: =SUM(D55:O55) -> 0
B56: Summer | D56: =IF(D51=1,D9,0) -> 0 | E56: 0 | F56: 0 | G56: 0 | H56: 0 | I56: 0 | J56: 0 | K56: 0 | L56: 0 | M56: 0 | N56: 0 | O56: 0 | P56: =SUM(D56:O56) -> 0
A57: F-1
B58: Winter | D58: =IF(D51=0,D10,0) -> 0 | E58: 0 | F58: 0 | G58: 0 | H58: 0 | I58: 667892 | J58: 794543 | K58: 847850 | L58: 691002 | M58: 675968 | N58: 0 | O58: 0 | P58: =SUM(D58:O58) -> 3677255
B59: Summer | D59: =IF(D51=1,D10,0) -> 511189 | E59: 460844 | F59: 428913 | G59: 495248 | H59: 576280 | I59: 0 | J59: 0 | K59: 0 | L59: 0 | M59: 0 | N59: 631344 | O59: 502084 | P59: =SUM(D59:O59) -> 3605902
B62: Rates: R050201.R1 | C62: WYOMING NON-CORE DNG REVENUES FROM DEMAND FORECAST AND CURRENTLY EFFECTIVE I-SALES GAS COST RATES
D63: Forecast | E63: Forecast | F63: Forecast | G63: Forecast | H63: Forecast | I63: Forecast | J63: Forecast | K63: Forecast | L63: Forecast | M63: Forecast | N63: Forecast | O63: Forecast | P63: 12-Month
D64: ='Monthly Inputs'!G3 -> Jun11 | E64: ='Monthly Inputs'!H3 -> Jul11 | F64: ='Monthly Inputs'!I3 -> Aug11 | G64: ='Monthly Inputs'!J3 -> Sep11 | H64: ='Monthly Inputs'!K3 -> Oct11 | I64: ='Monthly Inputs'!L3 -> Nov11 | J64: ='Monthly Inputs'!M3 -> Dec11 | K64: ='Monthly Inputs'!N3 -> Jan12 | L64: ='Monthly Inputs'!O3 -> Feb12 | M64: ='Monthly Inputs'!P3 -> Mar12 | N64: ='Monthly Inputs'!Q3 -> Apr12 | O64: ='Monthly Inputs'!R3 -> May12 | P64: Total
A65: I-2 & 1-4 (Non-Gas Revenue) (Yearly) | D65: ='RevRun Fcst'!H272+'RevRun Fcst'!H281 -> 3339 | E65: ='RevRun Fcst'!I272+'RevRun Fcst'!I281 -> 3018 | F65: ='RevRun Fcst'!J272+'RevRun Fcst'!J281 -> 2924 | G65: ='RevRun Fcst'!K272+'RevRun Fcst'!K281 -> 2896 | H65: ='RevRun Fcst'!L272+'RevRun Fcst'!L281 -> 2818 | I65: ='RevRun Fcst'!M272+'RevRun Fcst'!M281 -> 3394 | J65: ='RevRun Fcst'!N272+'RevRun Fcst'!N281 -> 3949 | K65: ='RevRun Fcst'!O272+'RevRun Fcst'!O281 -> 4261 | L65: ='RevRun Fcst'!P272+'RevRun Fcst'!P281 -> 3775 | M65: ='RevRun Fcst'!Q272+'RevRun Fcst'!Q281 -> 3829 | N65: ='RevRun Fcst'!R272+'RevRun Fcst'!R281 -> 3971 | O65: ='RevRun Fcst'!S272+'RevRun Fcst'!S281 -> 3233 | P65: =SUM(D65:O65) -> 41407
A66: IC (Total Revenue) (Yearly) | D66: =ROUND(D41*$P66/$P41,0) -> 4284 | E66: 2382 | F66: 3106 | G66: 2594 | H66: 3523 | I66: 9064 | J66: 7798 | K66: 7406 | L66: 9505 | M66: 9197 | N66: 7019 | O66: =P66-SUM(D66:N66) -> 11142 | P66: ='RevRun Fcst'!T299+'RevRun Fcst'!T313 -> 77020
A68: ="I-2 Gas Cost (Rate Effective "&'Other Inputs'!E62&")" -> I-2 Gas Cost (Rate Effective 11/1/2005) | D68: ='Other Inputs'!E65 -> 0 | E68: =+D68 -> 0 | F68: 0 | G68: 0 | H68: 0 | I68: 0 | J68: 0 | K68: 0 | L68: 0 | M68: 0 | N68: 0 | O68: 0
A69: ="I-4 Gas Cost (Rate Effective "&'Other Inputs'!F62&")" -> I-4 Gas Cost (Rate Effective 7/31/2009) | D69: ='Other Inputs'!F65 -> 3.78635 | E69: =+D69 -> 3.78635 | F69: 3.78635 | G69: 3.78635 | H69: 3.78635 | I69: 3.78635 | J69: 3.78635 | K69: 3.78635 | L69: 3.78635 | M69: 3.78635 | N69: 3.78635 | O69: 3.78635
D72: ALLOCATION BASES
D73: DEMAND | G73: OTHER COST
A74: Utah Peak Day Demand | D74: =+D76-D75 -> 1241463 | E74: =D74/D76 -> 0.9693098683 | G74: Utah Sales | H74: =+P20 -> 105368659 | I74: =H74/H76 -> 0.9661276577
A75: Wyoming Peak Day Demand | D75: ='Other Inputs'!E130 -> 39307 | E75: =1-E74 -> 0.03069013172 | G75: Wyoming Sales | H75: =+P39 -> 3694215 | I75: =1-I74 -> 0.0338723423
A76: Peak Day Demand | D76: ='Other Inputs'!E131 -> 1280770 | E76: =ROUND(D76/D$76,4) -> 1 | G76: Total Sales | H76: =+H74+H75 -> 109062874 | I76: =ROUND(H76/H$76,4) -> 1
D79: Financial Report Information (Latest 12 Months of Actual Expenses and 13 Months of Rate Base)
D80: Actual | E80: Actual | F80: Actual | G80: Actual | H80: Actual | I80: Actual | J80: Actual | K80: Actual | L80: Actual | M80: Actual | N80: Actual | O80: Actual
A81: Accounts | D81: =Expenses!J9 -> 2010-07-25 | E81: =Expenses!K9 -> 2010-08-25 | F81: =Expenses!L9 -> 2010-09-25 | G81: =Expenses!M9 -> 2010-10-26 | H81: =Expenses!N9 -> 2010-11-26 | I81: =Expenses!O9 -> 2010-12-27 | J81: =Expenses!P9 -> 2011-01-27 | K81: =Expenses!Q9 -> 2011-02-27 | L81: =Expenses!R9 -> 2011-03-31 | M81: =Expenses!G9 -> 2010-04-23 | N81: =Expenses!H9 -> 2010-05-24 | O81: =Expenses!I9 -> 2010-06-24 | P81: =+'Monthly Inputs'!S3 -> Total
A82: EXPENSES
B83: Gas Use In Dth (Acct 810 & 812) | D83: 0 | E83: 0 | F83: 0 | G83: 0 | H83: 0 | I83: 0 | J83: 0 | K83: 0 | L83: 0 | M83: 0 | N83: 0 | O83: 0 | P83: =SUM(D83:O83) -> 0
B85: Other Revenue (Yearly)
B86: Sales for Resale (account 483) | D86: =Expenses!J445 -> 436863.56 | E86: =Expenses!K445 -> 449041.52 | F86: =Expenses!L445 -> 437030.17 | G86: =Expenses!M445 -> 438425.68 | H86: =Expenses!N445 -> 305859.28 | I86: =Expenses!O445 -> 273395.3 | J86: =Expenses!P445 -> 316092.38 | K86: =Expenses!Q445 -> 480962.53 | L86: =Expenses!R445 -> -1116300.83 | M86: =Expenses!G445 -> 602538.57 | N86: =Expenses!H445 -> 507313.06 | O86: =Expenses!I445 -> 373635.15 | P86: =SUM(D86:O86) -> 3504856.37
B87: Incidental Plant Prod Sales (Acct 490) | D87: =Expenses!J446 -> 399.19 | E87: =Expenses!K446 -> 764107.16 | F87: =Expenses!L446 -> 467551.06 | G87: =Expenses!M446 -> 4.41 | H87: =Expenses!N446 -> 509098.24 | I87: =Expenses!O446 -> 532596.09 | J87: =Expenses!P446 -> 506771.38 | K87: =Expenses!Q446 -> 492405.14 | L87: =Expenses!R446 -> 523726.83 | M87: =Expenses!G446 -> 485510.81 | N87: =Expenses!H446 -> 466939.1 | O87: =Expenses!I446 -> 892553.65 | P87: =SUM(D87:O87) -> 5641663.06
B88: Gas Processed by Others (account 491) | D88: =Expenses!J461 -> 0 | E88: =Expenses!K461 -> 0 | F88: =Expenses!L461 -> 0 | G88: =Expenses!M461 -> 0 | H88: =Expenses!N461 -> 0 | I88: =Expenses!O461 -> 0 | J88: =Expenses!P461 -> 0 | K88: =Expenses!Q461 -> 0 | L88: =Expenses!R461 -> 0 | M88: =Expenses!G461 -> 0 | N88: =Expenses!H461 -> 0 | O88: =Expenses!I461 -> 0 | P88: =SUM(D88:O88) -> 0
B89: Gasoline - Oil Sales (account 492) | D89: =Expenses!J447 -> 180321.94 | E89: =Expenses!K447 -> 222340.52 | F89: =Expenses!L447 -> 75753.1 | G89: =Expenses!M447 -> 148564.01 | H89: =Expenses!N447 -> 143653.4 | I89: =Expenses!O447 -> 93278.12 | J89: =Expenses!P447 -> 83662.56 | K89: =Expenses!Q447 -> 113428.99 | L89: =Expenses!R447 -> 81099.12 | M89: =Expenses!G447 -> 87527.72 | N89: =Expenses!H447 -> 103846.01 | O89: =Expenses!I447 -> 98738.11 | P89: =SUM(D89:O89) -> 1432213.6
B90: Gasoline - Oil Cost (account 758.001) | D90: =-Expenses!J450 -> -24182.86 | E90: =-Expenses!K450 -> -28621.92 | F90: =-Expenses!L450 -> -11159.77 | G90: =-Expenses!M450 -> -24913.89 | H90: =-Expenses!N450 -> -19159.95 | I90: =-Expenses!O450 -> -13814.46 | J90: =-Expenses!P450 -> -11805.4 | K90: =-Expenses!Q450 -> -15202.57 | L90: =-Expenses!R450 -> -11003.37 | M90: =-Expenses!G450 -> -11946.74 | N90: =-Expenses!H450 -> -15096.34 | O90: =-Expenses!I450 -> -14259.94 | P90: =SUM(D90:O90) -> -201167.21
B93: Overriding Royalty (account 495-1) | D93: =Expenses!J448 -> 1219906.21 | E93: =Expenses!K448 -> 1181542.26 | F93: =Expenses!L448 -> 1275780.57 | G93: =Expenses!M448 -> 1221418.64 | H93: =Expenses!N448 -> 1063749.39 | I93: =Expenses!O448 -> 1190213.39 | J93: =Expenses!P448 -> 1118930.7 | K93: =Expenses!Q448 -> 1303205.79 | L93: =Expenses!R448 -> 1395389.64 | M93: =Expenses!G448 -> 1344941.85 | N93: =Expenses!H448 -> 1282402.24 | O93: =Expenses!I448 -> 1235914.04 | P93: =SUM(D93:O93) -> 14833394.72
B94: Wexpro Revenue Sharing (account 495-2) | D94: =Expenses!J449 -> 5569 | E94: =Expenses!K449 -> 89341 | F94: =Expenses!L449 -> 89973 | G94: =Expenses!M449 -> 149182 | H94: =Expenses!N449 -> 197542 | I94: =Expenses!O449 -> 153968 | J94: =Expenses!P449 -> 193104 | K94: =Expenses!Q449 -> 102294 | L94: =Expenses!R449 -> 506203 | M94: =Expenses!G449 -> 109195 | N94: =Expenses!H449 -> 9306 | O94: =Expenses!I449 -> 0 | P94: =SUM(D94:O94) -> 1605677
P95: Page 2 of 6
C96: Actual | D96: Actual | E96: Actual | F96: Actual | G96: Actual | H96: Actual | I96: Actual | J96: Actual | K96: Actual | L96: Actual | M96: Actual | N96: Actual | O96: Actual | P96: 13-Month
A97: Accounts | C97: ='Rate Base'!H8 -> 2010-03-21 | D97: ='Rate Base'!I8 -> 2010-04-20 | E97: ='Rate Base'!J8 -> 2010-05-20 | F97: ='Rate Base'!K8 -> 2010-06-19 | G97: ='Rate Base'!L8 -> 2010-07-19 | H97: ='Rate Base'!M8 -> 2010-08-18 | I97: ='Rate Base'!N8 -> 2010-09-17 | J97: ='Rate Base'!O8 -> 2010-10-17 | K97: ='Rate Base'!P8 -> 2010-11-16 | L97: ='Rate Base'!Q8 -> 2010-12-16 | M97: ='Rate Base'!R8 -> 2011-01-15 | N97: ='Rate Base'!S8 -> 2011-02-14 | O97: ='Rate Base'!T8 -> 2011-03-16 | P97: Average
A98: RATE BASE - PRODUCTION
B99: Acct 164 (Working Gas) - Production | C99: ='Rate Base'!H209 -> 10739956.55 | D99: ='Rate Base'!I209 -> 6154786.44 | E99: ='Rate Base'!J209 -> 12391143.29 | F99: ='Rate Base'!K209 -> 19166323.62 | G99: ='Rate Base'!L209 -> 31735056.07 | H99: ='Rate Base'!M209 -> 43791078.54 | I99: ='Rate Base'!N209 -> 52502815.44 | J99: ='Rate Base'!O209 -> 59271925.54 | K99: ='Rate Base'!P209 -> 59109161.38 | L99: ='Rate Base'!Q209 -> 43289915.13 | M99: ='Rate Base'!R209 -> 31369107.92 | N99: ='Rate Base'!S209 -> 19870006.36 | O99: ='Rate Base'!T209 -> 10598542.29 | P99: =(((+C99+O99)/2)+SUM(D99:N99))/12 -> 32443380.76
B100: Acct 101 - Production | C100: ='Rate Base'!H158 -> 83308976.87 | D100: ='Rate Base'!I158 -> 83308976.87 | E100: ='Rate Base'!J158 -> 83308976.87 | F100: ='Rate Base'!K158 -> 83308976.87 | G100: ='Rate Base'!L158 -> 83308976.87 | H100: ='Rate Base'!M158 -> 83308976.87 | I100: ='Rate Base'!N158 -> 83308976.87 | J100: ='Rate Base'!O158 -> 83072322.89 | K100: ='Rate Base'!P158 -> 83069634.05 | L100: ='Rate Base'!Q158 -> 83069634.05 | M100: ='Rate Base'!R158 -> 83069634.05 | N100: ='Rate Base'!S158 -> 83069634.05 | O100: ='Rate Base'!T158 -> 83069634.05 | P100: 83199502.15
B101: Acct 108 - Production | C101: ='Rate Base'!H176 -> -67257627.88 | D101: ='Rate Base'!I176 -> -67325282.25 | E101: ='Rate Base'!J176 -> -67404088.74 | F101: ='Rate Base'!K176 -> -67493202.35 | G101: ='Rate Base'!L176 -> -67578173.98 | H101: ='Rate Base'!M176 -> -67653132.07 | I101: ='Rate Base'!N176 -> -67718460.52 | J101: ='Rate Base'!O176 -> -67544927.34 | K101: ='Rate Base'!P176 -> -67617751.16 | L101: ='Rate Base'!Q176 -> -67671623.03 | M101: ='Rate Base'!R176 -> -67738197.59 | N101: ='Rate Base'!S176 -> -67803742.2 | O101: ='Rate Base'!T176 -> -67863032.69 | P101: -67592409.29
B102: Acct 111 - Production | C102: ='Rate Base'!H183 -> -6015327.75 | D102: ='Rate Base'!I183 -> -6016747.27 | E102: ='Rate Base'!J183 -> -6018516.41 | F102: ='Rate Base'!K183 -> -6020547.42 | G102: ='Rate Base'!L183 -> -6022473.2 | H102: ='Rate Base'!M183 -> -6024144.57 | I102: ='Rate Base'!N183 -> -6025571.28 | J102: ='Rate Base'!O183 -> -6026941.9 | K102: ='Rate Base'!P183 -> -6028627.35 | L102: ='Rate Base'!Q183 -> -6029762.82 | M102: ='Rate Base'!R183 -> -6031221.19 | N102: ='Rate Base'!S183 -> -6032653.39 | O102: ='Rate Base'!T183 -> -6034093.95 | P102: -6025159.804
B103: Acct 2550 - Production | C103: ='Rate Base'!H244 -> -146130.27 | D103: ='Rate Base'!I244 -> -142601.47 | E103: ='Rate Base'!J244 -> -139072.67 | F103: ='Rate Base'!K244 -> -135543.87 | G103: ='Rate Base'!L244 -> -132015.07 | H103: ='Rate Base'!M244 -> -128486.27 | I103: ='Rate Base'!N244 -> -124957.47 | J103: ='Rate Base'!O244 -> -121428.67 | K103: ='Rate Base'!P244 -> -117899.87 | L103: ='Rate Base'!Q244 -> -114371.06 | M103: ='Rate Base'!R244 -> -110987.68 | N103: ='Rate Base'!S244 -> -107604.3 | O103: ='Rate Base'!T244 -> -104220.92 | P103: -125011.9996
B104: Acct 2820 - Production | C104: ='Rate Base'!H251 -> -3389056.6 | D104: ='Rate Base'!I251 -> -3375387.54 | E104: ='Rate Base'!J251 -> -3361850.07 | F104: ='Rate Base'!K251 -> -3348574.17 | G104: ='Rate Base'!L251 -> -3335491.09 | H104: ='Rate Base'!M251 -> -3312771.75 | I104: ='Rate Base'!N251 -> -2985639.55 | J104: ='Rate Base'!O251 -> -2934785.61 | K104: ='Rate Base'!P251 -> -3020859.24 | L104: ='Rate Base'!Q251 -> -2962151.69 | M104: ='Rate Base'!R251 -> -2872804 | N104: ='Rate Base'!S251 -> -2783658.27 | O104: ='Rate Base'!T251 -> -2694447.37 | P104: -3111310.414
B105: Acct 2821 - Production | C105: ='Rate Base'!H258 -> -1215024.15 | D105: ='Rate Base'!I258 -> -1215024.15 | E105: ='Rate Base'!J258 -> -1215024.15 | F105: ='Rate Base'!K258 -> -1215024.15 | G105: ='Rate Base'!L258 -> -1215024.15 | H105: ='Rate Base'!M258 -> -1215024.15 | I105: ='Rate Base'!N258 -> -1215024.15 | J105: ='Rate Base'!O258 -> -1215024.15 | K105: ='Rate Base'!P258 -> -1188424.08 | L105: ='Rate Base'!Q258 -> -1188424.08 | M105: ='Rate Base'!R258 -> -1188424.08 | N105: ='Rate Base'!S258 -> -1188424.08 | O105: ='Rate Base'!T258 -> -1188424.08 | P105: -1205049.124
D107: Production | H107: Acct 101 | I107: Acct 108 | J107: Acct 111 | K107: Acct 2550 | L107: Acct 2820 | M107: Acct 2821 | N107: Total
B108: Depreciation - Acct 403 | D108: =Expenses!S385 -> 844741.34 | F108: Thirteen month average | H108: =P100 -> 83199502.15 | I108: =P101 -> -67592409.29 | J108: =P102 -> -6025159.804 | K108: =P103 -> -125011.9996 | L108: =P104 -> -3111310.414 | M108: =P105 -> -1205049.124 | N108: =SUM(H108:M108) -> 5140561.513
B109: Amortization & Depletion - Acct 404 | D109: =Expenses!S392 -> 18766.2 | F109: =CONCATENATE("Wexpro Red. @ ",-'Other Inputs'!E249*100," %") -> Wexpro Red. @ 6.3 % | H109: =H108*'Other Inputs'!$E$249 -> -5241568.635 | I109: =I108*'Other Inputs'!$E$249 -> 4258321.785 | J109: =J108*'Other Inputs'!$E$249 -> 379585.0677 | N109: =SUM(H109:M109) -> -603661.7822
B110: Utah Pre-Tax Return on Production Assets | D110: =+N111 -> 534900.4783 | M110: =SUM(N108:N109) -> 4536899.731
B111: Utah Production Cost | D111: =SUM(D108:D110) -> 1398408.018 | M111: ="Utah Pre-Tax Rate of Return on Production Assets ("&'Other Inputs'!E252&")" -> Utah Pre-Tax Rate of Return on Production Assets (0.1179) | N111: =M110*'Other Inputs'!E252 -> 534900.4783
M112: ="Wyoming Pre-Tax Rate of Return on Production Assets ("&'Other Inputs'!E251&")" -> Wyoming Pre-Tax Rate of Return on Production Assets (0.1197) | N112: =M110*'Other Inputs'!E251 -> 543066.8978
A114: TACTICAL PLAN INFORMATION (IRP) | P114: 12-Month
D115: ='Monthly Inputs'!G3 -> Jun11 | E115: ='Monthly Inputs'!H3 -> Jul11 | F115: ='Monthly Inputs'!I3 -> Aug11 | G115: ='Monthly Inputs'!J3 -> Sep11 | H115: ='Monthly Inputs'!K3 -> Oct11 | I115: ='Monthly Inputs'!L3 -> Nov11 | J115: ='Monthly Inputs'!M3 -> Dec11 | K115: ='Monthly Inputs'!N3 -> Jan12 | L115: ='Monthly Inputs'!O3 -> Feb12 | M115: ='Monthly Inputs'!P3 -> Mar12 | N115: ='Monthly Inputs'!Q3 -> Apr12 | O115: ='Monthly Inputs'!R3 -> May12 | P115: Total
A116: COMPANY PRODUCTION
B117: Prior Company
B118: D24 Wells
B119: Brady & Powel
B120: Total Company Production | D120: ='Monthly Inputs'!G16 -> 5367519 | E120: ='Monthly Inputs'!H16 -> 5438488 | F120: ='Monthly Inputs'!I16 -> 5228235 | G120: ='Monthly Inputs'!J16 -> 5413227 | H120: ='Monthly Inputs'!K16 -> 5920619 | I120: ='Monthly Inputs'!L16 -> 6207015 | J120: ='Monthly Inputs'!M16 -> 6021781 | K120: ='Monthly Inputs'!N16 -> 6025923 | L120: ='Monthly Inputs'!O16 -> 6191207 | M120: ='Monthly Inputs'!P16 -> 6115283 | N120: ='Monthly Inputs'!Q16 -> 6036273 | O120: ='Monthly Inputs'!R16 -> 5975319 | P120: =SUM(D120:O120) -> 69940889
A122: STORAGE INJECTIONS
B123: Chalk Creek | D123: ='Monthly Inputs'!G35 -> 0 | E123: ='Monthly Inputs'!H35 -> 0 | F123: ='Monthly Inputs'!I35 -> 0 | G123: ='Monthly Inputs'!J35 -> 0 | H123: ='Monthly Inputs'!K35 -> 149591 | I123: ='Monthly Inputs'!L35 -> 161319 | J123: ='Monthly Inputs'!M35 -> 0 | K123: ='Monthly Inputs'!N35 -> 0 | L123: ='Monthly Inputs'!O35 -> 0 | M123: ='Monthly Inputs'!P35 -> 0 | N123: ='Monthly Inputs'!Q35 -> 0 | O123: ='Monthly Inputs'!R35 -> 0 | P123: =SUM(D123:O123) -> 310910
B124: Coalville | D124: ='Monthly Inputs'!G37 -> 0 | E124: ='Monthly Inputs'!H37 -> 0 | F124: ='Monthly Inputs'!I37 -> 0 | G124: ='Monthly Inputs'!J37 -> 130578 | H124: ='Monthly Inputs'!K37 -> 259016 | I124: ='Monthly Inputs'!L37 -> 3438 | J124: ='Monthly Inputs'!M37 -> 0 | K124: ='Monthly Inputs'!N37 -> 0 | L124: ='Monthly Inputs'!O37 -> 0 | M124: ='Monthly Inputs'!P37 -> 0 | N124: ='Monthly Inputs'!Q37 -> 0 | O124: ='Monthly Inputs'!R37 -> 0 | P124: =SUM(D124:O124) -> 393032
B125: Leroy | D125: ='Monthly Inputs'!G38 -> 0 | E125: ='Monthly Inputs'!H38 -> 0 | F125: ='Monthly Inputs'!I38 -> 0 | G125: ='Monthly Inputs'!J38 -> 0 | H125: ='Monthly Inputs'!K38 -> 454976 | I125: ='Monthly Inputs'!L38 -> 0 | J125: ='Monthly Inputs'!M38 -> 0 | K125: ='Monthly Inputs'!N38 -> 0 | L125: ='Monthly Inputs'!O38 -> 0 | M125: ='Monthly Inputs'!P38 -> 0 | N125: ='Monthly Inputs'!Q38 -> 0 | O125: ='Monthly Inputs'!R38 -> 0 | P125: =SUM(D125:O125) -> 454976
B126: Total Peaking Storage | D126: =SUM(D123:D125) -> 0 | E126: =SUM(E123:E125) -> 0 | F126: 0 | G126: 130578 | H126: 863583 | I126: 164757 | J126: 0 | K126: 0 | L126: 0 | M126: 0 | N126: 0 | O126: 0 | P126: 1158918
B127: Clay Basin | D127: ='Monthly Inputs'!G36 -> 2332490 | E127: ='Monthly Inputs'!H36 -> 2344420 | F127: ='Monthly Inputs'!I36 -> 2155790 | G127: ='Monthly Inputs'!J36 -> 1876210 | H127: ='Monthly Inputs'!K36 -> 1831380 | I127: ='Monthly Inputs'!L36 -> 1378700 | J127: ='Monthly Inputs'!M36 -> 0 | K127: ='Monthly Inputs'!N36 -> 0 | L127: ='Monthly Inputs'!O36 -> 0 | M127: ='Monthly Inputs'!P36 -> 0 | N127: ='Monthly Inputs'!Q36 -> 500530 | O127: ='Monthly Inputs'!R36 -> 1379930 | P127: =SUM(D127:O127) -> 13799450
B128: Total Storage Injections | D128: =SUM(D126:D127) -> 2332490 | E128: =SUM(E126:E127) -> 2344420 | F128: 2155790 | G128: 2006788 | H128: 2694963 | I128: 1543457 | J128: 0 | K128: 0 | L128: 0 | M128: 0 | N128: 500530 | O128: 1379930 | P128: 14958368
A129: STORAGE WITHDRAWLS
B130: Chalk Creek | D130: ='Monthly Inputs'!G42 -> 0 | E130: ='Monthly Inputs'!H42 -> 0 | F130: ='Monthly Inputs'!I42 -> 0 | G130: ='Monthly Inputs'!J42 -> 0 | H130: ='Monthly Inputs'!K42 -> 0 | I130: ='Monthly Inputs'!L42 -> 0 | J130: ='Monthly Inputs'!M42 -> 0 | K130: ='Monthly Inputs'!N42 -> 321000 | L130: ='Monthly Inputs'!O42 -> 0 | M130: ='Monthly Inputs'!P42 -> 0 | N130: ='Monthly Inputs'!Q42 -> 0 | O130: ='Monthly Inputs'!R42 -> 0 | P130: =SUM(D130:O130) -> 321000
B131: Coalville | D131: ='Monthly Inputs'!G44 -> 0 | E131: ='Monthly Inputs'!H44 -> 0 | F131: ='Monthly Inputs'!I44 -> 0 | G131: ='Monthly Inputs'!J44 -> 0 | H131: ='Monthly Inputs'!K44 -> 0 | I131: ='Monthly Inputs'!L44 -> 0 | J131: ='Monthly Inputs'!M44 -> 0 | K131: ='Monthly Inputs'!N44 -> 360186 | L131: ='Monthly Inputs'!O44 -> 0 | M131: ='Monthly Inputs'!P44 -> 0 | N131: ='Monthly Inputs'!Q44 -> 0 | O131: ='Monthly Inputs'!R44 -> 0 | P131: =SUM(D131:O131) -> 360186
B132: Leroy | D132: ='Monthly Inputs'!G45 -> 0 | E132: ='Monthly Inputs'!H45 -> 0 | F132: ='Monthly Inputs'!I45 -> 0 | G132: ='Monthly Inputs'!J45 -> 0 | H132: ='Monthly Inputs'!K45 -> 0 | I132: ='Monthly Inputs'!L45 -> 0 | J132: ='Monthly Inputs'!M45 -> 0 | K132: ='Monthly Inputs'!N45 -> 886966 | L132: ='Monthly Inputs'!O45 -> 0 | M132: ='Monthly Inputs'!P45 -> 0 | N132: ='Monthly Inputs'!Q45 -> 0 | O132: ='Monthly Inputs'!R45 -> 0 | P132: =SUM(D132:O132) -> 886966
B133: Total Peaking Storage | D133: =SUM(D130:D132) -> 0 | E133: =SUM(E130:E132) -> 0 | F133: 0 | G133: 0 | H133: 0 | I133: 0 | J133: 0 | K133: 1568152 | L133: 0 | M133: 0 | N133: 0 | O133: 0 | P133: 1568152
B134: Clay Basin | D134: ='Monthly Inputs'!G43 -> 0 | E134: ='Monthly Inputs'!H43 -> 0 | F134: ='Monthly Inputs'!I43 -> 0 | G134: ='Monthly Inputs'!J43 -> 0 | H134: ='Monthly Inputs'!K43 -> 0 | I134: ='Monthly Inputs'!L43 -> 0 | J134: ='Monthly Inputs'!M43 -> 6477380 | K134: ='Monthly Inputs'!N43 -> 4884890 | L134: ='Monthly Inputs'!O43 -> 2056730 | M134: ='Monthly Inputs'!P43 -> 0 | N134: ='Monthly Inputs'!Q43 -> 0 | O134: ='Monthly Inputs'!R43 -> 0 | P134: =SUM(D134:O134) -> 13419000
B135: Total Storage Withdrawls | D135: =SUM(D133:D134) -> 0 | E135: 0 | F135: 0 | G135: 0 | H135: 0 | I135: 0 | J135: 6477380 | K135: 6453042 | L135: 2056730 | M135: 0 | N135: 0 | O135: 0 | P135: 14987152
A138: Gas Supply and Demand | D138: =D4 -> Forecast | E138: Forecast | F138: Forecast | G138: Forecast | H138: Forecast | I138: Forecast | J138: Forecast | K138: Forecast | L138: Forecast | M138: Forecast | N138: Forecast | O138: Forecast | P138: 12-Month
A139: Demand | D139: =D5 -> Jun11 | E139: Jul11 | F139: Aug11 | G139: Sep11 | H139: Oct11 | I139: Nov11 | J139: Dec11 | K139: Jan12 | L139: Feb12 | M139: Mar12 | N139: Apr12 | O139: May12 | P139: Total
A141: Utah Sales | D141: =+D20 -> 3222848 | E141: 2990567 | F141: =+F20 -> 2887147 | G141: 3849398 | H141: 6759154 | I141: 10723234 | J141: 16520123 | K141: 18949599 | L141: 14876830 | M141: 11344837 | N141: 8619173 | O141: 4625749 | P141: =SUM(D141:O141) -> 105368659
A142: Wyoming Sales | D142: =+D39 -> 113409 | E142: 77825 | F142: 86597 | G142: 151272 | H142: 232360 | I142: 394788 | J142: 576202 | K142: 631409 | L142: 514659 | M142: 409647 | N142: 326437 | O142: 179610 | P142: =SUM(D142:O142) -> 3694215
A143: Total Sales | D143: =+D141+D142 -> 3336257 | E143: 3068392 | F143: 2973744 | G143: 4000670 | H143: 6991514 | I143: 11118022 | J143: 17096325 | K143: 19581008 | L143: 15391489 | M143: 11754484 | N143: 8945610 | O143: 4805359 | P143: 109062874
A145: Distribution Use (Offices) | C145: Check formulas for correct month | D145: =ROUND(O83,0) -> 0 | E145: =ROUND(D83,0) -> 0 | F145: =ROUND(E83,0) -> 0 | G145: 0 | H145: 0 | I145: 0 | J145: 0 | K145: 0 | L145: 0 | M145: 0 | N145: 0 | O145: 0 | P145: =SUM(D145:O145) -> 0
A146: Distribution Lost and Unaccounted for | D146: =+D148-D143-D145 -> 14444 | E146: =+E148-E143-E145 -> 13284 | F146: 12874 | G146: 17320 | H146: 30269 | I146: 48134 | J146: 74016 | K146: 84773 | L146: 66635 | M146: 50889 | N146: 38729 | O146: =+O148-O143-O145 -> 20804 | P146: =SUM(D146:O146) -> 472171
A148: Total City Gate | D148: =ROUND((D143+D145)/(1-'Other Inputs'!$E$254),0) -> 3350701 | E148: =ROUND((E143+E145)/(1-'Other Inputs'!$E$254),0) -> 3081676 | F148: =ROUND((F143+F145)/(1-'Other Inputs'!$E$254),0) -> 2986618 | G148: =ROUND((G143+G145)/(1-'Other Inputs'!$E$254),0) -> 4017990 | H148: =ROUND((H143+H145)/(1-'Other Inputs'!$E$254),0) -> 7021783 | I148: =ROUND((I143+I145)/(1-'Other Inputs'!$E$254),0) -> 11166156 | J148: =ROUND((J143+J145)/(1-'Other Inputs'!$E$254),0) -> 17170341 | K148: =ROUND((K143+K145)/(1-'Other Inputs'!$E$254),0) -> 19665781 | L148: =ROUND((L143+L145)/(1-'Other Inputs'!$E$254),0) -> 15458124 | M148: =ROUND((M143+M145)/(1-'Other Inputs'!$E$254),0) -> 11805373 | N148: =ROUND((N143+N145)/(1-'Other Inputs'!$E$254),0) -> 8984339 | O148: =ROUND((O143+O145)/(1-'Other Inputs'!$E$254),0) -> 4826163 | P148: =SUM(D148:O148) -> 109535045
A150: Peaking Injection | D150: =+D126 -> 0 | E150: 0 | F150: 0 | G150: 130578 | H150: 863583 | I150: 164757 | J150: 0 | K150: 0 | L150: 0 | M150: =+M126 -> 0 | N150: 0 | O150: 0 | P150: =SUM(D150:O150) -> 1158918
A151: Clay Basin Injection | D151: =+D127 -> 2332490 | E151: 2344420 | F151: 2155790 | G151: 1876210 | H151: 1831380 | I151: 1378700 | J151: 0 | K151: 0 | L151: 0 | M151: 0 | N151: 500530 | O151: 1379930 | P151: =SUM(D151:O151) -> 13799450
A152: Storage Lost & Unaccounted For | D152: =-'Monthly Inputs'!G59 -> 40352.077 | E152: =-'Monthly Inputs'!H59 -> 40558.466 | F152: =-'Monthly Inputs'!I59 -> 37295.167 | G152: =-'Monthly Inputs'!J59 -> 36728.3336 | H152: =-'Monthly Inputs'!K59 -> 47221.1687 | I152: =-'Monthly Inputs'!L59 -> 26238.5305 | J152: =-'Monthly Inputs'!M59 -> 0 | K152: =-'Monthly Inputs'!N59 -> 0 | L152: =-'Monthly Inputs'!O59 -> 0 | M152: =-'Monthly Inputs'!P59 -> 0 | N152: =-'Monthly Inputs'!Q59 -> 8659.169 | O152: =-'Monthly Inputs'!R59 -> 23872.789 | P152: =SUM(D152:O152) -> 260925.7008
A153: Total Demand | D153: =SUM(D148:D152) -> 5723543.077 | E153: =SUM(E148:E152) -> 5466654.466 | F153: 5179703.167 | G153: 6061506.334 | H153: =SUM(H148:H152) -> 9763967.169 | I153: 12735851.53 | J153: 17170341 | K153: 19665781 | L153: 15458124 | M153: 11805373 | N153: 9493528.169 | O153: =SUM(O148:O152) -> 6229965.789 | P153: =SUM(D153:O153) -> 124754338.7
A155: Supply
A156: Company Production | D156: =+D120 -> 5367519 | E156: 5438488 | F156: 5228235 | G156: 5413227 | H156: 5920619 | I156: 6207015 | J156: 6021781 | K156: 6025923 | L156: 6191207 | M156: 6115283 | N156: 6036273 | O156: 5975319 | P156: =SUM(D156:O156) -> 69940889
A157: Co Prod Lost & Unaccounted For | D157: =ROUND(D156*(-'Other Inputs'!$E$256-'Other Inputs'!$E$257),0) -> -305949 | E157: =ROUND(E156*(-'Other Inputs'!$E$256-'Other Inputs'!$E$257),0) -> -309994 | F157: =ROUND(F156*(-'Other Inputs'!$E$256-'Other Inputs'!$E$257),0) -> -298009 | G157: =ROUND(G156*(-'Other Inputs'!$E$256-'Other Inputs'!$E$257),0) -> -308554 | H157: =ROUND(H156*(-'Other Inputs'!$E$256-'Other Inputs'!$E$257),0) -> -337475 | I157: =ROUND(I156*(-'Other Inputs'!$E$256-'Other Inputs'!$E$257),0) -> -353800 | J157: =ROUND(J156*(-'Other Inputs'!$E$256-'Other Inputs'!$E$257),0) -> -343242 | K157: =ROUND(K156*(-'Other Inputs'!$E$256-'Other Inputs'!$E$257),0) -> -343478 | L157: =ROUND(L156*(-'Other Inputs'!$E$256-'Other Inputs'!$E$257),0) -> -352899 | M157: =ROUND(M156*(-'Other Inputs'!$E$256-'Other Inputs'!$E$257),0) -> -348571 | N157: =ROUND(N156*(-'Other Inputs'!$E$256-'Other Inputs'!$E$257),0) -> -344068 | O157: =ROUND(O156*(-'Other Inputs'!$E$256-'Other Inputs'!$E$257),0) -> -340593 | P157: =SUM(D157:O157) -> -3986632
A158: Company Production @ City Gate | D158: =SUM(D156:D157) -> 5061570 | E158: =SUM(E156:E157) -> 5128494 | F158: 4930226 | G158: 5104673 | H158: 5583144 | I158: 5853215 | J158: 5678539 | K158: 5682445 | L158: 5838308 | M158: 5766712 | N158: 5692205 | O158: 5634726 | P158: =SUM(D158:O158) -> 65954257
A160: Peaking Withdrawal | D160: =+D133 -> 0 | E160: 0 | F160: 0 | G160: 0 | H160: 0 | I160: 0 | J160: 0 | K160: 1568152 | L160: 0 | M160: 0 | N160: 0 | O160: 0 | P160: =SUM(D160:O160) -> 1568152
A161: Clay Basin Withdrawal | D161: =+D134 -> 0 | E161: 0 | F161: =+F134 -> 0 | G161: 0 | H161: 0 | I161: 0 | J161: 6477380 | K161: 4884890 | L161: 2056730 | M161: 0 | N161: 0 | O161: 0 | P161: =SUM(D161:O161) -> 13419000
A162: QPC Transportation Loss on Storage | D162: ='Monthly Inputs'!G73+'Monthly Inputs'!G66 -> 0 | E162: ='Monthly Inputs'!H73+'Monthly Inputs'!H66 -> 0 | F162: ='Monthly Inputs'!I73+'Monthly Inputs'!I66 -> 0 | G162: ='Monthly Inputs'!J73+'Monthly Inputs'!J66 -> 0 | H162: ='Monthly Inputs'!K73+'Monthly Inputs'!K66 -> 0 | I162: ='Monthly Inputs'!L73+'Monthly Inputs'!L66 -> 0 | J162: ='Monthly Inputs'!M73+'Monthly Inputs'!M66 -> -149627.478 | K162: ='Monthly Inputs'!N73+'Monthly Inputs'!N66 -> -166479.2966 | L162: ='Monthly Inputs'!O73+'Monthly Inputs'!O66 -> -47510.463 | M162: ='Monthly Inputs'!P73+'Monthly Inputs'!P66 -> 0 | N162: ='Monthly Inputs'!Q73+'Monthly Inputs'!Q66 -> 0 | O162: ='Monthly Inputs'!R73+'Monthly Inputs'!R66 -> 0 | P162: =SUM(D162:O162) -> -363617.2376 | R162: =4761675+168421 -> 4930096
A163: Storage Lost & Unaccounted For | D163: ='Monthly Inputs'!G59 -> -40352.077 | E163: ='Monthly Inputs'!H59 -> -40558.466 | F163: ='Monthly Inputs'!I59 -> -37295.167 | G163: ='Monthly Inputs'!J59 -> -36728.3336 | H163: ='Monthly Inputs'!K59 -> -47221.1687 | I163: ='Monthly Inputs'!L59 -> -26238.5305 | J163: ='Monthly Inputs'!M59 -> 0 | K163: ='Monthly Inputs'!N59 -> 0 | L163: ='Monthly Inputs'!O59 -> 0 | M163: ='Monthly Inputs'!P59 -> 0 | N163: ='Monthly Inputs'!Q59 -> -8659.169 | O163: ='Monthly Inputs'!R59 -> -23872.789 | P163: =SUM(D163:O163) -> -260925.7008
A164: Storage Supply @ City Gate | D164: =SUM(D160:D163) -> -40352.077 | E164: =SUM(E160:E163) -> -40558.466 | F164: -37295.167 | G164: -36728.3336 | H164: -47221.1687 | I164: -26238.5305 | J164: 6327752.522 | K164: 6286562.703 | L164: 2009219.537 | M164: 0 | N164: -8659.169 | O164: -23872.789 | P164: 14362609.06
A166: Gas Purchased @ City Gate | D166: =D153-D158-D164-D152 -> 661973.077 | E166: =E153-E158-E164-E152 -> 338160.466 | F166: =F153-F158-F164-F152 -> 249477.167 | G166: 956833.3336 | H166: =H153-H158-H164-H152 -> 4180823.169 | I166: =I153-I158-I164-I152 -> 6882636.531 | J166: 5164049.478 | K166: 7696773.297 | L166: =L153-L158-L164-L152 -> 7610596.463 | M166: =M153-M158-M164-M152 -> 6038661 | N166: 3801323.169 | O166: 595239.789 | P166: =SUM(D166:O166) -> 44176546.94
A167: Gas Reimbursement | D167: =+D168-D166 -> 8446.923 | E167: =+E168-E166 -> 4315.534 | F167: 3183.833 | G167: 12209.6664 | H167: 53350.8313 | I167: 87827.4695 | J167: 65897.522 | K167: 98216.7034 | L167: 97117.537 | M167: 77058 | N167: 48507.831 | O167: 7596.211 | P167: =SUM(D167:O167) -> 563728.0616
A168: Gas Purchased - Dth ( /.98) | D168: =ROUND(D166/(1-'Other Inputs'!$E$257),0) -> 670420 | E168: =ROUND(E166/(1-'Other Inputs'!$E$257),0) -> 342476 | F168: =ROUND(F166/(1-'Other Inputs'!$E$257),0) -> 252661 | G168: =ROUND(G166/(1-'Other Inputs'!$E$257),0) -> 969043 | H168: =ROUND(H166/(1-'Other Inputs'!$E$257),0) -> 4234174 | I168: =ROUND(I166/(1-'Other Inputs'!$E$257),0) -> 6970464 | J168: =ROUND(J166/(1-'Other Inputs'!$E$257),0) -> 5229947 | K168: =ROUND(K166/(1-'Other Inputs'!$E$257),0) -> 7794990 | L168: =ROUND(L166/(1-'Other Inputs'!$E$257),0) -> 7707714 | M168: =ROUND(M166/(1-'Other Inputs'!$E$257),0) -> 6115719 | N168: =ROUND(N166/(1-'Other Inputs'!$E$257),0) -> 3849831 | O168: =ROUND(O166/(1-'Other Inputs'!$E$257),0) -> 602836 | P168: =SUM(D168:O168) -> 44740275
A170: Transported Volumes - total | D170: =+D158+D166+D135+D162 -> 5723543.077 | E170: =+E158+E166+E135+E162 -> 5466654.466 | F170: 5179703.167 | G170: 6061506.334 | H170: 9763967.169 | I170: 12735851.53 | J170: 17170341 | K170: 19665781 | L170: 15458124 | M170: 11805373 | N170: 9493528.169 | O170: =+O158+O166+O135+O162 -> 6229965.789 | P170: =+P158+P166+P135+P162 -> 124754338.7
A171: Kern transported volumes | D171: =HLOOKUP(MONTH(D5),kernrivertrans,6,FALSE) -> 148559.04 | E171: 153511.008 | F171: 153511.008 | G171: 148559.04 | H171: 153511.008 | I171: 2624543.04 | J171: 2712027.808 | K171: 2712027.808 | L171: 2449573.504 | M171: 2712027.808 | N171: 148559.04 | O171: 153511.008
A172: Storage Fuel % | C172: =(P152-P163)/(P160+P161+P150+P151) -> 0.0174266936
A174: Company Production as % of Total Supply / Demand | D174: =D156/(D168+D156) -> 0.8889654235 | E174: 0.9407579774 | F174: =F156/(F168+F156) -> 0.9539015154 | G174: 0.8481664047 | H174: =H156/(H168+H156) -> 0.583036897 | I174: 0.471032054 | J174: 0.5351872175 | K174: 0.4360003569 | L174: 0.4454451536 | M174: 0.4999821764 | N174: 0.61058158 | O174: 0.9083578906 | P174: =P156/(P168+P156) -> 0.609872507
A176: PURCHASES BREAKDOWN
A177: Spot Market Purchases | D177: ='Monthly Inputs'!G89 -> 0 | E177: ='Monthly Inputs'!H89 -> 0 | F177: ='Monthly Inputs'!I89 -> 0 | G177: ='Monthly Inputs'!J89 -> 178392 | H177: ='Monthly Inputs'!K89 -> 3944163 | I177: ='Monthly Inputs'!L89 -> 2770464 | J177: ='Monthly Inputs'!M89 -> 179947 | K177: ='Monthly Inputs'!N89 -> 1244990 | L177: ='Monthly Inputs'!O89 -> 2257714 | M177: ='Monthly Inputs'!P89 -> 3785719 | N177: ='Monthly Inputs'!Q89 -> 3603108 | O177: ='Monthly Inputs'!R89 -> 0 | P177: =SUM(D177:O177) -> 17964497
A178: Spot Market Purchases Cost | D178: ='Monthly Inputs'!G90 -> 0 | E178: ='Monthly Inputs'!H90 -> 0 | F178: ='Monthly Inputs'!I90 -> 0 | G178: ='Monthly Inputs'!J90 -> 692160.96 | H178: ='Monthly Inputs'!K90 -> 15816093.63 | I178: ='Monthly Inputs'!L90 -> 11275788.48 | J178: ='Monthly Inputs'!M90 -> 753977.93 | K178: ='Monthly Inputs'!N90 -> 5216508.1 | L178: ='Monthly Inputs'!O90 -> 9234050.26 | M178: ='Monthly Inputs'!P90 -> 14537160.96 | N178: ='Monthly Inputs'!Q90 -> 13980059.04 | O178: ='Monthly Inputs'!R90 -> 0 | P178: =SUM(D178:O178) -> 71505799.36
A180: Contract Purchases (Dth) | D180: ='Monthly Inputs'!G98 -> 0 | E180: ='Monthly Inputs'!H98 -> 0 | F180: ='Monthly Inputs'!I98 -> 0 | G180: ='Monthly Inputs'!J98 -> 0 | H180: ='Monthly Inputs'!K98 -> 0 | I180: ='Monthly Inputs'!L98 -> 1200000 | J180: ='Monthly Inputs'!M98 -> 1550000 | K180: ='Monthly Inputs'!N98 -> 1550000 | L180: ='Monthly Inputs'!O98 -> 1450000 | M180: ='Monthly Inputs'!P98 -> 930000 | N180: ='Monthly Inputs'!Q98 -> 0 | O180: ='Monthly Inputs'!R98 -> 0 | P180: =SUM(D180:O180) -> 6680000
A181: Contract Purchases Cost Including Stabalization Costs | D181: ='Monthly Inputs'!G99+'Monthly Inputs'!G100 -> 0 | E181: ='Monthly Inputs'!H99+'Monthly Inputs'!H100 -> 0 | F181: ='Monthly Inputs'!I99+'Monthly Inputs'!I100 -> 0 | G181: ='Monthly Inputs'!J99+'Monthly Inputs'!J100 -> 0 | H181: ='Monthly Inputs'!K99+'Monthly Inputs'!K100 -> 333333.33 | I181: ='Monthly Inputs'!L99+'Monthly Inputs'!L100 -> 5382828.33 | J181: ='Monthly Inputs'!M99+'Monthly Inputs'!M100 -> 7006982.33 | K181: ='Monthly Inputs'!N99+'Monthly Inputs'!N100 -> 7006982.33 | L181: ='Monthly Inputs'!O99+'Monthly Inputs'!O100 -> 6431424.33 | M181: ='Monthly Inputs'!P99+'Monthly Inputs'!P100 -> 4072444.83 | N181: ='Monthly Inputs'!Q99+'Monthly Inputs'!Q100 -> 0 | O181: ='Monthly Inputs'!R99+'Monthly Inputs'!R100 -> 0 | P181: =SUM(D181:O181) -> 30233995.48
Q182: =P181+P184 -> 103577329.7
A183: Peak Purchases (Dth) | D183: ='Monthly Inputs'!G95 -> 0 | E183: ='Monthly Inputs'!H95 -> 0 | F183: ='Monthly Inputs'!I95 -> 0 | G183: ='Monthly Inputs'!J95 -> 0 | H183: ='Monthly Inputs'!K95 -> 0 | I183: ='Monthly Inputs'!L95 -> 3000000 | J183: ='Monthly Inputs'!M95 -> 3500000 | K183: ='Monthly Inputs'!N95 -> 5000000 | L183: ='Monthly Inputs'!O95 -> 4000000 | M183: ='Monthly Inputs'!P95 -> 1400000 | N183: ='Monthly Inputs'!Q95 -> 0 | O183: ='Monthly Inputs'!R95 -> 0 | P183: =SUM(D183:O183) -> 16900000
A184: Peak Purchases Cost | D184: ='Monthly Inputs'!G96 -> 0 | E184: ='Monthly Inputs'!H96 -> 0 | F184: ='Monthly Inputs'!I96 -> 0 | G184: ='Monthly Inputs'!J96 -> 0 | H184: ='Monthly Inputs'!K96 -> 0 | I184: ='Monthly Inputs'!L96 -> 12840935.9 | J184: ='Monthly Inputs'!M96 -> 15497868.68 | K184: ='Monthly Inputs'!N96 -> 22102818.83 | L184: ='Monthly Inputs'!O96 -> 17258057.73 | M184: ='Monthly Inputs'!P96 -> 5643653.04 | N184: ='Monthly Inputs'!Q96 -> 0 | O184: ='Monthly Inputs'!R96 -> 0 | P184: =SUM(D184:O184) -> 73343334.19
A186: Future Purchases | D186: =+D168-D177-D180-D183 -> 670420 | E186: =+E168-E177-E180-E183 -> 342476 | F186: =+F168-F177-F180-F183 -> 252661 | G186: 790651 | H186: =+H168-H177-H180-H183 -> 290011 | I186: =+I168-I177-I180-I183 -> 0 | J186: 0 | K186: 0 | L186: 0 | M186: =+M168-M177-M180-M183 -> 0 | N186: 246723 | O186: 602836 | P186: =SUM(D186:O186) -> 3195778
A187: Future Purchases Cost | D187: =ROUND(D186*D194,0) -> 2594525 | E187: =ROUND(E186*E194,0) -> 1339081 | F187: =ROUND(F186*F194,0) -> 980325 | G187: 3083539 | H187: =ROUND(H186*H194,0) -> 1168744 | I187: 0 | J187: 0 | K187: 0 | L187: 0 | M187: 0 | N187: 962220 | O187: 2387231 | P187: =SUM(D187:O187) -> 12515665
A189: Total Purchases Cost | D189: =+D178+D181+D184+D187 -> 2594525 | E189: =+E178+E181+E184+E187 -> 1339081 | F189: =+F178+F181+F184+F187 -> 980325 | G189: =+G178+G181+G184+G187 -> 3775699.96 | H189: =+H178+H181+H184+H187 -> 17318170.96 | I189: 29499552.71 | J189: =+J178+J181+J184+J187 -> 23258828.94 | K189: 34326309.26 | L189: 32923532.32 | M189: 24253258.83 | N189: 14942279.04 | O189: 2387231 | P189: 187598794
A191: Gas Cost
A192: Gas Cost Purchases | D192: =IF(D168=0,0,ROUND(D189/D168,5)) -> 3.87 | E192: =IF(E168=0,0,ROUND(E189/E168,5)) -> 3.91 | F192: 3.88 | G192: 3.89632 | H192: 4.09009 | I192: 4.23208 | J192: 4.44724 | K192: 4.40364 | L192: 4.2715 | M192: 3.96572 | N192: 3.88128 | O192: 3.96
A193: Gas Cost Injection Rate - this line not used - DELETE? | D193: ='Ut Storage'!K27 -> 4.251677416 | E193: =+D193 -> 4.251677416 | F193: 4.251677416 | G193: 4.251677416 | H193: 4.251677416 | I193: 4.251677416 | J193: 4.251677416 | K193: 4.251677416 | L193: 4.251677416 | M193: 4.251677416 | N193: 4.251677416 | O193: 4.251677416
A194: =CONCATENATE("'Future Contract Price (spot + $",'Other Inputs'!E165,")") -> 'Future Contract Price (spot + $0.02) | D194: =+D226+'Other Inputs'!$E$165 -> 3.87 | E194: =+E226+'Other Inputs'!$E$165 -> 3.91 | F194: =+F226+'Other Inputs'!$E$165 -> 3.88 | G194: =+G226+'Other Inputs'!$E$165 -> 3.9 | H194: =+H226+'Other Inputs'!$E$165 -> 4.03 | I194: =+I226+'Other Inputs'!$E$165 -> 4.09 | J194: =+J226+'Other Inputs'!$E$165 -> 4.21 | K194: =+K226+'Other Inputs'!$E$165 -> 4.21 | L194: =+L226+'Other Inputs'!$E$165 -> 4.11 | M194: =+M226+'Other Inputs'!$E$165 -> 3.86 | N194: =+N226+'Other Inputs'!$E$165 -> 3.9 | O194: =+O226+'Other Inputs'!$E$165 -> 3.96
A196: System Production | D196: =+D158 -> 5061570 | E196: 5128494 | F196: 4930226 | G196: 5104673 | H196: 5583144 | I196: 5853215 | J196: 5678539 | K196: 5682445 | L196: 5838308 | M196: 5766712 | N196: 5692205 | O196: 5634726 | P196: =SUM(D196:O196) -> 65954257
A197: System Purchases | D197: =+D166 -> 661973.077 | E197: 338160.466 | F197: 249477.167 | G197: 956833.3336 | H197: 4180823.169 | I197: 6882636.531 | J197: 5164049.478 | K197: 7696773.297 | L197: 7610596.463 | M197: 6038661 | N197: 3801323.169 | O197: 595239.789 | P197: =SUM(D197:O197) -> 44176546.94
A198: System Gathering of Production | D198: =ROUND($P198*D$120/$P$120,0) -> 3796883 | E198: 3847086 | F198: 3698357 | G198: 3829216 | H198: 4188136 | I198: 4390727 | J198: 4259696 | K198: 4262626 | L198: 4379545 | M198: 4325838 | N198: 4269948 | O198: 4226830 | P198: ='Other Inputs'!$D$170 -> 49474888.09
A199: System Birch Creek Gathering | D199: 210715 | E199: 213501 | F199: 205247 | G199: 212509 | H199: 232428 | I199: 243671 | J199: 236400 | K199: 236562 | L199: 243051 | M199: 240070 | N199: 236968 | O199: 234576 | P199: ='Other Inputs'!$D$154 -> 2745698
A201: Utah Production | D201: =ROUND(D196*$I$74,0) -> 4890123 | E201: 4954780 | F201: 4763228 | G201: 4931766 | H201: 5394030 | I201: 5654953 | J201: 5486194 | K201: 5489967 | L201: 5640551 | M201: 5571380 | N201: 5499397 | O201: 5443865 | P201: =SUM(D201:O201) -> 63720234
A202: Utah Purchases | D202: =ROUND(D197*$I$74,0) -> 639550 | E202: 326706 | F202: 241027 | G202: 924423 | H202: 4039209 | I202: 6649506 | J202: 4989131 | K202: 7436066 | L202: 7352808 | M202: 5834117 | N202: 3672563 | O202: 575078 | P202: =SUM(D202:O202) -> 42680184
A203: Utah Gathering | D203: =ROUND(D198*$I$74,0) -> 3668274 | E203: 3716776 | F203: 3573085 | G203: 3699511 | H203: 4046274 | I203: 4242003 | J203: 4115410 | K203: 4118241 | L203: 4231200 | M203: 4179312 | N203: 4125315 | O203: 4083657 | P203: =SUM(D203:O203) -> 47799058
A204: Utah Birch Creek Gathering | D204: =ROUND(D199*$I$74,0) -> 203578 | E204: 206269 | F204: 198295 | G204: 205311 | H204: 224555 | I204: 235417 | J204: 228393 | K204: 228549 | L204: 234818 | M204: 231938 | N204: 228941 | O204: 226630 | P204: =SUM(D204:O204) -> 2652694
A206: Wyoming Production | D206: =+D196-D201 -> 171447 | E206: 173714 | F206: 166998 | G206: 172907 | H206: 189114 | I206: 198262 | J206: 192345 | K206: 192478 | L206: 197757 | M206: 195332 | N206: 192808 | O206: 190861 | P206: =SUM(D206:O206) -> 2234023
A207: Wyoming Purchases | D207: =+D197-D202 -> 22423.077 | E207: 11454.466 | F207: 8450.167 | G207: 32410.3336 | H207: 141614.1687 | I207: 233130.5305 | J207: 174918.478 | K207: 260707.2966 | L207: 257788.463 | M207: 204544 | N207: 128760.169 | O207: 20161.789 | P207: =SUM(D207:O207) -> 1496362.938
A208: Wyoming Gathering | D208: =+D198-D203 -> 128609 | E208: 130310 | F208: 125272 | G208: 129705 | H208: 141862 | I208: 148724 | J208: 144286 | K208: 144385 | L208: 148345 | M208: 146526 | N208: 144633 | O208: 143173 | P208: =SUM(D208:O208) -> 1675830
A209: Wyoming Birch Creek Gathering | D209: =+D199-D204 -> 7137 | E209: 7232 | F209: 6952 | G209: 7198 | H209: 7873 | I209: 8254 | J209: 8007 | K209: 8013 | L209: 8233 | M209: 8132 | N209: 8027 | O209: 7946 | P209: =SUM(D209:O209) -> 93004
A212: I-2, I-4 Averate Gas Cost Calculations
A213: Wyoming
B214: Wyoming I-2 Volumes | D214: =D34 -> 11461 | E214: =E34 -> 9007 | F214: 8299 | G214: 8093 | H214: 7486 | I214: 11876 | J214: 16120 | K214: 18492 | L214: 14789 | M214: 15206 | N214: 16294 | O214: 10647 | P214: 147770
B215: Wyoming I-4 Volumes | D215: =D35 -> 0 | E215: =E35 -> 0 | F215: 0 | G215: 0 | H215: 0 | I215: 0 | J215: 0 | K215: 0 | L215: 0 | M215: 0 | N215: 0 | O215: 0 | P215: 0
D216: =SUM(D214:D215) -> 11461 | E216: =SUM(E214:E215) -> 9007 | F216: 8299 | G216: 8093 | H216: 7486 | I216: 11876 | J216: 16120 | K216: 18492 | L216: 14789 | M216: 15206 | N216: 16294 | O216: 10647 | P216: 147770
B218: Global Insight Spot Price Forecast | D218: ='Monthly Inputs'!G85 -> 3.85 | E218: ='Monthly Inputs'!H85 -> 3.89 | F218: ='Monthly Inputs'!I85 -> 3.86 | G218: ='Monthly Inputs'!J85 -> 3.88 | H218: ='Monthly Inputs'!K85 -> 4.01 | I218: ='Monthly Inputs'!L85 -> 4.07 | J218: ='Monthly Inputs'!M85 -> 4.19 | K218: ='Monthly Inputs'!N85 -> 4.19 | L218: ='Monthly Inputs'!O85 -> 4.09 | M218: ='Monthly Inputs'!P85 -> 3.84 | N218: ='Monthly Inputs'!Q85 -> 3.88 | O218: ='Monthly Inputs'!R85 -> 3.94
D219: =D216*D218 -> 44124.85 | E219: =E216*E218 -> 35037.23 | F219: 32034.14 | G219: 31400.84 | H219: 30018.86 | I219: 48335.32 | J219: 67542.8 | K219: 77481.48 | L219: 60487.01 | M219: 58391.04 | N219: 63220.72 | O219: 41949.18 | P219: =SUM(D219:O219) -> 590023.47
P220: =P219/P216 -> 3.992850173
P221: =1-'Other Inputs'!$E$255 -> 0.985
P222: =1-'Other Inputs'!$E$257 -> 0.9874
P223: =P220/P221/P222 -> 4.105382821
A224: Utah
B225: Utah I-4 & IS-4 Volumes | D225: =D15+D16 -> 188057 | E225: 201411 | F225: 202249 | G225: 192285 | H225: 185973 | I225: 225683 | J225: 239132 | K225: 210722 | L225: 172192 | M225: 188747 | N225: 205013 | O225: 188770 | P225: 2400234
B226: =B218 -> Global Insight Spot Price Forecast | D226: ='Monthly Inputs'!G85 -> 3.85 | E226: ='Monthly Inputs'!H85 -> 3.89 | F226: ='Monthly Inputs'!I85 -> 3.86 | G226: ='Monthly Inputs'!J85 -> 3.88 | H226: ='Monthly Inputs'!K85 -> 4.01 | I226: ='Monthly Inputs'!L85 -> 4.07 | J226: ='Monthly Inputs'!M85 -> 4.19 | K226: ='Monthly Inputs'!N85 -> 4.19 | L226: ='Monthly Inputs'!O85 -> 4.09 | M226: ='Monthly Inputs'!P85 -> 3.84 | N226: ='Monthly Inputs'!Q85 -> 3.88 | O226: ='Monthly Inputs'!R85 -> 3.94
D227: =D225*D226 -> 724019.45 | E227: =E225*E226 -> 783488.79 | F227: 780681.14 | G227: 746065.8 | H227: 745751.73 | I227: 918529.81 | J227: 1001963.08 | K227: 882925.18 | L227: 704265.28 | M227: 724788.48 | N227: 795450.44 | O227: =O225*O226 -> 743753.8 | P227: =SUM(D227:O227) -> 9551682.98
P228: =P227/P225 -> 3.979479909
P229: =1-'Other Inputs'!$E$254 -> 0.9956893
P230: =1-'Other Inputs'!$E$257 -> 0.9874
P232: =P228/P229/P230 -> 4.047709662
D234: =MONTH(D235) -> 1 | E234: =MONTH(E235) -> 2 | F234: =MONTH(F235) -> 3 | G234: 4 | H234: 5 | I234: 6 | J234: 7 | K234: 8 | L234: 9 | M234: 10 | N234: 11 | O234: 12
D235: 2011-01-01 | E235: 2011-02-01 | F235: 2011-03-01 | G235: 2011-04-01 | H235: 2011-05-01 | I235: 2011-06-01 | J235: 2011-07-01 | K235: 2010-08-01 | L235: 2010-09-01 | M235: 2010-10-01 | N235: 2010-11-01 | O235: 2010-12-01
D236: 31 | E236: 28 | F236: 31 | G236: 30 | H236: 31 | I236: 30 | J236: 31 | K236: 31 | L236: 30 | M236: 31 | N236: 30 | O236: 31
D237: ='Other Inputs'!$D$50+'Other Inputs'!$D$51 -> 53000 | E237: ='Other Inputs'!$D$50+'Other Inputs'!$D$51 -> 53000 | F237: ='Other Inputs'!$D$50+'Other Inputs'!$D$51 -> 53000 | G237: ='Other Inputs'!$D$50 -> 3000 | H237: ='Other Inputs'!$D$50 -> 3000 | I237: ='Other Inputs'!$D$50 -> 3000 | J237: ='Other Inputs'!$D$50 -> 3000 | K237: ='Other Inputs'!$D$50 -> 3000 | L237: ='Other Inputs'!$D$50 -> 3000 | M237: ='Other Inputs'!$D$50 -> 3000 | N237: ='Other Inputs'!$D$50+'Other Inputs'!$D$51 -> 53000 | O237: ='Other Inputs'!$D$50+'Other Inputs'!$D$51 -> 53000
D238: ='Other Inputs'!$C$56 -> 1.650656 | E238: ='Other Inputs'!$C$56 -> 1.650656 | F238: ='Other Inputs'!$C$56 -> 1.650656 | G238: ='Other Inputs'!$C$56 -> 1.650656 | H238: ='Other Inputs'!$C$56 -> 1.650656 | I238: ='Other Inputs'!$C$56 -> 1.650656 | J238: ='Other Inputs'!$C$56 -> 1.650656 | K238: ='Other Inputs'!$C$56 -> 1.650656 | L238: ='Other Inputs'!$C$56 -> 1.650656 | M238: ='Other Inputs'!$C$56 -> 1.650656 | N238: ='Other Inputs'!$C$56 -> 1.650656 | O238: ='Other Inputs'!$C$56 -> 1.650656
D239: =D236*D237*D238 -> 2712027.808 | E239: =E236*E237*E238 -> 2449573.504 | F239: 2712027.808 | G239: 148559.04 | H239: 153511.008 | I239: 148559.04 | J239: 153511.008 | K239: 153511.008 | L239: 148559.04 | M239: 153511.008 | N239: 2624543.04 | O239: 2712027.808 | P239: =SUM(D239:O239) -> 14269921.12
D243: 0.13 | E243: 0.14 | F243: 0.05 | G243: 0.05 | H243: 0.02 | I243: 0.02 | J243: 0.02 | K243: 0.02 | L243: 0.01 | M243: 0 | N243: 0 | O243: 0
D244: =D243*(D177+D180+D183+D186) -> 87154.6 | E244: =E243*(E177+E180+E183+E186) -> 47946.64 | F244: 12633.05 | G244: 48452.15 | H244: 84683.48 | I244: 139409.28 | J244: 104598.94 | K244: 155899.8 | L244: 77077.14 | M244: 0 | N244: 0 | O244: 0

Sheet CET & DSM
A1: Rate Caclulation for the CET and DSM Amortizations
P3: Solver Cells
A4: CET Amortization % Calculation | P4: % Change | Q4: Difference
B5: Balance | C5: Date | D5: GS Dth | H5: Amortization per Dth | P5: =J20/D20 -> -0.03190242653 | Q5: =J20-B11 -> 0 | S5: -> Difference should be at 0 (Use Goal Seek to Get Difference to Equal 0.
A6: DSM Balance | B6: ='Other Inputs'!$E$221 -> 42000000 | C6: ='Other Inputs'!$F$221 -> 2011-03-31 | D6: =B20 -> 95229268 | H6: =ROUND(B6/D6,5) -> 0.44104
S8: Typical Bill Rates
A9: CET Amortization Calculation
B10: Balance | C10: Date | D10: DNG Rev | H10: New DNG | L10: % Change | S10: Current | T10: Proposed
A11: CET Balance | B11: ='Other Inputs'!$E$220 -> -5724936.562 | C11: ='Other Inputs'!$F$220 -> 2011-03-31 | D11: =D20 -> 179451445.7 | H11: =D11+B11 -> 173726509.1 | L11: =P5 -> -0.03190242653 | S11: Effective | V11: SNG & | W11: CET, DSM
S12: ='Other Inputs'!$J$86 -> 2011-05-01 | T12: CET Only | U12: DSM Only | V12: Commodity | W12: Commodity
S13: BSF | T13: BSF | U13: BSF | V13: BSF | W13: BSF
B14: Revenue Calculation | H14: CET Amortization | L14: Total DNG | P14: REVRUN Calculation | S14: ='Other Inputs'!$G$90 -> 5 | T14: ='Other Inputs'!$G$90 -> 5 | U14: ='Other Inputs'!$G$90 -> 5 | V14: ='Other Inputs'!$G$90 -> 5 | W14: ='Ut 1.8'!$C$12 -> 5
A15: Utah GS | B15: Dth | C15: Base DNG | D15: DNG Revenue | H15: CET Rate | J15: Revenue | L15: DNG Rate | N15: Revenue | P15: CET Rate | Q15: CET Amort
A16: Block 1 Summer | B16: ='Other Inputs'!E225 -> 18170765 | C16: ='Other Inputs'!E210 -> 1.87767 | D16: =B16*C16 -> 34118700.32 | H16: =ROUND((J16/B16),5) -> -0.0599 | J16: =D16*$P$5 -> -1088469.33 | L16: =C16+H16 -> 1.81777 | N16: =L16*B16 -> 33030271.49 | P16: =ROUND(H16,5) -> -0.0599 | Q16: =B16*P16 -> -1088428.823 | S16: ='Other Inputs'!$G$86 -> 7.31877 | T16: =N24 -> 7.29386 | U16: =N31 -> 7.38456 | V16: =N38 -> 7.185848656 | W16: =N45 -> 7.783878656
A17: Block 2 Summer | B17: ='Other Inputs'!E226 -> 3588710 | C17: ='Other Inputs'!E211 -> 0.69704 | D17: =B17*C17 -> 2501474.418 | H17: =ROUND((J17/B17),5) -> -0.02224 | J17: =D17*$P$5 -> -79803.10386 | L17: =C17+H17 -> 0.6748 | N17: =L17*B17 -> 2421661.508 | P17: =ROUND(H17,5) -> -0.02224 | Q17: =B17*P17 -> -79812.9104
A18: Block 1 Winter | B18: ='Other Inputs'!E223 -> 57393205 | C18: ='Other Inputs'!E212 -> 2.22938 | D18: =B18*C18 -> 127951263.4 | H18: =ROUND((J18/B18),5) -> -0.07112 | J18: =D18*$P$5 -> -4081955.779 | L18: =C18+H18 -> 2.15826 | N18: =L18*B18 -> 123869458.6 | P18: =ROUND(H18,5) -> -0.07112 | Q18: =B18*P18 -> -4081804.74 | S18: ='Other Inputs'!$G$88 -> 8.30729 | T18: =N26 -> 8.27771 | U18: =N33 -> 8.37308 | V18: =N40 -> 8.180028656 | W18: =N47 -> 9.402888656
A19: Block 2 Winter | B19: ='Other Inputs'!E224 -> 16076588 | C19: ='Other Inputs'!E213 -> 0.92557 | D19: =B19*C19 -> 14880007.56 | H19: =ROUND((J19/B19),5) -> -0.02953 | J19: =D19*$P$5 -> -474708.3479 | L19: =C19+H19 -> 0.89604 | N19: =L19*B19 -> 14405265.91 | P19: =ROUND(H19,5) -> -0.02953 | Q19: =B19*P19 -> -474741.6436
A20: GS-1 Block Rev | B20: =SUM(B16:B19) -> 95229268 | D20: =SUM(D16:D19) -> 179451445.7 | J20: =B11 -> -5724936.562 | N20: =SUM(N16:N19) -> 173726657.5 | Q20: =SUM(Q16:Q19) -> -5724788.117
A22: Total Rate Calculation With CET Amortization Only | N22: ='Control Panel'!F8 -> 2011-06-01 | P22: ='Other Inputs'!$J$86 -> 2011-05-01
A23: Utah GS | B23: Base DNG | C23: CET | D23: DSM | E23: Energy Assist | F23: Infrastructure | H23: Total DNG | I23: Base SNG | J23: SNG Amort | L23: Base Gas Cost | M23: 191 Amort | N23: Total Rate | P23: Total Rate
A24: Block 1 Summer | B24: =$C$16 -> 1.87767 | C24: =$H$16 -> -0.0599 | D24: 0.37525 | E24: 0.01519 | F24: 0.02908 | H24: =SUM(B24:F24) -> 2.23729 | I24: 0.55216 | J24: 0.01244 | L24: 4.15064 | M24: 0.34133 | N24: =SUM(H24:M24) -> 7.29386 | P24: ='Other Inputs'!$G$86 -> 7.31877 | Q24: =N24-P24 -> -0.02491
A25: Block 2 Summer | B25: =$C$17 -> 0.69704 | C25: =$H$17 -> -0.02224 | D25: =$D$24 -> 0.37525 | E25: =$E$24 -> 0.01519 | F25: 0.0108 | H25: =SUM(B25:F25) -> 1.07604 | I25: =I24 -> 0.55216 | J25: =J24 -> 0.01244 | L25: =L24 -> 4.15064 | M25: =$M$24 -> 0.34133 | N25: =SUM(H25:M25) -> 6.13261 | P25: ='Other Inputs'!$G$87 -> 6.14186 | Q25: =N25-P25 -> -0.00925
A26: Block 1 Winter | B26: =$C$18 -> 2.22938 | C26: =$H$18 -> -0.07112 | D26: =$D$24 -> 0.37525 | E26: =$E$24 -> 0.01519 | F26: 0.03453 | H26: =SUM(B26:F26) -> 2.58323 | I26: 1.176 | J26: 0.02651 | L26: =L24 -> 4.15064 | M26: =$M$24 -> 0.34133 | N26: =SUM(H26:M26) -> 8.27771 | P26: ='Other Inputs'!$G$88 -> 8.30729 | Q26: =N26-P26 -> -0.02958
A27: Block 2 Winter | B27: =$C$19 -> 0.92557 | C27: =$H$19 -> -0.02953 | D27: =$D$24 -> 0.37525 | E27: =$E$24 -> 0.01519 | F27: 0.01434 | H27: =SUM(B27:F27) -> 1.30082 | I27: =I26 -> 1.176 | J27: =J26 -> 0.02651 | L27: =L24 -> 4.15064 | M27: =$M$24 -> 0.34133 | N27: =SUM(H27:M27) -> 6.9953 | P27: ='Other Inputs'!$G$89 -> 7.00758 | Q27: =N27-P27 -> -0.01228
A29: Total Rate Calculation With DSM Amortization Only | N29: =N22 -> 2011-06-01 | P29: ='Other Inputs'!$J$86 -> 2011-05-01
A30: Utah GS | B30: Base DNG | C30: CET | D30: DSM | E30: Energy Assist | F30: Infrastructure | H30: Total DNG | I30: Base SNG | J30: SNG Amort | L30: Commodity | M30: 191 Amort | N30: Total Rate | P30: Total Rate
A31: Block 1 Summer | B31: =$C$16 -> 1.87767 | C31: -0.03499 | D31: =$H$6 -> 0.44104 | E31: =$E$24 -> 0.01519 | F31: =F24 -> 0.02908 | H31: =SUM(B31:F31) -> 2.32799 | I31: =$I$24 -> 0.55216 | J31: =J24 -> 0.01244 | L31: =$L$24 -> 4.15064 | M31: =$M$24 -> 0.34133 | N31: =SUM(H31:M31) -> 7.38456 | P31: ='Other Inputs'!$G$86 -> 7.31877 | Q31: =N31-P31 -> 0.06579
A32: Block 2 Summer | B32: =$C$17 -> 0.69704 | C32: -0.01299 | D32: =$H$6 -> 0.44104 | E32: =$E$24 -> 0.01519 | F32: =F25 -> 0.0108 | H32: =SUM(B32:F32) -> 1.15108 | I32: =$I$24 -> 0.55216 | J32: =J25 -> 0.01244 | L32: =$L$24 -> 4.15064 | M32: =$M$24 -> 0.34133 | N32: =SUM(H32:M32) -> 6.20765 | P32: ='Other Inputs'!$G$87 -> 6.14186 | Q32: =N32-P32 -> 0.06579
A33: Block 1 Winter | B33: =$C$18 -> 2.22938 | C33: -0.04154 | D33: =$H$6 -> 0.44104 | E33: =$E$24 -> 0.01519 | F33: =F26 -> 0.03453 | H33: =SUM(B33:F33) -> 2.6786 | I33: =$I$26 -> 1.176 | J33: =J26 -> 0.02651 | L33: =$L$24 -> 4.15064 | M33: =$M$24 -> 0.34133 | N33: =SUM(H33:M33) -> 8.37308 | P33: ='Other Inputs'!$G$88 -> 8.30729 | Q33: =N33-P33 -> 0.06579
A34: Block 2 Winter | B34: =$C$19 -> 0.92557 | C34: -0.01725 | D34: =$H$6 -> 0.44104 | E34: =$E$24 -> 0.01519 | F34: =F27 -> 0.01434 | H34: =SUM(B34:F34) -> 1.37889 | I34: =$I$26 -> 1.176 | J34: =J27 -> 0.02651 | L34: =$L$24 -> 4.15064 | M34: =$M$24 -> 0.34133 | N34: =SUM(H34:M34) -> 7.07337 | P34: ='Other Inputs'!$G$89 -> 7.00758 | Q34: =N34-P34 -> 0.06579
A36: Total Rate Calculation With SNG and Commodity Changes Only | N36: =N22 -> 2011-06-01 | P36: ='Other Inputs'!$J$86 -> 2011-05-01
A37: Utah GS | B37: Base DNG | C37: CET | D37: DSM | E37: Energy Assist | F37: Infrastructure | H37: Total DNG | I37: Base SNG | J37: SNG | L37: Commodity | M37: 191 Amort | N37: Total Rate | P37: Total Rate
A38: Block 1 Summer | B38: =$C$16 -> 1.87767 | C38: =C31 -> -0.03499 | D38: =D24 -> 0.37525 | E38: =$E$24 -> 0.01519 | F38: =F24 -> 0.02908 | H38: =SUM(B38:F38) -> 2.2622 | I38: ='Ut 1.6 p3'!G17 -> 0.55715 | J38: ='Ut 1.6 p3'!$H$17 -> 0.01244 | L38: ='Ut 1.6 p1'!$F$34 -> 4.21339 | M38: ='Ut 1.6 p1'!$F$35 -> 0.1406686564 | N38: =SUM(H38:M38) -> 7.185848656 | P38: ='Other Inputs'!$G$86 -> 7.31877 | Q38: =N38-P38 -> -0.1329213436
A39: Block 2 Summer | B39: =$C$17 -> 0.69704 | C39: =C32 -> -0.01299 | D39: =D25 -> 0.37525 | E39: =$E$24 -> 0.01519 | F39: =F25 -> 0.0108 | H39: =SUM(B39:F39) -> 1.08529 | I39: ='Ut 1.6 p3'!G17 -> 0.55715 | J39: ='Ut 1.6 p3'!$H$17 -> 0.01244 | L39: ='Ut 1.6 p1'!$F$34 -> 4.21339 | M39: ='Ut 1.6 p1'!$F$35 -> 0.1406686564 | N39: =SUM(H39:M39) -> 6.008938656 | P39: ='Other Inputs'!$G$87 -> 6.14186 | Q39: =N39-P39 -> -0.1329213436
A40: Block 1 Winter | B40: =$C$18 -> 2.22938 | C40: =C33 -> -0.04154 | D40: =D26 -> 0.37525 | E40: =$E$24 -> 0.01519 | F40: =F26 -> 0.03453 | H40: =SUM(B40:F40) -> 2.61281 | I40: ='Ut 1.6 p3'!G16 -> 1.18665 | J40: ='Ut 1.6 p3'!$H$16 -> 0.02651 | L40: ='Ut 1.6 p1'!$F$34 -> 4.21339 | M40: ='Ut 1.6 p1'!$F$35 -> 0.1406686564 | N40: =SUM(H40:M40) -> 8.180028656 | P40: ='Other Inputs'!$G$88 -> 8.30729 | Q40: =N40-P40 -> -0.1272613436
A41: Block 2 Winter | B41: =$C$19 -> 0.92557 | C41: =C34 -> -0.01725 | D41: =D27 -> 0.37525 | E41: =$E$24 -> 0.01519 | F41: =F27 -> 0.01434 | H41: =SUM(B41:F41) -> 1.3131 | I41: ='Ut 1.6 p3'!G16 -> 1.18665 | J41: ='Ut 1.6 p3'!$H$16 -> 0.02651 | L41: ='Ut 1.6 p1'!$F$34 -> 4.21339 | M41: ='Ut 1.6 p1'!$F$35 -> 0.1406686564 | N41: =SUM(H41:M41) -> 6.880318656 | P41: ='Other Inputs'!$G$89 -> 7.00758 | Q41: =N41-P41 -> -0.1272613436
A43: Total Rate Calculation | N43: =N29 -> 2011-06-01 | P43: ='Other Inputs'!$J$86 -> 2011-05-01
A44: Utah GS | B44: Base DNG | C44: CET | D44: DSM | E44: Energy Assist | F44: Infrastructure | H44: Total DNG | I44: Base SNG | J44: SNG | L44: Commodity | N44: Total Rate | P44: Total Rate
A45: Block 1 Summer | B45: =$C$16 -> 1.87767 | C45: =$H$16 -> -0.0599 | D45: =$H$6 -> 0.44104 | E45: =$E$24 -> 0.01519 | F45: =F38 -> 0.02908 | H45: =SUM(B45:F45) -> 2.30308 | I45: =I38 -> 0.55715 | J45: ='Ut 1.6 p3'!$I$17 -> 0.56959 | L45: ='Ut 1.6 p1'!$F$36 -> 4.354058656 | N45: =SUM(H45:L45) -> 7.783878656 | P45: ='Other Inputs'!$G$86 -> 7.31877 | Q45: =N45-P45 -> 0.4651086564
A46: Block 2 Summer | B46: =$C$17 -> 0.69704 | C46: =$H$17 -> -0.02224 | D46: =$H$6 -> 0.44104 | E46: =$E$24 -> 0.01519 | F46: =F39 -> 0.0108 | H46: =SUM(B46:F46) -> 1.14183 | I46: =I39 -> 0.55715 | J46: ='Ut 1.6 p3'!$I$17 -> 0.56959 | L46: =$L$45 -> 4.354058656 | N46: =SUM(H46:L46) -> 6.622628656 | P46: ='Other Inputs'!$G$87 -> 6.14186 | Q46: =N46-P46 -> 0.4807686564
A47: Block 1 Winter | B47: =$C$18 -> 2.22938 | C47: =$H$18 -> -0.07112 | D47: =$H$6 -> 0.44104 | E47: =$E$24 -> 0.01519 | F47: =F40 -> 0.03453 | H47: =SUM(B47:F47) -> 2.64902 | I47: =I40 -> 1.18665 | J47: ='Ut 1.6 p3'!$I$16 -> 1.21316 | L47: =$L$45 -> 4.354058656 | N47: =SUM(H47:L47) -> 9.402888656 | P47: ='Other Inputs'!$G$88 -> 8.30729 | Q47: =N47-P47 -> 1.095598656
A48: Block 2 Winter | B48: =$C$19 -> 0.92557 | C48: =$H$19 -> -0.02953 | D48: =$H$6 -> 0.44104 | E48: =$E$24 -> 0.01519 | F48: =F41 -> 0.01434 | H48: =SUM(B48:F48) -> 1.36661 | I48: =I41 -> 1.18665 | J48: ='Ut 1.6 p3'!$I$16 -> 1.21316 | L48: =$L$45 -> 4.354058656 | N48: =SUM(H48:L48) -> 8.120478656 | P48: ='Other Inputs'!$G$89 -> 7.00758 | Q48: =N48-P48 -> 1.112898656
A50: Typical Customer Difference - CET Amortization Only
B51: Typical
A52: GS | B52: Dth | C52: =S12 -> 2011-05-01 | D52: =N43 -> 2011-06-01 | H52: Change | J52: % Change
A53: January | B53: 14.9 | C53: =ROUND($S$14+(B53*$S$18),2) -> 128.78 | D53: =ROUND($T$14+(B53*$T$18),2) -> 128.34 | H53: =D53-C53 -> -0.44
A54: February | B54: 12.5 | C54: =ROUND($S$14+(B54*$S$18),2) -> 108.84 | D54: =ROUND($T$14+(B54*$T$18),2) -> 108.47 | H54: -0.37
A55: March | B55: 10.1 | C55: =ROUND($S$14+(B55*$S$18),2) -> 88.9 | D55: =ROUND($T$14+(B55*$T$18),2) -> 88.6 | H55: -0.3
A56: April | B56: 8.3 | C56: =ROUND($S$14+(B56*$S$16),2) -> 65.75 | D56: =ROUND($T$14+(B56*$T$16),2) -> 65.54 | H56: -0.21
A57: May | B57: 4.4 | C57: 37.2 | D57: =ROUND($T$14+(B57*$T$16),2) -> 37.09 | H57: -0.11
A58: June | B58: 3.1 | C58: 27.69 | D58: 27.61 | H58: -0.08
A59: July | B59: 2 | C59: 19.64 | D59: 19.59 | H59: -0.05
A60: August | B60: 1.8 | C60: 18.17 | D60: 18.13 | H60: -0.04
A61: September | B61: 2 | C61: 19.64 | D61: 19.59 | H61: -0.05
A62: October | B62: 3.1 | C62: 27.69 | D62: 27.61 | H62: -0.08
A63: November | B63: 6.3 | C63: =ROUND($S$14+(B63*$S$18),2) -> 57.34 | D63: =ROUND($T$14+(B63*$T$18),2) -> 57.15 | H63: -0.19
A64: December | B64: 11.5 | C64: =ROUND($S$14+(B64*$S$18),2) -> 100.53 | D64: =ROUND($T$14+(B64*$T$18),2) -> 100.19 | H64: -0.34
B65: =SUM(B53:B64) -> 80 | C65: =SUM(C53:C64) -> 700.17 | D65: =SUM(D53:D64) -> 697.91 | H65: =SUM(H53:H64) -> -2.26 | J65: =H65/C65 -> -0.003227787537
A68: Typical Customer Difference - DSM Amortization Only
B69: Typical
A70: GS | B70: Dth | C70: =C52 -> 2011-05-01 | D70: =D52 -> 2011-06-01 | H70: Change | J70: % Change
A71: January | B71: 14.9 | C71: =ROUND($S$14+(B71*$S$18),2) -> 128.78 | D71: =ROUND($U$14+(B71*$U$18),2) -> 129.76 | H71: =D71-C71 -> 0.98
A72: February | B72: 12.5 | C72: =ROUND($S$14+(B72*$S$18),2) -> 108.84 | D72: =ROUND($U$14+(B72*$U$18),2) -> 109.66 | H72: 0.82
A73: March | B73: 10.1 | C73: =ROUND($S$14+(B73*$S$18),2) -> 88.9 | D73: =ROUND($U$14+(B73*$U$18),2) -> 89.57 | H73: 0.67
A74: April | B74: 8.3 | C74: =ROUND($S$14+(B74*$S$16),2) -> 65.75 | D74: =ROUND($U$14+(B74*$U$16),2) -> 66.29 | H74: 0.54
A75: May | B75: 4.4 | C75: 37.2 | D75: 37.49 | H75: 0.29
A76: June | B76: 3.1 | C76: 27.69 | D76: 27.89 | H76: 0.2
A77: July | B77: 2 | C77: 19.64 | D77: 19.77 | H77: 0.13
A78: August | B78: 1.8 | C78: 18.17 | D78: 18.29 | H78: 0.12
A79: September | B79: 2 | C79: 19.64 | D79: 19.77 | H79: 0.13
A80: October | B80: 3.1 | C80: 27.69 | D80: 27.89 | H80: 0.2
A81: November | B81: 6.3 | C81: =ROUND($S$14+(B81*$S$18),2) -> 57.34 | D81: =ROUND($U$14+(B81*$U$18),2) -> 57.75 | H81: 0.41
A82: December | B82: 11.5 | C82: =ROUND($S$14+(B82*$S$18),2) -> 100.53 | D82: =ROUND($U$14+(B82*$U$18),2) -> 101.29 | H82: 0.76
B83: =SUM(B71:B82) -> 80 | C83: =SUM(C71:C82) -> 700.17 | D83: =SUM(D71:D82) -> 705.42 | H83: =SUM(H71:H82) -> 5.25 | J83: =H83/C83 -> 0.007498179014
A86: Typical Customer Difference - SNG and Commodity Changes Only
B87: Typical
A88: GS-1 | B88: Dth | C88: =C70 -> 2011-05-01 | D88: =D70 -> 2011-06-01 | H88: Change | J88: % Change
A89: January | B89: 14.9 | C89: =ROUND($S$14+(B89*$S$18),2) -> 128.78 | D89: =ROUND($V$14+(B89*$V$18),2) -> 126.88 | H89: =D89-C89 -> -1.9
A90: February | B90: 12.5 | C90: =ROUND($S$14+(B90*$S$18),2) -> 108.84 | D90: =ROUND($V$14+(B90*$V$18),2) -> 107.25 | H90: -1.59
A91: March | B91: 10.1 | C91: =ROUND($S$14+(B91*$S$18),2) -> 88.9 | D91: =ROUND($V$14+(B91*$V$18),2) -> 87.62 | H91: -1.28
A92: April | B92: 8.3 | C92: =ROUND($S$14+(B92*$S$16),2) -> 65.75 | D92: =ROUND($V$14+(B92*$V$16),2) -> 64.64 | H92: -1.11
A93: May | B93: 4.4 | C93: 37.2 | D93: 36.62 | H93: -0.58
A94: June | B94: 3.1 | C94: 27.69 | D94: 27.28 | H94: -0.41
A95: July | B95: 2 | C95: 19.64 | D95: 19.37 | H95: -0.27
A96: August | B96: 1.8 | C96: 18.17 | D96: 17.93 | H96: -0.24
A97: September | B97: 2 | C97: 19.64 | D97: 19.37 | H97: -0.27
A98: October | B98: 3.1 | C98: 27.69 | D98: 27.28 | H98: -0.41
A99: November | B99: 6.3 | C99: =ROUND($S$14+(B99*$S$18),2) -> 57.34 | D99: =ROUND($V$14+(B99*$V$18),2) -> 56.53 | H99: -0.81
A100: December | B100: 11.5 | C100: =ROUND($S$14+(B100*$S$18),2) -> 100.53 | D100: =ROUND($V$14+(B100*$V$18),2) -> 99.07 | H100: -1.46
B101: =SUM(B89:B100) -> 80 | C101: =SUM(C89:C100) -> 700.17 | D101: =SUM(D89:D100) -> 689.84 | H101: =SUM(H89:H100) -> -10.33 | J101: =H101/C101 -> -0.01475355985
A104: Typical Customer Difference - CET & DSM Amort, SNG and Commodity Changes
B105: Typical
A106: GS-1 | B106: Dth | C106: =C52 -> 2011-05-01 | D106: =D52 -> 2011-06-01 | H106: Change | J106: % Change
A107: January | B107: 14.9 | C107: =ROUND($S$14+(B107*$S$18),2) -> 128.78 | D107: =ROUND($W$14+(B107*$W$18),2) -> 145.1 | H107: =D107-C107 -> 16.32
A108: February | B108: 12.5 | C108: =ROUND($S$14+(B108*$S$18),2) -> 108.84 | D108: =ROUND($W$14+(B108*$W$18),2) -> 122.54 | H108: 13.7
A109: March | B109: 10.1 | C109: =ROUND($S$14+(B109*$S$18),2) -> 88.9 | D109: =ROUND($W$14+(B109*$W$18),2) -> 99.97 | H109: 11.07
A110: April | B110: 8.3 | C110: =ROUND($S$14+(B110*$S$16),2) -> 65.75 | D110: =ROUND($W$14+(B110*$W$16),2) -> 69.61 | H110: 3.86
A111: May | B111: 4.4 | C111: 37.2 | D111: 39.25 | H111: 2.05
A112: June | B112: 3.1 | C112: 27.69 | D112: 29.13 | H112: 1.44
A113: July | B113: 2 | C113: 19.64 | D113: 20.57 | H113: 0.93
A114: August | B114: 1.8 | C114: 18.17 | D114: 19.01 | H114: 0.84
A115: September | B115: 2 | C115: 19.64 | D115: 20.57 | H115: 0.93
A116: October | B116: 3.1 | C116: 27.69 | D116: 29.13 | H116: 1.44
A117: November | B117: 6.3 | C117: =ROUND($S$14+(B117*$S$18),2) -> 57.34 | D117: =ROUND($W$14+(B117*$W$18),2) -> 64.24 | H117: 6.9
A118: December | B118: 11.5 | C118: =ROUND($S$14+(B118*$S$18),2) -> 100.53 | D118: =ROUND($W$14+(B118*$W$18),2) -> 113.13 | H118: 12.6
B119: =SUM(B107:B118) -> 80 | C119: =SUM(C107:C118) -> 700.17 | D119: =SUM(D107:D118) -> 772.25 | H119: =SUM(H107:H118) -> 72.08 | J119: =H119/C119 -> 0.1029464273

Sheet UT Tariff Sheets PT
B2: 2.02 GS Rate Schedule | J2: 2.03 FS Rate Schedule | AB2: 4.03 ES Rate Schedule | AI2: 2.05 NGV Rate Schedule
C3: Rates Per Dth Used Each Month | M3: Rates Per Dth Used Each Month | T3: 4.02 IS Rate Schedule | AB3: ES Volumetric Rates | AI3: NGV Volumetric Rate
C4: Summer Rates: Apr. 1 - Oct. 31 | E4: Winter Rates: Nov. 1 - Mar. 31 | M4: Dth = decatherm = 10 therms = 1,000,000 BTU | T4: IS Volumetric Rates
C5: First 45 Dth | D5: All Over 45 Dth | E5: First 45 Dth | F5: All Over 45 Dth | K5: Summer Rates: Apr. 1 - Oct. 31 | N5: Winter Rates: Nov. 1 - Mar. 31 | U5: Rates Per Dth Used Each Month | AE5: Rates Per Dth Used Each Month | AM5: Rates Per Dth Used Each Month
B6: Base DNG | C6: ='CET & DSM'!B38 -> 1.87767 | D6: ='CET & DSM'!B39 -> 0.69704 | E6: ='CET & DSM'!B40 -> 2.22938 | F6: ='CET & DSM'!B41 -> 0.92557 | K6: First | L6: Next | M6: All Over | N6: First | O6: Next | P6: All Over | U6: Dth = decatherm = 10 therms = 1,000,000 BTU | AE6: Dth = decatherm = 10 therms = 1,000,000 BTU | AM6: Dth = decatherm = 10 therms = 1,000,000 BTU
B7: CET Amortization | C7: ='CET & DSM'!C38 -> -0.03499 | D7: ='CET & DSM'!C39 -> -0.01299 | E7: ='CET & DSM'!C40 -> -0.04154 | F7: ='CET & DSM'!C41 -> -0.01725 | K7: 200 | L7: 1800 | M7: 2000 | N7: 200 | O7: 1800 | P7: 2000 | U7: First | V7: Next | W7: All Over | AB7: Distribution Non-Gas Rate | AC7: ='Ut 1.8'!C73 -> 1.75503 | AI7: Base DNG | AK7: ='Ut 1.8'!C52 -> 4.96031
B8: DSM Amortization | C8: =ROUND('CET & DSM'!D38,5) -> 0.37525 | D8: =ROUND('CET & DSM'!D39,5) -> 0.37525 | E8: =ROUND('CET & DSM'!D40,5) -> 0.37525 | F8: =ROUND('CET & DSM'!D41,5) -> 0.37525 | J8: Base DNG | K8: ='Ut 1.8'!C19 -> 0.65741 | L8: ='Ut 1.8'!D19 -> 0.51415 | M8: ='Ut 1.8'!E19 -> 0.44676 | N8: ='Ut 1.8'!F19 -> 0.73516 | O8: ='Ut 1.8'!G19 -> 0.58813 | P8: ='Ut 1.8'!H19 -> 0.52932 | U8: 2000 | V8: 18000 | W8: 20000 | AI8: Energy Assistance | AK8: ='Other Inputs'!$E$218 -> 0.01829
B9: Energy Assistance | C9: ='Other Inputs'!$E$215 -> 0.01519 | D9: ='Other Inputs'!$E$215 -> 0.01519 | E9: ='Other Inputs'!$E$215 -> 0.01519 | F9: ='Other Inputs'!$E$215 -> 0.01519 | J9: Energy Assistance | K9: ='Other Inputs'!$E$216 -> 0.01029 | L9: ='Other Inputs'!$E$216 -> 0.01029 | M9: ='Other Inputs'!$E$216 -> 0.01029 | N9: ='Other Inputs'!$E$216 -> 0.01029 | O9: ='Other Inputs'!$E$216 -> 0.01029 | P9: ='Other Inputs'!$E$216 -> 0.01029 | T9: Base DNG | U9: ='Ut 1.8'!C60 -> 0.23461 | V9: ='Ut 1.8'!D60 -> 0.21584 | W9: ='Ut 1.8'!E60 -> 0.19857 | AB9: Base SNG | AC9: =ROUND('Ut 1.6 p3'!G$26,5) -> 6.15099 | AI9: Distribution Non-Gas Rate | AK9: =SUM(AK7:AM8) -> 4.9786
B10: Distribution Non-Gas Rate | C10: =SUM(C6:C9) -> 2.23312 | D10: =SUM(D6:D9) -> 1.07449 | E10: =SUM(E6:E9) -> 2.57828 | F10: =SUM(F6:F9) -> 1.29876 | J10: Distribution Non-Gas Rate | K10: =SUM(K8:K9) -> 0.6677 | L10: 0.52444 | M10: 0.45705 | N10: 0.74545 | O10: 0.59842 | P10: 0.53961 | T10: Energy Assistance | U10: ='Other Inputs'!$E$217 -> 0.00796 | V10: ='Other Inputs'!$E$217 -> 0.00796 | W10: ='Other Inputs'!$E$217 -> 0.00796 | AB10: SNG Amortization | AC10: =ROUND('Ut 1.6 p3'!H$26,5) -> 0.13742
T11: Distribution Non-Gas Rate | U11: =SUM(U9:U10) -> 0.24257 | V11: =SUM(V9:V10) -> 0.2238 | W11: =SUM(W9:W10) -> 0.20653 | AB11: Supplier Non-Gas Rate | AC11: =SUM(AC9:AF10) -> 6.28841 | AI11: Base SNG | AK11: =ROUND('Ut 1.6 p3'!G$22,5) -> 0.85631
B12: Base SNG | C12: ='CET & DSM'!I38 -> 0.55715 | D12: ='CET & DSM'!I39 -> 0.55715 | E12: ='CET & DSM'!I40 -> 1.18665 | F12: ='CET & DSM'!I41 -> 1.18665 | J12: Base SNG | K12: =ROUND('Ut 1.6 p3'!G$20,5) -> 0.55712 | L12: =ROUND('Ut 1.6 p3'!G$20,5) -> 0.55712 | M12: =ROUND('Ut 1.6 p3'!G$20,5) -> 0.55712 | N12: =ROUND('Ut 1.6 p3'!G$19,5) -> 1.15575 | O12: =ROUND('Ut 1.6 p3'!G$19,5) -> 1.15575 | P12: =ROUND('Ut 1.6 p3'!G$19,5) -> 1.15575 | T12: Supplier Non-Gas Rate | U12: =ROUND('Ut 1.6 p3'!$G$24/(1-'Other Inputs'!$E$265),5) -> 0.18009 | V12: =ROUND('Ut 1.6 p3'!$G$24/(1-'Other Inputs'!$E$265),5) -> 0.18009 | W12: =ROUND('Ut 1.6 p3'!$G$24/(1-'Other Inputs'!$E$265),5) -> 0.18009 | AI12: SNG Amortization | AK12: =ROUND('Ut 1.6 p3'!H$22,5) -> 0.01913
B13: SNG Amortization | C13: ='CET & DSM'!J38 -> 0.01244 | D13: ='CET & DSM'!J39 -> 0.01244 | E13: ='CET & DSM'!J40 -> 0.02651 | F13: ='CET & DSM'!J41 -> 0.02651 | J13: SNG Amortization | K13: =ROUND('Ut 1.6 p3'!H$20,5) -> 0.01245 | L13: =ROUND('Ut 1.6 p3'!H$20,5) -> 0.01245 | M13: =ROUND('Ut 1.6 p3'!H$20,5) -> 0.01245 | N13: =ROUND('Ut 1.6 p3'!H$19,5) -> 0.02582 | O13: =ROUND('Ut 1.6 p3'!H$19,5) -> 0.02582 | P13: =ROUND('Ut 1.6 p3'!H$19,5) -> 0.02582 | AB13: Commodity Rate | AC13: Highest Gas Cost | AI13: Supplier Non-Gas Rate | AK13: =SUM(AK11:AM12) -> 0.87544
B14: Supplier Non-Gas Rate | C14: =SUM(C12:C13) -> 0.56959 | D14: =SUM(D12:D13) -> 0.56959 | E14: =SUM(E12:E13) -> 1.21316 | F14: =SUM(F12:F13) -> 1.21316 | J14: Supplier Non-Gas Rate | K14: =SUM(K12:K13) -> 0.56957 | L14: 0.56957 | M14: 0.56957 | N14: 1.18157 | O14: 1.18157 | P14: 1.18157 | AB14: Total Rate | AC14: $
AI15: Base Gas Cost | AK15: =ROUND('Ut 1.6 p1'!$F$34,5) -> 4.21339
B16: Base Gas Cost | C16: ='Ut 1.6 p1'!$F$34 -> 4.21339 | D16: ='Ut 1.6 p1'!$F$34 -> 4.21339 | E16: ='Ut 1.6 p1'!$F$34 -> 4.21339 | F16: ='Ut 1.6 p1'!$F$34 -> 4.21339 | J16: Base Gas Cost | K16: =ROUND('Ut 1.6 p1'!$F$34,5) -> 4.21339 | L16: =ROUND('Ut 1.6 p1'!$F$34,5) -> 4.21339 | M16: =ROUND('Ut 1.6 p1'!$F$34,5) -> 4.21339 | N16: =ROUND('Ut 1.6 p1'!$F$34,5) -> 4.21339 | O16: =ROUND('Ut 1.6 p1'!$F$34,5) -> 4.21339 | P16: =ROUND('Ut 1.6 p1'!$F$34,5) -> 4.21339 | AB16: Penalty for failure to interrupt or limit usage when requested by the Company. See See § 3.02 | AI16: Commodity Amortization | AK16: =ROUND('Ut 1.6 p1'!$F$35,5) -> 0.14067
B17: 191 Amortization | C17: ='Ut 1.6 p1'!$F$35 -> 0.1406686564 | D17: ='Ut 1.6 p1'!$F$35 -> 0.1406686564 | E17: ='Ut 1.6 p1'!$F$35 -> 0.1406686564 | F17: ='Ut 1.6 p1'!$F$35 -> 0.1406686564 | J17: 191 Amortization | K17: =ROUND('Ut 1.6 p1'!$F$35,5) -> 0.14067 | L17: =ROUND('Ut 1.6 p1'!$F$35,5) -> 0.14067 | M17: =ROUND('Ut 1.6 p1'!$F$35,5) -> 0.14067 | N17: =ROUND('Ut 1.6 p1'!$F$35,5) -> 0.14067 | O17: =ROUND('Ut 1.6 p1'!$F$35,5) -> 0.14067 | P17: =ROUND('Ut 1.6 p1'!$F$35,5) -> 0.14067 | AI17: Commodity Rate | AK17: =SUM(AK15:AM16) -> 4.35406
B18: Commodity Rate | C18: =SUM(C16:C17) -> 4.354058656 | D18: =SUM(D16:D17) -> 4.354058656 | E18: =SUM(E16:E17) -> 4.354058656 | F18: =SUM(F16:F17) -> 4.354058656 | J18: Commodity Rate | K18: =SUM(K16:K17) -> 4.35406 | L18: 4.35406 | M18: 4.35406 | N18: 4.35406 | O18: 4.35406 | P18: 4.35406 | T18: Total Rate | U18: $ | V18: $ | W18: $
AI19: Total Rate | AK19: =SUM(AK9,AK13,AK17) -> 10.2081
B20: Total Rate | C20: =SUM(C18,C14,C10) -> 7.156768656 | D20: =SUM(D18,D14,D10) -> 5.998138656 | E20: =SUM(E18,E14,E10) -> 8.145498656 | F20: =SUM(F18,F14,F10) -> 6.865978656 | J20: Total Rate | K20: =SUM(K18,K14,K10) -> 5.59133 | L20: 5.44807 | M20: 5.38068 | N20: 6.28108 | O20: 6.13405 | P20: 6.07524 | T20: Minimum Monthly Distribution Non-Gas Charge
AI21: Penalty for failure to interrupt or limit usage when requested by the Company. See See § 3.02
E22: BSF Category 1 | F22: ='Ut 1.8'!C12 -> 5 | J22: Minimum Monthly Distribution Non-Gas Charge | O22: Summer | P22: =ROUND(K8*175,0) -> 115
E23: BSF Category 2 | F23: ='Ut 1.8'!C13 -> 21 | O23: Winter | P23: =ROUND(N8*175,0) -> 129
E24: BSF Category 3 | F24: ='Ut 1.8'!C14 -> 55 | V24: BSF Category 1 | W24: 5
E25: BSF Category 4 | F25: ='Ut 1.8'!C15 -> 244 | V25: BSF Category 2 | W25: 29
N26: BSF Category 1 | P26: 5 | V26: BSF Category 3 | W26: 67
N27: BSF Category 2 | P27: 21 | V27: BSF Category 4 | W27: 274
N28: BSF Category 3 | P28: 55
N29: BSF Category 4 | P29: 244
AI30: =B44 -> Issued by R. W. Jibson, President | AL30: Advice No | AM30: Section Revision No.
AB39: =B44 -> Issued by R. W. Jibson, President | AE39: Advice No | AF39: Section Revision No.
AB42: New Pass Through Values
B44: Issued by R. W. Jibson, President | D44: Advice No | E44: Section Revision No. | F44: Effective Date
T47: =B44 -> Issued by R. W. Jibson, President | W47: Advice No
B48: Pass Through Changes | J48: =B44 -> Issued by R. W. Jibson, President | M48: Advice No | N48: Section Revision No. | P48: Effective Date
T50: New Pass Through Values
J51: New Pass Through Values

Sheet UT Tariff Sheets
B2: 2.02 GS Rate Schedule | I2: 2.02 GS Rate Schedule
C3: Rates Per Dth Used Each Month | J3: Rates Per Dth Used Each Month
C4: Summer Rates: Apr. 1 - Oct. 31 | E4: Winter Rates: Nov. 1 - Mar. 31 | J4: Summer Rates: Apr. 1 - Oct. 31 | L4: Winter Rates: Nov. 1 - Mar. 31
C5: First 45 Dth | D5: All Over 45 Dth | E5: First 45 Dth | F5: All Over 45 Dth | J5: First 45 Dth | K5: All Over 45 Dth | L5: First 45 Dth | M5: All Over 45 Dth
B6: Base DNG | C6: ='CET & DSM'!B24 -> 1.87767 | D6: ='CET & DSM'!B25 -> 0.69704 | E6: ='CET & DSM'!B26 -> 2.22938 | F6: ='CET & DSM'!B27 -> 0.92557 | I6: Base DNG | J6: ='CET & DSM'!B31 -> 1.87767 | K6: ='CET & DSM'!B32 -> 0.69704 | L6: ='CET & DSM'!B33 -> 2.22938 | M6: ='CET & DSM'!B34 -> 0.92557
B7: CET Amortization | C7: ='CET & DSM'!H16 -> -0.0599 | D7: ='CET & DSM'!H17 -> -0.02224 | E7: ='CET & DSM'!H18 -> -0.07112 | F7: ='CET & DSM'!H19 -> -0.02953 | I7: CET Amortization | J7: ='CET & DSM'!C31 -> -0.03499 | K7: ='CET & DSM'!C32 -> -0.01299 | L7: ='CET & DSM'!C33 -> -0.04154 | M7: ='CET & DSM'!C34 -> -0.01725
B8: DSM Amortization | C8: ='CET & DSM'!D24 -> 0.37525 | D8: ='CET & DSM'!D25 -> 0.37525 | E8: ='CET & DSM'!D26 -> 0.37525 | F8: ='CET & DSM'!D27 -> 0.37525 | I8: DSM Amortization | J8: =ROUND('CET & DSM'!D31,5) -> 0.44104 | K8: =ROUND('CET & DSM'!D32,5) -> 0.44104 | L8: =ROUND('CET & DSM'!D33,5) -> 0.44104 | M8: =ROUND('CET & DSM'!D34,5) -> 0.44104
B9: Energy Assistance | C9: ='Other Inputs'!$E$215 -> 0.01519 | D9: ='Other Inputs'!$E$215 -> 0.01519 | E9: ='Other Inputs'!$E$215 -> 0.01519 | F9: ='Other Inputs'!$E$215 -> 0.01519 | I9: Energy Assistance | J9: ='Other Inputs'!$E$215 -> 0.01519 | K9: ='Other Inputs'!$E$215 -> 0.01519 | L9: ='Other Inputs'!$E$215 -> 0.01519 | M9: ='Other Inputs'!$E$215 -> 0.01519
B10: Distribution Non-Gas Rate | C10: =SUM(C6:C9) -> 2.20821 | D10: =SUM(D6:D9) -> 1.06524 | E10: =SUM(E6:E9) -> 2.5487 | F10: =SUM(F6:F9) -> 1.28648 | I10: Distribution Non-Gas Rate | J10: =SUM(J6:J9) -> 2.29891 | K10: =SUM(K6:K9) -> 1.14028 | L10: =SUM(L6:L9) -> 2.64407 | M10: =SUM(M6:M9) -> 1.36455
B12: Base SNG | C12: ='CET & DSM'!I24 -> 0.55216 | D12: ='CET & DSM'!I25 -> 0.55216 | E12: ='CET & DSM'!I26 -> 1.176 | F12: ='CET & DSM'!I27 -> 1.176 | I12: Base SNG | J12: ='CET & DSM'!I31 -> 0.55216 | K12: ='CET & DSM'!I32 -> 0.55216 | L12: ='CET & DSM'!I33 -> 1.176 | M12: ='CET & DSM'!I34 -> 1.176
B13: SNG Amortization | C13: ='CET & DSM'!J24 -> 0.01244 | D13: ='CET & DSM'!J25 -> 0.01244 | E13: ='CET & DSM'!J26 -> 0.02651 | F13: ='CET & DSM'!J27 -> 0.02651 | I13: SNG Amortization | J13: ='CET & DSM'!J31 -> 0.01244 | K13: ='CET & DSM'!J32 -> 0.01244 | L13: ='CET & DSM'!J33 -> 0.02651 | M13: ='CET & DSM'!J34 -> 0.02651
B14: Supplier Non-Gas Rate | C14: =SUM(C12:C13) -> 0.5646 | D14: =SUM(D12:D13) -> 0.5646 | E14: =SUM(E12:E13) -> 1.20251 | F14: =SUM(F12:F13) -> 1.20251 | I14: Supplier Non-Gas Rate | J14: =SUM(J12:J13) -> 0.5646 | K14: =SUM(K12:K13) -> 0.5646 | L14: =SUM(L12:L13) -> 1.20251 | M14: =SUM(M12:M13) -> 1.20251
B16: Base Gas Cost | C16: ='CET & DSM'!L24 -> 4.15064 | D16: ='CET & DSM'!L25 -> 4.15064 | E16: ='CET & DSM'!L26 -> 4.15064 | F16: ='CET & DSM'!L27 -> 4.15064 | I16: Base Gas Cost | J16: ='CET & DSM'!L31 -> 4.15064 | K16: ='CET & DSM'!L32 -> 4.15064 | L16: ='CET & DSM'!L33 -> 4.15064 | M16: ='CET & DSM'!L34 -> 4.15064
B17: 191 Amortization | C17: ='CET & DSM'!M24 -> 0.34133 | D17: ='CET & DSM'!M25 -> 0.34133 | E17: ='CET & DSM'!M26 -> 0.34133 | F17: ='CET & DSM'!M27 -> 0.34133 | I17: 191 Amortization | J17: ='CET & DSM'!M31 -> 0.34133 | K17: ='CET & DSM'!M32 -> 0.34133 | L17: ='CET & DSM'!M33 -> 0.34133 | M17: ='CET & DSM'!M34 -> 0.34133
B18: Commodity Rate | C18: =SUM(C16:C17) -> 4.49197 | D18: =SUM(D16:D17) -> 4.49197 | E18: =SUM(E16:E17) -> 4.49197 | F18: =SUM(F16:F17) -> 4.49197 | I18: Commodity Rate | J18: =SUM(J16:J17) -> 4.49197 | K18: =SUM(K16:K17) -> 4.49197 | L18: =SUM(L16:L17) -> 4.49197 | M18: =SUM(M16:M17) -> 4.49197
B20: Total Rate | C20: =SUM(C18,C14,C10) -> 7.26478 | D20: =SUM(D18,D14,D10) -> 6.12181 | E20: =SUM(E18,E14,E10) -> 8.24318 | F20: =SUM(F18,F14,F10) -> 6.98096 | I20: Total Rate | J20: =SUM(J18,J14,J10) -> 7.35548 | K20: =SUM(K18,K14,K10) -> 6.19685 | L20: =SUM(L18,L14,L10) -> 8.33855 | M20: =SUM(M18,M14,M10) -> 7.05903
E23: BSF Category 1 | F23: ='Ut 1.8'!C12 -> 5 | L23: BSF Category 1 | M23: ='Ut 1.8'!C12 -> 5
E24: BSF Category 2 | F24: ='Ut 1.8'!C13 -> 21 | L24: BSF Category 2 | M24: ='Ut 1.8'!C13 -> 21
E25: BSF Category 3 | F25: ='Ut 1.8'!C14 -> 55 | L25: BSF Category 3 | M25: ='Ut 1.8'!C14 -> 55
E26: BSF Category 4 | F26: ='Ut 1.8'!C15 -> 244 | L26: BSF Category 4 | M26: ='Ut 1.8'!C15 -> 244
B45: Issued by R. W. Jibson, President | D45: Advice No | E45: Section Revision No. | F45: Effective Date | I45: Issued by R. W. Jibson, President | K45: Advice No | L45: Section Revision No. | M45: Effective Date
B49: New CET Only | I49: NEW DSM ONLY

Sheet Utah Summary-by class
A1: UTAH SUMMARY
B2: NOT AN EXHIBIT !!!
A3: NEEDS TO BE UPDATED FOR GSR AND GSC RATES | Q3: Sub Total
C4: COMMODITY | J4: SNG | Q4: TOTAL
C5: Current | D5: Proposed | E5: Current | F5: Proposed | G5: Revenue | H5: % | J5: Current | K5: Proposed | L5: Current | M5: Proposed | N5: Revenue | O5: % | Q5: Revenue | R5: %
A6: RATE | B6: Dth Sales | C6: Rates | D6: Rates | E6: Revenue | F6: Revenue | G6: Difference | H6: Change | J6: Rates | K6: Rates | L6: Revenue | M6: Revenue | N6: Difference | O6: Change | Q6: Difference | R6: Change
A8: GS (W) | B8: =Calculations!P52 -> 67510892 | C8: ='Ut 1.6 p1'!$H$36 -> 4.49197 | D8: =ROUND('Ut 1.6 p1'!$F$36,5) -> 4.35406 | E8: =ROUND(B8*C8,0) -> 303256902 | F8: =ROUND(B8*D8,0) -> 293946474 | G8: =(F8-E8) -> -9310428 | J8: ='Ut 1.6 p3'!E16 -> 1.20251 | K8: ='Ut 1.6 p3'!I16 -> 1.21316 | L8: =ROUND(B8*J8,0) -> 81182523 | M8: =ROUND(B8*K8,0) -> 81901514 | N8: =(M8-L8) -> 718991 | Q8: =G8+N8 -> -8591437
A9: GS (S) | B9: =Calculations!P53 -> 27718376 | C9: ='Ut 1.6 p1'!$H$36 -> 4.49197 | D9: =D8 -> 4.35406 | E9: =ROUND(B9*C9,0) -> 124510113 | F9: =ROUND(B9*D9,0) -> 120687472 | G9: =(F9-E9) -> -3822641 | J9: ='Ut 1.6 p3'!E17 -> 0.5646 | K9: ='Ut 1.6 p3'!I17 -> 0.56959 | L9: =ROUND(B9*J9,0) -> 15649795 | M9: =ROUND(B9*K9,0) -> 15788110 | N9: =(M9-L9) -> 138315 | Q9: =G9+N9 -> -3684326
A10: Total | B10: =SUM(B8:B9) -> 95229268 | E10: =SUM(E8:E9) -> 427767015 | F10: =SUM(F8:F9) -> 414633946 | G10: =SUM(G8:G9) -> -13133069 | H10: =IF(G10=0,0,G10/E10) -> -0.03070145322 | L10: =SUM(L8:L9) -> 96832318 | M10: =SUM(M8:M9) -> 97689624 | N10: =SUM(N8:N9) -> 857306 | O10: =IF(N10=0,0,N10/L10) -> 0.008853511077 | Q10: =SUM(Q8:Q9) -> -12275763 | R10: =IF(Q10=0,0,Q10/(E10+L10)) -> -0.02340026422
A13: FS | B13: =Calculations!P58 -> 3677255 | C13: ='Ut 1.6 p1'!$H$36 -> 4.49197 | D13: =D8 -> 4.35406 | E13: =ROUND(B13*C13,0) -> 16518119 | F13: =ROUND(B13*D13,0) -> 16010989 | G13: =(F13-E13) -> -507130 | J13: ='Ut 1.6 p3'!E19 -> 1.1712 | K13: ='Ut 1.6 p3'!I19 -> 1.18157 | L13: =ROUND(B13*J13,0) -> 4306801 | M13: =ROUND(B13*K13,0) -> 4344934 | N13: =(M13-L13) -> 38133 | Q13: =G13+N13 -> -468997
B14: =Calculations!P59 -> 3605902 | C14: ='Ut 1.6 p1'!$H$36 -> 4.49197 | D14: =D9 -> 4.35406 | E14: =ROUND(B14*C14,0) -> 16197604 | F14: =ROUND(B14*D14,0) -> 15700314 | G14: =(F14-E14) -> -497290 | J14: ='Ut 1.6 p3'!E20 -> 0.56457 | K14: ='Ut 1.6 p3'!I20 -> 0.56957 | L14: =ROUND(B14*J14,0) -> 2035784 | M14: =ROUND(B14*K14,0) -> 2053814 | N14: =(M14-L14) -> 18030 | Q14: =G14+N14 -> -479260
A15: Total | B15: =SUM(B13:B14) -> 7283157 | E15: =SUM(E13:E14) -> 32715723 | F15: =SUM(F13:F14) -> 31711303 | G15: =SUM(G13:G14) -> -1004420 | H15: =IF(G15=0,0,G15/E15) -> -0.03070144591 | L15: =SUM(L13:L14) -> 6342585 | M15: =SUM(M13:M14) -> 6398748 | N15: =SUM(N13:N14) -> 56163 | O15: =IF(N15=0,0,N15/L15) -> 0.00885490695 | Q15: =SUM(Q13:Q14) -> -948257 | R15: =IF(Q15=0,0,Q15/(E15+L15)) -> -0.0242779846
A19: NGV | B19: =Calculations!P12 -> 456000 | C19: ='Ut 1.6 p1'!$H$36 -> 4.49197 | D19: =D8 -> 4.35406 | E19: =ROUND(B19*C19,0) -> 2048338 | F19: =ROUND(B19*D19,0) -> 1985451 | G19: =(F19-E19) -> -62887 | H19: =IF(G19=0,0,G19/E19) -> -0.03070147603 | J19: ='Ut 1.6 p3'!E22 -> 0.86776 | K19: ='Ut 1.6 p3'!I22 -> 0.87544 | L19: =ROUND(B19*J19,0) -> 395699 | M19: =ROUND(B19*K19,0) -> 399201 | N19: =(M19-L19) -> 3502 | O19: =IF(N19=0,0,N19/L19) -> 0.00885016136 | Q19: =G19+N19 -> -59385 | R19: =IF(Q19=0,0,Q19/(E19+L19)) -> -0.02429791366
G21: =G10+G15+G19 -> -14200376 | N21: =N10+N15+N19 -> 916971 | Q21: =Q10+Q15+Q19 -> -13283405
A24: IS | B24: =Calculations!P15 -> 2400234 | E24: =ROUND(B24*C24,0) -> 0 | F24: =ROUND(B24*D24,0) -> 0 | G24: =(F24-E24) -> 0 | H24: =IF(G24=0,0,G24/E24) -> 0 | J24: ='Ut 1.6 p3'!E24 -> 0.17937 | K24: ='Ut 1.6 p3'!I24 -> 0.17919 | L24: =ROUND(B24*J24,0) -> 430530 | M24: =ROUND(B24*K24,0) -> 430098 | N24: =(M24-L24) -> -432 | O24: =IF(N24=0,0,N24/L24) -> -0.001003414396 | Q24: =G24+N24 -> -432 | R24: =IF(Q24=0,0,Q24/(E24+L24)) -> -0.001003414396
A26: ES | B26: 0 | E26: =ROUND(B26*C26,0) -> 0 | F26: =ROUND(B26*D26,0) -> 0 | G26: =(F26-E26) -> 0 | H26: =IF(G26=0,0,G26/E26) -> 0 | J26: ='Ut 1.6 p3'!E26 -> 6.2332 | K26: ='Ut 1.6 p3'!I26 -> 6.28841 | L26: =ROUND(B26*J26,0) -> 0 | M26: =ROUND(B26*K26,0) -> 0 | N26: =(M26-L26) -> 0 | O26: =IF(N26=0,0,N26/L26) -> 0 | Q26: =G26+N26 -> 0 | R26: =IF(Q26=0,0,Q26/(E26+L26)) -> 0
B27: - | E27: - | F27: - | G27: - | L27: ------------------- | M27: ------------------- | N27: ------------------- | Q27: -------------------
B28: =B10+B15+B19+B24+B26 -> 105368659 | E28: =E10+E15+E19+E24+E26 -> 462531076 | F28: =F10+F15+F19+F24+F26 -> 448330700 | G28: =G10+G15+G19+G24+G26 -> -14200376 | H28: =IF(G28=0,0,G28/E28) -> -0.0307014528 | L28: =L10+L15+L19+L24+L26 -> 104001132 | M28: =M10+M15+M19+M24+M26 -> 104917671 | N28: =N10+N15+N19+N24+N26 -> 916539 | O28: =IF(N28=0,0,N28/L28) -> 0.008812779076 | Q28: =Q10+Q15+Q19+Q24+Q26 -> -13283837 | R28: =IF(Q28=0,0,Q28/(E28+L28)) -> -0.02344762895 | W28: =49300714-6927605-5328088 -> 37045021
G29: =IF(G28>0,"Commodity Increase","Commodity Decrease") -> Commodity Decrease | N29: =IF(N28>0,"Increase to SNG","Decrease to SNG") -> Increase to SNG | W29: =W28-N28 -> 36128482
B30: NOT AN EXHIBIT !!!
G31: =ROUND(G28,-3) -> -14200000 | N31: =ROUND(N28,-3) -> 917000 | Q31: =ROUND(Q28,-3) -> -13284000 | W31: =W29-8603966 -> 27524516
G32: Rounded | N32: Rounded | Q32: Rounded
A35: FT2 | B35: ='RevRun Fcst'!S138+'RevRun Fcst'!S183 -> 13293
A37: IT | B37: ='RevRun Fcst'!S165+'RevRun Fcst'!S174 -> 2546228
A40: winter | B40: =B8+B13 -> 71188147 | J40: =L40/B40 -> 1.200892671 | L40: =L8+L13 -> 85489324
A41: summer | B41: =B9+B14 -> 31324278 | J41: =L41/B41 -> 0.5645965407 | L41: =L9+L14 -> 17685579
A42: year | B42: =B10+B15 -> 102512425 | J42: =L42/B42 -> 1.006462417 | L42: =L10+L15 -> 103174903
B44: =B10+B15+B19 -> 102968425 | J44: =L44/B44 -> 1.005848171 | L44: =L10+L15+L19 -> 103570602

Sheet UT Summary - by cost

Sheet WY Summary - by cost

Sheet Model Checks
B2: Model Checks
B3: If the total of all checks is not zero, or very close to zero, find the checks below that are out of balance and follow the calculations
B4: back through the model and correct any errors.
D6: Total of all Checks
D7: =ABS(SUM(D10:D2000)) -> 
B9: Forecasted Demand
C10: Utah | D10: =Calculations!P25-'RevRun Fcst'!T204 -> 0
C11: Wyoming | D11: =Calculations!P44-'RevRun Fcst'!T326 -> 0
C12: Total System | D12: =Calculations!P47-'RevRun Fcst'!T367 -> 0
B13: Forecasted Utah Demand Check by Month
C14: 1 | D14: =Calculations!D25-'RevRun Fcst'!H204 -> 0
C15: 2 | D15: =Calculations!E25-'RevRun Fcst'!I204 -> 0
C16: 3 | D16: =Calculations!F25-'RevRun Fcst'!J204 -> 0
C17: 4 | D17: =Calculations!G25-'RevRun Fcst'!K204 -> 0
C18: 5 | D18: =Calculations!H25-'RevRun Fcst'!L204 -> 0
C19: 6 | D19: =Calculations!I25-'RevRun Fcst'!M204 -> 0
C20: 7 | D20: =Calculations!J25-'RevRun Fcst'!N204 -> 0
C21: 8 | D21: =Calculations!K25-'RevRun Fcst'!O204 -> 0
C22: 9 | D22: =Calculations!L25-'RevRun Fcst'!P204 -> 0
C23: 10 | D23: =Calculations!M25-'RevRun Fcst'!Q204 -> 0
C24: 11 | D24: =Calculations!N25-'RevRun Fcst'!R204 -> 0
C25: 12 | D25: =Calculations!O25-'RevRun Fcst'!S204 -> 0
C26: Wyoming I-2 and I-4 Revenues | D26: =('RevRun Fcst'!S277+'RevRun Fcst'!S288)-Calculations!P65 -> 3448
C27: System Sales Volumes | D27: =Calculations!H76-'RevRun Fcst'!T365 -> 0
C28: Utah Sales Volumes | D28: =Calculations!P20-'Utah Summary-by class'!B28 -> 0
B29: Company Production | D29: =Calculations!P120-'Monthly Inputs'!S12*1000 -> 512
B30: Company Produced Gas | D30: ='Monthly Inputs'!S9-'Monthly Inputs'!S7-'Monthly Inputs'!S8 -> 0
B31: Company Produced Gas | D31: ='Monthly Inputs'!S12-'Monthly Inputs'!S11-'Monthly Inputs'!S9 -> 0
B32: Injections | D32: ='Monthly Inputs'!S39-SUM('Monthly Inputs'!S34:S38) -> 0
B33: Withdrawls | D33: ='Monthly Inputs'!S46-SUM('Monthly Inputs'!S42:S45) -> 0
B34: Injections & Withdrawls | D34: =SUM('Ut 1.3 p2'!D23:D26)-'Monthly Inputs'!S39-'Monthly Inputs'!S46 -> 0
B35: Injections | D35: =Calculations!P128-'Monthly Inputs'!S39 -> 0
B36: Withdrawls | D36: =Calculations!P135-'Monthly Inputs'!S46 -> 0
B37: Sales for Resale | D37: =Expenses!S445-Calculations!P86 -> 0
B38: Incidental Plant Prod Sales | D38: =Expenses!S446-Calculations!P87 -> 0
B39: Incidental Gas & Oil Sales | D39: =Expenses!S447-Calculations!P89 -> 0
B40: Gasoline and Oil Costs | D40: =Expenses!S450+Calculations!P90 -> 0
B41: Wexpro Revenue Sharing | D41: =Expenses!S449-Calculations!P94 -> 0
B42: Storage Gas | D42: ='Rate Base'!U209-Calculations!P99 -> 0
B43: 101 Production | D43: ='Rate Base'!U158-Calculations!P100 -> 0
B44: 108 Production | D44: ='Rate Base'!U176-Calculations!P101 -> 0
B45: 111 Production | D45: ='Rate Base'!U183-Calculations!P102 -> 0
B46: 255 Production | D46: ='Rate Base'!U244-Calculations!P103 -> 0
B47: 282 Production | D47: ='Rate Base'!U251-Calculations!P104 -> 0
B48: 282.1 Production | D48: ='Rate Base'!U258-Calculations!P105 -> 0
B49: Production Rate Base | D49: =SUM(Calculations!P99:P105)-'Rate Base'!U278 -> 0
B50: Purchased Gas Cost | D50: ='Ut 1.2'!G24-Calculations!P189 -> -0.04999998212
B51: Production Function | D51: ='Wy 1.3 p3'!I40-Calculations!N108 -> -1.490116119e-08
B52: Production Function | D52: ='Wy 1.3 p3'!I40-'Rate Base'!U158-'Rate Base'!U176-'Rate Base'!U183-'Rate Base'!U244-'Rate Base'!U251-'Rate Base'!U258 -> -2.56113708e-09
B53: Wexpro Reduction | D53: ='Wy 1.3 p3'!I42-Calculations!N109 -> 9.313225746e-10
B54: Wyoming Production Return | D54: ='Wy 1.3 p3'!J47-Calculations!N112 -> -1.629814506e-09
B55: Working Gas Rate Base | D55: =Calculations!P99-'Ut 1.3 p2'!D51 -> 0
B56: Allocations | D56: ='Ut 1.5'!E41-'Ut 1.5'!F41-'Ut 1.5'!G41+'Ut 1.5'!G39 -> 1.192092896e-07
B58: System Sales | D58: ='SDR#1'!C10-'RevRun Fcst'!T365 -> 0
B59: Lost & Unaccounted For | D59: ='SDR#1'!C15-(('SDR#1'!C10+'SDR#1'!C11)/(1-'Other Inputs'!E254)) -> 
B60: Supply / Demand | D60: ='SDR#1'!C36-'SDR#1'!C15 -> 1.923599988
B61: System Sales | D61: ='SDR#3'!H36-'SDR#1'!C10 -> 0
B62: SNG Revenue | D62: ='SDR#4'!G23-'Utah Summary-by class'!L28 -> -0.4907599986
B63: Utah Sales | D63: ='SDR#3'!D36-'SDR#4'!E23 -> 0
B64: Utah Sales | D64: ='SDR#2'!G58+'Ut 1.6 p1'!J25 -> -0.1665290445
B65: Seasonal Volumes | D65: =Calculations!P52+Calculations!P53-Calculations!P7-Calculations!P8 -> 0
B66: Seasonal Volumes | D66: =Calculations!P55+Calculations!P56-Calculations!P9 -> 0
B67: Seasonal Volumes | D67: =Calculations!P58+Calculations!P59-Calculations!P10 -> 0
B68: GS-1 Sales Dth | D68: ='CET & DSM'!B20-'SDR#4'!E12-'SDR#4'!E13 -> 0

Sheet SDR#1
F1: ='Control Panel'!F32 -> Questar Gas Company
F2: ='Control Panel'!F33 -> Docket No. 11-057-02
B4: Standard Data Request #1
B5: Summary of Sources of Supply and Demand
A8: 1 | B8: DEMAND | C8: Total | D8: Utah | E8: Wyoming
A10: =A8+1 -> 2 | B10: SALES IN DTHS | C10: =D10+E10 -> 109062874 | D10: =Calculations!P20 -> 105368659 | E10: =Calculations!P39 -> 3694215
A11: =A10+1 -> 3 | B11: DIST. CO. USE &
A12: =A11+1 -> 4 | B12: DIST. LOST & UNACCT. (0.43107%) | C12: =Calculations!P146 -> 472171
A15: =A12+1 -> 5 | B15: TOTAL | C15: =SUM(C10:C12) -> 109535045
A19: =A15+1 -> 6 | B19: SUPPLY | C19: Total | D19: Utah | E19: Wyoming
A21: =A19+1 -> 7 | B21: COMPANY PRODUCTION | C21: ='Ut 1.1'!E1288 -> 69940889 | D21: =$D$10/$C$10*C21 -> 67571827.27 | E21: =$E$10/$C$10*C21 -> 2369061.733
A22: =A21+1 -> 8 | B22: GAS REIMBURSEMENT | C22: =C21*-'Other Inputs'!$E$258 -> -3986630.673 | D22: =D21*-'Other Inputs'!$E$258 -> -3851594.154 | E22: =E21*-'Other Inputs'!$E$258 -> -135036.5188 | G22: =C21/C10 -> 0.6412896198 | H22: =D21/D10 -> 0.6412896198 | I22: =E21/E10 -> 0.6412896198
A25: =A22+1 -> 9 | B25: CONTRACT GAS | C25: ='Ut 1.2'!E24 -> 44740275 | D25: =$D$10/$C$10*C25 -> 43224817.09 | E25: =$E$10/$C$10*C25 -> 1515457.909
A26: =A25+1 -> 10 | B26: GAS REIMBURSEMENT | C26: =C25*-'Other Inputs'!$E$257 -> -563727.465 | D26: =D25*-'Other Inputs'!$E$257 -> -544632.6953 | E26: =E25*-'Other Inputs'!$E$257 -> -19094.76966
A28: =A26+1 -> 11 | B28: STORAGE
A29: =A28+1 -> 12 | B29: INJECTIONS | C29: ='Ut 1.4 p2'!E22 -> -14958368 | D29: =$D$10/$C$10*C29 -> -14451693.04 | E29: =$E$10/$C$10*C29 -> -506674.9611
A30: =A29+1 -> 13 | B30: WITHDRAWALS | C30: ='Ut 1.4 p2'!E21 -> 14987152 | D30: =$D$10/$C$10*C30 -> 14479502.06 | E30: =$E$10/$C$10*C30 -> 507649.9426
A31: =A30+1 -> 14 | B31: NET (INJECTIONS) WITHDRAWALS | C31: =C29+C30 -> 28784 | D31: =D29+D30 -> 27809.0185 | E31: =E29+E30 -> 974.9815007
A33: =A31+1 -> 15 | B33: Storage Fuel | C33: =Calculations!P162+Calculations!P163 -> -624542.9384 | D33: =D10/C10*C33 -> -603388.2062 | E33: =E10/C10*C33 -> -21154.73219
A36: =A33+1 -> 16 | B36: TOTAL SUPPLY | C36: =C21+C22+C25+C26+C29+C30+C33 -> 109535046.9 | D36: =SUM(D21:D30)+D33 -> 105824838.3 | E36: =SUM(E21:E30)+E33 -> 3710208.603
A38: =A36+1 -> 17 | B38: Company Use & Loss % | C38: =(+C36-C10)/C36 -> 0.004310701797 | D38: =(+D36-D10)/D36 -> 0.004310701797 | E38: =(+E36-E10)/E36 -> 0.004310701797
B41: Difference | C41: =C15-C36 -> -1.923599988

Sheet SDR#2
H1: ='Control Panel'!F32 -> Questar Gas Company
H2: ='Control Panel'!F33 -> Docket No. 11-057-02
A5: Standard Data Request #2
A6: Supplier Non-Gas Costs
B8: (A) | C8: (B) | D8: (C) | E8: (D) | F8: (E) | G8: (F) | T8: withdraw
A9: I. Transportation (QPC T-1) | C9: Volume (Dth) | G9: Utah Total | J9: Utah gas | K9: Utah Co. | L9: Utah gas | M9: Wyo gas | N9: Wyo Co. | O9: Wyo gas | Q9: @city gate | R9: @city gate | T9: loss | U9: Kern River
B10: Month | C10: Utah | D10: Wyoming | E10: $/dth | F10: Demand | G10: b*d+e*(Ut %) | J10: purchased | K10: production | L10: withdrawn | M10: purchased | N10: production | O10: withdrawn | P10: Total | Q10: purchased | R10: co production | S10: withdrawls | T10: =-Calculations!P162/Calculations!P135 -> 0.02426193033 | U10: Transportation
B12: ='Wy Storage'!B11 -> Jun11 | C12: =J12+K12+L12-(T12+$B$43*U12)*$J$39 -> 5288173.146 | D12: =M12+N12+O12-(T12+$B$43*U12)*$K$39 -> 185402.8394 | E12: ='Other Inputs'!$F$34 -> 0.00267 | F12: =('Other Inputs'!$D$19)*('Other Inputs'!$F$19)-('Other Inputs'!$E$262/12)+('Other Inputs'!$D$26*'Other Inputs'!$F$26) -> 4361553.229 | G12: =(+C12)*E12+F12*$J$33/$L$33 -> 4241816.009 | J12: =Q12*$J$39 -> 639550.4983 | K12: =R12*$J$39 -> 4890122.768 | L12: =S12*$J$39 -> 0 | M12: =Q12-J12 -> 22422.57866 | N12: =R12-K12 -> 171447.2316 | O12: =S12-L12 -> 0 | P12: =SUM(J12:O12)-U12 -> 5572108.077 | Q12: =Calculations!D166 -> 661973.077 | R12: =Calculations!D158 -> 5061570 | S12: =Calculations!D160+Calculations!D161 -> 0 | T12: =S12*$T$10 -> 0 | U12: =V12*W12 -> 151435 | V12: 4885 | W12: 31 | X12: =B12 -> Jun11
B13: ='Wy Storage'!B12 -> Jul11 | C13: =J13+K13+L13-(T13+$B$43*U13)*$J$39 -> 5047776.281 | D13: =M13+N13+O13-(T13+$B$43*U13)*$K$39 -> 176974.5485 | E13: ='Other Inputs'!$F$34 -> 0.00267 | F13: =('Other Inputs'!$D$19)*('Other Inputs'!$F$19)-('Other Inputs'!$E$262/12)+('Other Inputs'!$D$26*'Other Inputs'!$F$26) -> 4361553.229 | G13: 4241174.149 | J13: 326706.1789 | K13: 4954779.896 | L13: 0 | M13: 11454.28706 | N13: 173714.1042 | O13: 0 | P13: 5320104.466 | Q13: =Calculations!E166 -> 338160.466 | R13: =Calculations!E158 -> 5128494 | S13: =Calculations!E160+Calculations!E161 -> 0 | T13: =S13*$T$10 -> 0 | U13: =V13*W13 -> 146550 | V13: 4885 | W13: 30 | X13: =B13 -> Jul11
B14: ='Wy Storage'!B13 -> Aug11 | C14: 4762754.368 | D14: 166981.7078 | E14: ='Other Inputs'!$F$34 -> 0.00267 | F14: =('Other Inputs'!$D$19)*('Other Inputs'!$F$19)-('Other Inputs'!$E$262/12)+('Other Inputs'!$D$26*'Other Inputs'!$F$26) -> 4361553.229 | G14: 4240413.14 | J14: 241026.791 | K14: 4763227.697 | L14: 0 | M14: 8450.375996 | N14: 166998.3027 | O14: 0 | P14: 5028268.167 | Q14: =Calculations!F166 -> 249477.167 | R14: =Calculations!F158 -> 4930226 | S14: =Calculations!F160+Calculations!F161 -> 0 | T14: 0 | U14: 151435 | V14: 4885 | W14: 31 | X14: Aug11
B15: ='Wy Storage'!B14 -> Sep11 | C15: 3230362.5 | D15: 113256.197 | E15: ='Other Inputs'!$F$34 -> 0.00267 | F15: =('Other Inputs'!$D$19)*('Other Inputs'!$F$19)-('Other Inputs'!$E$262/12)+('Other Inputs'!$D$26*'Other Inputs'!$F$26) -> 4361553.229 | G15: 4236321.654 | J15: 924423.1474 | K15: 4931765.769 | L15: 0 | M15: 32410.1862 | N15: 172907.2312 | O15: 0 | P15: 4414956.334 | Q15: =Calculations!G166 -> 956833.3336 | R15: =Calculations!G158 -> 5104673 | S15: =Calculations!G160+Calculations!G161 -> 0 | T15: 0 | U15: 1646550 | V15: 54885 | W15: 30 | X15: Sep11
B16: ='Wy Storage'!B15 -> Oct11 | C16: 6719884.767 | D16: 235598.5104 | E16: ='Other Inputs'!$F$34 -> 0.00267 | F16: =('Other Inputs'!$D$19)*('Other Inputs'!$F$19)-('Other Inputs'!$E$262/12)+('Other Inputs'!$D$26*'Other Inputs'!$F$26) -> 4361553.229 | G16: 4245638.679 | J16: 4039208.895 | K16: 5394029.835 | L16: 0 | M16: 141614.2735 | N16: 189114.1647 | O16: 0 | P16: 8062532.169 | Q16: =Calculations!H166 -> 4180823.169 | R16: =Calculations!H158 -> 5583144 | S16: =Calculations!H160+Calculations!H161 -> 0 | T16: 0 | U16: 1701435 | V16: 54885 | W16: 31 | X16: Oct11
B17: ='Wy Storage'!B16 -> Nov11 | C17: 9591104.444 | D17: 336263.1948 | E17: ='Other Inputs'!$F$34 -> 0.00267 | F17: =('Other Inputs'!$D$19)*('Other Inputs'!$F$19)-('Other Inputs'!$E$262/12)+('Other Inputs'!$D$26*'Other Inputs'!$F$26) -> 4361553.229 | G17: 4253304.835 | J17: 6649505.51 | K17: 5654952.898 | L17: 0 | M17: 233131.0205 | N17: 198262.102 | O17: 0 | P17: 11034416.53 | Q17: =Calculations!I166 -> 6882636.531 | R17: =Calculations!I158 -> 5853215 | S17: =Calculations!I160+Calculations!I161 -> 0 | T17: 0 | U17: 1701435 | V17: 54885 | W17: 31 | X17: Nov11
B18: ='Wy Storage'!B17 -> Dec11 | C18: 14130698.68 | D18: 495420.9298 | E18: ='Other Inputs'!$F$34 -> 0.00267 | F18: =('Other Inputs'!$D$19)*('Other Inputs'!$F$19)-('Other Inputs'!$E$262/12)+('Other Inputs'!$D$26*'Other Inputs'!$F$26) -> 4361553.229 | G18: 4265425.552 | J18: 4989131.026 | K18: 5486193.583 | L18: 6257975.967 | M18: 174918.4516 | N18: 192345.4168 | O18: 219404.0325 | P18: 15783188.48 | Q18: =Calculations!J166 -> 5164049.478 | R18: =Calculations!J158 -> 5678539 | S18: =Calculations!J160+Calculations!J161 -> 6477380 | T18: 157153.7423 | U18: 1536780 | V18: 54885 | W18: 28 | X18: Dec11
B19: ='Wy Storage'!B18 -> Jan12 | C19: 16295881.13 | D19: 571332.0174 | E19: ='Other Inputs'!$F$34 -> 0.00267 | F19: =('Other Inputs'!$D$19)*('Other Inputs'!$F$19)-('Other Inputs'!$E$262/12)+('Other Inputs'!$D$26*'Other Inputs'!$F$26) -> 4361553.229 | G19: 4271206.589 | J19: 7436065.557 | K19: 5489967.278 | L19: 6234462.353 | M19: 260707.7397 | N19: 192477.7221 | O19: 218579.6475 | P19: 18130825.3 | Q19: =Calculations!K166 -> 7696773.297 | R19: =Calculations!K158 -> 5682445 | S19: =Calculations!K160+Calculations!K161 -> 6453042 | T19: 156563.2554 | U19: 1701435 | V19: 54885 | W19: 31 | X19: Jan12
B20: ='Wy Storage'!B19 -> Feb12 | C20: 14698502.51 | D20: 515328.0773 | E20: ='Other Inputs'!$F$34 -> 0.00267 | F20: =('Other Inputs'!$D$19)*('Other Inputs'!$F$19)-('Other Inputs'!$E$262/12)+('Other Inputs'!$D$26*'Other Inputs'!$F$26) -> 4361553.229 | G20: 4266941.588 | J20: 7352807.735 | K20: 5640550.833 | L20: 1987063.737 | M20: 257788.7285 | N20: 197757.167 | O20: 69666.26257 | P20: 15359084.46 | Q20: =Calculations!L166 -> 7610596.463 | R20: =Calculations!L158 -> 5838308 | S20: =Calculations!L160+Calculations!L161 -> 2056730 | T20: 49900.23996 | U20: 146550 | V20: 4885 | W20: 30 | X20: Feb12
B21: ='Wy Storage'!B20 -> Mar12 | C21: 11163997.24 | D21: 391408.6643 | E21: ='Other Inputs'!$F$34 -> 0.00267 | F21: =('Other Inputs'!$D$19)*('Other Inputs'!$F$19)-('Other Inputs'!$E$262/12)+('Other Inputs'!$D$26*'Other Inputs'!$F$26) -> 4361553.229 | G21: 4257504.459 | J21: 5834117.408 | K21: 5571379.957 | L21: 0 | M21: 204543.5924 | N21: 195332.0428 | O21: 0 | P21: 11653938 | Q21: =Calculations!M166 -> 6038661 | R21: =Calculations!M158 -> 5766712 | S21: =Calculations!M160+Calculations!M161 -> 0 | T21: 0 | U21: 151435 | V21: 4885 | W21: 31 | X21: Mar12
B22: ='Wy Storage'!B21 -> Apr12 | C22: 8938250.339 | D22: 313374.193 | E22: ='Other Inputs'!$F$34 -> 0.00267 | F22: =('Other Inputs'!$D$19)*('Other Inputs'!$F$19)-('Other Inputs'!$E$262/12)+('Other Inputs'!$D$26*'Other Inputs'!$F$26) -> 4361553.229 | G22: 4251561.715 | J22: 3672563.449 | K22: 5499396.684 | L22: 0 | M22: 128759.7196 | N22: 192808.3162 | O22: 0 | P22: 9346978.169 | Q22: =Calculations!N166 -> 3801323.169 | R22: =Calculations!N158 -> 5692205 | S22: =Calculations!N160+Calculations!N161 -> 0 | T22: 0 | U22: 146550 | V22: 4885 | W22: 30 | X22: Apr12
B23: ='Wy Storage'!B22 -> May12 | C23: 5777442.135 | D23: 202556.5628 | E23: ='Other Inputs'!$F$34 -> 0.00267 | F23: =('Other Inputs'!$D$19)*('Other Inputs'!$F$19)-('Other Inputs'!$E$262/12)+('Other Inputs'!$D$26*'Other Inputs'!$F$26) -> 4361553.229 | G23: 4243122.357 | J23: 575077.6231 | K23: 5443864.632 | L23: 0 | M23: 20162.16588 | N23: 190861.3678 | O23: 0 | P23: 6078530.789 | Q23: =Calculations!O166 -> 595239.789 | R23: =Calculations!O158 -> 5634726 | S23: =Calculations!O160+Calculations!O161 -> 0 | T23: 0 | U23: 151435 | V23: 4885 | W23: 31 | X23: May12
C26: =SUM(C12:C23) -> 105644827.5 | D26: =SUM(D12:D23) -> 3703897.442 | G26: =SUM(G12:G23) -> 51014430.72 | J26: =SUM(J12:J25) -> 42680183.82 | K26: 63720231.83 | L26: 14479502.06 | M26: 1496363.119 | N26: 2234025.169 | O26: 507649.9426 | P26: =SUM(P12:P23) -> 115784930.9 | Q26: 44176546.94 | R26: 65954257 | S26: 14987152 | T26: 363617.2376 | U26: 9333025
C29: Months | F29: System | G29: Utah | J29: Allocation Factors
C30: or Days | D30: Dth | E30: Rate | F30: Total | G30: Total
J31: Peak Demand Allocation Base
A32: II. Transportation (ML 104 demand) | C32: ='Other Inputs'!E22 -> 12 | D32: ='Other Inputs'!D20 -> 50000 | E32: ='Other Inputs'!F20 -> 5.28804 | F32: =C32*D32*E32 -> 3172824 | G32: =F32*J34 -> 3075449.614 | J32: Utah | K32: Wyo | L32: Total
J33: ='Other Inputs'!E129 -> 1241463 | K33: ='Other Inputs'!E130 -> 39307 | L33: =J33+K33 -> 1280770
J34: =J33/L33 -> 0.9693098683 | K34: =K33/L33 -> 0.03069013172
A36: III. Transportation (TL 112 demand) | C36: ='Other Inputs'!E22 -> 12 | D36: ='Other Inputs'!D21 -> 52000 | E36: ='Other Inputs'!F21 -> 5.28804 | F36: =C36*D36*E36 -> 3299736.96 | G36: =F36*J34 -> 3198467.598 | J36: Dth Sales Allocation Base
J37: Utah | K37: Wyo | L37: Total
J38: =Calculations!P20 -> 105368659 | K38: =Calculations!P39 -> 3694215 | L38: =J38+K38 -> 109062874
A39: IV. Transportation (KR 2003 Expansion) | C39: ='Other Inputs'!E50 -> 12 | D39: ='Other Inputs'!D50 -> 3000 | E39: ='Other Inputs'!F50 -> 14.34754167 | F39: =C39*D39*E39 -> 516511.5 | J39: =J38/L38 -> 0.9661276577 | K39: =K38/L38 -> 0.0338723423
C40: ='Other Inputs'!E51 -> 5 | D40: ='Other Inputs'!D51 -> 50000 | E40: ='Other Inputs'!F51 -> 14.34754167 | F40: =C40*D40*E40 -> 3586885.417 | G40: =(F39+F40+F41)*J34 -> 4366471.391
C41: ='Other Inputs'!E52 -> 12 | D41: ='Other Inputs'!D52 -> 1885 | E41: ='Other Inputs'!F52 -> 17.74204167 | F41: =C41*D41*E41 -> 401324.9825
A43: V. Trans (KR 2003 Expansion) | B43: ='Other Inputs'!C57 -> 1.650656 | C43: ='Other Inputs'!E56 -> 365 | D43: ='Other Inputs'!D56 -> 4885 | E43: ='Other Inputs'!F56 -> 0.0044 | F43: =B43*C43*D43*E43 -> 12949.90802
B44: ='Other Inputs'!C56 -> 1.650656 | C44: ='Other Inputs'!E57 -> 151 | D44: ='Other Inputs'!D57 -> 50000 | E44: ='Other Inputs'!F57 -> 0.0044 | F44: =B44*C44*D44*E44 -> 54834.79232 | G44: =(F43+F44)*J39 -> 65488.67377
A47: VI. Other Trans, Gathering & Processing | F47: =('Other Inputs'!$D$157*'Other Inputs'!$D$156)+'Other Inputs'!$D$160+'Other Inputs'!$D$163 -> 5238926.586 | G47: =F47*$J$39 -> 5061471.872
A49: VII. QGM Gathering | B49: Demand | C49: ='Ut 1.3 p1'!H48 -> 12 | E49: ='Ut 1.3 p1'!J48 -> 1060315 | F49: =C49*E49 -> 12723780
B50: Commodity | C50: ='Ut 1.3 p1'!F49 -> 49474888.09 | D50: ='Ut 1.3 p1'!H49 -> 0 | E50: ='Ut 1.3 p1'!J49 -> 0.20764 | F50: =C50*E50 -> 10272965.76 | G50: =(F49)*'Ut 1.5'!G51+(F50)*'Ut 1.5'!G54 -> 22258281.87
A53: VII. Storage Demand | C53: 12 | D53: ='Other Inputs'!E148 -> 184625 | E53: ='Other Inputs'!E12 -> 2.87375 | F53: =C53*D53*E53 -> 6366793.125
C54: 12 | D54: ='Other Inputs'!E149 -> 111827 | E54: ='Other Inputs'!E13 -> 2.85338 | F54: =C54*D54*E54 -> 3829019.103
C55: 12 | D55: ='Other Inputs'!E150 -> 13419000 | E55: ='Other Inputs'!E14 -> 0.02378 | F55: =C55*D55*E55 -> 3829245.84 | G55: =SUM(F53:F55)*J34 -> 13594627.19
A58: Total Supplier Non-Gas Costs | G58: =G26+G32+G36+G40+G44+G47+G55+G50 -> 102634688.9

Sheet SDR#3
I1: ='Control Panel'!F32 -> Questar Gas Company
I2: ='Control Panel'!F33 -> Docket No. 11-057-02
C5: Standard Data Request #3
C6: Monthly Forecasted Sales
D8: Utah Sales | F8: Wyoming Sales | H8: System Total
C9: Month | D9: Dth | F9: Dth | H9: Dth
B11: 1 | C11: =Calculations!D139 -> Jun11 | D11: =Calculations!D20 -> 3222848 | F11: =Calculations!D39 -> 113409 | H11: =SUM(D11:F11) -> 3336257
B13: =B11+1 -> 2 | C13: =Calculations!E139 -> Jul11 | D13: =Calculations!E20 -> 2990567 | F13: =Calculations!E39 -> 77825 | H13: =SUM(D13:F13) -> 3068392
B15: =B13+1 -> 3 | C15: =Calculations!F139 -> Aug11 | D15: =Calculations!F20 -> 2887147 | F15: =Calculations!F39 -> 86597 | H15: 2973744
B17: =B15+1 -> 4 | C17: =Calculations!G139 -> Sep11 | D17: =Calculations!G20 -> 3849398 | F17: =Calculations!G39 -> 151272 | H17: 4000670
B19: =B17+1 -> 5 | C19: =Calculations!H139 -> Oct11 | D19: =Calculations!H20 -> 6759154 | F19: =Calculations!H39 -> 232360 | H19: 6991514
B21: =B19+1 -> 6 | C21: =Calculations!I139 -> Nov11 | D21: =Calculations!I20 -> 10723234 | F21: =Calculations!I39 -> 394788 | H21: 11118022
B23: =B21+1 -> 7 | C23: =Calculations!J139 -> Dec11 | D23: =Calculations!J20 -> 16520123 | F23: =Calculations!J39 -> 576202 | H23: 17096325
B25: =B23+1 -> 8 | C25: =Calculations!K139 -> Jan12 | D25: =Calculations!K20 -> 18949599 | F25: =Calculations!K39 -> 631409 | H25: 19581008
B27: =B25+1 -> 9 | C27: =Calculations!L139 -> Feb12 | D27: =Calculations!L20 -> 14876830 | F27: =Calculations!L39 -> 514659 | H27: 15391489
B29: =B27+1 -> 10 | C29: =Calculations!M139 -> Mar12 | D29: =Calculations!M20 -> 11344837 | F29: =Calculations!M39 -> 409647 | H29: 11754484
B31: =B29+1 -> 11 | C31: =Calculations!N139 -> Apr12 | D31: =Calculations!N20 -> 8619173 | F31: =Calculations!N39 -> 326437 | H31: 8945610
B33: =B31+1 -> 12 | C33: =Calculations!O139 -> May12 | D33: =Calculations!O20 -> 4625749 | F33: =Calculations!O39 -> 179610 | H33: 4805359
B36: =B33+1 -> 13 | C36: Total Sales (Dth) | D36: =SUM(D11:D33) -> 105368659 | F36: =SUM(F11:F33) -> 3694215 | H36: =SUM(H11:H33) -> 109062874

Sheet SDR#4
H1: ='Control Panel'!F32 -> Questar Gas Company
H2: ='Control Panel'!F33 -> Docket No. 11-057-02
C5: Standard Data Request #4
C6: Supplier Non-Gas Costs Recovered at Current Rates
C9: (A) | D9: (B) | E9: (C) | F9: (D) | G9: (E)
B10: 1 | C10: Rate Schedule | D10: Season | E10: Sales Dth | F10: SNG Rate | G10: SNG Revenue
B12: =B10+1 -> 2 | C12: GS | D12: winter | E12: ='Utah Summary-by class'!B8 -> 67510892 | F12: ='Utah Summary-by class'!J8 -> 1.20251 | G12: =E12*F12 -> 81182522.74
B13: =B12+1 -> 3 | D13: summer | E13: ='Utah Summary-by class'!B9 -> 27718376 | F13: ='Utah Summary-by class'!J9 -> 0.5646 | G13: =E13*F13 -> 15649795.09
B15: =B13+1 -> 4 | C15: FS | D15: winter | E15: ='Utah Summary-by class'!B13 -> 3677255 | F15: ='Utah Summary-by class'!J13 -> 1.1712 | G15: =E15*F15 -> 4306801.056
B16: =B15+1 -> 5 | D16: summer | E16: ='Utah Summary-by class'!B14 -> 3605902 | F16: ='Utah Summary-by class'!J14 -> 0.56457 | G16: =E16*F16 -> 2035784.092
B18: =B16+1 -> 6 | C18: NGV | D18: annual | E18: ='Utah Summary-by class'!B19 -> 456000 | F18: ='Utah Summary-by class'!J19 -> 0.86776 | G18: =E18*F18 -> 395698.56
B20: =B18+1 -> 7 | C20: IS | D20: annual | E20: ='Utah Summary-by class'!B24 -> 2400234 | F20: ='Utah Summary-by class'!J24 -> 0.17937 | G20: =E20*F20 -> 430529.9726
B23: =B20+1 -> 8 | C23: Total Supplier Non-Gas Costs | E23: =SUM(E12:E20) -> 105368659 | G23: =SUM(G12:G20) -> 104001131.5

Sheet Wy SDR#1
A1: Wyoming Standard Data Request #1
A2: Global Insights Forecast

Sheet Ut 1.1
H1: Questar Gas Company
H2: ='Control Panel'!$F$33 -> Docket No. 11-057-02
H3: Exhibit 1.1
C4: Test Year Cost of Questar Gas' Production
C5: =CONCATENATE('Control Panel'!F40," through ",'Control Panel'!F41) -> Jun-11 through May-12
A7: (A) | B7: (B) | C7: (C) | D7: (D) | E7: (E) | F7: (F) | G7: (G) | H7: (H)
E8: Base Year | F8: Market | G8: Royalty | H8: Test Year
A9: Field Name | B9: Well Name | C9: Formation | D9: Price $ | E9: Dth | F9: Value $ | G9: Rate % | H9: Royalty $
A11: ACE UNIT (CO) | B11: ACE UNIT 2 FT UN | C11: FORT UNION | D11: =IF(LEFT(B11,12)=[2]Inputs!$C$24,[2]Inputs!$D$24,IF(LEFT(B11,13)=[2]Inputs!$C$25,[2]Inputs!$D$24,[2]Inputs!$D$26)) -> 3.937602527 | E11: 62167 | F11: =D11*E11 -> 244788.9363 | G11: 0.1268519763 | H11: =F11*G11 -> 31051.96035
B12: ACE UNIT 7 LOWER FT UN | C12: FORT UNION | D12: =IF(LEFT(B12,12)=[2]Inputs!$C$24,[2]Inputs!$D$24,IF(LEFT(B12,13)=[2]Inputs!$C$25,[2]Inputs!$D$24,[2]Inputs!$D$26)) -> 3.937602527 | E12: 3961 | F12: =D12*E12 -> 15596.84361 | G12: 0.1268519763 | H12: =F12*G12 -> 1978.490436
B13: ACE UNIT 10 FT UN | C13: FORT UNION | D13: =IF(LEFT(B13,12)=[2]Inputs!$C$24,[2]Inputs!$D$24,IF(LEFT(B13,13)=[2]Inputs!$C$25,[2]Inputs!$D$24,[2]Inputs!$D$26)) -> 3.937602527 | E13: 64017 | F13: =D13*E13 -> 252073.501 | G13: 0.1268519763 | H13: 31976.02177
B14: ACE UNIT 12 FT UN | C14: FORT UNION | D14: =IF(LEFT(B14,12)=[2]Inputs!$C$24,[2]Inputs!$D$24,IF(LEFT(B14,13)=[2]Inputs!$C$25,[2]Inputs!$D$24,[2]Inputs!$D$26)) -> 3.937602527 | E14: 126844 | F14: 499461.2549 | G14: 0.1268519763 | H14: 63357.64728
B15: ACE UNIT 11 FT UN | C15: FORT UNION | D15: =IF(LEFT(B15,12)=[2]Inputs!$C$24,[2]Inputs!$D$24,IF(LEFT(B15,13)=[2]Inputs!$C$25,[2]Inputs!$D$24,[2]Inputs!$D$26)) -> 3.937602527 | E15: 36014 | F15: 141808.8174 | G15: 0.1268519763 | H15: 17988.72875
B16: ACE UNIT 13 FT UN | C16: FORT UNION | D16: =IF(LEFT(B16,12)=[2]Inputs!$C$24,[2]Inputs!$D$24,IF(LEFT(B16,13)=[2]Inputs!$C$25,[2]Inputs!$D$24,[2]Inputs!$D$26)) -> 3.937602527 | E16: 73182 | F16: 288161.6281 | G16: 0.1268519763 | H16: 36553.87202
A17: E HIAW (CO) | B17: HIAWATHA UNIT 1 FT UN | C17: FORT UNION | D17: =IF(LEFT(B17,12)=[2]Inputs!$C$24,[2]Inputs!$D$24,IF(LEFT(B17,13)=[2]Inputs!$C$25,[2]Inputs!$D$24,[2]Inputs!$D$26)) -> 3.937602527 | E17: 36774 | F17: 144801.3953 | G17: 0.1925 | H17: 27874.2686
B18: F WILSON A 2 WAS | C18: WASATCH | D18: =IF(LEFT(B18,12)=[2]Inputs!$C$24,[2]Inputs!$D$24,IF(LEFT(B18,13)=[2]Inputs!$C$25,[2]Inputs!$D$24,[2]Inputs!$D$26)) -> 3.937602527 | E18: 114810 | F18: 452076.1461 | G18: 0.1925 | H18: 87024.65812
B19: F WILSON B 3 WAS | C19: WASATCH | D19: =IF(LEFT(B19,12)=[2]Inputs!$C$24,[2]Inputs!$D$24,IF(LEFT(B19,13)=[2]Inputs!$C$25,[2]Inputs!$D$24,[2]Inputs!$D$26)) -> 3.937602527 | E19: 144340 | F19: 568353.5487 | G19: 0.1625 | H19: 92357.45167
B20: F WILSON B 6 WAS | C20: WASATCH | D20: =IF(LEFT(B20,12)=[2]Inputs!$C$24,[2]Inputs!$D$24,IF(LEFT(B20,13)=[2]Inputs!$C$25,[2]Inputs!$D$24,[2]Inputs!$D$26)) -> 3.937602527 | E20: 111354 | F20: 438467.7918 | G20: 0.1625 | H20: 71251.01616
B21: F WILSON A 9 WAS | C21: WASATCH | D21: =IF(LEFT(B21,12)=[2]Inputs!$C$24,[2]Inputs!$D$24,IF(LEFT(B21,13)=[2]Inputs!$C$25,[2]Inputs!$D$24,[2]Inputs!$D$26)) -> 3.937602527 | E21: 14125 | F21: 55618.63569 | G21: 0.1925 | H21: 10706.58737
B22: F WILSON B 12 FT UN | C22: FORT UNION | D22: =IF(LEFT(B22,12)=[2]Inputs!$C$24,[2]Inputs!$D$24,IF(LEFT(B22,13)=[2]Inputs!$C$25,[2]Inputs!$D$24,[2]Inputs!$D$26)) -> 3.937602527 | E22: 61816 | F22: 243406.8378 | G22: 0.1625 | H22: 39553.61114
B23: F WILSON B 2 UNIT (HIAW) FT UN | C23: FORT UNION | D23: =IF(LEFT(B23,12)=[2]Inputs!$C$24,[2]Inputs!$D$24,IF(LEFT(B23,13)=[2]Inputs!$C$25,[2]Inputs!$D$24,[2]Inputs!$D$26)) -> 3.937602527 | E23: 31256 | F23: 123073.7046 | G23: 0.1625 | H23: 19999.47699
B24: F WILSON A 22 FT UN | C24: FORT UNION | D24: =IF(LEFT(B24,12)=[2]Inputs!$C$24,[2]Inputs!$D$24,IF(LEFT(B24,13)=[2]Inputs!$C$25,[2]Inputs!$D$24,[2]Inputs!$D$26)) -> 3.937602527 | E24: 24173 | F24: 95183.66588 | G24: 0.1925 | H24: 18322.85568
B25: STLD 3712100 NE4 2 WAS | C25: WASATCH | D25: =IF(LEFT(B25,12)=[2]Inputs!$C$24,[2]Inputs!$D$24,IF(LEFT(B25,13)=[2]Inputs!$C$25,[2]Inputs!$D$24,[2]Inputs!$D$26)) -> 3.937602527 | E25: 20809 | F25: 81937.57098 | G25: 0.13375 | H25: 10959.15012
B26: STLD 3712100 SE4 4 WAS | C26: WASATCH | D26: =IF(LEFT(B26,12)=[2]Inputs!$C$24,[2]Inputs!$D$24,IF(LEFT(B26,13)=[2]Inputs!$C$25,[2]Inputs!$D$24,[2]Inputs!$D$26)) -> 3.937602527 | E26: 23848 | F26: 93903.94506 | G26: 0.1375 | H26: 12911.79245
B27: STLD 3712100 W2 5 FT UN | C27: FORT UNION | D27: =IF(LEFT(B27,12)=[2]Inputs!$C$24,[2]Inputs!$D$24,IF(LEFT(B27,13)=[2]Inputs!$C$25,[2]Inputs!$D$24,[2]Inputs!$D$26)) -> 3.937602527 | E27: 44457 | F27: 175053.9955 | G27: 0.13375 | H27: 23413.4719
B28: G KUYKENDALL A 8 FT UN | C28: FORT UNION | D28: =IF(LEFT(B28,12)=[2]Inputs!$C$24,[2]Inputs!$D$24,IF(LEFT(B28,13)=[2]Inputs!$C$25,[2]Inputs!$D$24,[2]Inputs!$D$26)) -> 3.937602527 | E28: 8409 | F28: 33111.29965 | G28: 0.1925 | H28: 6373.925182
B29: KS WHITFORD 1 WAS | C29: WASATCH | D29: =IF(LEFT(B29,12)=[2]Inputs!$C$24,[2]Inputs!$D$24,IF(LEFT(B29,13)=[2]Inputs!$C$25,[2]Inputs!$D$24,[2]Inputs!$D$26)) -> 3.937602527 | E29: 66931 | F29: 263547.6747 | G29: 0.155 | H29: 40849.88958
B30: F WILSON B 24 FT UN | C30: FORT UNION | D30: =IF(LEFT(B30,12)=[2]Inputs!$C$24,[2]Inputs!$D$24,IF(LEFT(B30,13)=[2]Inputs!$C$25,[2]Inputs!$D$24,[2]Inputs!$D$26)) -> 3.937602527 | E30: 55727 | F30: 219430.776 | G30: 0.1625 | H30: 35657.5011
B31: F WILSON B 25 FT UN | C31: FORT UNION | D31: =IF(LEFT(B31,12)=[2]Inputs!$C$24,[2]Inputs!$D$24,IF(LEFT(B31,13)=[2]Inputs!$C$25,[2]Inputs!$D$24,[2]Inputs!$D$26)) -> 3.937602527 | E31: 18576 | F31: 73144.90454 | G31: 0.1625 | H31: 11886.04699
B32: F WILSON A 26 FT UN | C32: FORT UNION | D32: =IF(LEFT(B32,12)=[2]Inputs!$C$24,[2]Inputs!$D$24,IF(LEFT(B32,13)=[2]Inputs!$C$25,[2]Inputs!$D$24,[2]Inputs!$D$26)) -> 3.937602527 | E32: 43091 | F32: 169675.2305 | G32: 0.1925 | H32: 32662.48187
B33: HIAWATHA STLD 6 FT UN | C33: FORT UNION | D33: =IF(LEFT(B33,12)=[2]Inputs!$C$24,[2]Inputs!$D$24,IF(LEFT(B33,13)=[2]Inputs!$C$25,[2]Inputs!$D$24,[2]Inputs!$D$26)) -> 3.937602527 | E33: 13935 | F33: 54870.49121 | G33: 0.13375 | H33: 7338.928199
B34: F WILSON A 7 UPPER WAS | C34: WASATCH | D34: =IF(LEFT(B34,12)=[2]Inputs!$C$24,[2]Inputs!$D$24,IF(LEFT(B34,13)=[2]Inputs!$C$25,[2]Inputs!$D$24,[2]Inputs!$D$26)) -> 3.937602527 | E34: 232 | F34: 913.5237862 | G34: 0.1925 | H34: 175.8533288
B35: G KUYKENDALL 9 FT UN | C35: FORT UNION | D35: =IF(LEFT(B35,12)=[2]Inputs!$C$24,[2]Inputs!$D$24,IF(LEFT(B35,13)=[2]Inputs!$C$25,[2]Inputs!$D$24,[2]Inputs!$D$26)) -> 3.937602527 | E35: 41347 | F35: 162808.0517 | G35: 0.1925 | H35: 31340.54995
B36: F WILSON A 20 FT UN | C36: FORT UNION | D36: =IF(LEFT(B36,12)=[2]Inputs!$C$24,[2]Inputs!$D$24,IF(LEFT(B36,13)=[2]Inputs!$C$25,[2]Inputs!$D$24,[2]Inputs!$D$26)) -> 3.937602527 | E36: 1148 | F36: 4520.367701 | G36: 0.1925 | H36: 870.1707824
B37: F WILSON A 20 LEW/LAN/FT UN | C37: LEWIS/LANCE/FT U | D37: =IF(LEFT(B37,12)=[2]Inputs!$C$24,[2]Inputs!$D$24,IF(LEFT(B37,13)=[2]Inputs!$C$25,[2]Inputs!$D$24,[2]Inputs!$D$26)) -> 3.937602527 | E37: 21786 | F37: 85784.60865 | G37: 0.1925 | H37: 16513.53716
B38: F WILSON 32 MESA | C38: MESAVERDE | D38: =IF(LEFT(B38,12)=[2]Inputs!$C$24,[2]Inputs!$D$24,IF(LEFT(B38,13)=[2]Inputs!$C$25,[2]Inputs!$D$24,[2]Inputs!$D$26)) -> 3.937602527 | E38: 5513 | F38: 21708.00273 | G38: 0.1925 | H38: 4178.790526
B39: F WILSON 32 LEWIS | C39: LEWIS | D39: =IF(LEFT(B39,12)=[2]Inputs!$C$24,[2]Inputs!$D$24,IF(LEFT(B39,13)=[2]Inputs!$C$25,[2]Inputs!$D$24,[2]Inputs!$D$26)) -> 3.937602527 | E39: 39539 | F39: 155688.8663 | G39: 0.1925 | H39: 29970.10676
B40: F WILSON 32 LANCE | C40: LANCE | D40: =IF(LEFT(B40,12)=[2]Inputs!$C$24,[2]Inputs!$D$24,IF(LEFT(B40,13)=[2]Inputs!$C$25,[2]Inputs!$D$24,[2]Inputs!$D$26)) -> 3.937602527 | E40: 44585 | F40: 175558.0087 | G40: 0.1925 | H40: 33794.91667
B41: HIAWATHA STLD 7 FT UN | C41: FORT UNION | D41: =IF(LEFT(B41,12)=[2]Inputs!$C$24,[2]Inputs!$D$24,IF(LEFT(B41,13)=[2]Inputs!$C$25,[2]Inputs!$D$24,[2]Inputs!$D$26)) -> 3.937602527 | E41: 35391 | F41: 139355.691 | G41: 0.1375 | H41: 19161.40752
B42: F WILSON 33 LEWIS | C42: LEWIS | D42: =IF(LEFT(B42,12)=[2]Inputs!$C$24,[2]Inputs!$D$24,IF(LEFT(B42,13)=[2]Inputs!$C$25,[2]Inputs!$D$24,[2]Inputs!$D$26)) -> 3.937602527 | E42: 10781 | F42: 42451.29284 | G42: 0.1925 | H42: 8171.873872
B43: F WILSON 33 LANCE | C43: LANCE | D43: =IF(LEFT(B43,12)=[2]Inputs!$C$24,[2]Inputs!$D$24,IF(LEFT(B43,13)=[2]Inputs!$C$25,[2]Inputs!$D$24,[2]Inputs!$D$26)) -> 3.937602527 | E43: 12354 | F43: 48645.14162 | G43: 0.1925 | H43: 9364.189761
B44: F WILSON 34 LEW/LAN/FT UN | C44: LEWIS/LANCE/FT U | D44: =IF(LEFT(B44,12)=[2]Inputs!$C$24,[2]Inputs!$D$24,IF(LEFT(B44,13)=[2]Inputs!$C$25,[2]Inputs!$D$24,[2]Inputs!$D$26)) -> 3.937602527 | E44: 84770 | F44: 333790.5662 | G44: 0.1625 | H44: 54240.96701
B45: F WILSON 35 LEW/LAN/FT UN | C45: LEWIS/LANCE/FT U | D45: =IF(LEFT(B45,12)=[2]Inputs!$C$24,[2]Inputs!$D$24,IF(LEFT(B45,13)=[2]Inputs!$C$25,[2]Inputs!$D$24,[2]Inputs!$D$26)) -> 3.937602527 | E45: 133976 | F45: 527544.2361 | G45: 0.1925 | H45: 101552.2655
B46: F WILSON 29E (DD) FT UN | C46: FORT UNION | D46: =IF(LEFT(B46,12)=[2]Inputs!$C$24,[2]Inputs!$D$24,IF(LEFT(B46,13)=[2]Inputs!$C$25,[2]Inputs!$D$24,[2]Inputs!$D$26)) -> 3.937602527 | E46: 36004 | F46: 141769.4414 | G46: 0.1625 | H46: 23037.53422
A47: HIAW DEEP (CO) | B47: HIAWATHA DEEP UNIT 1 NUGGET | C47: NUGGET | D47: =IF(LEFT(B47,12)=[2]Inputs!$C$24,[2]Inputs!$D$24,IF(LEFT(B47,13)=[2]Inputs!$C$25,[2]Inputs!$D$24,[2]Inputs!$D$26)) -> 3.937602527 | E47: 84459 | F47: 332565.9718 | G47: 0.1723962084 | H47: 57333.11257
B48: HIAWATHA DEEP UNIT 3 NUGGET | C48: NUGGET | D48: =IF(LEFT(B48,12)=[2]Inputs!$C$24,[2]Inputs!$D$24,IF(LEFT(B48,13)=[2]Inputs!$C$25,[2]Inputs!$D$24,[2]Inputs!$D$26)) -> 3.937602527 | E48: 362284 | F48: 1426530.394 | G48: 0.1714959958 | H48: 244644.2504
B49: HIAWATHA DEEP UNIT 2 NUGGET | C49: NUGGET | D49: =IF(LEFT(B49,12)=[2]Inputs!$C$24,[2]Inputs!$D$24,IF(LEFT(B49,13)=[2]Inputs!$C$25,[2]Inputs!$D$24,[2]Inputs!$D$26)) -> 3.937602527 | E49: 22478 | F49: 88509.4296 | G49: 0.172395903 | H49: 15258.66304
A50: JACKS DRAW (CO) | B50: JACKS DRAW UNIT 2 FT UN | C50: FORT UNION | D50: =IF(LEFT(B50,12)=[2]Inputs!$C$24,[2]Inputs!$D$24,IF(LEFT(B50,13)=[2]Inputs!$C$25,[2]Inputs!$D$24,[2]Inputs!$D$26)) -> 3.937602527 | E50: 49594 | F50: 195281.4597 | G50: 0.1396875 | H50: 27278.3789
B51: JACKS DRAW UNIT 3 FT UN | C51: FORT UNION | D51: =IF(LEFT(B51,12)=[2]Inputs!$C$24,[2]Inputs!$D$24,IF(LEFT(B51,13)=[2]Inputs!$C$25,[2]Inputs!$D$24,[2]Inputs!$D$26)) -> 3.937602527 | E51: 26446 | F51: 104133.8364 | G51: 0.1396875 | H51: 14546.19528
B52: JACKS DRAW UNIT 9 FT UN | C52: FORT UNION | D52: =IF(LEFT(B52,12)=[2]Inputs!$C$24,[2]Inputs!$D$24,IF(LEFT(B52,13)=[2]Inputs!$C$25,[2]Inputs!$D$24,[2]Inputs!$D$26)) -> 3.937602527 | E52: 37872 | F52: 149124.8829 | G52: 0.1396875 | H52: 20830.88208
B53: JACKS DRAW UNIT 5 FT UN | C53: FORT UNION | D53: =IF(LEFT(B53,12)=[2]Inputs!$C$24,[2]Inputs!$D$24,IF(LEFT(B53,13)=[2]Inputs!$C$25,[2]Inputs!$D$24,[2]Inputs!$D$26)) -> 3.937602527 | E53: 2840 | F53: 11182.79118 | G53: 0.1489132823 | H53: 1665.26614
B54: JACKS DRAW UNIT 8 FT UN | C54: FORT UNION | D54: =IF(LEFT(B54,12)=[2]Inputs!$C$24,[2]Inputs!$D$24,IF(LEFT(B54,13)=[2]Inputs!$C$25,[2]Inputs!$D$24,[2]Inputs!$D$26)) -> 3.937602527 | E54: 4039 | F54: 15903.97661 | G54: 0.1489132823 | H54: 2368.313358
B55: JACKS DRAW UNIT 17 FT UN | C55: FORT UNION | D55: =IF(LEFT(B55,12)=[2]Inputs!$C$24,[2]Inputs!$D$24,IF(LEFT(B55,13)=[2]Inputs!$C$25,[2]Inputs!$D$24,[2]Inputs!$D$26)) -> 3.937602527 | E55: 55589 | F55: 218887.3869 | G55: 0.1396875 | H55: 30575.83185
A56: LO HORSE DR (CO) | B56: LOWER HORSE DRAW 11-1 MANCOS B | C56: MANCOS B | D56: =IF(LEFT(B56,12)=[2]Inputs!$C$24,[2]Inputs!$D$24,IF(LEFT(B56,13)=[2]Inputs!$C$25,[2]Inputs!$D$24,[2]Inputs!$D$26)) -> 3.937602527 | E56: 2578 | F56: 10151.13931 | G56: 0.125 | H56: 1268.892414
B57: LOWER HORSE DRAW 12-2 MANCOS B | C57: MANCOS B | D57: =IF(LEFT(B57,12)=[2]Inputs!$C$24,[2]Inputs!$D$24,IF(LEFT(B57,13)=[2]Inputs!$C$25,[2]Inputs!$D$24,[2]Inputs!$D$26)) -> 3.937602527 | E57: 19810 | F57: 78003.90606 | G57: 0.125 | H57: 9750.488257
B58: LOWER HORSE DRAW 10-1 MANCOS B | C58: MANCOS B | D58: =IF(LEFT(B58,12)=[2]Inputs!$C$24,[2]Inputs!$D$24,IF(LEFT(B58,13)=[2]Inputs!$C$25,[2]Inputs!$D$24,[2]Inputs!$D$26)) -> 3.937602527 | E58: 2971 | F58: 11698.61711 | G58: 0.125 | H58: 1462.327138
B59: LOWER HORSE DRAW 10-2 MB SILT | C59: MANCOS B SILT | D59: =IF(LEFT(B59,12)=[2]Inputs!$C$24,[2]Inputs!$D$24,IF(LEFT(B59,13)=[2]Inputs!$C$25,[2]Inputs!$D$24,[2]Inputs!$D$26)) -> 3.937602527 | E59: 6319 | F59: 24881.71037 | G59: 0.125 | H59: 3110.213796
B60: LOWER HORSE FED 11-5 MANCOS B | C60: MANCOS B | D60: =IF(LEFT(B60,12)=[2]Inputs!$C$24,[2]Inputs!$D$24,IF(LEFT(B60,13)=[2]Inputs!$C$25,[2]Inputs!$D$24,[2]Inputs!$D$26)) -> 3.937602527 | E60: 27092 | F60: 106677.5277 | G60: 0.125 | H60: 13334.69096
B61: LOWER HORSE FED 11-5 MB SILT | C61: MANCOS B SILT | D61: =IF(LEFT(B61,12)=[2]Inputs!$C$24,[2]Inputs!$D$24,IF(LEFT(B61,13)=[2]Inputs!$C$25,[2]Inputs!$D$24,[2]Inputs!$D$26)) -> 3.937602527 | E61: 17689 | F61: 69652.2511 | G61: 0.125 | H61: 8706.531387
A62: POWDER WASH (CO) | B62: CARL ALLEN B 4 WAS | C62: WASATCH | D62: =IF(LEFT(B62,12)=[2]Inputs!$C$24,[2]Inputs!$D$24,IF(LEFT(B62,13)=[2]Inputs!$C$25,[2]Inputs!$D$24,[2]Inputs!$D$26)) -> 3.937602527 | E62: 5837 | F62: 22983.78595 | G62: 0.1100461 | H62: 2529.276007
B63: CARL ALLEN B 6 FT UN | C63: FORT UNION | D63: =IF(LEFT(B63,12)=[2]Inputs!$C$24,[2]Inputs!$D$24,IF(LEFT(B63,13)=[2]Inputs!$C$25,[2]Inputs!$D$24,[2]Inputs!$D$26)) -> 3.937602527 | E63: 55060 | F63: 216804.3951 | G63: 0.1100461 | H63: 23858.47815
B64: CARL ALLEN B 6 LOWER FT UN | C64: FORT UNION | D64: =IF(LEFT(B64,12)=[2]Inputs!$C$24,[2]Inputs!$D$24,IF(LEFT(B64,13)=[2]Inputs!$C$25,[2]Inputs!$D$24,[2]Inputs!$D$26)) -> 3.937602527 | E64: 55060 | F64: 216804.3951 | G64: 0.1100461 | H64: 23858.47815
B65: CARL ALLEN B 7 FT UN | C65: FORT UNION | D65: =IF(LEFT(B65,12)=[2]Inputs!$C$24,[2]Inputs!$D$24,IF(LEFT(B65,13)=[2]Inputs!$C$25,[2]Inputs!$D$24,[2]Inputs!$D$26)) -> 3.937602527 | E65: 134734 | F65: 530528.9388 | G65: 0.1100461 | H65: 58382.64066
B66: CARL ALLEN A 8 FT UN | C66: FORT UNION | D66: =IF(LEFT(B66,12)=[2]Inputs!$C$24,[2]Inputs!$D$24,IF(LEFT(B66,13)=[2]Inputs!$C$25,[2]Inputs!$D$24,[2]Inputs!$D$26)) -> 3.937602527 | E66: 41415 | F66: 163075.8086 | G66: 0.1100461 | H66: 17945.85675
B67: CARL ALLEN B 10 WAS | C67: WASATCH | D67: =IF(LEFT(B67,12)=[2]Inputs!$C$24,[2]Inputs!$D$24,IF(LEFT(B67,13)=[2]Inputs!$C$25,[2]Inputs!$D$24,[2]Inputs!$D$26)) -> 3.937602527 | E67: 1199 | F67: 4721.18543 | G67: 0.1100461 | H67: 519.5480439
B68: CARL ALLEN A 11 FT UN | C68: FORT UNION | D68: =IF(LEFT(B68,12)=[2]Inputs!$C$24,[2]Inputs!$D$24,IF(LEFT(B68,13)=[2]Inputs!$C$25,[2]Inputs!$D$24,[2]Inputs!$D$26)) -> 3.937602527 | E68: 4867 | F68: 19164.3115 | G68: 0.1100461 | H68: 2108.95774
B69: CARL ALLEN A 11 LOWER FT UN | C69: FORT UNION | D69: =IF(LEFT(B69,12)=[2]Inputs!$C$24,[2]Inputs!$D$24,IF(LEFT(B69,13)=[2]Inputs!$C$25,[2]Inputs!$D$24,[2]Inputs!$D$26)) -> 3.937602527 | E69: 330558 | F69: 1301606.016 | G69: 0.10990837 | H69: 143057.3956
B70: CARL ALLEN B 15 WAS | C70: WASATCH | D70: =IF(LEFT(B70,12)=[2]Inputs!$C$24,[2]Inputs!$D$24,IF(LEFT(B70,13)=[2]Inputs!$C$25,[2]Inputs!$D$24,[2]Inputs!$D$26)) -> 3.937602527 | E70: 10962 | F70: 43163.9989 | G70: 0.1100461 | H70: 4750.029739
B71: CARL ALLEN B 17 WAS | C71: WASATCH | D71: =IF(LEFT(B71,12)=[2]Inputs!$C$24,[2]Inputs!$D$24,IF(LEFT(B71,13)=[2]Inputs!$C$25,[2]Inputs!$D$24,[2]Inputs!$D$26)) -> 3.937602527 | E71: 20584 | F71: 81051.61041 | G71: 0.1100461 | H71: 8919.413624
B72: CARL ALLEN A 19 FT UN | C72: FORT UNION | D72: =IF(LEFT(B72,12)=[2]Inputs!$C$24,[2]Inputs!$D$24,IF(LEFT(B72,13)=[2]Inputs!$C$25,[2]Inputs!$D$24,[2]Inputs!$D$26)) -> 3.937602527 | E72: 126007 | F72: 496165.4816 | G72: 0.1100461 | H72: 54601.0762
B73: CARL ALLEN A 20 FT UN | C73: FORT UNION | D73: =IF(LEFT(B73,12)=[2]Inputs!$C$24,[2]Inputs!$D$24,IF(LEFT(B73,13)=[2]Inputs!$C$25,[2]Inputs!$D$24,[2]Inputs!$D$26)) -> 3.937602527 | E73: 42308 | F73: 166592.0877 | G73: 0.1100461 | H73: 18332.80954
B74: BW MUSSER A 1 WAS | C74: WASATCH | D74: =IF(LEFT(B74,12)=[2]Inputs!$C$24,[2]Inputs!$D$24,IF(LEFT(B74,13)=[2]Inputs!$C$25,[2]Inputs!$D$24,[2]Inputs!$D$26)) -> 3.937602527 | E74: 6549 | F74: 25787.35895 | G74: 0.1100461 | H74: 2837.798282
B75: BW MUSSER B 21 FT UN | C75: FORT UNION | D75: =IF(LEFT(B75,12)=[2]Inputs!$C$24,[2]Inputs!$D$24,IF(LEFT(B75,13)=[2]Inputs!$C$25,[2]Inputs!$D$24,[2]Inputs!$D$26)) -> 3.937602527 | E75: 52545 | F75: 206901.3248 | G75: 0.1100461 | H75: 22768.68388
B76: BW MUSSER B 6 WAS | C76: WASATCH | D76: =IF(LEFT(B76,12)=[2]Inputs!$C$24,[2]Inputs!$D$24,IF(LEFT(B76,13)=[2]Inputs!$C$25,[2]Inputs!$D$24,[2]Inputs!$D$26)) -> 3.937602527 | E76: 28178 | F76: 110953.764 | G76: 0.1100461 | H76: =F76*G76 -> 12210.02901
B77: BW MUSSER B 10 FT UN | C77: FORT UNION | D77: =IF(LEFT(B77,12)=[2]Inputs!$C$24,[2]Inputs!$D$24,IF(LEFT(B77,13)=[2]Inputs!$C$25,[2]Inputs!$D$24,[2]Inputs!$D$26)) -> 3.937602527 | E77: 32367 | F77: =D77*E77 -> 127448.381 | G77: 0.1100461 | H77: 14025.19728
B78: BW MUSSER B 11 FT UN | C78: FORT UNION | D78: =IF(LEFT(B78,12)=[2]Inputs!$C$24,[2]Inputs!$D$24,IF(LEFT(B78,13)=[2]Inputs!$C$25,[2]Inputs!$D$24,[2]Inputs!$D$26)) -> 3.937602527 | E78: 13729 | F78: 54059.34509 | G78: 0.1100461 | H78: 5949.020096
B79: JC DONNELL B 3 WAS | C79: WASATCH | D79: =IF(LEFT(B79,12)=[2]Inputs!$C$24,[2]Inputs!$D$24,IF(LEFT(B79,13)=[2]Inputs!$C$25,[2]Inputs!$D$24,[2]Inputs!$D$26)) -> 3.937602527 | E79: 59289 | F79: 233456.5162 | G79: 0.1100461 | H79: 25690.97913
B80: JC DONNELL B 5 FT UN | C80: FORT UNION | D80: =IF(LEFT(B80,12)=[2]Inputs!$C$24,[2]Inputs!$D$24,IF(LEFT(B80,13)=[2]Inputs!$C$25,[2]Inputs!$D$24,[2]Inputs!$D$26)) -> 3.937602527 | E80: 24029 | F80: 94616.65112 | G80: 0.1100461 | H80: 10412.19345
B81: JC DONNELL B 9 FT UN | C81: FORT UNION | D81: =IF(LEFT(B81,12)=[2]Inputs!$C$24,[2]Inputs!$D$24,IF(LEFT(B81,13)=[2]Inputs!$C$25,[2]Inputs!$D$24,[2]Inputs!$D$26)) -> 3.937602527 | E81: 26664 | F81: 104992.2338 | G81: 0.1100461 | H81: 11553.98586
B82: JC DONNELL B 10 FT UN | C82: FORT UNION | D82: =IF(LEFT(B82,12)=[2]Inputs!$C$24,[2]Inputs!$D$24,IF(LEFT(B82,13)=[2]Inputs!$C$25,[2]Inputs!$D$24,[2]Inputs!$D$26)) -> 3.937602527 | E82: 56927 | F82: 224155.899 | G82: 0.1100461 | H82: 24667.48248
B83: H STEWART A 1 FT UN | C83: FORT UNION | D83: =IF(LEFT(B83,12)=[2]Inputs!$C$24,[2]Inputs!$D$24,IF(LEFT(B83,13)=[2]Inputs!$C$25,[2]Inputs!$D$24,[2]Inputs!$D$26)) -> 3.937602527 | E83: 15963 | F83: 62855.94913 | G83: 0.1100461 | H83: 6917.052064
B84: BW MUSSER B 13 FT UN | C84: FORT UNION | D84: =IF(LEFT(B84,12)=[2]Inputs!$C$24,[2]Inputs!$D$24,IF(LEFT(B84,13)=[2]Inputs!$C$25,[2]Inputs!$D$24,[2]Inputs!$D$26)) -> 3.937602527 | E84: 36877 | F84: 145206.9684 | G84: 0.1100461 | H84: 15979.46056
B85: BW MUSSER A 14 FT UN | C85: FORT UNION | D85: =IF(LEFT(B85,12)=[2]Inputs!$C$24,[2]Inputs!$D$24,IF(LEFT(B85,13)=[2]Inputs!$C$25,[2]Inputs!$D$24,[2]Inputs!$D$26)) -> 3.937602527 | E85: 27269 | F85: 107374.4833 | G85: 0.1100461 | H85: 11816.14313
B86: BW MUSSER 15 UPPER FT UN | C86: FORT UNION | D86: =IF(LEFT(B86,12)=[2]Inputs!$C$24,[2]Inputs!$D$24,IF(LEFT(B86,13)=[2]Inputs!$C$25,[2]Inputs!$D$24,[2]Inputs!$D$26)) -> 3.937602527 | E86: 24426 | F86: 96179.87932 | G86: 0.1100461 | H86: 10584.22062
B87: BW MUSSER A 16 WAS | C87: WASATCH | D87: =IF(LEFT(B87,12)=[2]Inputs!$C$24,[2]Inputs!$D$24,IF(LEFT(B87,13)=[2]Inputs!$C$25,[2]Inputs!$D$24,[2]Inputs!$D$26)) -> 3.937602527 | E87: 67026 | F87: 263921.747 | G87: 0.110046 | H87: 29043.53257
B88: BW MUSSER A 16 FT UN | C88: FORT UNION | D88: =IF(LEFT(B88,12)=[2]Inputs!$C$24,[2]Inputs!$D$24,IF(LEFT(B88,13)=[2]Inputs!$C$25,[2]Inputs!$D$24,[2]Inputs!$D$26)) -> 3.937602527 | E88: 39285 | F88: 154688.7153 | G88: 0.1100461 | H88: 17022.88983
B89: BW MUSSER B 18 FT UN | C89: FORT UNION | D89: =IF(LEFT(B89,12)=[2]Inputs!$C$24,[2]Inputs!$D$24,IF(LEFT(B89,13)=[2]Inputs!$C$25,[2]Inputs!$D$24,[2]Inputs!$D$26)) -> 3.937602527 | E89: 76825 | F89: 302506.3141 | G89: 0.1100461 | H89: 33289.64009
B90: BW MUSSER B 19 FT UN | C90: FORT UNION | D90: =IF(LEFT(B90,12)=[2]Inputs!$C$24,[2]Inputs!$D$24,IF(LEFT(B90,13)=[2]Inputs!$C$25,[2]Inputs!$D$24,[2]Inputs!$D$26)) -> 3.937602527 | E90: 47582 | F90: 187359.0034 | G90: 0.1100461 | H90: 20618.12763
B91: BW MUSSER B 20 FT UN | C91: FORT UNION | D91: =IF(LEFT(B91,12)=[2]Inputs!$C$24,[2]Inputs!$D$24,IF(LEFT(B91,13)=[2]Inputs!$C$25,[2]Inputs!$D$24,[2]Inputs!$D$26)) -> 3.937602527 | E91: 12162 | F91: 47889.12193 | G91: 0.1100461 | H91: 5270.011101
B92: POWDER WASH GOVT 1 FT UN | C92: FORT UNION | D92: =IF(LEFT(B92,12)=[2]Inputs!$C$24,[2]Inputs!$D$24,IF(LEFT(B92,13)=[2]Inputs!$C$25,[2]Inputs!$D$24,[2]Inputs!$D$26)) -> 3.937602527 | E92: 14199 | F92: 55910.01828 | G92: 0.1100461 | H92: 6152.679462
B93: POWDER WASH GOVT 2 FT UN | C93: FORT UNION | D93: =IF(LEFT(B93,12)=[2]Inputs!$C$24,[2]Inputs!$D$24,IF(LEFT(B93,13)=[2]Inputs!$C$25,[2]Inputs!$D$24,[2]Inputs!$D$26)) -> 3.937602527 | E93: 4122 | F93: 16230.79762 | G93: 0.1100461 | H93: 1786.135977
B94: JC DONNELL A 11 FT UN | C94: FORT UNION | D94: =IF(LEFT(B94,12)=[2]Inputs!$C$24,[2]Inputs!$D$24,IF(LEFT(B94,13)=[2]Inputs!$C$25,[2]Inputs!$D$24,[2]Inputs!$D$26)) -> 3.937602527 | E94: 84178 | F94: 331459.5055 | G94: 0.1100461 | H94: 36475.82589
B95: JC DONNELL B 12 FT UN | C95: FORT UNION | D95: =IF(LEFT(B95,12)=[2]Inputs!$C$24,[2]Inputs!$D$24,IF(LEFT(B95,13)=[2]Inputs!$C$25,[2]Inputs!$D$24,[2]Inputs!$D$26)) -> 3.937602527 | E95: 3044 | F95: 11986.06209 | G95: 0.1100461 | H95: 1319.019388
B96: JA LEE 1 FT UN | C96: FORT UNION | D96: =IF(LEFT(B96,12)=[2]Inputs!$C$24,[2]Inputs!$D$24,IF(LEFT(B96,13)=[2]Inputs!$C$25,[2]Inputs!$D$24,[2]Inputs!$D$26)) -> 3.937602527 | E96: 23904 | F96: 94124.4508 | G96: 0.1100461 | H96: 10358.02873
B97: JC DONNELL A 1 FT UN | C97: FORT UNION | D97: =IF(LEFT(B97,12)=[2]Inputs!$C$24,[2]Inputs!$D$24,IF(LEFT(B97,13)=[2]Inputs!$C$25,[2]Inputs!$D$24,[2]Inputs!$D$26)) -> 3.937602527 | E97: 21089 | F97: 83040.09969 | G97: 0.1100461 | H97: 9138.239114
B98: POWDER WASH 20-1 FT UN | C98: FORT UNION | D98: =IF(LEFT(B98,12)=[2]Inputs!$C$24,[2]Inputs!$D$24,IF(LEFT(B98,13)=[2]Inputs!$C$25,[2]Inputs!$D$24,[2]Inputs!$D$26)) -> 3.937602527 | E98: 106060 | F98: 417622.124 | G98: 0.125 | H98: 52202.7655
B99: CARL ALLEN A 16 WAS | C99: WASATCH | D99: =IF(LEFT(B99,12)=[2]Inputs!$C$24,[2]Inputs!$D$24,IF(LEFT(B99,13)=[2]Inputs!$C$25,[2]Inputs!$D$24,[2]Inputs!$D$26)) -> 3.937602527 | E99: 21431 | F99: 84386.75975 | G99: 0.1100461 | H99: 9286.433802
B100: H STEWART A 2 FT UN | C100: FORT UNION | D100: =IF(LEFT(B100,12)=[2]Inputs!$C$24,[2]Inputs!$D$24,IF(LEFT(B100,13)=[2]Inputs!$C$25,[2]Inputs!$D$24,[2]Inputs!$D$26)) -> 3.937602527 | E100: 171177 | F100: 674026.9877 | G100: 0.1100461 | H100: 74174.04129
B101: CARL ALLEN B 9 UPPER WAS | C101: WASATCH | D101: =IF(LEFT(B101,12)=[2]Inputs!$C$24,[2]Inputs!$D$24,IF(LEFT(B101,13)=[2]Inputs!$C$25,[2]Inputs!$D$24,[2]Inputs!$D$26)) -> 3.937602527 | E101: 8717 | F101: 34324.08123 | G101: 0.1100461 | H101: 3777.231275
B102: CARL ALLEN A 2 WAS | C102: WASATCH | D102: =IF(LEFT(B102,12)=[2]Inputs!$C$24,[2]Inputs!$D$24,IF(LEFT(B102,13)=[2]Inputs!$C$25,[2]Inputs!$D$24,[2]Inputs!$D$26)) -> 3.937602527 | E102: 32482 | F102: 127901.2053 | G102: 0.1100461 | H102: 14075.02883
B103: BW MUSSER 22 FT UN | C103: FORT UNION | D103: =IF(LEFT(B103,12)=[2]Inputs!$C$24,[2]Inputs!$D$24,IF(LEFT(B103,13)=[2]Inputs!$C$25,[2]Inputs!$D$24,[2]Inputs!$D$26)) -> 3.937602527 | E103: 11789 | F103: 46420.39619 | G103: 0.1100461 | H103: 5108.383561
B104: CARL ALLEN 22 FT UN | C104: FORT UNION | D104: =IF(LEFT(B104,12)=[2]Inputs!$C$24,[2]Inputs!$D$24,IF(LEFT(B104,13)=[2]Inputs!$C$25,[2]Inputs!$D$24,[2]Inputs!$D$26)) -> 3.937602527 | E104: 235959 | F104: 929112.7546 | G104: 0.1100461 | H104: 102245.2351
B105: JC DONNELL 14-29 FT UN | C105: FORT UNION | D105: =IF(LEFT(B105,12)=[2]Inputs!$C$24,[2]Inputs!$D$24,IF(LEFT(B105,13)=[2]Inputs!$C$25,[2]Inputs!$D$24,[2]Inputs!$D$26)) -> 3.937602527 | E105: 71026 | F105: 279672.1571 | G105: 0.1100461 | H105: 30776.83016
B106: CARL ALLEN 23 FT UN | C106: FORT UNION | D106: =IF(LEFT(B106,12)=[2]Inputs!$C$24,[2]Inputs!$D$24,IF(LEFT(B106,13)=[2]Inputs!$C$25,[2]Inputs!$D$24,[2]Inputs!$D$26)) -> 3.937602527 | E106: 63605 | F106: 250451.2087 | G106: 0.1100461 | H106: 27561.17876
B107: BW MUSSER 23 FT UN | C107: FORT UNION | D107: =IF(LEFT(B107,12)=[2]Inputs!$C$24,[2]Inputs!$D$24,IF(LEFT(B107,13)=[2]Inputs!$C$25,[2]Inputs!$D$24,[2]Inputs!$D$26)) -> 3.937602527 | E107: 168722 | F107: 664360.1735 | G107: 0.1100461 | H107: 73110.24609
B108: BW MUSSER 24 FT UN | C108: FORT UNION | D108: =IF(LEFT(B108,12)=[2]Inputs!$C$24,[2]Inputs!$D$24,IF(LEFT(B108,13)=[2]Inputs!$C$25,[2]Inputs!$D$24,[2]Inputs!$D$26)) -> 3.937602527 | E108: 94114 | F108: 370583.5242 | G108: 0.1100461 | H108: 40781.27156
B109: CARL ALLEN 26 FT UN | C109: FORT UNION | D109: =IF(LEFT(B109,12)=[2]Inputs!$C$24,[2]Inputs!$D$24,IF(LEFT(B109,13)=[2]Inputs!$C$25,[2]Inputs!$D$24,[2]Inputs!$D$26)) -> 3.937602527 | E109: 93993 | F109: 370107.0743 | G109: 0.1100461 | H109: 40728.84011
B110: BW MUSSER 25 FT UN | C110: FORT UNION | D110: =IF(LEFT(B110,12)=[2]Inputs!$C$24,[2]Inputs!$D$24,IF(LEFT(B110,13)=[2]Inputs!$C$25,[2]Inputs!$D$24,[2]Inputs!$D$26)) -> 3.937602527 | E110: 273484 | F110: 1076871.289 | G110: 0.1100461 | H110: 118505.4856
B111: CARL ALLEN 25 FT UN | C111: WASATCH | D111: =IF(LEFT(B111,12)=[2]Inputs!$C$24,[2]Inputs!$D$24,IF(LEFT(B111,13)=[2]Inputs!$C$25,[2]Inputs!$D$24,[2]Inputs!$D$26)) -> 3.937602527 | E111: 255673 | F111: 1006738.651 | G111: 0.1100461 | H111: 110787.6622
B112: H STEWART 5 FT UN | C112: FORT UNION | D112: =IF(LEFT(B112,12)=[2]Inputs!$C$24,[2]Inputs!$D$24,IF(LEFT(B112,13)=[2]Inputs!$C$25,[2]Inputs!$D$24,[2]Inputs!$D$26)) -> 3.937602527 | E112: 246689 | F112: 971363.2297 | G112: 0.1100461 | H112: 106894.7351
B113: CARL ALLEN 27 FT UN | C113: FORT UNION | D113: =IF(LEFT(B113,12)=[2]Inputs!$C$24,[2]Inputs!$D$24,IF(LEFT(B113,13)=[2]Inputs!$C$25,[2]Inputs!$D$24,[2]Inputs!$D$26)) -> 3.937602527 | E113: 137618 | F113: 541884.9845 | G113: 0.110046 | H113: 59632.27501
B114: CARL ALLEN 28 FT UN | C114: FORT UNION | D114: =IF(LEFT(B114,12)=[2]Inputs!$C$24,[2]Inputs!$D$24,IF(LEFT(B114,13)=[2]Inputs!$C$25,[2]Inputs!$D$24,[2]Inputs!$D$26)) -> 3.937602527 | E114: 175535 | F114: 691187.0595 | G114: 0.110046 | H114: 76062.37115
B115: CARL ALLEN 29 FT UN | C115: FORT UNION | D115: =IF(LEFT(B115,12)=[2]Inputs!$C$24,[2]Inputs!$D$24,IF(LEFT(B115,13)=[2]Inputs!$C$25,[2]Inputs!$D$24,[2]Inputs!$D$26)) -> 3.937602527 | E115: 219890 | F115: 865839.4196 | G115: 0.110046 | H115: 95282.16477
B116: BW MUSSER 27 FT UN | C116: FORT UNION | D116: =IF(LEFT(B116,12)=[2]Inputs!$C$24,[2]Inputs!$D$24,IF(LEFT(B116,13)=[2]Inputs!$C$25,[2]Inputs!$D$24,[2]Inputs!$D$26)) -> 3.937602527 | E116: 259029 | F116: 1019953.245 | G116: 0.110046 | H116: 112241.7748
B117: JC DONNELL 14 FT UN | C117: FORT UNION | D117: =IF(LEFT(B117,12)=[2]Inputs!$C$24,[2]Inputs!$D$24,IF(LEFT(B117,13)=[2]Inputs!$C$25,[2]Inputs!$D$24,[2]Inputs!$D$26)) -> 3.937602527 | E117: 44230 | F117: 174160.1598 | G117: 0.110046 | H117: 19165.62894
B118: JC DONNELL 15 FT UN | C118: FORT UNION | D118: =IF(LEFT(B118,12)=[2]Inputs!$C$24,[2]Inputs!$D$24,IF(LEFT(B118,13)=[2]Inputs!$C$25,[2]Inputs!$D$24,[2]Inputs!$D$26)) -> 3.937602527 | E118: 121273 | F118: 477524.8712 | G118: 0.110046 | H118: 52549.70198
B119: JC DONNELL 16 FT UN | C119: FORT UNION | D119: =IF(LEFT(B119,12)=[2]Inputs!$C$24,[2]Inputs!$D$24,IF(LEFT(B119,13)=[2]Inputs!$C$25,[2]Inputs!$D$24,[2]Inputs!$D$26)) -> 3.937602527 | E119: 186431 | F119: 734091.1767 | G119: 0.110046 | H119: 80783.79763
B120: BW MUSSER 28 FT UN | C120: FORT UNION | D120: =IF(LEFT(B120,12)=[2]Inputs!$C$24,[2]Inputs!$D$24,IF(LEFT(B120,13)=[2]Inputs!$C$25,[2]Inputs!$D$24,[2]Inputs!$D$26)) -> 3.937602527 | E120: 24497 | F120: 96459.4491 | G120: 0.110046 | H120: 10614.97654
B121: BW MUSSER 29 FT UN | C121: FORT UNION | D121: =IF(LEFT(B121,12)=[2]Inputs!$C$24,[2]Inputs!$D$24,IF(LEFT(B121,13)=[2]Inputs!$C$25,[2]Inputs!$D$24,[2]Inputs!$D$26)) -> 3.937602527 | E121: 263111 | F121: 1036026.538 | G121: 0.110046 | H121: 114010.5764
B122: BW MUSSER 26R FT UN | C122: FORT UNION | D122: =IF(LEFT(B122,12)=[2]Inputs!$C$24,[2]Inputs!$D$24,IF(LEFT(B122,13)=[2]Inputs!$C$25,[2]Inputs!$D$24,[2]Inputs!$D$26)) -> 3.937602527 | E122: 155217 | F122: 611182.8514 | G122: 0.1100461 | H122: 67258.28918
B123: CARL ALLEN 30 FT UN | C123: FORT UNION | D123: =IF(LEFT(B123,12)=[2]Inputs!$C$24,[2]Inputs!$D$24,IF(LEFT(B123,13)=[2]Inputs!$C$25,[2]Inputs!$D$24,[2]Inputs!$D$26)) -> 3.937602527 | E123: 203673 | F123: 801983.3194 | G123: 0.110046 | H123: 88255.05637
B124: CARL ALLEN 31 FT UN | C124: FORT UNION | D124: =IF(LEFT(B124,12)=[2]Inputs!$C$24,[2]Inputs!$D$24,IF(LEFT(B124,13)=[2]Inputs!$C$25,[2]Inputs!$D$24,[2]Inputs!$D$26)) -> 3.937602527 | E124: 356481 | F124: 1403680.486 | G124: 0.110046 | H124: 154469.4228
B125: CARL ALLEN 32 FT UN | C125: FORT UNION | D125: =IF(LEFT(B125,12)=[2]Inputs!$C$24,[2]Inputs!$D$24,IF(LEFT(B125,13)=[2]Inputs!$C$25,[2]Inputs!$D$24,[2]Inputs!$D$26)) -> 3.937602527 | E125: 326463 | F125: 1285481.534 | G125: 0.110046 | H125: 141462.1009
B126: CARL ALLEN 33 FT UN | C126: FORT UNION | D126: =IF(LEFT(B126,12)=[2]Inputs!$C$24,[2]Inputs!$D$24,IF(LEFT(B126,13)=[2]Inputs!$C$25,[2]Inputs!$D$24,[2]Inputs!$D$26)) -> 3.937602527 | E126: 45418 | F126: 178838.0316 | G126: 0.110046 | H126: 19680.41002
B127: CARL ALLEN 34 FT UN | C127: FORT UNION | D127: =IF(LEFT(B127,12)=[2]Inputs!$C$24,[2]Inputs!$D$24,IF(LEFT(B127,13)=[2]Inputs!$C$25,[2]Inputs!$D$24,[2]Inputs!$D$26)) -> 3.937602527 | E127: 453339 | F127: 1785068.792 | G127: 0.110046 | H127: 196439.6803
B128: JC DONNELL 18 FT UN | C128: FORT UNION | D128: =IF(LEFT(B128,12)=[2]Inputs!$C$24,[2]Inputs!$D$24,IF(LEFT(B128,13)=[2]Inputs!$C$25,[2]Inputs!$D$24,[2]Inputs!$D$26)) -> 3.937602527 | E128: 103738 | F128: 408479.0109 | G128: 0.110046 | H128: 44951.48124
B129: BW MUSSER 32 FT UN | C129: FORT UNION | D129: =IF(LEFT(B129,12)=[2]Inputs!$C$24,[2]Inputs!$D$24,IF(LEFT(B129,13)=[2]Inputs!$C$25,[2]Inputs!$D$24,[2]Inputs!$D$26)) -> 3.937602527 | E129: 210796 | F129: 830030.8622 | G129: 0.110046 | H129: 91341.57627
B130: STEWART 6 FT UN | C130: FORT UNION | D130: =IF(LEFT(B130,12)=[2]Inputs!$C$24,[2]Inputs!$D$24,IF(LEFT(B130,13)=[2]Inputs!$C$25,[2]Inputs!$D$24,[2]Inputs!$D$26)) -> 3.937602527 | E130: 261141 | F130: 1028269.461 | G130: 0.110046 | H130: 113156.9412
B131: BW MUSSER 36 FT UN | C131: FORT UNION | D131: =IF(LEFT(B131,12)=[2]Inputs!$C$24,[2]Inputs!$D$24,IF(LEFT(B131,13)=[2]Inputs!$C$25,[2]Inputs!$D$24,[2]Inputs!$D$26)) -> 3.937602527 | E131: 254874 | F131: 1003592.506 | G131: 0.110046 | H131: 110441.341
B132: BW MUSSER 37 FT UN | C132: FORT UNION | D132: =IF(LEFT(B132,12)=[2]Inputs!$C$24,[2]Inputs!$D$24,IF(LEFT(B132,13)=[2]Inputs!$C$25,[2]Inputs!$D$24,[2]Inputs!$D$26)) -> 3.937602527 | E132: 174899 | F132: 688682.7443 | G132: 0.110046 | H132: 75786.78128
B133: CARL ALLEN 35 FT UN | C133: FORT UNION | D133: =IF(LEFT(B133,12)=[2]Inputs!$C$24,[2]Inputs!$D$24,IF(LEFT(B133,13)=[2]Inputs!$C$25,[2]Inputs!$D$24,[2]Inputs!$D$26)) -> 3.937602527 | E133: 239442 | F133: 942827.4242 | G133: 0.110046 | H133: 103754.3867
B134: CARL ALLEN 36 FT UN | C134: FORT UNION | D134: =IF(LEFT(B134,12)=[2]Inputs!$C$24,[2]Inputs!$D$24,IF(LEFT(B134,13)=[2]Inputs!$C$25,[2]Inputs!$D$24,[2]Inputs!$D$26)) -> 3.937602527 | E134: 307373 | F134: 1210312.701 | G134: 0.110046 | H134: 133190.0715
A135: RABBIT MTN (CO) | B135: MF FEDERAL 8-1 MANCOS B | C135: MANCOS B | D135: =IF(LEFT(B135,12)=[2]Inputs!$C$24,[2]Inputs!$D$24,IF(LEFT(B135,13)=[2]Inputs!$C$25,[2]Inputs!$D$24,[2]Inputs!$D$26)) -> 3.937602527 | E135: 37523 | F135: 147750.6596 | G135: 0.155 | H135: 22901.35224
B136: RABBIT MTN FED 7-1 MANCOS B | C136: MANCOS B | D136: =IF(LEFT(B136,12)=[2]Inputs!$C$24,[2]Inputs!$D$24,IF(LEFT(B136,13)=[2]Inputs!$C$25,[2]Inputs!$D$24,[2]Inputs!$D$26)) -> 3.937602527 | E136: 50983 | F136: 200750.7896 | G136: 0.125 | H136: 25093.8487
A137: SUGAR LOAF (CO) | B137: SUGARLOAF GOVT 1 MESA | C137: MESAVERDE | D137: =IF(LEFT(B137,12)=[2]Inputs!$C$24,[2]Inputs!$D$24,IF(LEFT(B137,13)=[2]Inputs!$C$25,[2]Inputs!$D$24,[2]Inputs!$D$26)) -> 3.937602527 | E137: 119966 | F137: 472378.4247 | G137: 0.13375 | H137: 63180.61431
B138: SUGARLOAF GOVT 2 MESA | C138: MESAVERDE | D138: =IF(LEFT(B138,12)=[2]Inputs!$C$24,[2]Inputs!$D$24,IF(LEFT(B138,13)=[2]Inputs!$C$25,[2]Inputs!$D$24,[2]Inputs!$D$26)) -> 3.937602527 | E138: 155056 | F138: 610548.8974 | G138: 0.13375 | H138: 81660.91503
B139: SUGARLOAF GOVT 3 FT UN | C139: FORT UNION | D139: =IF(LEFT(B139,12)=[2]Inputs!$C$24,[2]Inputs!$D$24,IF(LEFT(B139,13)=[2]Inputs!$C$25,[2]Inputs!$D$24,[2]Inputs!$D$26)) -> 3.937602527 | E139: 91219 | F139: 359184.1649 | G139: 0.13375 | H139: 48040.88205
B140: SUGARLOAF GOVT 4 MESA | C140: MESAVERDE | D140: =IF(LEFT(B140,12)=[2]Inputs!$C$24,[2]Inputs!$D$24,IF(LEFT(B140,13)=[2]Inputs!$C$25,[2]Inputs!$D$24,[2]Inputs!$D$26)) -> 3.937602527 | E140: 20581 | F140: 81039.7976 | G140: 0.13375 | H140: =F140*G140 -> 10839.07293
B141: SUGARLOAF GOVT 6 MESA | C141: MESAVERDE | D141: =IF(LEFT(B141,12)=[2]Inputs!$C$24,[2]Inputs!$D$24,IF(LEFT(B141,13)=[2]Inputs!$C$25,[2]Inputs!$D$24,[2]Inputs!$D$26)) -> 3.937602527 | E141: 85236 | F141: =D141*E141 -> 335625.489 | G141: 0.13375 | H141: 44889.90915
B142: SUGARLOAF GOVT 8 MESA | C142: MESAVERDE | D142: =IF(LEFT(B142,12)=[2]Inputs!$C$24,[2]Inputs!$D$24,IF(LEFT(B142,13)=[2]Inputs!$C$25,[2]Inputs!$D$24,[2]Inputs!$D$26)) -> 3.937602527 | E142: 27056 | F142: 106535.774 | G142: 0.13375 | H142: 14249.15977
B143: SUGARLOAF GOVT 10 MESA | C143: MESAVERDE | D143: =IF(LEFT(B143,12)=[2]Inputs!$C$24,[2]Inputs!$D$24,IF(LEFT(B143,13)=[2]Inputs!$C$25,[2]Inputs!$D$24,[2]Inputs!$D$26)) -> 3.937602527 | E143: 178137 | F143: 701432.7013 | G143: 0.13375 | H143: 93816.6238
B144: SUGARLOAF GOVT 12 MESA | C144: MESAVERDE | D144: =IF(LEFT(B144,12)=[2]Inputs!$C$24,[2]Inputs!$D$24,IF(LEFT(B144,13)=[2]Inputs!$C$25,[2]Inputs!$D$24,[2]Inputs!$D$26)) -> 3.937602527 | E144: 5113 | F144: 20132.96172 | G144: 0.13375 | H144: 2692.78363
B145: SUGARLOAF GOVT 14 MESA | C145: MESAVERDE | D145: =IF(LEFT(B145,12)=[2]Inputs!$C$24,[2]Inputs!$D$24,IF(LEFT(B145,13)=[2]Inputs!$C$25,[2]Inputs!$D$24,[2]Inputs!$D$26)) -> 3.937602527 | E145: 24046 | F145: 94683.59036 | G145: 0.13375 | H145: 12663.93021
B146: SUGARLOAF GOVT 15 MESA | C146: MESAVERDE | D146: =IF(LEFT(B146,12)=[2]Inputs!$C$24,[2]Inputs!$D$24,IF(LEFT(B146,13)=[2]Inputs!$C$25,[2]Inputs!$D$24,[2]Inputs!$D$26)) -> 3.937602527 | E146: 75417 | F146: 296962.1698 | G146: 0.13375 | H146: 39718.69021
B147: SUGARLOAF GOVT 17 ALMOND | C147: ALMOND | D147: =IF(LEFT(B147,12)=[2]Inputs!$C$24,[2]Inputs!$D$24,IF(LEFT(B147,13)=[2]Inputs!$C$25,[2]Inputs!$D$24,[2]Inputs!$D$26)) -> 3.937602527 | E147: 33949 | F147: 133677.6682 | G147: 0.20375 | H147: 27236.82489
A148: W HIAW (CO) | B148: WB LASHER A 2 WAS | C148: WASATCH | D148: =IF(LEFT(B148,12)=[2]Inputs!$C$24,[2]Inputs!$D$24,IF(LEFT(B148,13)=[2]Inputs!$C$25,[2]Inputs!$D$24,[2]Inputs!$D$26)) -> 3.937602527 | E148: 23563 | F148: 92781.72834 | G148: 0.1925 | H148: 17860.48271
B149: WB LASHER A 4 FT UN | C149: FORT UNION | D149: =IF(LEFT(B149,12)=[2]Inputs!$C$24,[2]Inputs!$D$24,IF(LEFT(B149,13)=[2]Inputs!$C$25,[2]Inputs!$D$24,[2]Inputs!$D$26)) -> 3.937602527 | E149: 59051 | F149: 232519.3668 | G149: 0.1925 | H149: 44759.97811
B150: WM WHEELER A 2 WAS | C150: WASATCH | D150: =IF(LEFT(B150,12)=[2]Inputs!$C$24,[2]Inputs!$D$24,IF(LEFT(B150,13)=[2]Inputs!$C$25,[2]Inputs!$D$24,[2]Inputs!$D$26)) -> 3.937602527 | E150: 38502 | F150: 151605.5725 | G150: 0.1925 | H150: 29184.0727
B151: WM WHEELER A 2 FT UN | C151: FORT UNION | D151: =IF(LEFT(B151,12)=[2]Inputs!$C$24,[2]Inputs!$D$24,IF(LEFT(B151,13)=[2]Inputs!$C$25,[2]Inputs!$D$24,[2]Inputs!$D$26)) -> 3.937602527 | E151: 29435 | F151: 115903.3304 | G151: 0.1925 | H151: 22311.3911
B152: WM WHEELER A 3 FT UN | C152: FORT UNION | D152: =IF(LEFT(B152,12)=[2]Inputs!$C$24,[2]Inputs!$D$24,IF(LEFT(B152,13)=[2]Inputs!$C$25,[2]Inputs!$D$24,[2]Inputs!$D$26)) -> 3.937602527 | E152: 41360 | F152: 162859.2405 | G152: 0.1925 | H152: 31350.4038
B153: WB LASHER A 5 FT UN | C153: FORT UNION | D153: =IF(LEFT(B153,12)=[2]Inputs!$C$24,[2]Inputs!$D$24,IF(LEFT(B153,13)=[2]Inputs!$C$25,[2]Inputs!$D$24,[2]Inputs!$D$26)) -> 3.937602527 | E153: 20980 | F153: 82610.90101 | G153: 0.1840625 | H153: 15205.56897
B154: WB LASHER A 6 LEW/LNC/FT UN | C154: LANCE/LEWIS | D154: =IF(LEFT(B154,12)=[2]Inputs!$C$24,[2]Inputs!$D$24,IF(LEFT(B154,13)=[2]Inputs!$C$25,[2]Inputs!$D$24,[2]Inputs!$D$26)) -> 3.937602527 | E154: 83871 | F154: 330250.6615 | G154: 0.1925 | H154: 63573.25234
B155: WM WHEELER A 4 LEW/LNC/FT UN | C155: LANCE/LEWIS | D155: =IF(LEFT(B155,12)=[2]Inputs!$C$24,[2]Inputs!$D$24,IF(LEFT(B155,13)=[2]Inputs!$C$25,[2]Inputs!$D$24,[2]Inputs!$D$26)) -> 3.937602527 | E155: 114140 | F155: 449437.9524 | G155: 0.1925 | H155: 86516.80584
B156: LASHER 7 LEWIS | C156: LEWIS | D156: =IF(LEFT(B156,12)=[2]Inputs!$C$24,[2]Inputs!$D$24,IF(LEFT(B156,13)=[2]Inputs!$C$25,[2]Inputs!$D$24,[2]Inputs!$D$26)) -> 3.937602527 | E156: 130123 | F156: 512372.6536 | G156: 0.1925 | H156: 98631.73582
B157: LASHER 8 LEWIS | C157: LEWIS | D157: =IF(LEFT(B157,12)=[2]Inputs!$C$24,[2]Inputs!$D$24,IF(LEFT(B157,13)=[2]Inputs!$C$25,[2]Inputs!$D$24,[2]Inputs!$D$26)) -> 3.937602527 | E157: 30594 | F157: 120467.0117 | G157: 0.1840625 | H157: 22173.45934
B158: LASHER 9 LEWIS | C158: LEWIS | D158: =IF(LEFT(B158,12)=[2]Inputs!$C$24,[2]Inputs!$D$24,IF(LEFT(B158,13)=[2]Inputs!$C$25,[2]Inputs!$D$24,[2]Inputs!$D$26)) -> 3.937602527 | E158: 66453 | F158: 261665.5007 | G158: 0.1840625 | H158: 48162.80622
B159: LASHER 10 MESA | C159: MESAVERDE | D159: =IF(LEFT(B159,12)=[2]Inputs!$C$24,[2]Inputs!$D$24,IF(LEFT(B159,13)=[2]Inputs!$C$25,[2]Inputs!$D$24,[2]Inputs!$D$26)) -> 3.937602527 | E159: 14164 | F159: 55772.20219 | G159: 0.2540625 | H159: 14169.62512
B160: LASHER 10 FT UN | C160: FORT UNION | D160: =IF(LEFT(B160,12)=[2]Inputs!$C$24,[2]Inputs!$D$24,IF(LEFT(B160,13)=[2]Inputs!$C$25,[2]Inputs!$D$24,[2]Inputs!$D$26)) -> 3.937602527 | E160: 13752 | F160: 54149.90995 | G160: 0.1840625 | H160: 9966.9678
B161: LASHER 10 LEWIS | C161: LEWIS | D161: =IF(LEFT(B161,12)=[2]Inputs!$C$24,[2]Inputs!$D$24,IF(LEFT(B161,13)=[2]Inputs!$C$25,[2]Inputs!$D$24,[2]Inputs!$D$26)) -> 3.937602527 | E161: 13752 | F161: 54149.90995 | G161: 0.1840625 | H161: 9966.9678
B162: LASHER 11 MESA | C162: MESAVERDE | D162: =IF(LEFT(B162,12)=[2]Inputs!$C$24,[2]Inputs!$D$24,IF(LEFT(B162,13)=[2]Inputs!$C$25,[2]Inputs!$D$24,[2]Inputs!$D$26)) -> 3.937602527 | E162: 39722 | F162: 156409.4476 | G162: 0.2540625 | H162: 39737.77527
B163: LASHER 11 FT UN | C163: FORT UNION | D163: =IF(LEFT(B163,12)=[2]Inputs!$C$24,[2]Inputs!$D$24,IF(LEFT(B163,13)=[2]Inputs!$C$25,[2]Inputs!$D$24,[2]Inputs!$D$26)) -> 3.937602527 | E163: 39722 | F163: 156409.4476 | G163: 0.1840625 | H163: 28789.11394
B164: LASHER 11 LEWIS | C164: LEWIS | D164: =IF(LEFT(B164,12)=[2]Inputs!$C$24,[2]Inputs!$D$24,IF(LEFT(B164,13)=[2]Inputs!$C$25,[2]Inputs!$D$24,[2]Inputs!$D$26)) -> 3.937602527 | E164: 39722 | F164: 156409.4476 | G164: 0.1840625 | H164: 28789.11394
B165: LASHER 11 LANCE | C165: LANCE | D165: =IF(LEFT(B165,12)=[2]Inputs!$C$24,[2]Inputs!$D$24,IF(LEFT(B165,13)=[2]Inputs!$C$25,[2]Inputs!$D$24,[2]Inputs!$D$26)) -> 3.937602527 | E165: 39722 | F165: 156409.4476 | G165: 0.1840625 | H165: 28789.11394
B166: LASHER 12 MESA | C166: MESAVERDE | D166: =IF(LEFT(B166,12)=[2]Inputs!$C$24,[2]Inputs!$D$24,IF(LEFT(B166,13)=[2]Inputs!$C$25,[2]Inputs!$D$24,[2]Inputs!$D$26)) -> 3.937602527 | E166: 23381 | F166: 92065.08468 | G166: 0.2540625 | H166: 23390.28558
B167: LASHER 12 FT UN | C167: FORT UNION | D167: =IF(LEFT(B167,12)=[2]Inputs!$C$24,[2]Inputs!$D$24,IF(LEFT(B167,13)=[2]Inputs!$C$25,[2]Inputs!$D$24,[2]Inputs!$D$26)) -> 3.937602527 | E167: 23376 | F167: 92045.39667 | G167: 0.1840625 | H167: 16942.10582
B168: LASHER 12 LEWIS | C168: LEWIS | D168: =IF(LEFT(B168,12)=[2]Inputs!$C$24,[2]Inputs!$D$24,IF(LEFT(B168,13)=[2]Inputs!$C$25,[2]Inputs!$D$24,[2]Inputs!$D$26)) -> 3.937602527 | E168: 23376 | F168: 92045.39667 | G168: 0.1840625 | H168: 16942.10582
B169: LASHER 12 LANCE | C169: LANCE | D169: =IF(LEFT(B169,12)=[2]Inputs!$C$24,[2]Inputs!$D$24,IF(LEFT(B169,13)=[2]Inputs!$C$25,[2]Inputs!$D$24,[2]Inputs!$D$26)) -> 3.937602527 | E169: 23376 | F169: 92045.39667 | G169: 0.1840625 | H169: 16942.10582
B170: WHEELER 6 MESA | C170: MESAVERDE | D170: =IF(LEFT(B170,12)=[2]Inputs!$C$24,[2]Inputs!$D$24,IF(LEFT(B170,13)=[2]Inputs!$C$25,[2]Inputs!$D$24,[2]Inputs!$D$26)) -> 3.937602527 | E170: 30056 | F170: 118348.5815 | G170: 0.2625 | H170: 31066.50266
B171: WHEELER 6 LEW/LAN/FT UN | C171: LANCE/LEWIS | D171: =IF(LEFT(B171,12)=[2]Inputs!$C$24,[2]Inputs!$D$24,IF(LEFT(B171,13)=[2]Inputs!$C$25,[2]Inputs!$D$24,[2]Inputs!$D$26)) -> 3.937602527 | E171: 41678 | F171: 164111.3981 | G171: 0.1925 | H171: 31591.44414
B172: WHEELER 5 MESA | C172: MESAVERDE | D172: =IF(LEFT(B172,12)=[2]Inputs!$C$24,[2]Inputs!$D$24,IF(LEFT(B172,13)=[2]Inputs!$C$25,[2]Inputs!$D$24,[2]Inputs!$D$26)) -> 3.937602527 | E172: 4473 | F172: 17612.8961 | G172: 0.2625 | H172: 4623.385227
B173: WHEELER 5 LEW/LAN/FT UN | C173: LANCE/LEWIS | D173: =IF(LEFT(B173,12)=[2]Inputs!$C$24,[2]Inputs!$D$24,IF(LEFT(B173,13)=[2]Inputs!$C$25,[2]Inputs!$D$24,[2]Inputs!$D$26)) -> 3.937602527 | E173: 94897 | F173: 373666.667 | G173: 0.1925 | H173: 71930.83339
B174: WHEELER 7 MESA | C174: MESAVERDE | D174: =IF(LEFT(B174,12)=[2]Inputs!$C$24,[2]Inputs!$D$24,IF(LEFT(B174,13)=[2]Inputs!$C$25,[2]Inputs!$D$24,[2]Inputs!$D$26)) -> 3.937602527 | E174: 9819 | F174: 38663.31921 | G174: 0.2625 | H174: 10149.12129
B175: WHEELER 7 LEW/LAN/FT UN | C175: LANCE/LEWIS | D175: =IF(LEFT(B175,12)=[2]Inputs!$C$24,[2]Inputs!$D$24,IF(LEFT(B175,13)=[2]Inputs!$C$25,[2]Inputs!$D$24,[2]Inputs!$D$26)) -> 3.937602527 | E175: 22265 | F175: 87670.72026 | G175: 0.1925 | H175: 16876.61365
B176: WHEELER 8 MESA | C176: MESAVERDE | D176: =IF(LEFT(B176,12)=[2]Inputs!$C$24,[2]Inputs!$D$24,IF(LEFT(B176,13)=[2]Inputs!$C$25,[2]Inputs!$D$24,[2]Inputs!$D$26)) -> 3.937602527 | E176: 1116 | F176: 4394.36442 | G176: 0.2625 | H176: 1153.52066
B177: WHEELER 8 LEW/LAN/FT UN | C177: LANCE/LEWIS | D177: =IF(LEFT(B177,12)=[2]Inputs!$C$24,[2]Inputs!$D$24,IF(LEFT(B177,13)=[2]Inputs!$C$25,[2]Inputs!$D$24,[2]Inputs!$D$26)) -> 3.937602527 | E177: 11300 | F177: 44494.90855 | G177: 0.1925 | H177: 8565.269896
B178: WHEELER 9 MESA | C178: MESAVERDE | D178: =IF(LEFT(B178,12)=[2]Inputs!$C$24,[2]Inputs!$D$24,IF(LEFT(B178,13)=[2]Inputs!$C$25,[2]Inputs!$D$24,[2]Inputs!$D$26)) -> 3.937602527 | E178: 10206 | F178: 40187.17139 | G178: 0.2625 | H178: 10549.13249
B179: WHEELER 9 LEW/LAN/FT UN | C179: LANCE/LEWIS | D179: =IF(LEFT(B179,12)=[2]Inputs!$C$24,[2]Inputs!$D$24,IF(LEFT(B179,13)=[2]Inputs!$C$25,[2]Inputs!$D$24,[2]Inputs!$D$26)) -> 3.937602527 | E179: 89841 | F179: 353758.1486 | G179: 0.1925 | H179: 68098.44361
A180: CLAY BASIN (UT) | B180: CLAY BASIN UNIT 7 FR | C180: FRONTIER | D180: =IF(LEFT(B180,12)=[2]Inputs!$C$24,[2]Inputs!$D$24,IF(LEFT(B180,13)=[2]Inputs!$C$25,[2]Inputs!$D$24,[2]Inputs!$D$26)) -> 3.937602527 | E180: 24940 | F180: 98203.80702 | G180: 0.1549177 | H180: 15213.50791
B181: CLAY BASIN UNIT 8 FR | C181: FRONTIER | D181: =IF(LEFT(B181,12)=[2]Inputs!$C$24,[2]Inputs!$D$24,IF(LEFT(B181,13)=[2]Inputs!$C$25,[2]Inputs!$D$24,[2]Inputs!$D$26)) -> 3.937602527 | E181: 47074 | F181: 185358.7013 | G181: 0.1549177 | H181: 28715.34369
B182: CLAY BASIN UNIT 9 FR | C182: FRONTIER | D182: =IF(LEFT(B182,12)=[2]Inputs!$C$24,[2]Inputs!$D$24,IF(LEFT(B182,13)=[2]Inputs!$C$25,[2]Inputs!$D$24,[2]Inputs!$D$26)) -> 3.937602527 | E182: 34202 | F182: 134673.8816 | G182: 0.1549177 | H182: 20863.36799
B183: CLAY BASIN UNIT 12 FR | C183: FRONTIER | D183: =IF(LEFT(B183,12)=[2]Inputs!$C$24,[2]Inputs!$D$24,IF(LEFT(B183,13)=[2]Inputs!$C$25,[2]Inputs!$D$24,[2]Inputs!$D$26)) -> 3.937602527 | E183: 46570 | F183: 183374.1497 | G183: 0.1549177 | H183: 28407.90151
B184: CLAY BASIN UNIT 13 FR | C184: FRONTIER | D184: =IF(LEFT(B184,12)=[2]Inputs!$C$24,[2]Inputs!$D$24,IF(LEFT(B184,13)=[2]Inputs!$C$25,[2]Inputs!$D$24,[2]Inputs!$D$26)) -> 3.937602527 | E184: 47694 | F184: 187800.0149 | G184: 0.1549177 | H184: 29093.54637
B185: CLAY BASIN UNIT 14 FR | C185: FRONTIER | D185: =IF(LEFT(B185,12)=[2]Inputs!$C$24,[2]Inputs!$D$24,IF(LEFT(B185,13)=[2]Inputs!$C$25,[2]Inputs!$D$24,[2]Inputs!$D$26)) -> 3.937602527 | E185: 31528 | F185: 124144.7325 | G185: 0.1549177 | H185: 19232.21642
B186: CLAY BASIN UNIT 15 FR | C186: LANCE | D186: =IF(LEFT(B186,12)=[2]Inputs!$C$24,[2]Inputs!$D$24,IF(LEFT(B186,13)=[2]Inputs!$C$25,[2]Inputs!$D$24,[2]Inputs!$D$26)) -> 3.937602527 | E186: 187935 | F186: 740013.3309 | G186: 0.1549177 | H186: 114641.1632
B187: CLAY BASIN UNIT 16 FR | C187: FRONTIER | D187: =IF(LEFT(B187,12)=[2]Inputs!$C$24,[2]Inputs!$D$24,IF(LEFT(B187,13)=[2]Inputs!$C$25,[2]Inputs!$D$24,[2]Inputs!$D$26)) -> 3.937602527 | E187: 26633 | F187: 104870.1681 | G187: 0.1549177 | H187: 16246.24524
B188: CLAY BASIN UNIT 17 FR | C188: FRONTIER | D188: =IF(LEFT(B188,12)=[2]Inputs!$C$24,[2]Inputs!$D$24,IF(LEFT(B188,13)=[2]Inputs!$C$25,[2]Inputs!$D$24,[2]Inputs!$D$26)) -> 3.937602527 | E188: 56623 | F188: 222958.8679 | G188: 0.1549177 | H188: 34540.27501
B189: CLAY BASIN UNIT 18 FR | C189: FRONTIER | D189: =IF(LEFT(B189,12)=[2]Inputs!$C$24,[2]Inputs!$D$24,IF(LEFT(B189,13)=[2]Inputs!$C$25,[2]Inputs!$D$24,[2]Inputs!$D$26)) -> 3.937602527 | E189: 37161 | F189: 146325.2475 | G189: 0.1549177 | H189: 22668.37079
B190: CLAY BASIN UNIT 19 FR | C190: FRONTIER | D190: =IF(LEFT(B190,12)=[2]Inputs!$C$24,[2]Inputs!$D$24,IF(LEFT(B190,13)=[2]Inputs!$C$25,[2]Inputs!$D$24,[2]Inputs!$D$26)) -> 3.937602527 | E190: 81855 | F190: 322312.4548 | G190: 0.1549177 | H190: 49931.90418
B191: CLAY BASIN UNIT 20 FR | C191: FRONTIER | D191: =IF(LEFT(B191,12)=[2]Inputs!$C$24,[2]Inputs!$D$24,IF(LEFT(B191,13)=[2]Inputs!$C$25,[2]Inputs!$D$24,[2]Inputs!$D$26)) -> 3.937602527 | E191: 41276 | F191: 162528.4819 | G191: 0.1549177 | H191: 25178.5386
B192: CLAY BASIN UNIT 22 FR | C192: FRONTIER | D192: =IF(LEFT(B192,12)=[2]Inputs!$C$24,[2]Inputs!$D$24,IF(LEFT(B192,13)=[2]Inputs!$C$25,[2]Inputs!$D$24,[2]Inputs!$D$26)) -> 3.937602527 | E192: 48036 | F192: 189146.675 | G192: 0.1549177 | H192: 29302.16785
B193: CLAY BASIN UNIT 23 FR | C193: FRONTIER | D193: =IF(LEFT(B193,12)=[2]Inputs!$C$24,[2]Inputs!$D$24,IF(LEFT(B193,13)=[2]Inputs!$C$25,[2]Inputs!$D$24,[2]Inputs!$D$26)) -> 3.937602527 | E193: 40888 | F193: 161000.6921 | G193: 0.1549177 | H193: 24941.85692
B194: CLAY BASIN UNIT 62 FR | C194: FRONTIER | D194: =IF(LEFT(B194,12)=[2]Inputs!$C$24,[2]Inputs!$D$24,IF(LEFT(B194,13)=[2]Inputs!$C$25,[2]Inputs!$D$24,[2]Inputs!$D$26)) -> 3.937602527 | E194: 187613 | F194: 738745.4229 | G194: 0.1549177 | H194: 114444.7418
B195: CLAY BASIN UNIT 61 FR | C195: FRONTIER | D195: =IF(LEFT(B195,12)=[2]Inputs!$C$24,[2]Inputs!$D$24,IF(LEFT(B195,13)=[2]Inputs!$C$25,[2]Inputs!$D$24,[2]Inputs!$D$26)) -> 3.937602527 | E195: 56897 | F195: 224037.771 | G195: 0.1549177 | H195: 34707.41619
A196: ISLAND (UT) | B196: ISLAND UNIT 3 WAS | C196: WASATCH | D196: =IF(LEFT(B196,12)=[2]Inputs!$C$24,[2]Inputs!$D$24,IF(LEFT(B196,13)=[2]Inputs!$C$25,[2]Inputs!$D$24,[2]Inputs!$D$26)) -> 3.937602527 | E196: 20635 | F196: 81252.42814 | G196: 0.1347327 | H196: 10947.35902
B197: ISLAND UNIT 9 WAS | C197: WASATCH | D197: =IF(LEFT(B197,12)=[2]Inputs!$C$24,[2]Inputs!$D$24,IF(LEFT(B197,13)=[2]Inputs!$C$25,[2]Inputs!$D$24,[2]Inputs!$D$26)) -> 3.937602527 | E197: 25855 | F197: 101806.7133 | G197: 0.1347327 | H197: 13716.69337
B198: ISLAND UNIT 14 WAS | C198: WASATCH | D198: =IF(LEFT(B198,12)=[2]Inputs!$C$24,[2]Inputs!$D$24,IF(LEFT(B198,13)=[2]Inputs!$C$25,[2]Inputs!$D$24,[2]Inputs!$D$26)) -> 3.937602527 | E198: 13856 | F198: 54559.42061 | G198: 0.1347327 | H198: 7350.938049
B199: ISLAND UNIT 15 WAS | C199: WASATCH | D199: =IF(LEFT(B199,12)=[2]Inputs!$C$24,[2]Inputs!$D$24,IF(LEFT(B199,13)=[2]Inputs!$C$25,[2]Inputs!$D$24,[2]Inputs!$D$26)) -> 3.937602527 | E199: 25108 | F199: 98865.32424 | G199: 0.1347327 | H199: 13320.39207
B200: ISLAND UNIT 11 WAS | C200: WASATCH | D200: =IF(LEFT(B200,12)=[2]Inputs!$C$24,[2]Inputs!$D$24,IF(LEFT(B200,13)=[2]Inputs!$C$25,[2]Inputs!$D$24,[2]Inputs!$D$26)) -> 3.937602527 | E200: 8035 | F200: 31638.6363 | G200: 0.1347327 | H200: 4262.758893
B201: ISLAND UNIT 13 WAS | C201: WASATCH | D201: =IF(LEFT(B201,12)=[2]Inputs!$C$24,[2]Inputs!$D$24,IF(LEFT(B201,13)=[2]Inputs!$C$25,[2]Inputs!$D$24,[2]Inputs!$D$26)) -> 3.937602527 | E201: 29521 | F201: 116241.9642 | G201: 0.1347327 | H201: 15661.59369
B202: ISLAND UNIT 12 WAS | C202: WASATCH | D202: =IF(LEFT(B202,12)=[2]Inputs!$C$24,[2]Inputs!$D$24,IF(LEFT(B202,13)=[2]Inputs!$C$25,[2]Inputs!$D$24,[2]Inputs!$D$26)) -> 3.937602527 | E202: 12644 | F202: 49787.04635 | G202: 0.1347327 | H202: 6707.94318
... 1079 more rows

Sheet Ut 1.2
I1: ='Control Panel'!$F$32 -> Questar Gas Company
I2: ='Control Panel'!$F$33 -> Docket No. 11-057-02
I3: Exhibit 1.2
B8: TEST YEAR PURCHASED GAS COSTS
D11: (A) | E11: (B) | F11: (C) | G11: (D)
F12: Cost
C13: Component | E13: Dth | F13: per Dth | G13: Total Cost
B15: 1 | C15: Current Contracts | G15: =ROUND(Calculations!$P$181+Calculations!$P$184-G16,0) -> 101577330
B16: =B15+1 -> 2 | C16: Stabilization Costs | G16: ='Monthly Inputs'!S100 -> 1999999.98
B17: =B16+1 -> 3 | D17: Total Current Contracts | E17: =Calculations!$P$180+Calculations!$P$183 -> 23580000 | F17: =G17/E17 -> 4.39259245 | G17: =G15+G16 -> 103577330
B19: =B17+1 -> 4 | C19: Forecast Spot | E19: =Calculations!$P$177 -> 17964497 | F19: =G19/E19 -> 3.980395276 | G19: =ROUND(Calculations!P178,0) -> 71505799
B21: =B19+1 -> 5 | C21: Future Contracts | E21: =Calculations!P186 -> 3195778 | F21: =G21/E21 -> 3.916312397 | G21: =ROUND(Calculations!P187,0) -> 12515665
B24: =B21+1 -> 6 | C24: Total Gas Purchased | E24: =E17+E19+E21 -> 44740275 | F24: =G24/E24 -> 4.193063051 | G24: =G17+G19+G21 -> 187598794

Sheet Ut 1.3 p1
N1: ='Control Panel'!$F$32 -> Questar Gas Company
N2: ='Control Panel'!$F$33 -> Docket No. 11-057-02
N3: Exhibit 1.3
N4: Page 1 of 2
B8: TEST YEAR TRANSPORTATION, GATHERING AND PROCESSING CHARGES
B11: (A) | D11: (B) | F11: (C) | H11: (D) | J11: (E) | L11: (F) | M11: (G)
D12: Fctr | F12: Dth | H12: Months/Days | J12: Rate | M12: Total Costs
B14: TRANSPORTATION DEMAND
B16: QPC Demand
A17: 1 | B17: T-1 Transportation - Yearly | F17: ='Other Inputs'!D22 -> 900902 | G17: x | H17: ='Other Inputs'!E22 -> 12 | I17: x | J17: ='Other Inputs'!F19 -> 5.28804 | K17: = | L17: =ROUND(F17*H17*J17,0) -> 57168070 | Q17: =L17*'Ut 1.5'!$G$51 -> 55413574.4
A18: =A17+1 -> 2 | B18: No-Notice Transportation | F18: ='Other Inputs'!D26 -> 203542 | G18: x | H18: ='Other Inputs'!E26 -> 12 | I18: x | J18: ='Other Inputs'!F26 -> 0.86753 | K18: = | L18: =ROUND(F18*H18*J18,0) -> 2118945 | Q18: =L18*'Ut 1.5'!$G$51 -> 2053914.299
A19: =A18+1 -> 3 | B19: Capacity Release Credits | L19: =-ROUND('Other Inputs'!E262,0) -> -475816 | Q19: =L19*'Ut 1.5'!$G$51 -> -461213.1443
A20: =A19+1 -> 4 | C20: Total | L20: =SUM(L17:L19) -> 58811199 | Q20: =L20*'Ut 1.5'!$G$51 -> 57006275.56
Q21: =L21*'Ut 1.5'!$G$51 -> 0
B22: Kern River Demand | Q22: =L22*'Ut 1.5'!$G$51 -> 0
A23: =A20+1 -> 5 | B23: January - December | F23: ='Other Inputs'!D52 -> 1885 | G23: x | H23: ='Other Inputs'!E52 -> 12 | I23: x | J23: ='Other Inputs'!F52 -> 17.74204167 | K23: = | L23: =ROUND(F23*H23*J23,0) -> 401325
A24: =A23+1 -> 6 | B24: January - December | F24: ='Other Inputs'!D50 -> 3000 | G24: x | H24: ='Other Inputs'!E50 -> 12 | I24: x | J24: ='Other Inputs'!F50 -> 14.34754167 | K24: = | L24: =ROUND(F24*H24*J24,0) -> 516512 | Q24: =L24*'Ut 1.5'!$G$51 -> 500660.1787
A25: =A24+1 -> 7 | B25: November - March | F25: ='Other Inputs'!D51 -> 50000 | G25: x | H25: ='Other Inputs'!E51 -> 5 | I25: x | J25: =J24 -> 14.34754167 | K25: = | L25: =ROUND(F25*H25*J25,0) -> 3586885 | Q25: =L25*'Ut 1.5'!$G$51 -> 3476803.027
A26: =A25+1 -> 8 | C26: Total | L26: =SUM(L23:L25) -> 4504722 | Q26: =L26*'Ut 1.5'!$G$51 -> 4366471.488
Q27: =L27*'Ut 1.5'!$G$51 -> 0
A28: =A26+1 -> 9 | B28: Total Transportation Demand (SNG) | M28: =L20+L26 -> 63315921 | Q28: =M28*'Ut 1.5'!$G$51 -> 61372747.04
B31: TRANSPORTATION COMMODITY
B33: QPC Commodity
A34: =A28+1 -> 10 | B34: QPC Commodity (SNG) | F34: =F35-(D39*F39*H39)-(D40*F40*H40) -> 109348725 | I34: x | J34: ='Other Inputs'!F34 -> 0.00267 | K34: = | L34: =ROUND(F34*J34,0) -> 291961
A35: =A34+1 -> 11 | B35: ACA | F35: =Calculations!$P$170 -> 124754338.7 | I35: x | J35: ='Other Inputs'!F35 -> 0.0019 | K35: = | L35: =ROUND(F35*J35,0) -> 237033
A36: =A35+1 -> 12 | C36: Total | L36: =SUM(L34:L35) -> 528994
B38: Kern River Commodity
A39: =A36+1 -> 13 | B39: January - December | D39: ='Other Inputs'!C56 -> 1.650656 | E39: x | F39: ='Other Inputs'!D56 -> 4885 | G39: x | H39: ='Other Inputs'!E56 -> 365 | I39: x | J39: ='Other Inputs'!F56 -> 0.0044 | K39: = | L39: =ROUND(D39*F39*H39*J39,0) -> 12950
A40: =A39+1 -> 14 | B40: November - March | D40: ='Other Inputs'!C57 -> 1.650656 | E40: x | F40: ='Other Inputs'!D57 -> 50000 | G40: x | H40: ='Other Inputs'!E57 -> 151 | I40: x | J40: ='Other Inputs'!F57 -> 0.0044 | K40: = | L40: =ROUND(D40*F40*H40*J40,0) -> 54835
A41: =A40+1 -> 15 | C41: Total (SNG) | L41: =SUM(L39:L40) -> 67785
A43: =A41+1 -> 16 | B43: Total Transportation Commodity | M43: =L36+L41 -> 596779
B46: OTHER CHARGES
A48: =A43+1 -> 17 | B48: QEP Field Services Demand | H48: 12 | I48: x | J48: ='Other Inputs'!E169 -> 1060315 | K48: = | L48: =ROUND(H48*J48,0) -> 12723780
A49: =A48+1 -> 18 | B49: QEP Field Services Commodity | F49: ='Other Inputs'!D170 -> 49474888.09 | I49: x | J49: ='Other Inputs'!D169 -> 0.20764 | K49: = | L49: =ROUND(F49*J49,0) -> 10272966
A50: =A49+1 -> 19 | C50: Total QEP Field Services (SNG) | M50: =L48+L49 -> 22996746
A52: =A50+1 -> 20 | B52: Other Gathering & Processing Charges | L52: =ROUND('Other Inputs'!D161,0) -> 3012176
A53: =A52+1 -> 21 | B53: Other Transportation Charges | L53: =ROUND('Other Inputs'!$D$163,0) -> 2226751
A54: =A53+1 -> 22 | C54: Total Other Gathering, Processing and Transportation (SNG) | M54: =SUM(L52:L53) -> 5238927
A59: =A54+1 -> 23 | B59: TOTAL TRANSPORTATION AND OTHER CHARGES | M59: =M28+M43+M50+M54 -> 92148373

Sheet Ut 1.3 p2
L1: ='Control Panel'!$F$32 -> Questar Gas Company
L2: ='Control Panel'!$F$33 -> Docket No. 11-057-02
L3: Exhibit 1.3
L4: Page 2 of 2
B8: TEST YEAR STORAGE AND WORKING GAS CHARGES
B11: (A) | D11: (B) | F11: (C) | H11: (D) | J11: (E) | K11: (F)
B13: STORAGE CHARGES 1/
B15: Component | D15: Dth | F15: Months | H15: Rate | K15: Total Costs
B16: Storage Demand
A17: 1 | B17: Peaking Demand | D17: ='Other Inputs'!E148 -> 184625 | E17: x | F17: 12 | G17: x | H17: ='Other Inputs'!E12 -> 2.87375 | I17: = | J17: =ROUND(D17*F17*H17,0) -> 6366793
A18: =A17+1 -> 2 | B18: Clay Basin Demand | D18: ='Other Inputs'!E149 -> 111827 | E18: x | F18: 12 | G18: x | H18: ='Other Inputs'!E13 -> 2.85338 | I18: = | J18: =ROUND(D18*F18*H18,0) -> 3829019
A19: =A18+1 -> 3 | B19: Clay Basin Capacity | D19: ='Other Inputs'!E150 -> 13419000 | E19: x | F19: 12 | G19: x | H19: ='Other Inputs'!E14 -> 0.02378 | I19: = | J19: =ROUND(D19*F19*H19,0) -> 3829246
A20: =A19+1 -> 4 | C20: Total Demand Charges (SNG) | J20: =J17+J18+J19 -> 14025058
B22: Storage Commodity 2/
A23: =A20+1 -> 5 | B23: Peaking Injections | D23: =(+'Monthly Inputs'!S35+'Monthly Inputs'!S37+'Monthly Inputs'!S38) -> 1158918 | F23: x | H23: ='Other Inputs'!E6 -> 0.03872 | I23: = | J23: =ROUND(D23*H23,0) -> 44873
A24: =A23+1 -> 6 | B24: Peaking Withdrawals | D24: =(+'Monthly Inputs'!S42+'Monthly Inputs'!S44+'Monthly Inputs'!S45) -> 1568152 | F24: x | H24: ='Other Inputs'!E7 -> 0.03872 | I24: = | J24: =ROUND(D24*H24,0) -> 60719
A25: =A24+1 -> 7 | B25: Clay Basin Injections | D25: ='Monthly Inputs'!S36 -> 13799450 | F25: x | H25: ='Other Inputs'!E8 -> 0.01049 | I25: = | J25: =ROUND(D25*H25,0) -> 144756
A26: =A25+1 -> 8 | B26: Clay Basin Withdrawals | D26: ='Monthly Inputs'!S43 -> 13419000 | F26: x | H26: ='Other Inputs'!E9 -> 0.01781 | I26: = | J26: =ROUND(D26*H26,0) -> 238992
A27: =A26+1 -> 9 | C27: Total Commodity Charges | J27: =J23+J24+J25+J26 -> 489340
A29: =A27+1 -> 10 | B29: Total Storage Charges | K29: =J20+J27 -> 14514398
B32: WORKING GAS CHARGES - QGC Account 164
C34: Month | D34: Amount | H34: Pre-Tax Return %
A36: =A29+1 -> 11 | C36: =+'Rate Base'!H8 -> 2010-03-21 | D36: =+'Rate Base'!H209 -> 10739956.55
A37: =A36+1 -> 12 | C37: =+'Rate Base'!I8 -> 2010-04-20 | D37: =+'Rate Base'!I209 -> 6154786.44
A38: 13 | C38: =+'Rate Base'!J8 -> 2010-05-20 | D38: =+'Rate Base'!J209 -> 12391143.29
A39: 14 | C39: =+'Rate Base'!K8 -> 2010-06-19 | D39: =+'Rate Base'!K209 -> 19166323.62
A40: 15 | C40: =+'Rate Base'!L8 -> 2010-07-19 | D40: =+'Rate Base'!L209 -> 31735056.07
A41: 16 | C41: =+'Rate Base'!M8 -> 2010-08-18 | D41: =+'Rate Base'!M209 -> 43791078.54
A42: 17 | C42: =+'Rate Base'!N8 -> 2010-09-17 | D42: =+'Rate Base'!N209 -> 52502815.44
A43: 18 | C43: =+'Rate Base'!O8 -> 2010-10-17 | D43: =+'Rate Base'!O209 -> 59271925.54
A44: 19 | C44: =+'Rate Base'!P8 -> 2010-11-16 | D44: =+'Rate Base'!P209 -> 59109161.38
A45: 20 | C45: =+'Rate Base'!Q8 -> 2010-12-16 | D45: =+'Rate Base'!Q209 -> 43289915.13
A46: 21 | C46: =+'Rate Base'!R8 -> 2011-01-15 | D46: =+'Rate Base'!R209 -> 31369107.92
A47: 22 | C47: =+'Rate Base'!S8 -> 2011-02-14 | D47: =+'Rate Base'!S209 -> 19870006.36
A48: 23 | C48: =+'Rate Base'!T8 -> 2011-03-16 | D48: =+'Rate Base'!T209 -> 10598542.29
A51: =A48+1 -> 24 | B51: 13-Month Average 3/ | D51: =(SUM(D37:D47)+D36/2+D48/2)/12 -> 32443380.76 | F51: x | H51: ='Other Inputs'!E252 -> 0.1179 | J51: = | K51: =D51*H51 -> 3825074.592
A54: =A51+1 -> 25 | B54: TOTAL FIRM STORAGE AND WORKING GAS CHARGES | K54: =K51+K29 -> 18339472.59
A58: 1/ | B58: =CONCATENATE("Exhibit 1.9 - ",'Other Inputs'!G17) -> Exhibit 1.9 - 1/1/2011
A59: 2/ | B59: Questar Gas planned volumes.
A60: 3/ | B60: (½ of Line 11 + sum of Lines 12 through 22 + ½ of Line 23) / 12

Sheet Ut 1.4 p1
H1: ='Control Panel'!$F$32 -> Questar Gas Company
H2: ='Control Panel'!$F$33 -> Docket No. 11-057-02
H3: Exhibit 1.4
H4: Page 1 of 3
B8: SUMMARY OF TEST-YEAR GAS RELATED COSTS AND REVENUES CREDITS
B11: (A) | E11: (B) | F11: (C) | G11: (D)
B12: Component | E12: Costs | F12: Dth | G12: $ per Dth
A14: 1 | C14: Questar Gas Production 1/ | E14: ='Other Inputs'!D178 -> 300883313
A15: =A14+1 -> 2 | C15: Other Revenues Credits 2/ | E15: =-'Ut 1.4 p3'!H32 -> -33809808
A16: =A15+1 -> 3 | D16: Net Questar Gas Production Costs | E16: =E14+E15 -> 267073505 | F16: =F21 -> 69940889 | G16: =E16/F21 -> 3.818560342
A18: =A16+1 -> 4 | D18: Gathering 3/ | E18: ='Ut 1.3 p1'!L52+'Ut 1.3 p1'!M50 -> 26008922
A21: =A18+1 -> 5 | B21: Total Cost of Questar Gas Production | E21: =SUM(E16:E18) -> 293082427 | F21: ='Monthly Inputs'!S16 -> 69940889 | G21: =E21/F21 -> 4.190430394
A23: =A21+1 -> 6 | B23: Questar Gas Contract Gas 4/ | E23: ='Ut 1.2'!G24 -> 187598794 | F23: ='Ut 1.2'!E24 -> 44740275 | G23: =E23/F23 -> 4.193063051
A25: =A23+1 -> 7 | B25: Injection / Withdrawal Adjustment 5/ | E25: ='Ut 1.4 p2'!H23 -> -111238.8083
A27: =A25+1 -> 8 | B27: Transportation & Other Costs 6/ | E27: ='Ut 1.3 p1'!M59-E18-'Ut 1.3 p1'!M56 -> 66139451 | F27: ='Ut 1.3 p1'!F34 -> 109348725 | G27: =E27/F27 -> 0.6048488541
A29: =A27+1 -> 9 | B29: Storage & Working Gas 7/ | E29: ='Ut 1.3 p2'!K54 -> 18339472.59
B31: Gas Management Costs | E31: ='Ut 1.3 p1'!M56 -> 0
A34: =A29+1 -> 10 | B34: Questar Gas - Related Gas Costs for Rate Purposes 8/ | E34: =E21+E23+E25+E27+E29+E31 -> 565048905.8 | F34: ='Ut 1.6 p1'!H23 -> 109062874 | G34: =E34/F34 -> 5.180946413
A41: 1/ | B41: Exhibit 1.1, Last Page.
A42: 2/ | B42: Exhibit 1.4, Page 3, Line 8.
A43: 3/ | B43: Exhibit 1.3, Page 1, Lines 18 + 19.
A44: 4/ | B44: Exhibit 1.2, Line 6.
A45: 5/ | B45: Exhibit 1.4, Page 2, Line 7.
A46: 6/ | B46: Exhibit 1.3, Page 1, Lines 8 + 15 + 20.
A47: 7/ | B47: Exhibit 1.3, Page 2, Line 25.
A48: 8/ | B48: Exhibit 1.6, Page 1, Line 6.

Sheet Ut 1.4 p2
J1: ='Control Panel'!$F$32 -> Questar Gas Company
J2: ='Control Panel'!$F$33 -> Docket No. 11-057-02
J3: Exhibit 1.4
J4: Page 2 of 3
B8: ANNUALIZED UNIT COST OF STORAGE GAS
C11: (A) | E11: (B) | F11: (C) | H11: (D)
F12: Average
E13: Dth | F13: Rate | H13: Total Costs
B15: 1 | C15: Company Production 1/ | E15: ='Ut 1.4 p1'!F21 -> 69940889 | F15: =H15/E15 -> 4.301965808 | H15: ='Ut 1.4 p1'!E14 -> 300883313
B16: =B15+1 -> 2 | C16: Purchased Gas 2/ | E16: ='Ut 1.2'!E24 -> 44740275 | F16: =H16/E16 -> 4.193063051 | H16: ='Ut 1.2'!G24 -> 187598794
B17: =B16+1 -> 3 | C17: Average Price | E17: =SUM(E15:E16) -> 114681164 | F17: =(+H15+H16)/(+E15+E16) -> 4.259479848 | H17: =SUM(H15:H16) -> 488482107
B20: 4 | C20: Storage 3/
B21: =B20+1 -> 5 | C21: Withdrawals | E21: ='Monthly Inputs'!S46 -> 14987152 | F21: ='Ut Storage'!L27 -> 4.236089458 | H21: =E21*F21 -> 63486916.6
B22: =B21+1 -> 6 | C22: Injections | E22: =-'Monthly Inputs'!S39 -> -14958368 | F22: ='Ut Storage'!K27 -> 4.251677416 | H22: =E22*F22 -> -63598155.4
B23: =B22+1 -> 7 | C23: Storage Adjustment | H23: =H21+H22 -> -111238.8083
B29: 1/ | C29: Exhibit 1.1, last Page.
B30: 2/ | C30: Exhibit 1.2, Line 6.
B31: 3/ | C31: Questar Gas Company planned volumes.

Sheet Ut 1.4 p3
K1: ='Control Panel'!$F$32 -> Questar Gas Company
K2: ='Control Panel'!$F$33 -> Docket No. 11-057-02
K3: Exhibit 1.4
K4: Page 3 of 3
D8: OTHER REVENUES
C11: (A) | E11: (B) | F11: (C) | G11: (D)
C12: Account | G12: =Expenses!S8 -> 12 Months Ending
C13: Number | E13: Account Name | G13: ='Control Panel'!F7 -> 2012-05-31
B15: 1 | D15: 483 | E15: Sales for Resale | H15: ='Other Inputs'!F185 -> 4565734 | I15: 1/
B18: =B15+1 -> 2 | D18: 490 | E18: Plant By-Product | H18: ='Other Inputs'!F186 -> 5546394 | I18: 1/
B21: =B18+1 -> 3 | D21: 492 | E21: Gasoline and Oil Sales | F21: ='Other Inputs'!F187 -> 1659134 | G21: 1/
B22: =B21+1 -> 4 | D22: 758-1 | E22: Gasoline and Oil Cost | F22: ='Other Inputs'!F190 -> -236599 | G22: 1/
B23: =B22+1 -> 5 | E23: Net Gasoline and Oil Sales | H23: =F21+F22 -> 1422535
B26: =B23+1 -> 6 | D26: 495-1 | E26: Overriding Royalty Revenue | H26: ='Other Inputs'!F188 -> 16577145 | I26: 1/
E27: from Questar E & P
B29: =B26+1 -> 7 | D29: 495-2 | E29: Oil Revenue Received from Wexpro | H29: ='Other Inputs'!F189 -> 5698000 | I29: 1/
B32: =B29+1 -> 8 | E32: Total | H32: =SUM(H15:H29) -> 33809808
B39: 1/ | D39: Forecasted 12-month test year.

Sheet Ut 1.5
H1: ='Control Panel'!$F$32 -> Questar Gas Company
H2: ='Control Panel'!$F$33 -> Docket No. 11-057-02
H3: Exhibit 1.5
B8: TEST-YEAR GAS COST ALLOCATION
B11: (A) | D11: (B) | E11: (C) | F11: (D) | G11: (E)
D12: Allocation
D13: Factor 1/ | E13: System | F13: Wyoming | G13: Utah
A15: 1 | B15: Questar Gas Production (Exhibit 1.1) | D15: 2 | E15: ='Ut 1.4 p1'!E14 -> 300883313 | F15: =CHOOSE($D15,F$51,F$54)*$E15 -> 10191622.57 | G15: 290691690.5
A16: =A15+1 -> 2 | B16: Other Revenue's Credit (Exhibit 1.4, p 3) | D16: 2 | E16: ='Ut 1.4 p1'!E15 -> -33809808 | F16: -1145217.39 | G16: -32664590.61
A17: =A16+1 -> 3 | B17: Gathering (Exhibit 1.3, p 1) | C17: - Demand | D17: 1 | E17: ='Ut 1.3 p1'!L48 -> 12723780 | F17: 390494.4841 | G17: 12333285.52
A18: =A17+1 -> 4 | B18: Gathering | C18: - Commodity | D18: 2 | E18: ='Ut 1.3 p1'!L52+'Ut 1.3 p1'!L49 -> 13285142 | F18: 449998.8773 | G18: 12835143.12
A19: =A18+1 -> 5 | B19: Net Cost of Questar Gas Production | E19: =SUM(E15:E18) -> 293082427 | F19: =SUM(F15:F18) -> 9886898.542 | G19: =SUM(G15:G18) -> 283195528.5
A21: =A19+1 -> 6 | B21: Questar Gas Contract Gas (Exhibit 1.2) | D21: 2 | E21: ='Ut 1.4 p1'!E23 -> 187598794 | F21: =CHOOSE($D21,F$51,F$54)*$E21 -> 6354410.564 | G21: =CHOOSE($D21,G$51,G$54)*$E21 -> 181244383.4
A24: =A21+1 -> 7 | B24: Injection / Withdrawal Adjustment (Exhibit 1.4, p 1) | D24: 2 | E24: ='Ut 1.4 p1'!E25 -> -111238.8083 | F24: =CHOOSE($D24,F$51,F$54)*$E24 -> -3767.918991 | G24: =CHOOSE($D24,G$51,G$54)*$E24 -> -107470.8893
A27: =A24+1 -> 8 | B27: Transportation (Exhibit 1.3, p 1) | C27: - Demand | D27: 1 | E27: ='Ut 1.3 p1'!M28 -> 63315921 | F27: =CHOOSE($D27,F$51,F$54)*$E27 -> 1943173.955 | G27: =CHOOSE($D27,G$51,G$54)*$E27 -> 61372747.04
A28: =A27+1 -> 9 | B28: Transportation | C28: - Commodity | D28: 2 | E28: ='Ut 1.3 p1'!M43 -> 596779 | F28: =CHOOSE($D28,F$51,F$54)*$E28 -> 20214.30256 | G28: =CHOOSE($D28,G$51,G$54)*$E28 -> 576564.6974
A31: =A28+1 -> 10 | B31: Storage (Exhibit 1.3, p 2) | C31: - Demand | D31: 1 | E31: ='Ut 1.3 p2'!J20 -> 14025058 | F31: =CHOOSE($D31,F$51,F$54)*$E31 -> 430430.8774 | G31: =CHOOSE($D31,G$51,G$54)*$E31 -> 13594627.12
A32: =A31+1 -> 11 | B32: Storage | C32: - Commodity | D32: 2 | E32: ='Ut 1.3 p2'!J27 -> 489340 | F32: =CHOOSE($D32,F$51,F$54)*$E32 -> 16575.09198 | G32: =CHOOSE($D32,G$51,G$54)*$E32 -> 472764.908
A35: =A32+1 -> 12 | B35: Other Transportation - Commodity (Exhibit 1.3, p1) | D35: 2 | E35: ='Ut 1.3 p1'!L53 -> 2226751 | F35: =CHOOSE($D35,F$51,F$54)*$E35 -> 75425.27208 | G35: =CHOOSE($D35,G$51,G$54)*$E35 -> 2151325.728
A38: =A35+1 -> 13 | B38: Working Gas Costs (Exhibit 1.3, p 2) | D38: 2 | E38: ='Ut 1.3 p2'!K51 -> 3825074.592 | F38: =CHOOSE($D38,F$51,F$54)*$E38 -> 129564.2359 | G38: =CHOOSE($D38,G$51,G$54)*$E38 -> 3695510.356
A41: =A38+1 -> 14 | B41: Totals | E41: =SUM(E19:E38) -> 565048905.8 | F41: =SUM(F19:F38) -> 18852924.92 | G41: =SUM(G19:G38) -> 546195980.9
A48: 1/ | B48: Allocation Factors | E48: Total | F48: Wyoming | G48: Utah
B50: #1 Peak Day Demand | D50: Dth- | E50: =SUM(F50:G50) -> 1280770 | F50: ='Other Inputs'!$E$130 -> 39307 | G50: ='Other Inputs'!$E$129 -> 1241463
D51: Percent- | E51: =F51+G51 -> 1 | F51: =F50/E50 -> 0.03069013172 | G51: =G50/E50 -> 0.9693098683
B53: #2 Commodity Sales - All | D53: Dth- | E53: =F53+G53 -> 109062874 | F53: ='Ut 1.6 p1'!H22 -> 3694215 | G53: ='Ut 1.6 p1'!H21 -> 105368659
D54: Percent- | E54: =F54+G54 -> 1 | F54: =F53/E53 -> 0.0338723423 | G54: =G53/E53 -> 0.9661276577

Sheet Ut 1.6 p1
J1: ='Control Panel'!$F$32 -> Questar Gas Company
J2: ='Control Panel'!$F$33 -> Docket No. 11-057-02
J3: Exhibit 1.6
J4: Page 1 of 3
B8: TEST-YEAR GAS COST CHANGE
B11: (A) | C11: (B) | D11: (C) | F11: (D) | H11: (E) | J11: (F)
F12: Average Rate | H12: x Dth | I12: = | J12: Total
A13: 1 | B13: Utah Allocation of Questar Gas-Related Gas Costs (Exhibit 1.5) 1/ | J13: ='Ut 1.5'!G41 -> 546195980.9
B14: Less:
A15: =A13+1 -> 2 | B15: IS Class Commodity Credit 2/ | F15: =Calculations!P232 -> 4.047709662 | H15: ='RevRun Fcst'!T93+'RevRun Fcst'!T111 -> 2400234 | J15: =-H15*F15 -> -9715450.353
A16: =A15+1 -> 3 | B16: Net Utah Gas Costs (for Firm Sales) | J16: =J13+J15 -> 536480530.5
H18: Total
B19: Test-Year Sales: 2/ | D19: Firm | F19: + Interruptible | H19: = Sales Dth
A21: =A16+1 -> 4 | B21: Utah | D21: =Calculations!P13 -> 102968425 | F21: =Calculations!P17 -> 2400234 | H21: =D21+F21 -> 105368659
A22: =A21+1 -> 5 | B22: Wyoming | D22: =Calculations!P32 -> 3546445 | F22: =Calculations!P36 -> 147770 | H22: =D22+F22 -> 3694215
A23: =A22+1 -> 6 | B23: Total Dth | H23: =SUM(H21:H22) -> 109062874
A25: =A23+1 -> 7 | B25: Supplier Non-Gas Costs 3/ | J25: =(-'Ut 1.6 p2'!F14) -> -102634689.1
A28: =A25+1 -> 8 | B28: Commodity Portion of Test-Year Gas Cost (Lines 3 + 7) | J28: =J16+J25+J26 -> 433845841.4
F31: Current Case | H31: Prior Case
B32: FIRM CUSTOMER RATES | F32: ='Control Panel'!F5 -> 11-057-02 | H32: ='Control Panel'!F9 -> 10-057-17 | J32: Difference
A34: =A28+1 -> 9 | B34: Firm Gas Cost (line 8/ Firm Sales, line 4) | F34: =ROUND((J28)/D21,5) -> 4.21339 | H34: ='Other Inputs'!F105 -> 4.15064 | J34: =F34-H34 -> 0.06275 | M34: =J34*D21 -> 6461268.669
A35: =A34+1 -> 10 | B35: 191 Account Amortization (Commodity Portion) 4/ | F35: =D55/D21 -> 0.1406686564 | H35: ='Other Inputs'!F106 -> 0.34133 | J35: =F35-H35 -> -0.2006613436 | M35: =J35*D21 -> -20661782.51
A36: =A35+1 -> 11 | B36: Total Firm Sales Unit Commodity Cost (Lines 9 + 10) | F36: =F34+F35 -> 4.354058656 | H36: =H34+H35 -> 4.49197 | J36: =J34+J35 -> -0.1379113436 | M36: =SUM(M34:M35) -> -14200513.84
A46: 1/ | B46: Exhibit 1.5, Line 14, Column E.
A48: 2/ | B48: ="Revrun.exe - "&'RevRun Fcst'!D4 -> Revrun.exe - 4/8/2011 | D48: Dth | E48: x | F48: DNG Rate | G48: = | H48: DNG Revenues
C49: IS | D49: =H15 -> 2400234 | F49: =F15 -> 4.047709662 | H49: =D49*F49 -> 9715450.353
A51: 3/ | B51: Test Year Estimate of Transportation, Gathering, and Storage billings.
A53: 4/ | B53: 191 Account (March 2011) act. | D53: ='Other Inputs'!E123 -> -29137996
B54: Less: Supplier Non-Gas balance act. | D54: ='Other Inputs'!E124 -> -43622426
B55: 191 Account Commodity Portion | D55: =D53-D54 -> 14484430 | F55: =D21 -> 102968425 | H55: =D55/F55 -> 0.1406686564

Sheet Ut 1.6 p2
E1: Questar Gas Company
G2: ='Control Panel'!$F$33 -> Docket No. 11-057-02
G3: Exhibit 1.6
G4: Page 2 of 3
C8: TEST-YEAR SUPPLIER NON-GAS COST CHANGE
C11: (A) | D11: (B) | E11: (C) | F11: (D)
D12: Dth | E12: Average Rate | F12: Total
B14: 1 | C14: Supplier Non-Gas (SNG) Costs 1/ | F14: ='Ut 1.5'!G27+'Ut 1.5'!G31+'Ut 1.5'!G17+(+'Ut 1.3 p1'!L34+'Ut 1.3 p1'!L41+'Ut 1.3 p1'!L52+'Ut 1.3 p1'!L53+'Ut 1.3 p1'!L49)*'Ut 1.5'!G54 -> 102634689.1
B15: =B14+1 -> 2 | C15: 191 Account Balance for SNG Costs 2/ | F15: 0
B16: =1+B15 -> 3 | C16: Total | F16: =SUM(F14:F15) -> 102634689.1
B19: =B16+1 -> 4 | C19: SNG Costs Recovered at Current Rates 3/ | F19: ='Other Inputs'!E200-(D29*('Other Inputs'!G79-'Other Inputs'!F201)) -> 104001133.7
B22: =1+B19 -> 5 | C22: SNG Costs Adjustment to Current Rates (Line 3 - Line 4) | F22: =F16-F19 -> -1366444.653
B28: 6a | C28: Adjustment for SNG contributions from:
B29: 6b | C29: IS SNG current rate | D29: ='Ut 1.6 p1'!$H$15 -> 2400234 | E29: ='Ut 1.6 p3'!E24 -> 0.17937 | F29: =D29*E29 -> 430529.9726
B30: 6c | C30: IS SNG new rate | D30: ='Ut 1.6 p1'!$H$15 -> 2400234 | E30: ='Ut 1.6 p3'!I24 -> 0.17919 | F30: =D30*E30 -> 430097.9305
B35: =2+B22 -> 7 | C35: Percent Change to Current Rates | F35: =(((+F16-F30)-(F19-F29))/(F19-F29))*100 -> -1.318919231 | G35: %
C36: ((ln 3-ln 6c)-(ln 4-ln 6b))/(ln 4-ln 6b)
B42: 1/ | C42: Exhibit 1.6, Page 1, Line 7.
E43: SNG Balance
B44: 2/ | C44: March 2011 SNG Balance | E44: ='Other Inputs'!E124 -> -43622426
C45: Balance only amortized in the fall pass thru. Previous balance of 2.3M from fall 2010 carries forward.
B46: 2/ | C46: The Company is proposing to amortize the SNG Account
C47: 191 balance only in the fall pass-throughs. As of July 31, 2009 the SNG Account 191 balance is ($19,007,538).
C49: Amortization will be adjusted in the fall pass thru.
B50: 3/ | C50: ="Output of Revrun.Exe computer program dated "&'RevRun Fcst'!D4 -> Output of Revrun.Exe computer program dated 4/8/2011

Sheet Ut 1.6 p3
I1: ='Control Panel'!$F$32 -> Questar Gas Company
I2: ='Control Panel'!$F$33 -> Docket No. 11-057-02
I3: Exhibit 1.6
I4: Page 3 of 3
F8: TEST YEAR CHANGE IN SUPPLIER NON-GAS COSTS
F9: BY RATE CLASS
C12: (A) | D12: (B) | E12: (C) | F12: (D) | G12: (E) | H12: (F) | I12: (G)
G13: Rate per Dth
C14: Rate Class | D14: Season | E14: Current total 1/ | F14: Curr. Base 1/ | G14: Calc. Base 2/ | H14: Amortization 3/ | I14: Total 4/ | K14: CHECK !! | M14: Current Amort.
B16: 1 | C16: GS | D16: Winter | E16: ='Other Inputs'!G69 -> 1.20251 | F16: ='Other Inputs'!E69 -> 1.176 | G16: =ROUND(E16*('Ut 1.6 p2'!$F$14-'Ut 1.6 p2'!$F$30)/('Ut 1.6 p2'!$F$19-'Ut 1.6 p2'!$F$29),5) -> 1.18665 | H16: =I16-G16 -> 0.02651 | I16: =ROUND(E16*ROUND(1+'Ut 1.6 p2'!$F$35/100,7),5)+M16 -> 1.21316 | K16: =ROUND(G16*('Ut 1.6 p2'!$F$15)/('Ut 1.6 p2'!$F$14-'Ut 1.6 p2'!$F$30),5)-H16 -> -0.02651 | M16: 0.02651
B17: =B16+1 -> 2 | D17: Summer | E17: ='Other Inputs'!G70 -> 0.5646 | F17: ='Other Inputs'!E70 -> 0.55216 | G17: =ROUND(E17*('Ut 1.6 p2'!$F$14-'Ut 1.6 p2'!$F$30)/('Ut 1.6 p2'!$F$19-'Ut 1.6 p2'!$F$29),5) -> 0.55715 | H17: =I17-G17 -> 0.01244 | I17: =ROUND(E17*ROUND(1+'Ut 1.6 p2'!$F$35/100,7),5)+M17 -> 0.56959 | K17: =ROUND(G17*('Ut 1.6 p2'!$F$15)/('Ut 1.6 p2'!$F$14-'Ut 1.6 p2'!$F$30),5)-H17 -> -0.01244 | M17: 0.01244
B19: =B17+1 -> 3 | C19: FS | D19: Winter | E19: ='Other Inputs'!G72 -> 1.1712 | F19: ='Other Inputs'!E72 -> 1.14538 | G19: =ROUND(E19*('Ut 1.6 p2'!$F$14-'Ut 1.6 p2'!$F$30)/('Ut 1.6 p2'!$F$19-'Ut 1.6 p2'!$F$29),5) -> 1.15575 | H19: =I19-G19 -> 0.02582 | I19: =ROUND(E19*ROUND(1+'Ut 1.6 p2'!$F$35/100,7),5)+M19 -> 1.18157 | K19: =ROUND(G19*('Ut 1.6 p2'!$F$15)/('Ut 1.6 p2'!$F$14-'Ut 1.6 p2'!$F$30),5)-H19 -> -0.02582 | M19: 0.02582
B20: =B19+1 -> 4 | D20: Summer | E20: ='Other Inputs'!G73 -> 0.56457 | F20: ='Other Inputs'!E73 -> 0.55212 | G20: =ROUND(E20*('Ut 1.6 p2'!$F$14-'Ut 1.6 p2'!$F$30)/('Ut 1.6 p2'!$F$19-'Ut 1.6 p2'!$F$29),5) -> 0.55712 | H20: =I20-G20 -> 0.01245 | I20: =ROUND(E20*ROUND(1+'Ut 1.6 p2'!$F$35/100,7),5)+M20 -> 0.56957 | K20: =ROUND(G20*('Ut 1.6 p2'!$F$15)/('Ut 1.6 p2'!$F$14-'Ut 1.6 p2'!$F$30),5)-H20 -> -0.01245 | M20: 0.01245
B22: =B20+1 -> 5 | C22: NGV | E22: ='Other Inputs'!G77 -> 0.86776 | F22: ='Other Inputs'!E77 -> 0.84863 | G22: =ROUND(E22*('Ut 1.6 p2'!$F$14-'Ut 1.6 p2'!$F$30)/('Ut 1.6 p2'!$F$19-'Ut 1.6 p2'!$F$29),5) -> 0.85631 | H22: =I22-G22 -> 0.01913 | I22: =ROUND(E22*ROUND(1+'Ut 1.6 p2'!$F$35/100,7),5)+M22 -> 0.87544 | K22: =ROUND(G22*('Ut 1.6 p2'!$F$15)/('Ut 1.6 p2'!$F$14-'Ut 1.6 p2'!$F$30),5)-H22 -> -0.01913 | M22: 0.01913
B24: =B22+1 -> 6 | C24: IS 5/ | E24: ='Other Inputs'!F201 -> 0.17937 | F24: ='Other Inputs'!F201 -> 0.17937 | G24: ='Other Inputs'!$F$44 -> 0.17919 | H24: =I24-G24 -> 0 | I24: ='Other Inputs'!$F$44 -> 0.17919
B26: =B24+1 -> 7 | C26: ES | E26: ='Other Inputs'!G82 -> 6.2332 | F26: ='Other Inputs'!E82 -> 6.09578 | G26: =ROUND(E26*('Ut 1.6 p2'!$F$14-'Ut 1.6 p2'!$F$30)/('Ut 1.6 p2'!$F$19-'Ut 1.6 p2'!$F$29),5) -> 6.15099 | H26: =I26-G26 -> 0.13742 | I26: =ROUND(E26*ROUND(1+'Ut 1.6 p2'!$F$35/100,7),5)+M26 -> 6.28841 | K26: =ROUND(G26*('Ut 1.6 p2'!$F$15)/('Ut 1.6 p2'!$F$14-'Ut 1.6 p2'!$F$30),5)-H26 -> -0.13742 | M26: 0.13742
B33: 1/ | C33: Current Questar Gas Tariff (excluding bad debt surcharge).
B35: 2/ | C35: Exhibit 1.6 page 2 (line 1 - line 6c)/(line 4 - line 6b)*Exhibit 1.6 page 3 column C
B37: 3/ | C37: Column G - Column E
B39: 4/ | C39: (Current Questar Gas rates) x (Exhibit 1.6, Page 2, Line 7, % change).
C40: ="(except ln. 6, which is calculated by adding QPC T-2 and ACA rates, then adjusting for distr. loss of "&TEXT('Other Inputs'!E254,"0.000%") -> (except ln. 6, which is calculated by adding QPC T-2 and ACA rates, then adjusting for distr. loss of 0.431%
C41: ="= ("&TEXT('Other Inputs'!$F$38,"$0.00000")&" + "&TEXT('Other Inputs'!$F$40,"$0.00000")&") / ( 1 - "&TEXT('Other Inputs'!$E$254,"0.00000")&" ) = "&TEXT(('Other Inputs'!F38+'Other Inputs'!F40)/(1-('Other Inputs'!$E$254)),("$0.00000")) -> = ($0.17652 + $0.00190) / ( 1 - 0.00431 ) = $0.17919
B43: 5/ | C43: ="IS Tariff rate has an adjustment for bad debt of "&TEXT('Other Inputs'!$E$265,"0.0%")&" = "&TEXT($I$24,"$0.00000")&" / ( 1 - "&TEXT('Other Inputs'!$E$265,"0.00000")&" ) = "&TEXT($I$24/(1-('Other Inputs'!$E$265)),("$0.00000")) -> IS Tariff rate has an adjustment for bad debt of 0.5% = $0.17919 / ( 1 - 0.00500 ) = $0.18009

Sheet Ut 1.7
L1: ='Control Panel'!$F$32 -> Questar Gas Company
L2: ='Control Panel'!$F$33 -> Docket No. 11-057-02
L3: Exhibit 1.7
C7: EFFECT ON GS TYPICAL CUSTOMER
C8: 80 DTHS - ANNUAL CONSUMPTION
C11: (A) | D11: (B) | E11: (C) | F11: (D) | H11: (E) | J11: (F)
F12: Billed at Current | H12: Billed at
C13: Rate | E13: Usage | F13: Rates Effective | H13: Proposed
C14: Schedule | D14: Month | E14: In Dth | F14: ='Other Inputs'!J86 -> 2011-05-01 | H14: Rates | J14: Change
B16: 1 | C16: GS | D16: Jan | E16: ='Monthly Inputs'!G117 -> 14.9 | F16: =ROUND((+E16*'Other Inputs'!$G$88)+'Other Inputs'!$G$90,2) -> 128.78 | H16: =ROUND((+E16*'Ut 1.8'!$F$10)+'Ut 1.8'!$C$12,2) -> 126.88 | J16: =H16-F16 -> -1.9
B17: =B16+1 -> 2 | D17: Feb | E17: ='Monthly Inputs'!G118 -> 12.5 | F17: =ROUND((+E17*'Other Inputs'!$G$88)+'Other Inputs'!$G$90,2) -> 108.84 | H17: =ROUND((+E17*'Ut 1.8'!$F$10)+'Ut 1.8'!$C$12,2) -> 107.25 | J17: -1.59
B18: =B17+1 -> 3 | D18: Mar | E18: ='Monthly Inputs'!G119 -> 10.1 | F18: =ROUND((+E18*'Other Inputs'!$G$88)+'Other Inputs'!$G$90,2) -> 88.9 | H18: =ROUND((+E18*'Ut 1.8'!$F$10)+'Ut 1.8'!$C$12,2) -> 87.62 | J18: -1.28
B19: 4 | D19: Apr | E19: ='Monthly Inputs'!G120 -> 8.3 | F19: =ROUND((+E19*'Other Inputs'!$G$86)+'Other Inputs'!$G$90,2) -> 65.75 | H19: =ROUND((+E19*'Ut 1.8'!$C$10)+'Ut 1.8'!$C$12,2) -> 64.64 | J19: -1.11
B20: 5 | D20: May | E20: ='Monthly Inputs'!G121 -> 4.4 | F20: =ROUND((+E20*'Other Inputs'!$G$86)+'Other Inputs'!$G$90,2) -> 37.2 | H20: =ROUND((+E20*'Ut 1.8'!$C$10)+'Ut 1.8'!$C$12,2) -> 36.62 | J20: -0.58
B21: 6 | D21: Jun | E21: ='Monthly Inputs'!G122 -> 3.1 | F21: =ROUND((+E21*'Other Inputs'!$G$86)+'Other Inputs'!$G$90,2) -> 27.69 | H21: =ROUND((+E21*'Ut 1.8'!$C$10)+'Ut 1.8'!$C$12,2) -> 27.28 | J21: -0.41
B22: 7 | D22: Jul | E22: ='Monthly Inputs'!G123 -> 2 | F22: =ROUND((+E22*'Other Inputs'!$G$86)+'Other Inputs'!$G$90,2) -> 19.64 | H22: =ROUND((+E22*'Ut 1.8'!$C$10)+'Ut 1.8'!$C$12,2) -> 19.37 | J22: -0.27
B23: 8 | D23: Aug | E23: ='Monthly Inputs'!G124 -> 1.8 | F23: =ROUND((+E23*'Other Inputs'!$G$86)+'Other Inputs'!$G$90,2) -> 18.17 | H23: =ROUND((+E23*'Ut 1.8'!$C$10)+'Ut 1.8'!$C$12,2) -> 17.93 | J23: -0.24
B24: 9 | D24: Sep | E24: ='Monthly Inputs'!G125 -> 2 | F24: =ROUND((+E24*'Other Inputs'!$G$86)+'Other Inputs'!$G$90,2) -> 19.64 | H24: =ROUND((+E24*'Ut 1.8'!$C$10)+'Ut 1.8'!$C$12,2) -> 19.37 | J24: -0.27
B25: 10 | D25: Oct | E25: ='Monthly Inputs'!G126 -> 3.1 | F25: =ROUND((+E25*'Other Inputs'!$G$86)+'Other Inputs'!$G$90,2) -> 27.69 | H25: =ROUND((+E25*'Ut 1.8'!$C$10)+'Ut 1.8'!$C$12,2) -> 27.28 | J25: -0.41
B26: 11 | D26: Nov | E26: ='Monthly Inputs'!G127 -> 6.3 | F26: =ROUND((+E26*'Other Inputs'!$G$88)+'Other Inputs'!$G$90,2) -> 57.34 | H26: =ROUND((+E26*'Ut 1.8'!$F$10)+'Ut 1.8'!$C$12,2) -> 56.53 | J26: -0.81
B27: 12 | D27: Dec | E27: ='Monthly Inputs'!G128 -> 11.5 | F27: =ROUND((+E27*'Other Inputs'!$G$88)+'Other Inputs'!$G$90,2) -> 100.53 | H27: =ROUND((+E27*'Ut 1.8'!$F$10)+'Ut 1.8'!$C$12,2) -> 99.07 | J27: -1.46
B30: =B27+1 -> 13 | D30: Total | E30: =SUM(E16:E27) -> 80 | F30: =SUM(F16:F27) -> 700.17 | H30: =SUM(H16:H27) -> 689.84 | J30: =H30-F30 -> -10.33
H32: Percent Change: | J32: =ROUND(J30/F30,4)*100 -> -1.48 | K32: %

Sheet Ut 1.7 Tot
L1: ='Control Panel'!$F$32 -> Questar Gas Company
L2: Docket Nos. 08-057-15, 08-057-16 & 08-057-17
L3: Hearing Exhibit 2
C7: EFFECT ON GS-1 TYPICAL CUSTOMER
B8: OF PROPOSED COMMODITY AND SNG RATES AND CET AND DSM AMORTIZATIONS
C9: 80 DTHS - ANNUAL CONSUMPTION
C12: (A) | D12: (B) | E12: (C) | F12: (D) | H12: (E) | J12: (F)
F13: Billed at Current | H13: Billed at
C14: Rate | E14: Usage | F14: Rates Effective | H14: Proposed
C15: Schedule | D15: Month | E15: In Dth | F15: ='Other Inputs'!J86 -> 2011-05-01 | H15: Rates | J15: Change
B17: 1 | C17: GS | D17: Jan | E17: ='Monthly Inputs'!G117 -> 14.9 | F17: =ROUND((+E17*'Other Inputs'!$G$88)+'Other Inputs'!$G$90,2) -> 128.78 | H17: ='CET & DSM'!D107 -> 145.1 | J17: =H17-F17 -> 16.32
B18: =B17+1 -> 2 | D18: Feb | E18: ='Monthly Inputs'!G118 -> 12.5 | F18: =ROUND((+E18*'Other Inputs'!$G$88)+'Other Inputs'!$G$90,2) -> 108.84 | H18: ='CET & DSM'!D108 -> 122.54 | J18: 13.7
B19: 3 | D19: Mar | E19: ='Monthly Inputs'!G119 -> 10.1 | F19: =ROUND((+E19*'Other Inputs'!$G$88)+'Other Inputs'!$G$90,2) -> 88.9 | H19: ='CET & DSM'!D109 -> 99.97 | J19: 11.07
B20: 4 | D20: Apr | E20: ='Monthly Inputs'!G120 -> 8.3 | F20: =ROUND((+E20*'Other Inputs'!$G$86)+'Other Inputs'!$G$90,2) -> 65.75 | H20: ='CET & DSM'!D110 -> 69.61 | J20: 3.86
B21: 5 | D21: May | E21: ='Monthly Inputs'!G121 -> 4.4 | F21: =ROUND((+E21*'Other Inputs'!$G$86)+'Other Inputs'!$G$90,2) -> 37.2 | H21: ='CET & DSM'!D111 -> 39.25 | J21: 2.05
B22: 6 | D22: Jun | E22: ='Monthly Inputs'!G122 -> 3.1 | F22: =ROUND((+E22*'Other Inputs'!$G$86)+'Other Inputs'!$G$90,2) -> 27.69 | H22: ='CET & DSM'!D112 -> 29.13 | J22: 1.44
B23: 7 | D23: Jul | E23: ='Monthly Inputs'!G123 -> 2 | F23: =ROUND((+E23*'Other Inputs'!$G$86)+'Other Inputs'!$G$90,2) -> 19.64 | H23: ='CET & DSM'!D113 -> 20.57 | J23: 0.93
B24: 8 | D24: Aug | E24: ='Monthly Inputs'!G124 -> 1.8 | F24: =ROUND((+E24*'Other Inputs'!$G$86)+'Other Inputs'!$G$90,2) -> 18.17 | H24: ='CET & DSM'!D114 -> 19.01 | J24: 0.84
B25: 9 | D25: Sep | E25: ='Monthly Inputs'!G125 -> 2 | F25: =ROUND((+E25*'Other Inputs'!$G$86)+'Other Inputs'!$G$90,2) -> 19.64 | H25: ='CET & DSM'!D115 -> 20.57 | J25: 0.93
B26: 10 | D26: Oct | E26: ='Monthly Inputs'!G126 -> 3.1 | F26: =ROUND((+E26*'Other Inputs'!$G$86)+'Other Inputs'!$G$90,2) -> 27.69 | H26: ='CET & DSM'!D116 -> 29.13 | J26: 1.44
B27: 11 | D27: Nov | E27: ='Monthly Inputs'!G127 -> 6.3 | F27: =ROUND((+E27*'Other Inputs'!$G$88)+'Other Inputs'!$G$90,2) -> 57.34 | H27: ='CET & DSM'!D117 -> 64.24 | J27: 6.9
B28: 12 | D28: Dec | E28: ='Monthly Inputs'!G128 -> 11.5 | F28: =ROUND((+E28*'Other Inputs'!$G$88)+'Other Inputs'!$G$90,2) -> 100.53 | H28: ='CET & DSM'!D118 -> 113.13 | J28: 12.6
B31: =B28+1 -> 13 | D31: Total | E31: =SUM(E17:E28) -> 80 | F31: =SUM(F17:F28) -> 700.17 | H31: =SUM(H17:H28) -> 772.25 | J31: =H31-F31 -> 72.08
H33: Percent Change: | J33: =ROUND(J31/F31,4)*100 -> 10.29 | K33: %

Sheet Ut 1.8
A1: SUMMARY OF PROPOSED RATES
A3: UTAH RATE CLASSES | C3: Rates per Dth Used Each Month
C4: All Season Rates or Summer Rates: Apr. 1 - Oct. 31 | F4: Winter Rates: Nov. 1 - Mar. 31
A5: UT GS | C5: First 45 Dth | D5: All Over 45 Dth | F5: First 45 Dth | G5: All Over 45 Dth
B6: Distribution Non-Gas Cost | C6: ='Other Inputs'!F210 -> 2.2622 | D6: ='Other Inputs'!F211 -> 1.08529 | F6: ='Other Inputs'!F212 -> 2.61281 | G6: ='Other Inputs'!F213 -> 1.3131
B7: Supplier Non-Gas Cost | C7: ='Ut 1.6 p3'!I17 -> 0.56959 | D7: =C7 -> 0.56959 | F7: ='Ut 1.6 p3'!I16 -> 1.21316 | G7: =F7 -> 1.21316
B8: Commodity Cost | C8: =('Ut 1.6 p1'!$F$36) -> 4.354058656 | D8: =C8 -> 4.354058656 | F8: =D8 -> 4.354058656 | G8: =F8 -> 4.354058656
B10: Total Rate | C10: =SUM(C6:C9) -> 7.185848656 | D10: =SUM(D6:D9) -> 6.008938656 | F10: =SUM(F6:F9) -> 8.180028656 | G10: =SUM(G6:G9) -> 6.880318656
B12: BSF Category 1 | C12: 5
B13: BSF Category 2 | C13: 21
B14: BSF Category 3 | C14: 55
B15: BSF Category 4 | C15: 244
A18: UT FS | C18: First 200 Dth | D18: Next 1,800 Dth | E18: All Over 2,000 Dth | F18: First 200 Dth | G18: Next 1,800 Dth | H18: All Over 2,000 Dth
B19: Distribution Non-Gas Cost | C19: 0.65741 | D19: 0.51415 | E19: 0.44676 | F19: 0.73516 | G19: 0.58813 | H19: 0.52932
B20: Supplier Non-Gas Cost | C20: ='Ut 1.6 p3'!$I$20 -> 0.56957 | D20: =C20 -> 0.56957 | E20: =D20 -> 0.56957 | F20: ='Ut 1.6 p3'!$I$19 -> 1.18157 | G20: =F20 -> 1.18157 | H20: =G20 -> 1.18157
B21: Commodity Cost | C21: =('Ut 1.6 p1'!$F$36) -> 4.354058656 | D21: =C21 -> 4.354058656 | E21: =D21 -> 4.354058656 | F21: =E21 -> 4.354058656 | G21: =F21 -> 4.354058656 | H21: =G21 -> 4.354058656
B23: Total Rate | C23: =SUM(C19:C22) -> 5.581038656 | D23: =SUM(D19:D22) -> 5.437778656 | E23: 5.370388656 | F23: 6.270788656 | G23: 6.123758656 | H23: 6.064948656
B25: Minimum Monthly DNG Charge: | C25: =ROUND(C19*175,0) -> 115 | F25: =ROUND(F19*175,0) -> 129
B27: BSF Category 1 | C27: =C12 -> 5
B28: BSF Category 2 | C28: =C13 -> 21
B29: BSF Category 3 | C29: =C14 -> 55
B30: BSF Category 4 | C30: =C15 -> 244
A33: UT Future Rate Class
C34: First 10,000 Dth | D34: All Over 10,000 Dth
B35: Distribution Non-Gas Cost
B36: Supplier Non-Gas Cost
B37: Commodity Cost
B39: Total Rate | C39: =SUM(C35:C38) -> 0 | D39: =SUM(D35:D38) -> 0
B41: Minimum Yearly Distribution Non-Gas Charge | D41: =ROUND(((10000*C35))*12,-2) -> 0
B44: BSF Category 1 | C44: =C12 -> 5
B45: BSF Category 2 | C45: =C13 -> 21
B46: BSF Category 3 | C46: =C14 -> 55
B47: BSF Category 4 | C47: =C15 -> 244
A51: UT NGV
B52: Distribution Non-Gas Cost | C52: 4.96031
B53: Supplier Non-Gas Cost | C53: ='Ut 1.6 p3'!I22 -> 0.87544
B54: Commodity Cost | C54: ='Ut 1.6 p1'!F36 -> 4.354058656
B56: Total Rate | C56: =SUM(C52:C55) -> 10.18980866
A59: UT IS | C59: First 2,000 Dth | D59: Next 18,000 Dth | E59: All Over 20,000
B60: Distribution Non-Gas Cost | C60: 0.23461 | D60: 0.21584 | E60: 0.19857
B61: Supplier Non-Gas Cost | C61: ='Ut 1.6 p3'!$I$24/(1-'Other Inputs'!$E$265) -> 0.1800904523 | D61: =C61 -> 0.1800904523 | E61: =D61 -> 0.1800904523
B62: Commodity Cost | C62: Determined Monthly
B64: Total Rate | C64: Determined Monthly
B66: BSF Category 1 | C66: 5
B67: BSF Category 2 | C67: 29
B68: BSF Category 3 | C68: 67
B69: BSF Category 4 | C69: 274
A72: UT ES
B73: Distribution Non-Gas Cost | C73: 1.75503
B74: Supplier Non-Gas Cost | C74: ='Ut 1.6 p3'!I26 -> 6.28841
B75: Commodity Cost
B77: Total Rate

Sheet Ut 1.9
D1: ='Control Panel'!$F$32 -> Questar Gas Company
D2: ='Control Panel'!$F$33 -> Docket No. 11-057-02
D3: Exhibit 1.9
D4: Page 1 of 2
D6: ='Control Panel'!$F$32 -> Questar Gas Company
D7: ='Control Panel'!$F$33 -> Docket No. 11-057-02
D8: Exhibit 1.9
D9: Page 2 of 2

Sheet Ut 1.10
P17: Exhibit 1.10 | Q17: =CONCATENATE("Docket No. ",'Control Panel'!F5) -> Docket No. 11-057-02

Sheet Wy 1.1
F1: Questar Gas Company
E2: ='Control Panel'!F37 -> PSCW Docket No. 30010-xxx-GP-11
F3: Exhibit 1.1
C4: Test Year Cost of Questar Gas' Production
C5: =CONCATENATE('Control Panel'!F40," through ",'Control Panel'!F41) -> Jun-11 through May-12
A7: (A) | B7: (B) | C7: (C) | D7: (D) | E7: (E) | F7: (F) | G7: (G) | H7: (H)
E8: Base Year | F8: Market | G8: Royalty | H8: Test Year
A9: Field Name | B9: Well Name | C9: Formation | D9: Price $ | E9: Dth | F9: Value $ | G9: Rate % | H9: Royalty $
A11: ACE UNIT (CO) | B11: ACE UNIT 2 FT UN | C11: FORT UNION | D11: =IF(LEFT(B11,12)=[2]Inputs!$C$24,[2]Inputs!$D$24,IF(LEFT(B11,13)=[2]Inputs!$C$25,[2]Inputs!$D$24,[2]Inputs!$D$26)) -> 3.937602527 | E11: 62167 | F11: =D11*E11 -> 244788.9363 | G11: 0.1268519763 | H11: =F11*G11 -> 31051.96035
B12: ACE UNIT 7 LOWER FT UN | C12: FORT UNION | D12: =IF(LEFT(B12,12)=[2]Inputs!$C$24,[2]Inputs!$D$24,IF(LEFT(B12,13)=[2]Inputs!$C$25,[2]Inputs!$D$24,[2]Inputs!$D$26)) -> 3.937602527 | E12: 3961 | F12: =D12*E12 -> 15596.84361 | G12: 0.1268519763 | H12: =F12*G12 -> 1978.490436
B13: ACE UNIT 10 FT UN | C13: FORT UNION | D13: =IF(LEFT(B13,12)=[2]Inputs!$C$24,[2]Inputs!$D$24,IF(LEFT(B13,13)=[2]Inputs!$C$25,[2]Inputs!$D$24,[2]Inputs!$D$26)) -> 3.937602527 | E13: 64017 | F13: =D13*E13 -> 252073.501 | G13: 0.1268519763 | H13: 31976.02177
B14: ACE UNIT 12 FT UN | C14: FORT UNION | D14: =IF(LEFT(B14,12)=[2]Inputs!$C$24,[2]Inputs!$D$24,IF(LEFT(B14,13)=[2]Inputs!$C$25,[2]Inputs!$D$24,[2]Inputs!$D$26)) -> 3.937602527 | E14: 126844 | F14: 499461.2549 | G14: 0.1268519763 | H14: 63357.64728
B15: ACE UNIT 11 FT UN | C15: FORT UNION | D15: =IF(LEFT(B15,12)=[2]Inputs!$C$24,[2]Inputs!$D$24,IF(LEFT(B15,13)=[2]Inputs!$C$25,[2]Inputs!$D$24,[2]Inputs!$D$26)) -> 3.937602527 | E15: 36014 | F15: 141808.8174 | G15: 0.1268519763 | H15: 17988.72875
B16: ACE UNIT 13 FT UN | C16: FORT UNION | D16: =IF(LEFT(B16,12)=[2]Inputs!$C$24,[2]Inputs!$D$24,IF(LEFT(B16,13)=[2]Inputs!$C$25,[2]Inputs!$D$24,[2]Inputs!$D$26)) -> 3.937602527 | E16: 73182 | F16: 288161.6281 | G16: 0.1268519763 | H16: 36553.87202
A17: E HIAW (CO) | B17: HIAWATHA UNIT 1 FT UN | C17: FORT UNION | D17: =IF(LEFT(B17,12)=[2]Inputs!$C$24,[2]Inputs!$D$24,IF(LEFT(B17,13)=[2]Inputs!$C$25,[2]Inputs!$D$24,[2]Inputs!$D$26)) -> 3.937602527 | E17: 36774 | F17: 144801.3953 | G17: 0.1925 | H17: 27874.2686
B18: F WILSON A 2 WAS | C18: WASATCH | D18: =IF(LEFT(B18,12)=[2]Inputs!$C$24,[2]Inputs!$D$24,IF(LEFT(B18,13)=[2]Inputs!$C$25,[2]Inputs!$D$24,[2]Inputs!$D$26)) -> 3.937602527 | E18: 114810 | F18: 452076.1461 | G18: 0.1925 | H18: 87024.65812
B19: F WILSON B 3 WAS | C19: WASATCH | D19: =IF(LEFT(B19,12)=[2]Inputs!$C$24,[2]Inputs!$D$24,IF(LEFT(B19,13)=[2]Inputs!$C$25,[2]Inputs!$D$24,[2]Inputs!$D$26)) -> 3.937602527 | E19: 144340 | F19: 568353.5487 | G19: 0.1625 | H19: 92357.45167
B20: F WILSON B 6 WAS | C20: WASATCH | D20: =IF(LEFT(B20,12)=[2]Inputs!$C$24,[2]Inputs!$D$24,IF(LEFT(B20,13)=[2]Inputs!$C$25,[2]Inputs!$D$24,[2]Inputs!$D$26)) -> 3.937602527 | E20: 111354 | F20: 438467.7918 | G20: 0.1625 | H20: 71251.01616
B21: F WILSON A 9 WAS | C21: WASATCH | D21: =IF(LEFT(B21,12)=[2]Inputs!$C$24,[2]Inputs!$D$24,IF(LEFT(B21,13)=[2]Inputs!$C$25,[2]Inputs!$D$24,[2]Inputs!$D$26)) -> 3.937602527 | E21: 14125 | F21: 55618.63569 | G21: 0.1925 | H21: 10706.58737
B22: F WILSON B 12 FT UN | C22: FORT UNION | D22: =IF(LEFT(B22,12)=[2]Inputs!$C$24,[2]Inputs!$D$24,IF(LEFT(B22,13)=[2]Inputs!$C$25,[2]Inputs!$D$24,[2]Inputs!$D$26)) -> 3.937602527 | E22: 61816 | F22: 243406.8378 | G22: 0.1625 | H22: 39553.61114
B23: F WILSON B 2 UNIT (HIAW) FT UN | C23: FORT UNION | D23: =IF(LEFT(B23,12)=[2]Inputs!$C$24,[2]Inputs!$D$24,IF(LEFT(B23,13)=[2]Inputs!$C$25,[2]Inputs!$D$24,[2]Inputs!$D$26)) -> 3.937602527 | E23: 31256 | F23: 123073.7046 | G23: 0.1625 | H23: 19999.47699
B24: F WILSON A 22 FT UN | C24: FORT UNION | D24: =IF(LEFT(B24,12)=[2]Inputs!$C$24,[2]Inputs!$D$24,IF(LEFT(B24,13)=[2]Inputs!$C$25,[2]Inputs!$D$24,[2]Inputs!$D$26)) -> 3.937602527 | E24: 24173 | F24: 95183.66588 | G24: 0.1925 | H24: 18322.85568
B25: STLD 3712100 NE4 2 WAS | C25: WASATCH | D25: =IF(LEFT(B25,12)=[2]Inputs!$C$24,[2]Inputs!$D$24,IF(LEFT(B25,13)=[2]Inputs!$C$25,[2]Inputs!$D$24,[2]Inputs!$D$26)) -> 3.937602527 | E25: 20809 | F25: 81937.57098 | G25: 0.13375 | H25: 10959.15012
B26: STLD 3712100 SE4 4 WAS | C26: WASATCH | D26: =IF(LEFT(B26,12)=[2]Inputs!$C$24,[2]Inputs!$D$24,IF(LEFT(B26,13)=[2]Inputs!$C$25,[2]Inputs!$D$24,[2]Inputs!$D$26)) -> 3.937602527 | E26: 23848 | F26: 93903.94506 | G26: 0.1375 | H26: 12911.79245
B27: STLD 3712100 W2 5 FT UN | C27: FORT UNION | D27: =IF(LEFT(B27,12)=[2]Inputs!$C$24,[2]Inputs!$D$24,IF(LEFT(B27,13)=[2]Inputs!$C$25,[2]Inputs!$D$24,[2]Inputs!$D$26)) -> 3.937602527 | E27: 44457 | F27: 175053.9955 | G27: 0.13375 | H27: 23413.4719
B28: G KUYKENDALL A 8 FT UN | C28: FORT UNION | D28: =IF(LEFT(B28,12)=[2]Inputs!$C$24,[2]Inputs!$D$24,IF(LEFT(B28,13)=[2]Inputs!$C$25,[2]Inputs!$D$24,[2]Inputs!$D$26)) -> 3.937602527 | E28: 8409 | F28: 33111.29965 | G28: 0.1925 | H28: 6373.925182
B29: KS WHITFORD 1 WAS | C29: WASATCH | D29: =IF(LEFT(B29,12)=[2]Inputs!$C$24,[2]Inputs!$D$24,IF(LEFT(B29,13)=[2]Inputs!$C$25,[2]Inputs!$D$24,[2]Inputs!$D$26)) -> 3.937602527 | E29: 66931 | F29: 263547.6747 | G29: 0.155 | H29: 40849.88958
B30: F WILSON B 24 FT UN | C30: FORT UNION | D30: =IF(LEFT(B30,12)=[2]Inputs!$C$24,[2]Inputs!$D$24,IF(LEFT(B30,13)=[2]Inputs!$C$25,[2]Inputs!$D$24,[2]Inputs!$D$26)) -> 3.937602527 | E30: 55727 | F30: 219430.776 | G30: 0.1625 | H30: 35657.5011
B31: F WILSON B 25 FT UN | C31: FORT UNION | D31: =IF(LEFT(B31,12)=[2]Inputs!$C$24,[2]Inputs!$D$24,IF(LEFT(B31,13)=[2]Inputs!$C$25,[2]Inputs!$D$24,[2]Inputs!$D$26)) -> 3.937602527 | E31: 18576 | F31: 73144.90454 | G31: 0.1625 | H31: 11886.04699
B32: F WILSON A 26 FT UN | C32: FORT UNION | D32: =IF(LEFT(B32,12)=[2]Inputs!$C$24,[2]Inputs!$D$24,IF(LEFT(B32,13)=[2]Inputs!$C$25,[2]Inputs!$D$24,[2]Inputs!$D$26)) -> 3.937602527 | E32: 43091 | F32: 169675.2305 | G32: 0.1925 | H32: 32662.48187
B33: HIAWATHA STLD 6 FT UN | C33: FORT UNION | D33: =IF(LEFT(B33,12)=[2]Inputs!$C$24,[2]Inputs!$D$24,IF(LEFT(B33,13)=[2]Inputs!$C$25,[2]Inputs!$D$24,[2]Inputs!$D$26)) -> 3.937602527 | E33: 13935 | F33: 54870.49121 | G33: 0.13375 | H33: 7338.928199
B34: F WILSON A 7 UPPER WAS | C34: WASATCH | D34: =IF(LEFT(B34,12)=[2]Inputs!$C$24,[2]Inputs!$D$24,IF(LEFT(B34,13)=[2]Inputs!$C$25,[2]Inputs!$D$24,[2]Inputs!$D$26)) -> 3.937602527 | E34: 232 | F34: 913.5237862 | G34: 0.1925 | H34: 175.8533288
B35: G KUYKENDALL 9 FT UN | C35: FORT UNION | D35: =IF(LEFT(B35,12)=[2]Inputs!$C$24,[2]Inputs!$D$24,IF(LEFT(B35,13)=[2]Inputs!$C$25,[2]Inputs!$D$24,[2]Inputs!$D$26)) -> 3.937602527 | E35: 41347 | F35: 162808.0517 | G35: 0.1925 | H35: 31340.54995
B36: F WILSON A 20 FT UN | C36: FORT UNION | D36: =IF(LEFT(B36,12)=[2]Inputs!$C$24,[2]Inputs!$D$24,IF(LEFT(B36,13)=[2]Inputs!$C$25,[2]Inputs!$D$24,[2]Inputs!$D$26)) -> 3.937602527 | E36: 1148 | F36: 4520.367701 | G36: 0.1925 | H36: 870.1707824
B37: F WILSON A 20 LEW/LAN/FT UN | C37: LEWIS/LANCE/FT U | D37: =IF(LEFT(B37,12)=[2]Inputs!$C$24,[2]Inputs!$D$24,IF(LEFT(B37,13)=[2]Inputs!$C$25,[2]Inputs!$D$24,[2]Inputs!$D$26)) -> 3.937602527 | E37: 21786 | F37: 85784.60865 | G37: 0.1925 | H37: 16513.53716
B38: F WILSON 32 MESA | C38: MESAVERDE | D38: =IF(LEFT(B38,12)=[2]Inputs!$C$24,[2]Inputs!$D$24,IF(LEFT(B38,13)=[2]Inputs!$C$25,[2]Inputs!$D$24,[2]Inputs!$D$26)) -> 3.937602527 | E38: 5513 | F38: 21708.00273 | G38: 0.1925 | H38: 4178.790526
B39: F WILSON 32 LEWIS | C39: LEWIS | D39: =IF(LEFT(B39,12)=[2]Inputs!$C$24,[2]Inputs!$D$24,IF(LEFT(B39,13)=[2]Inputs!$C$25,[2]Inputs!$D$24,[2]Inputs!$D$26)) -> 3.937602527 | E39: 39539 | F39: 155688.8663 | G39: 0.1925 | H39: 29970.10676
B40: F WILSON 32 LANCE | C40: LANCE | D40: =IF(LEFT(B40,12)=[2]Inputs!$C$24,[2]Inputs!$D$24,IF(LEFT(B40,13)=[2]Inputs!$C$25,[2]Inputs!$D$24,[2]Inputs!$D$26)) -> 3.937602527 | E40: 44585 | F40: 175558.0087 | G40: 0.1925 | H40: 33794.91667
B41: HIAWATHA STLD 7 FT UN | C41: FORT UNION | D41: =IF(LEFT(B41,12)=[2]Inputs!$C$24,[2]Inputs!$D$24,IF(LEFT(B41,13)=[2]Inputs!$C$25,[2]Inputs!$D$24,[2]Inputs!$D$26)) -> 3.937602527 | E41: 35391 | F41: 139355.691 | G41: 0.1375 | H41: 19161.40752
B42: F WILSON 33 LEWIS | C42: LEWIS | D42: =IF(LEFT(B42,12)=[2]Inputs!$C$24,[2]Inputs!$D$24,IF(LEFT(B42,13)=[2]Inputs!$C$25,[2]Inputs!$D$24,[2]Inputs!$D$26)) -> 3.937602527 | E42: 10781 | F42: 42451.29284 | G42: 0.1925 | H42: 8171.873872
B43: F WILSON 33 LANCE | C43: LANCE | D43: =IF(LEFT(B43,12)=[2]Inputs!$C$24,[2]Inputs!$D$24,IF(LEFT(B43,13)=[2]Inputs!$C$25,[2]Inputs!$D$24,[2]Inputs!$D$26)) -> 3.937602527 | E43: 12354 | F43: 48645.14162 | G43: 0.1925 | H43: 9364.189761
B44: F WILSON 34 LEW/LAN/FT UN | C44: LEWIS/LANCE/FT U | D44: =IF(LEFT(B44,12)=[2]Inputs!$C$24,[2]Inputs!$D$24,IF(LEFT(B44,13)=[2]Inputs!$C$25,[2]Inputs!$D$24,[2]Inputs!$D$26)) -> 3.937602527 | E44: 84770 | F44: 333790.5662 | G44: 0.1625 | H44: 54240.96701
B45: F WILSON 35 LEW/LAN/FT UN | C45: LEWIS/LANCE/FT U | D45: =IF(LEFT(B45,12)=[2]Inputs!$C$24,[2]Inputs!$D$24,IF(LEFT(B45,13)=[2]Inputs!$C$25,[2]Inputs!$D$24,[2]Inputs!$D$26)) -> 3.937602527 | E45: 133976 | F45: 527544.2361 | G45: 0.1925 | H45: 101552.2655
B46: F WILSON 29E (DD) FT UN | C46: FORT UNION | D46: =IF(LEFT(B46,12)=[2]Inputs!$C$24,[2]Inputs!$D$24,IF(LEFT(B46,13)=[2]Inputs!$C$25,[2]Inputs!$D$24,[2]Inputs!$D$26)) -> 3.937602527 | E46: 36004 | F46: 141769.4414 | G46: 0.1625 | H46: 23037.53422
A47: HIAW DEEP (CO) | B47: HIAWATHA DEEP UNIT 1 NUGGET | C47: NUGGET | D47: =IF(LEFT(B47,12)=[2]Inputs!$C$24,[2]Inputs!$D$24,IF(LEFT(B47,13)=[2]Inputs!$C$25,[2]Inputs!$D$24,[2]Inputs!$D$26)) -> 3.937602527 | E47: 84459 | F47: 332565.9718 | G47: 0.1723962084 | H47: 57333.11257
B48: HIAWATHA DEEP UNIT 3 NUGGET | C48: NUGGET | D48: =IF(LEFT(B48,12)=[2]Inputs!$C$24,[2]Inputs!$D$24,IF(LEFT(B48,13)=[2]Inputs!$C$25,[2]Inputs!$D$24,[2]Inputs!$D$26)) -> 3.937602527 | E48: 362284 | F48: 1426530.394 | G48: 0.1714959958 | H48: 244644.2504
B49: HIAWATHA DEEP UNIT 2 NUGGET | C49: NUGGET | D49: =IF(LEFT(B49,12)=[2]Inputs!$C$24,[2]Inputs!$D$24,IF(LEFT(B49,13)=[2]Inputs!$C$25,[2]Inputs!$D$24,[2]Inputs!$D$26)) -> 3.937602527 | E49: 22478 | F49: 88509.4296 | G49: 0.172395903 | H49: 15258.66304
A50: JACKS DRAW (CO) | B50: JACKS DRAW UNIT 2 FT UN | C50: FORT UNION | D50: =IF(LEFT(B50,12)=[2]Inputs!$C$24,[2]Inputs!$D$24,IF(LEFT(B50,13)=[2]Inputs!$C$25,[2]Inputs!$D$24,[2]Inputs!$D$26)) -> 3.937602527 | E50: 49594 | F50: 195281.4597 | G50: 0.1396875 | H50: 27278.3789
B51: JACKS DRAW UNIT 3 FT UN | C51: FORT UNION | D51: =IF(LEFT(B51,12)=[2]Inputs!$C$24,[2]Inputs!$D$24,IF(LEFT(B51,13)=[2]Inputs!$C$25,[2]Inputs!$D$24,[2]Inputs!$D$26)) -> 3.937602527 | E51: 26446 | F51: 104133.8364 | G51: 0.1396875 | H51: 14546.19528
B52: JACKS DRAW UNIT 9 FT UN | C52: FORT UNION | D52: =IF(LEFT(B52,12)=[2]Inputs!$C$24,[2]Inputs!$D$24,IF(LEFT(B52,13)=[2]Inputs!$C$25,[2]Inputs!$D$24,[2]Inputs!$D$26)) -> 3.937602527 | E52: 37872 | F52: 149124.8829 | G52: 0.1396875 | H52: 20830.88208
B53: JACKS DRAW UNIT 5 FT UN | C53: FORT UNION | D53: =IF(LEFT(B53,12)=[2]Inputs!$C$24,[2]Inputs!$D$24,IF(LEFT(B53,13)=[2]Inputs!$C$25,[2]Inputs!$D$24,[2]Inputs!$D$26)) -> 3.937602527 | E53: 2840 | F53: 11182.79118 | G53: 0.1489132823 | H53: 1665.26614
B54: JACKS DRAW UNIT 8 FT UN | C54: FORT UNION | D54: =IF(LEFT(B54,12)=[2]Inputs!$C$24,[2]Inputs!$D$24,IF(LEFT(B54,13)=[2]Inputs!$C$25,[2]Inputs!$D$24,[2]Inputs!$D$26)) -> 3.937602527 | E54: 4039 | F54: 15903.97661 | G54: 0.1489132823 | H54: 2368.313358
B55: JACKS DRAW UNIT 17 FT UN | C55: FORT UNION | D55: =IF(LEFT(B55,12)=[2]Inputs!$C$24,[2]Inputs!$D$24,IF(LEFT(B55,13)=[2]Inputs!$C$25,[2]Inputs!$D$24,[2]Inputs!$D$26)) -> 3.937602527 | E55: 55589 | F55: 218887.3869 | G55: 0.1396875 | H55: 30575.83185
A56: LO HORSE DR (CO) | B56: LOWER HORSE DRAW 11-1 MANCOS B | C56: MANCOS B | D56: =IF(LEFT(B56,12)=[2]Inputs!$C$24,[2]Inputs!$D$24,IF(LEFT(B56,13)=[2]Inputs!$C$25,[2]Inputs!$D$24,[2]Inputs!$D$26)) -> 3.937602527 | E56: 2578 | F56: 10151.13931 | G56: 0.125 | H56: 1268.892414
B57: LOWER HORSE DRAW 12-2 MANCOS B | C57: MANCOS B | D57: =IF(LEFT(B57,12)=[2]Inputs!$C$24,[2]Inputs!$D$24,IF(LEFT(B57,13)=[2]Inputs!$C$25,[2]Inputs!$D$24,[2]Inputs!$D$26)) -> 3.937602527 | E57: 19810 | F57: 78003.90606 | G57: 0.125 | H57: 9750.488257
B58: LOWER HORSE DRAW 10-1 MANCOS B | C58: MANCOS B | D58: =IF(LEFT(B58,12)=[2]Inputs!$C$24,[2]Inputs!$D$24,IF(LEFT(B58,13)=[2]Inputs!$C$25,[2]Inputs!$D$24,[2]Inputs!$D$26)) -> 3.937602527 | E58: 2971 | F58: 11698.61711 | G58: 0.125 | H58: 1462.327138
B59: LOWER HORSE DRAW 10-2 MB SILT | C59: MANCOS B SILT | D59: =IF(LEFT(B59,12)=[2]Inputs!$C$24,[2]Inputs!$D$24,IF(LEFT(B59,13)=[2]Inputs!$C$25,[2]Inputs!$D$24,[2]Inputs!$D$26)) -> 3.937602527 | E59: 6319 | F59: 24881.71037 | G59: 0.125 | H59: 3110.213796
B60: LOWER HORSE FED 11-5 MANCOS B | C60: MANCOS B | D60: =IF(LEFT(B60,12)=[2]Inputs!$C$24,[2]Inputs!$D$24,IF(LEFT(B60,13)=[2]Inputs!$C$25,[2]Inputs!$D$24,[2]Inputs!$D$26)) -> 3.937602527 | E60: 27092 | F60: 106677.5277 | G60: 0.125 | H60: 13334.69096
B61: LOWER HORSE FED 11-5 MB SILT | C61: MANCOS B SILT | D61: =IF(LEFT(B61,12)=[2]Inputs!$C$24,[2]Inputs!$D$24,IF(LEFT(B61,13)=[2]Inputs!$C$25,[2]Inputs!$D$24,[2]Inputs!$D$26)) -> 3.937602527 | E61: 17689 | F61: 69652.2511 | G61: 0.125 | H61: 8706.531387
A62: POWDER WASH (CO) | B62: CARL ALLEN B 4 WAS | C62: WASATCH | D62: =IF(LEFT(B62,12)=[2]Inputs!$C$24,[2]Inputs!$D$24,IF(LEFT(B62,13)=[2]Inputs!$C$25,[2]Inputs!$D$24,[2]Inputs!$D$26)) -> 3.937602527 | E62: 5837 | F62: 22983.78595 | G62: 0.1100461 | H62: 2529.276007
B63: CARL ALLEN B 6 FT UN | C63: FORT UNION | D63: =IF(LEFT(B63,12)=[2]Inputs!$C$24,[2]Inputs!$D$24,IF(LEFT(B63,13)=[2]Inputs!$C$25,[2]Inputs!$D$24,[2]Inputs!$D$26)) -> 3.937602527 | E63: 55060 | F63: 216804.3951 | G63: 0.1100461 | H63: 23858.47815
B64: CARL ALLEN B 6 LOWER FT UN | C64: FORT UNION | D64: =IF(LEFT(B64,12)=[2]Inputs!$C$24,[2]Inputs!$D$24,IF(LEFT(B64,13)=[2]Inputs!$C$25,[2]Inputs!$D$24,[2]Inputs!$D$26)) -> 3.937602527 | E64: 55060 | F64: 216804.3951 | G64: 0.1100461 | H64: 23858.47815
B65: CARL ALLEN B 7 FT UN | C65: FORT UNION | D65: =IF(LEFT(B65,12)=[2]Inputs!$C$24,[2]Inputs!$D$24,IF(LEFT(B65,13)=[2]Inputs!$C$25,[2]Inputs!$D$24,[2]Inputs!$D$26)) -> 3.937602527 | E65: 134734 | F65: 530528.9388 | G65: 0.1100461 | H65: 58382.64066
B66: CARL ALLEN A 8 FT UN | C66: FORT UNION | D66: =IF(LEFT(B66,12)=[2]Inputs!$C$24,[2]Inputs!$D$24,IF(LEFT(B66,13)=[2]Inputs!$C$25,[2]Inputs!$D$24,[2]Inputs!$D$26)) -> 3.937602527 | E66: 41415 | F66: 163075.8086 | G66: 0.1100461 | H66: 17945.85675
B67: CARL ALLEN B 10 WAS | C67: WASATCH | D67: =IF(LEFT(B67,12)=[2]Inputs!$C$24,[2]Inputs!$D$24,IF(LEFT(B67,13)=[2]Inputs!$C$25,[2]Inputs!$D$24,[2]Inputs!$D$26)) -> 3.937602527 | E67: 1199 | F67: 4721.18543 | G67: 0.1100461 | H67: 519.5480439
B68: CARL ALLEN A 11 FT UN | C68: FORT UNION | D68: =IF(LEFT(B68,12)=[2]Inputs!$C$24,[2]Inputs!$D$24,IF(LEFT(B68,13)=[2]Inputs!$C$25,[2]Inputs!$D$24,[2]Inputs!$D$26)) -> 3.937602527 | E68: 4867 | F68: 19164.3115 | G68: 0.1100461 | H68: 2108.95774
B69: CARL ALLEN A 11 LOWER FT UN | C69: FORT UNION | D69: =IF(LEFT(B69,12)=[2]Inputs!$C$24,[2]Inputs!$D$24,IF(LEFT(B69,13)=[2]Inputs!$C$25,[2]Inputs!$D$24,[2]Inputs!$D$26)) -> 3.937602527 | E69: 330558 | F69: 1301606.016 | G69: 0.10990837 | H69: 143057.3956
B70: CARL ALLEN B 15 WAS | C70: WASATCH | D70: =IF(LEFT(B70,12)=[2]Inputs!$C$24,[2]Inputs!$D$24,IF(LEFT(B70,13)=[2]Inputs!$C$25,[2]Inputs!$D$24,[2]Inputs!$D$26)) -> 3.937602527 | E70: 10962 | F70: 43163.9989 | G70: 0.1100461 | H70: 4750.029739
B71: CARL ALLEN B 17 WAS | C71: WASATCH | D71: =IF(LEFT(B71,12)=[2]Inputs!$C$24,[2]Inputs!$D$24,IF(LEFT(B71,13)=[2]Inputs!$C$25,[2]Inputs!$D$24,[2]Inputs!$D$26)) -> 3.937602527 | E71: 20584 | F71: 81051.61041 | G71: 0.1100461 | H71: 8919.413624
B72: CARL ALLEN A 19 FT UN | C72: FORT UNION | D72: =IF(LEFT(B72,12)=[2]Inputs!$C$24,[2]Inputs!$D$24,IF(LEFT(B72,13)=[2]Inputs!$C$25,[2]Inputs!$D$24,[2]Inputs!$D$26)) -> 3.937602527 | E72: 126007 | F72: 496165.4816 | G72: 0.1100461 | H72: 54601.0762
B73: CARL ALLEN A 20 FT UN | C73: FORT UNION | D73: =IF(LEFT(B73,12)=[2]Inputs!$C$24,[2]Inputs!$D$24,IF(LEFT(B73,13)=[2]Inputs!$C$25,[2]Inputs!$D$24,[2]Inputs!$D$26)) -> 3.937602527 | E73: 42308 | F73: 166592.0877 | G73: 0.1100461 | H73: 18332.80954
B74: BW MUSSER A 1 WAS | C74: WASATCH | D74: =IF(LEFT(B74,12)=[2]Inputs!$C$24,[2]Inputs!$D$24,IF(LEFT(B74,13)=[2]Inputs!$C$25,[2]Inputs!$D$24,[2]Inputs!$D$26)) -> 3.937602527 | E74: 6549 | F74: 25787.35895 | G74: 0.1100461 | H74: 2837.798282
B75: BW MUSSER B 21 FT UN | C75: FORT UNION | D75: =IF(LEFT(B75,12)=[2]Inputs!$C$24,[2]Inputs!$D$24,IF(LEFT(B75,13)=[2]Inputs!$C$25,[2]Inputs!$D$24,[2]Inputs!$D$26)) -> 3.937602527 | E75: 52545 | F75: 206901.3248 | G75: 0.1100461 | H75: 22768.68388
B76: BW MUSSER B 6 WAS | C76: WASATCH | D76: =IF(LEFT(B76,12)=[2]Inputs!$C$24,[2]Inputs!$D$24,IF(LEFT(B76,13)=[2]Inputs!$C$25,[2]Inputs!$D$24,[2]Inputs!$D$26)) -> 3.937602527 | E76: 28178 | F76: 110953.764 | G76: 0.1100461 | H76: =F76*G76 -> 12210.02901
B77: BW MUSSER B 10 FT UN | C77: FORT UNION | D77: =IF(LEFT(B77,12)=[2]Inputs!$C$24,[2]Inputs!$D$24,IF(LEFT(B77,13)=[2]Inputs!$C$25,[2]Inputs!$D$24,[2]Inputs!$D$26)) -> 3.937602527 | E77: 32367 | F77: =D77*E77 -> 127448.381 | G77: 0.1100461 | H77: 14025.19728
B78: BW MUSSER B 11 FT UN | C78: FORT UNION | D78: =IF(LEFT(B78,12)=[2]Inputs!$C$24,[2]Inputs!$D$24,IF(LEFT(B78,13)=[2]Inputs!$C$25,[2]Inputs!$D$24,[2]Inputs!$D$26)) -> 3.937602527 | E78: 13729 | F78: 54059.34509 | G78: 0.1100461 | H78: 5949.020096
B79: JC DONNELL B 3 WAS | C79: WASATCH | D79: =IF(LEFT(B79,12)=[2]Inputs!$C$24,[2]Inputs!$D$24,IF(LEFT(B79,13)=[2]Inputs!$C$25,[2]Inputs!$D$24,[2]Inputs!$D$26)) -> 3.937602527 | E79: 59289 | F79: 233456.5162 | G79: 0.1100461 | H79: 25690.97913
B80: JC DONNELL B 5 FT UN | C80: FORT UNION | D80: =IF(LEFT(B80,12)=[2]Inputs!$C$24,[2]Inputs!$D$24,IF(LEFT(B80,13)=[2]Inputs!$C$25,[2]Inputs!$D$24,[2]Inputs!$D$26)) -> 3.937602527 | E80: 24029 | F80: 94616.65112 | G80: 0.1100461 | H80: 10412.19345
B81: JC DONNELL B 9 FT UN | C81: FORT UNION | D81: =IF(LEFT(B81,12)=[2]Inputs!$C$24,[2]Inputs!$D$24,IF(LEFT(B81,13)=[2]Inputs!$C$25,[2]Inputs!$D$24,[2]Inputs!$D$26)) -> 3.937602527 | E81: 26664 | F81: 104992.2338 | G81: 0.1100461 | H81: 11553.98586
B82: JC DONNELL B 10 FT UN | C82: FORT UNION | D82: =IF(LEFT(B82,12)=[2]Inputs!$C$24,[2]Inputs!$D$24,IF(LEFT(B82,13)=[2]Inputs!$C$25,[2]Inputs!$D$24,[2]Inputs!$D$26)) -> 3.937602527 | E82: 56927 | F82: 224155.899 | G82: 0.1100461 | H82: 24667.48248
B83: H STEWART A 1 FT UN | C83: FORT UNION | D83: =IF(LEFT(B83,12)=[2]Inputs!$C$24,[2]Inputs!$D$24,IF(LEFT(B83,13)=[2]Inputs!$C$25,[2]Inputs!$D$24,[2]Inputs!$D$26)) -> 3.937602527 | E83: 15963 | F83: 62855.94913 | G83: 0.1100461 | H83: 6917.052064
B84: BW MUSSER B 13 FT UN | C84: FORT UNION | D84: =IF(LEFT(B84,12)=[2]Inputs!$C$24,[2]Inputs!$D$24,IF(LEFT(B84,13)=[2]Inputs!$C$25,[2]Inputs!$D$24,[2]Inputs!$D$26)) -> 3.937602527 | E84: 36877 | F84: 145206.9684 | G84: 0.1100461 | H84: 15979.46056
B85: BW MUSSER A 14 FT UN | C85: FORT UNION | D85: =IF(LEFT(B85,12)=[2]Inputs!$C$24,[2]Inputs!$D$24,IF(LEFT(B85,13)=[2]Inputs!$C$25,[2]Inputs!$D$24,[2]Inputs!$D$26)) -> 3.937602527 | E85: 27269 | F85: 107374.4833 | G85: 0.1100461 | H85: 11816.14313
B86: BW MUSSER 15 UPPER FT UN | C86: FORT UNION | D86: =IF(LEFT(B86,12)=[2]Inputs!$C$24,[2]Inputs!$D$24,IF(LEFT(B86,13)=[2]Inputs!$C$25,[2]Inputs!$D$24,[2]Inputs!$D$26)) -> 3.937602527 | E86: 24426 | F86: 96179.87932 | G86: 0.1100461 | H86: 10584.22062
B87: BW MUSSER A 16 WAS | C87: WASATCH | D87: =IF(LEFT(B87,12)=[2]Inputs!$C$24,[2]Inputs!$D$24,IF(LEFT(B87,13)=[2]Inputs!$C$25,[2]Inputs!$D$24,[2]Inputs!$D$26)) -> 3.937602527 | E87: 67026 | F87: 263921.747 | G87: 0.110046 | H87: 29043.53257
B88: BW MUSSER A 16 FT UN | C88: FORT UNION | D88: =IF(LEFT(B88,12)=[2]Inputs!$C$24,[2]Inputs!$D$24,IF(LEFT(B88,13)=[2]Inputs!$C$25,[2]Inputs!$D$24,[2]Inputs!$D$26)) -> 3.937602527 | E88: 39285 | F88: 154688.7153 | G88: 0.1100461 | H88: 17022.88983
B89: BW MUSSER B 18 FT UN | C89: FORT UNION | D89: =IF(LEFT(B89,12)=[2]Inputs!$C$24,[2]Inputs!$D$24,IF(LEFT(B89,13)=[2]Inputs!$C$25,[2]Inputs!$D$24,[2]Inputs!$D$26)) -> 3.937602527 | E89: 76825 | F89: 302506.3141 | G89: 0.1100461 | H89: 33289.64009
B90: BW MUSSER B 19 FT UN | C90: FORT UNION | D90: =IF(LEFT(B90,12)=[2]Inputs!$C$24,[2]Inputs!$D$24,IF(LEFT(B90,13)=[2]Inputs!$C$25,[2]Inputs!$D$24,[2]Inputs!$D$26)) -> 3.937602527 | E90: 47582 | F90: 187359.0034 | G90: 0.1100461 | H90: 20618.12763
B91: BW MUSSER B 20 FT UN | C91: FORT UNION | D91: =IF(LEFT(B91,12)=[2]Inputs!$C$24,[2]Inputs!$D$24,IF(LEFT(B91,13)=[2]Inputs!$C$25,[2]Inputs!$D$24,[2]Inputs!$D$26)) -> 3.937602527 | E91: 12162 | F91: 47889.12193 | G91: 0.1100461 | H91: 5270.011101
B92: POWDER WASH GOVT 1 FT UN | C92: FORT UNION | D92: =IF(LEFT(B92,12)=[2]Inputs!$C$24,[2]Inputs!$D$24,IF(LEFT(B92,13)=[2]Inputs!$C$25,[2]Inputs!$D$24,[2]Inputs!$D$26)) -> 3.937602527 | E92: 14199 | F92: 55910.01828 | G92: 0.1100461 | H92: 6152.679462
B93: POWDER WASH GOVT 2 FT UN | C93: FORT UNION | D93: =IF(LEFT(B93,12)=[2]Inputs!$C$24,[2]Inputs!$D$24,IF(LEFT(B93,13)=[2]Inputs!$C$25,[2]Inputs!$D$24,[2]Inputs!$D$26)) -> 3.937602527 | E93: 4122 | F93: 16230.79762 | G93: 0.1100461 | H93: 1786.135977
B94: JC DONNELL A 11 FT UN | C94: FORT UNION | D94: =IF(LEFT(B94,12)=[2]Inputs!$C$24,[2]Inputs!$D$24,IF(LEFT(B94,13)=[2]Inputs!$C$25,[2]Inputs!$D$24,[2]Inputs!$D$26)) -> 3.937602527 | E94: 84178 | F94: 331459.5055 | G94: 0.1100461 | H94: 36475.82589
B95: JC DONNELL B 12 FT UN | C95: FORT UNION | D95: =IF(LEFT(B95,12)=[2]Inputs!$C$24,[2]Inputs!$D$24,IF(LEFT(B95,13)=[2]Inputs!$C$25,[2]Inputs!$D$24,[2]Inputs!$D$26)) -> 3.937602527 | E95: 3044 | F95: 11986.06209 | G95: 0.1100461 | H95: 1319.019388
B96: JA LEE 1 FT UN | C96: FORT UNION | D96: =IF(LEFT(B96,12)=[2]Inputs!$C$24,[2]Inputs!$D$24,IF(LEFT(B96,13)=[2]Inputs!$C$25,[2]Inputs!$D$24,[2]Inputs!$D$26)) -> 3.937602527 | E96: 23904 | F96: 94124.4508 | G96: 0.1100461 | H96: 10358.02873
B97: JC DONNELL A 1 FT UN | C97: FORT UNION | D97: =IF(LEFT(B97,12)=[2]Inputs!$C$24,[2]Inputs!$D$24,IF(LEFT(B97,13)=[2]Inputs!$C$25,[2]Inputs!$D$24,[2]Inputs!$D$26)) -> 3.937602527 | E97: 21089 | F97: 83040.09969 | G97: 0.1100461 | H97: 9138.239114
B98: POWDER WASH 20-1 FT UN | C98: FORT UNION | D98: =IF(LEFT(B98,12)=[2]Inputs!$C$24,[2]Inputs!$D$24,IF(LEFT(B98,13)=[2]Inputs!$C$25,[2]Inputs!$D$24,[2]Inputs!$D$26)) -> 3.937602527 | E98: 106060 | F98: 417622.124 | G98: 0.125 | H98: 52202.7655
B99: CARL ALLEN A 16 WAS | C99: WASATCH | D99: =IF(LEFT(B99,12)=[2]Inputs!$C$24,[2]Inputs!$D$24,IF(LEFT(B99,13)=[2]Inputs!$C$25,[2]Inputs!$D$24,[2]Inputs!$D$26)) -> 3.937602527 | E99: 21431 | F99: 84386.75975 | G99: 0.1100461 | H99: 9286.433802
B100: H STEWART A 2 FT UN | C100: FORT UNION | D100: =IF(LEFT(B100,12)=[2]Inputs!$C$24,[2]Inputs!$D$24,IF(LEFT(B100,13)=[2]Inputs!$C$25,[2]Inputs!$D$24,[2]Inputs!$D$26)) -> 3.937602527 | E100: 171177 | F100: 674026.9877 | G100: 0.1100461 | H100: 74174.04129
B101: CARL ALLEN B 9 UPPER WAS | C101: WASATCH | D101: =IF(LEFT(B101,12)=[2]Inputs!$C$24,[2]Inputs!$D$24,IF(LEFT(B101,13)=[2]Inputs!$C$25,[2]Inputs!$D$24,[2]Inputs!$D$26)) -> 3.937602527 | E101: 8717 | F101: 34324.08123 | G101: 0.1100461 | H101: 3777.231275
B102: CARL ALLEN A 2 WAS | C102: WASATCH | D102: =IF(LEFT(B102,12)=[2]Inputs!$C$24,[2]Inputs!$D$24,IF(LEFT(B102,13)=[2]Inputs!$C$25,[2]Inputs!$D$24,[2]Inputs!$D$26)) -> 3.937602527 | E102: 32482 | F102: 127901.2053 | G102: 0.1100461 | H102: 14075.02883
B103: BW MUSSER 22 FT UN | C103: FORT UNION | D103: =IF(LEFT(B103,12)=[2]Inputs!$C$24,[2]Inputs!$D$24,IF(LEFT(B103,13)=[2]Inputs!$C$25,[2]Inputs!$D$24,[2]Inputs!$D$26)) -> 3.937602527 | E103: 11789 | F103: 46420.39619 | G103: 0.1100461 | H103: 5108.383561
B104: CARL ALLEN 22 FT UN | C104: FORT UNION | D104: =IF(LEFT(B104,12)=[2]Inputs!$C$24,[2]Inputs!$D$24,IF(LEFT(B104,13)=[2]Inputs!$C$25,[2]Inputs!$D$24,[2]Inputs!$D$26)) -> 3.937602527 | E104: 235959 | F104: 929112.7546 | G104: 0.1100461 | H104: 102245.2351
B105: JC DONNELL 14-29 FT UN | C105: FORT UNION | D105: =IF(LEFT(B105,12)=[2]Inputs!$C$24,[2]Inputs!$D$24,IF(LEFT(B105,13)=[2]Inputs!$C$25,[2]Inputs!$D$24,[2]Inputs!$D$26)) -> 3.937602527 | E105: 71026 | F105: 279672.1571 | G105: 0.1100461 | H105: 30776.83016
B106: CARL ALLEN 23 FT UN | C106: FORT UNION | D106: =IF(LEFT(B106,12)=[2]Inputs!$C$24,[2]Inputs!$D$24,IF(LEFT(B106,13)=[2]Inputs!$C$25,[2]Inputs!$D$24,[2]Inputs!$D$26)) -> 3.937602527 | E106: 63605 | F106: 250451.2087 | G106: 0.1100461 | H106: 27561.17876
B107: BW MUSSER 23 FT UN | C107: FORT UNION | D107: =IF(LEFT(B107,12)=[2]Inputs!$C$24,[2]Inputs!$D$24,IF(LEFT(B107,13)=[2]Inputs!$C$25,[2]Inputs!$D$24,[2]Inputs!$D$26)) -> 3.937602527 | E107: 168722 | F107: 664360.1735 | G107: 0.1100461 | H107: 73110.24609
B108: BW MUSSER 24 FT UN | C108: FORT UNION | D108: =IF(LEFT(B108,12)=[2]Inputs!$C$24,[2]Inputs!$D$24,IF(LEFT(B108,13)=[2]Inputs!$C$25,[2]Inputs!$D$24,[2]Inputs!$D$26)) -> 3.937602527 | E108: 94114 | F108: 370583.5242 | G108: 0.1100461 | H108: 40781.27156
B109: CARL ALLEN 26 FT UN | C109: FORT UNION | D109: =IF(LEFT(B109,12)=[2]Inputs!$C$24,[2]Inputs!$D$24,IF(LEFT(B109,13)=[2]Inputs!$C$25,[2]Inputs!$D$24,[2]Inputs!$D$26)) -> 3.937602527 | E109: 93993 | F109: 370107.0743 | G109: 0.1100461 | H109: 40728.84011
B110: BW MUSSER 25 FT UN | C110: FORT UNION | D110: =IF(LEFT(B110,12)=[2]Inputs!$C$24,[2]Inputs!$D$24,IF(LEFT(B110,13)=[2]Inputs!$C$25,[2]Inputs!$D$24,[2]Inputs!$D$26)) -> 3.937602527 | E110: 273484 | F110: 1076871.289 | G110: 0.1100461 | H110: 118505.4856
B111: CARL ALLEN 25 FT UN | C111: WASATCH | D111: =IF(LEFT(B111,12)=[2]Inputs!$C$24,[2]Inputs!$D$24,IF(LEFT(B111,13)=[2]Inputs!$C$25,[2]Inputs!$D$24,[2]Inputs!$D$26)) -> 3.937602527 | E111: 255673 | F111: 1006738.651 | G111: 0.1100461 | H111: 110787.6622
B112: H STEWART 5 FT UN | C112: FORT UNION | D112: =IF(LEFT(B112,12)=[2]Inputs!$C$24,[2]Inputs!$D$24,IF(LEFT(B112,13)=[2]Inputs!$C$25,[2]Inputs!$D$24,[2]Inputs!$D$26)) -> 3.937602527 | E112: 246689 | F112: 971363.2297 | G112: 0.1100461 | H112: 106894.7351
B113: CARL ALLEN 27 FT UN | C113: FORT UNION | D113: =IF(LEFT(B113,12)=[2]Inputs!$C$24,[2]Inputs!$D$24,IF(LEFT(B113,13)=[2]Inputs!$C$25,[2]Inputs!$D$24,[2]Inputs!$D$26)) -> 3.937602527 | E113: 137618 | F113: 541884.9845 | G113: 0.110046 | H113: 59632.27501
B114: CARL ALLEN 28 FT UN | C114: FORT UNION | D114: =IF(LEFT(B114,12)=[2]Inputs!$C$24,[2]Inputs!$D$24,IF(LEFT(B114,13)=[2]Inputs!$C$25,[2]Inputs!$D$24,[2]Inputs!$D$26)) -> 3.937602527 | E114: 175535 | F114: 691187.0595 | G114: 0.110046 | H114: 76062.37115
B115: CARL ALLEN 29 FT UN | C115: FORT UNION | D115: =IF(LEFT(B115,12)=[2]Inputs!$C$24,[2]Inputs!$D$24,IF(LEFT(B115,13)=[2]Inputs!$C$25,[2]Inputs!$D$24,[2]Inputs!$D$26)) -> 3.937602527 | E115: 219890 | F115: 865839.4196 | G115: 0.110046 | H115: 95282.16477
B116: BW MUSSER 27 FT UN | C116: FORT UNION | D116: =IF(LEFT(B116,12)=[2]Inputs!$C$24,[2]Inputs!$D$24,IF(LEFT(B116,13)=[2]Inputs!$C$25,[2]Inputs!$D$24,[2]Inputs!$D$26)) -> 3.937602527 | E116: 259029 | F116: 1019953.245 | G116: 0.110046 | H116: 112241.7748
B117: JC DONNELL 14 FT UN | C117: FORT UNION | D117: =IF(LEFT(B117,12)=[2]Inputs!$C$24,[2]Inputs!$D$24,IF(LEFT(B117,13)=[2]Inputs!$C$25,[2]Inputs!$D$24,[2]Inputs!$D$26)) -> 3.937602527 | E117: 44230 | F117: 174160.1598 | G117: 0.110046 | H117: 19165.62894
B118: JC DONNELL 15 FT UN | C118: FORT UNION | D118: =IF(LEFT(B118,12)=[2]Inputs!$C$24,[2]Inputs!$D$24,IF(LEFT(B118,13)=[2]Inputs!$C$25,[2]Inputs!$D$24,[2]Inputs!$D$26)) -> 3.937602527 | E118: 121273 | F118: 477524.8712 | G118: 0.110046 | H118: 52549.70198
B119: JC DONNELL 16 FT UN | C119: FORT UNION | D119: =IF(LEFT(B119,12)=[2]Inputs!$C$24,[2]Inputs!$D$24,IF(LEFT(B119,13)=[2]Inputs!$C$25,[2]Inputs!$D$24,[2]Inputs!$D$26)) -> 3.937602527 | E119: 186431 | F119: 734091.1767 | G119: 0.110046 | H119: 80783.79763
B120: BW MUSSER 28 FT UN | C120: FORT UNION | D120: =IF(LEFT(B120,12)=[2]Inputs!$C$24,[2]Inputs!$D$24,IF(LEFT(B120,13)=[2]Inputs!$C$25,[2]Inputs!$D$24,[2]Inputs!$D$26)) -> 3.937602527 | E120: 24497 | F120: 96459.4491 | G120: 0.110046 | H120: 10614.97654
B121: BW MUSSER 29 FT UN | C121: FORT UNION | D121: =IF(LEFT(B121,12)=[2]Inputs!$C$24,[2]Inputs!$D$24,IF(LEFT(B121,13)=[2]Inputs!$C$25,[2]Inputs!$D$24,[2]Inputs!$D$26)) -> 3.937602527 | E121: 263111 | F121: 1036026.538 | G121: 0.110046 | H121: 114010.5764
B122: BW MUSSER 26R FT UN | C122: FORT UNION | D122: =IF(LEFT(B122,12)=[2]Inputs!$C$24,[2]Inputs!$D$24,IF(LEFT(B122,13)=[2]Inputs!$C$25,[2]Inputs!$D$24,[2]Inputs!$D$26)) -> 3.937602527 | E122: 155217 | F122: 611182.8514 | G122: 0.1100461 | H122: 67258.28918
B123: CARL ALLEN 30 FT UN | C123: FORT UNION | D123: =IF(LEFT(B123,12)=[2]Inputs!$C$24,[2]Inputs!$D$24,IF(LEFT(B123,13)=[2]Inputs!$C$25,[2]Inputs!$D$24,[2]Inputs!$D$26)) -> 3.937602527 | E123: 203673 | F123: 801983.3194 | G123: 0.110046 | H123: 88255.05637
B124: CARL ALLEN 31 FT UN | C124: FORT UNION | D124: =IF(LEFT(B124,12)=[2]Inputs!$C$24,[2]Inputs!$D$24,IF(LEFT(B124,13)=[2]Inputs!$C$25,[2]Inputs!$D$24,[2]Inputs!$D$26)) -> 3.937602527 | E124: 356481 | F124: 1403680.486 | G124: 0.110046 | H124: 154469.4228
B125: CARL ALLEN 32 FT UN | C125: FORT UNION | D125: =IF(LEFT(B125,12)=[2]Inputs!$C$24,[2]Inputs!$D$24,IF(LEFT(B125,13)=[2]Inputs!$C$25,[2]Inputs!$D$24,[2]Inputs!$D$26)) -> 3.937602527 | E125: 326463 | F125: 1285481.534 | G125: 0.110046 | H125: 141462.1009
B126: CARL ALLEN 33 FT UN | C126: FORT UNION | D126: =IF(LEFT(B126,12)=[2]Inputs!$C$24,[2]Inputs!$D$24,IF(LEFT(B126,13)=[2]Inputs!$C$25,[2]Inputs!$D$24,[2]Inputs!$D$26)) -> 3.937602527 | E126: 45418 | F126: 178838.0316 | G126: 0.110046 | H126: 19680.41002
B127: CARL ALLEN 34 FT UN | C127: FORT UNION | D127: =IF(LEFT(B127,12)=[2]Inputs!$C$24,[2]Inputs!$D$24,IF(LEFT(B127,13)=[2]Inputs!$C$25,[2]Inputs!$D$24,[2]Inputs!$D$26)) -> 3.937602527 | E127: 453339 | F127: 1785068.792 | G127: 0.110046 | H127: 196439.6803
B128: JC DONNELL 18 FT UN | C128: FORT UNION | D128: =IF(LEFT(B128,12)=[2]Inputs!$C$24,[2]Inputs!$D$24,IF(LEFT(B128,13)=[2]Inputs!$C$25,[2]Inputs!$D$24,[2]Inputs!$D$26)) -> 3.937602527 | E128: 103738 | F128: 408479.0109 | G128: 0.110046 | H128: 44951.48124
B129: BW MUSSER 32 FT UN | C129: FORT UNION | D129: =IF(LEFT(B129,12)=[2]Inputs!$C$24,[2]Inputs!$D$24,IF(LEFT(B129,13)=[2]Inputs!$C$25,[2]Inputs!$D$24,[2]Inputs!$D$26)) -> 3.937602527 | E129: 210796 | F129: 830030.8622 | G129: 0.110046 | H129: 91341.57627
B130: STEWART 6 FT UN | C130: FORT UNION | D130: =IF(LEFT(B130,12)=[2]Inputs!$C$24,[2]Inputs!$D$24,IF(LEFT(B130,13)=[2]Inputs!$C$25,[2]Inputs!$D$24,[2]Inputs!$D$26)) -> 3.937602527 | E130: 261141 | F130: 1028269.461 | G130: 0.110046 | H130: 113156.9412
B131: BW MUSSER 36 FT UN | C131: FORT UNION | D131: =IF(LEFT(B131,12)=[2]Inputs!$C$24,[2]Inputs!$D$24,IF(LEFT(B131,13)=[2]Inputs!$C$25,[2]Inputs!$D$24,[2]Inputs!$D$26)) -> 3.937602527 | E131: 254874 | F131: 1003592.506 | G131: 0.110046 | H131: 110441.341
B132: BW MUSSER 37 FT UN | C132: FORT UNION | D132: =IF(LEFT(B132,12)=[2]Inputs!$C$24,[2]Inputs!$D$24,IF(LEFT(B132,13)=[2]Inputs!$C$25,[2]Inputs!$D$24,[2]Inputs!$D$26)) -> 3.937602527 | E132: 174899 | F132: 688682.7443 | G132: 0.110046 | H132: 75786.78128
B133: CARL ALLEN 35 FT UN | C133: FORT UNION | D133: =IF(LEFT(B133,12)=[2]Inputs!$C$24,[2]Inputs!$D$24,IF(LEFT(B133,13)=[2]Inputs!$C$25,[2]Inputs!$D$24,[2]Inputs!$D$26)) -> 3.937602527 | E133: 239442 | F133: 942827.4242 | G133: 0.110046 | H133: 103754.3867
B134: CARL ALLEN 36 FT UN | C134: FORT UNION | D134: =IF(LEFT(B134,12)=[2]Inputs!$C$24,[2]Inputs!$D$24,IF(LEFT(B134,13)=[2]Inputs!$C$25,[2]Inputs!$D$24,[2]Inputs!$D$26)) -> 3.937602527 | E134: 307373 | F134: 1210312.701 | G134: 0.110046 | H134: 133190.0715
A135: RABBIT MTN (CO) | B135: MF FEDERAL 8-1 MANCOS B | C135: MANCOS B | D135: =IF(LEFT(B135,12)=[2]Inputs!$C$24,[2]Inputs!$D$24,IF(LEFT(B135,13)=[2]Inputs!$C$25,[2]Inputs!$D$24,[2]Inputs!$D$26)) -> 3.937602527 | E135: 37523 | F135: 147750.6596 | G135: 0.155 | H135: 22901.35224
B136: RABBIT MTN FED 7-1 MANCOS B | C136: MANCOS B | D136: =IF(LEFT(B136,12)=[2]Inputs!$C$24,[2]Inputs!$D$24,IF(LEFT(B136,13)=[2]Inputs!$C$25,[2]Inputs!$D$24,[2]Inputs!$D$26)) -> 3.937602527 | E136: 50983 | F136: 200750.7896 | G136: 0.125 | H136: 25093.8487
A137: SUGAR LOAF (CO) | B137: SUGARLOAF GOVT 1 MESA | C137: MESAVERDE | D137: =IF(LEFT(B137,12)=[2]Inputs!$C$24,[2]Inputs!$D$24,IF(LEFT(B137,13)=[2]Inputs!$C$25,[2]Inputs!$D$24,[2]Inputs!$D$26)) -> 3.937602527 | E137: 119966 | F137: 472378.4247 | G137: 0.13375 | H137: 63180.61431
B138: SUGARLOAF GOVT 2 MESA | C138: MESAVERDE | D138: =IF(LEFT(B138,12)=[2]Inputs!$C$24,[2]Inputs!$D$24,IF(LEFT(B138,13)=[2]Inputs!$C$25,[2]Inputs!$D$24,[2]Inputs!$D$26)) -> 3.937602527 | E138: 155056 | F138: 610548.8974 | G138: 0.13375 | H138: 81660.91503
B139: SUGARLOAF GOVT 3 FT UN | C139: FORT UNION | D139: =IF(LEFT(B139,12)=[2]Inputs!$C$24,[2]Inputs!$D$24,IF(LEFT(B139,13)=[2]Inputs!$C$25,[2]Inputs!$D$24,[2]Inputs!$D$26)) -> 3.937602527 | E139: 91219 | F139: 359184.1649 | G139: 0.13375 | H139: 48040.88205
B140: SUGARLOAF GOVT 4 MESA | C140: MESAVERDE | D140: =IF(LEFT(B140,12)=[2]Inputs!$C$24,[2]Inputs!$D$24,IF(LEFT(B140,13)=[2]Inputs!$C$25,[2]Inputs!$D$24,[2]Inputs!$D$26)) -> 3.937602527 | E140: 20581 | F140: 81039.7976 | G140: 0.13375 | H140: =F140*G140 -> 10839.07293
B141: SUGARLOAF GOVT 6 MESA | C141: MESAVERDE | D141: =IF(LEFT(B141,12)=[2]Inputs!$C$24,[2]Inputs!$D$24,IF(LEFT(B141,13)=[2]Inputs!$C$25,[2]Inputs!$D$24,[2]Inputs!$D$26)) -> 3.937602527 | E141: 85236 | F141: =D141*E141 -> 335625.489 | G141: 0.13375 | H141: 44889.90915
B142: SUGARLOAF GOVT 8 MESA | C142: MESAVERDE | D142: =IF(LEFT(B142,12)=[2]Inputs!$C$24,[2]Inputs!$D$24,IF(LEFT(B142,13)=[2]Inputs!$C$25,[2]Inputs!$D$24,[2]Inputs!$D$26)) -> 3.937602527 | E142: 27056 | F142: 106535.774 | G142: 0.13375 | H142: 14249.15977
B143: SUGARLOAF GOVT 10 MESA | C143: MESAVERDE | D143: =IF(LEFT(B143,12)=[2]Inputs!$C$24,[2]Inputs!$D$24,IF(LEFT(B143,13)=[2]Inputs!$C$25,[2]Inputs!$D$24,[2]Inputs!$D$26)) -> 3.937602527 | E143: 178137 | F143: 701432.7013 | G143: 0.13375 | H143: 93816.6238
B144: SUGARLOAF GOVT 12 MESA | C144: MESAVERDE | D144: =IF(LEFT(B144,12)=[2]Inputs!$C$24,[2]Inputs!$D$24,IF(LEFT(B144,13)=[2]Inputs!$C$25,[2]Inputs!$D$24,[2]Inputs!$D$26)) -> 3.937602527 | E144: 5113 | F144: 20132.96172 | G144: 0.13375 | H144: 2692.78363
B145: SUGARLOAF GOVT 14 MESA | C145: MESAVERDE | D145: =IF(LEFT(B145,12)=[2]Inputs!$C$24,[2]Inputs!$D$24,IF(LEFT(B145,13)=[2]Inputs!$C$25,[2]Inputs!$D$24,[2]Inputs!$D$26)) -> 3.937602527 | E145: 24046 | F145: 94683.59036 | G145: 0.13375 | H145: 12663.93021
B146: SUGARLOAF GOVT 15 MESA | C146: MESAVERDE | D146: =IF(LEFT(B146,12)=[2]Inputs!$C$24,[2]Inputs!$D$24,IF(LEFT(B146,13)=[2]Inputs!$C$25,[2]Inputs!$D$24,[2]Inputs!$D$26)) -> 3.937602527 | E146: 75417 | F146: 296962.1698 | G146: 0.13375 | H146: 39718.69021
B147: SUGARLOAF GOVT 17 ALMOND | C147: ALMOND | D147: =IF(LEFT(B147,12)=[2]Inputs!$C$24,[2]Inputs!$D$24,IF(LEFT(B147,13)=[2]Inputs!$C$25,[2]Inputs!$D$24,[2]Inputs!$D$26)) -> 3.937602527 | E147: 33949 | F147: 133677.6682 | G147: 0.20375 | H147: 27236.82489
A148: W HIAW (CO) | B148: WB LASHER A 2 WAS | C148: WASATCH | D148: =IF(LEFT(B148,12)=[2]Inputs!$C$24,[2]Inputs!$D$24,IF(LEFT(B148,13)=[2]Inputs!$C$25,[2]Inputs!$D$24,[2]Inputs!$D$26)) -> 3.937602527 | E148: 23563 | F148: 92781.72834 | G148: 0.1925 | H148: 17860.48271
B149: WB LASHER A 4 FT UN | C149: FORT UNION | D149: =IF(LEFT(B149,12)=[2]Inputs!$C$24,[2]Inputs!$D$24,IF(LEFT(B149,13)=[2]Inputs!$C$25,[2]Inputs!$D$24,[2]Inputs!$D$26)) -> 3.937602527 | E149: 59051 | F149: 232519.3668 | G149: 0.1925 | H149: 44759.97811
B150: WM WHEELER A 2 WAS | C150: WASATCH | D150: =IF(LEFT(B150,12)=[2]Inputs!$C$24,[2]Inputs!$D$24,IF(LEFT(B150,13)=[2]Inputs!$C$25,[2]Inputs!$D$24,[2]Inputs!$D$26)) -> 3.937602527 | E150: 38502 | F150: 151605.5725 | G150: 0.1925 | H150: 29184.0727
B151: WM WHEELER A 2 FT UN | C151: FORT UNION | D151: =IF(LEFT(B151,12)=[2]Inputs!$C$24,[2]Inputs!$D$24,IF(LEFT(B151,13)=[2]Inputs!$C$25,[2]Inputs!$D$24,[2]Inputs!$D$26)) -> 3.937602527 | E151: 29435 | F151: 115903.3304 | G151: 0.1925 | H151: 22311.3911
B152: WM WHEELER A 3 FT UN | C152: FORT UNION | D152: =IF(LEFT(B152,12)=[2]Inputs!$C$24,[2]Inputs!$D$24,IF(LEFT(B152,13)=[2]Inputs!$C$25,[2]Inputs!$D$24,[2]Inputs!$D$26)) -> 3.937602527 | E152: 41360 | F152: 162859.2405 | G152: 0.1925 | H152: 31350.4038
B153: WB LASHER A 5 FT UN | C153: FORT UNION | D153: =IF(LEFT(B153,12)=[2]Inputs!$C$24,[2]Inputs!$D$24,IF(LEFT(B153,13)=[2]Inputs!$C$25,[2]Inputs!$D$24,[2]Inputs!$D$26)) -> 3.937602527 | E153: 20980 | F153: 82610.90101 | G153: 0.1840625 | H153: 15205.56897
B154: WB LASHER A 6 LEW/LNC/FT UN | C154: LANCE/LEWIS | D154: =IF(LEFT(B154,12)=[2]Inputs!$C$24,[2]Inputs!$D$24,IF(LEFT(B154,13)=[2]Inputs!$C$25,[2]Inputs!$D$24,[2]Inputs!$D$26)) -> 3.937602527 | E154: 83871 | F154: 330250.6615 | G154: 0.1925 | H154: 63573.25234
B155: WM WHEELER A 4 LEW/LNC/FT UN | C155: LANCE/LEWIS | D155: =IF(LEFT(B155,12)=[2]Inputs!$C$24,[2]Inputs!$D$24,IF(LEFT(B155,13)=[2]Inputs!$C$25,[2]Inputs!$D$24,[2]Inputs!$D$26)) -> 3.937602527 | E155: 114140 | F155: 449437.9524 | G155: 0.1925 | H155: 86516.80584
B156: LASHER 7 LEWIS | C156: LEWIS | D156: =IF(LEFT(B156,12)=[2]Inputs!$C$24,[2]Inputs!$D$24,IF(LEFT(B156,13)=[2]Inputs!$C$25,[2]Inputs!$D$24,[2]Inputs!$D$26)) -> 3.937602527 | E156: 130123 | F156: 512372.6536 | G156: 0.1925 | H156: 98631.73582
B157: LASHER 8 LEWIS | C157: LEWIS | D157: =IF(LEFT(B157,12)=[2]Inputs!$C$24,[2]Inputs!$D$24,IF(LEFT(B157,13)=[2]Inputs!$C$25,[2]Inputs!$D$24,[2]Inputs!$D$26)) -> 3.937602527 | E157: 30594 | F157: 120467.0117 | G157: 0.1840625 | H157: 22173.45934
B158: LASHER 9 LEWIS | C158: LEWIS | D158: =IF(LEFT(B158,12)=[2]Inputs!$C$24,[2]Inputs!$D$24,IF(LEFT(B158,13)=[2]Inputs!$C$25,[2]Inputs!$D$24,[2]Inputs!$D$26)) -> 3.937602527 | E158: 66453 | F158: 261665.5007 | G158: 0.1840625 | H158: 48162.80622
B159: LASHER 10 MESA | C159: MESAVERDE | D159: =IF(LEFT(B159,12)=[2]Inputs!$C$24,[2]Inputs!$D$24,IF(LEFT(B159,13)=[2]Inputs!$C$25,[2]Inputs!$D$24,[2]Inputs!$D$26)) -> 3.937602527 | E159: 14164 | F159: 55772.20219 | G159: 0.2540625 | H159: 14169.62512
B160: LASHER 10 FT UN | C160: FORT UNION | D160: =IF(LEFT(B160,12)=[2]Inputs!$C$24,[2]Inputs!$D$24,IF(LEFT(B160,13)=[2]Inputs!$C$25,[2]Inputs!$D$24,[2]Inputs!$D$26)) -> 3.937602527 | E160: 13752 | F160: 54149.90995 | G160: 0.1840625 | H160: 9966.9678
B161: LASHER 10 LEWIS | C161: LEWIS | D161: =IF(LEFT(B161,12)=[2]Inputs!$C$24,[2]Inputs!$D$24,IF(LEFT(B161,13)=[2]Inputs!$C$25,[2]Inputs!$D$24,[2]Inputs!$D$26)) -> 3.937602527 | E161: 13752 | F161: 54149.90995 | G161: 0.1840625 | H161: 9966.9678
B162: LASHER 11 MESA | C162: MESAVERDE | D162: =IF(LEFT(B162,12)=[2]Inputs!$C$24,[2]Inputs!$D$24,IF(LEFT(B162,13)=[2]Inputs!$C$25,[2]Inputs!$D$24,[2]Inputs!$D$26)) -> 3.937602527 | E162: 39722 | F162: 156409.4476 | G162: 0.2540625 | H162: 39737.77527
B163: LASHER 11 FT UN | C163: FORT UNION | D163: =IF(LEFT(B163,12)=[2]Inputs!$C$24,[2]Inputs!$D$24,IF(LEFT(B163,13)=[2]Inputs!$C$25,[2]Inputs!$D$24,[2]Inputs!$D$26)) -> 3.937602527 | E163: 39722 | F163: 156409.4476 | G163: 0.1840625 | H163: 28789.11394
B164: LASHER 11 LEWIS | C164: LEWIS | D164: =IF(LEFT(B164,12)=[2]Inputs!$C$24,[2]Inputs!$D$24,IF(LEFT(B164,13)=[2]Inputs!$C$25,[2]Inputs!$D$24,[2]Inputs!$D$26)) -> 3.937602527 | E164: 39722 | F164: 156409.4476 | G164: 0.1840625 | H164: 28789.11394
B165: LASHER 11 LANCE | C165: LANCE | D165: =IF(LEFT(B165,12)=[2]Inputs!$C$24,[2]Inputs!$D$24,IF(LEFT(B165,13)=[2]Inputs!$C$25,[2]Inputs!$D$24,[2]Inputs!$D$26)) -> 3.937602527 | E165: 39722 | F165: 156409.4476 | G165: 0.1840625 | H165: 28789.11394
B166: LASHER 12 MESA | C166: MESAVERDE | D166: =IF(LEFT(B166,12)=[2]Inputs!$C$24,[2]Inputs!$D$24,IF(LEFT(B166,13)=[2]Inputs!$C$25,[2]Inputs!$D$24,[2]Inputs!$D$26)) -> 3.937602527 | E166: 23381 | F166: 92065.08468 | G166: 0.2540625 | H166: 23390.28558
B167: LASHER 12 FT UN | C167: FORT UNION | D167: =IF(LEFT(B167,12)=[2]Inputs!$C$24,[2]Inputs!$D$24,IF(LEFT(B167,13)=[2]Inputs!$C$25,[2]Inputs!$D$24,[2]Inputs!$D$26)) -> 3.937602527 | E167: 23376 | F167: 92045.39667 | G167: 0.1840625 | H167: 16942.10582
B168: LASHER 12 LEWIS | C168: LEWIS | D168: =IF(LEFT(B168,12)=[2]Inputs!$C$24,[2]Inputs!$D$24,IF(LEFT(B168,13)=[2]Inputs!$C$25,[2]Inputs!$D$24,[2]Inputs!$D$26)) -> 3.937602527 | E168: 23376 | F168: 92045.39667 | G168: 0.1840625 | H168: 16942.10582
